Workbook

Sheet Sheet1
A1: HOLEID | B1: DEPTH | C1: SB DEPTH | D1: SECT NUM | E1: SECT DEPTH | F1: PWAmp | G1: PWVel_Corrected | H1: Den1 | I1: MS1 | J1: Imp | K1: FP | L1: XRF | M1: XRF Live Time | N1: Ti | O1: Ti-Error | P1: V | Q1: V-Error | R1: Cr | S1: Cr-Error | T1: Mn | U1: Mn-Error | V1: Fe | W1: Fe-Error | X1: Co | Y1: Co-Error | Z1: Ni | AA1: Ni-Error | AB1: Cu | AC1: Cu-Error | AD1: Zn | AE1: Zn-Error | AF1: As | AG1: As-Error | AH1: Zr | AI1: Zr-Error | AJ1: Mo | AK1: Mo-Error | AL1: Ag | AM1: Ag-Error | AN1: Cd | AO1: Cd-Error | AP1: Sn | AQ1: Sn-Error | AR1: Sb | AS1: Sb-Error | AT1: Hf | AU1: Hf-Error | AV1: W | AW1: W-Error | AX1: Pb | AY1: Pb-Error | AZ1: Bi | BA1: Bi-Error | BB1: LE | BC1: LE-Error | BD1: Mg | BE1: Mg-Error | BF1: Al | BG1: Al-Error | BH1: Si | BI1: Si-Error | BJ1: P | BK1: P-Error | BL1: S | BM1: S-Error | BN1: Cl | BO1: Cl-Error | BP1: K | BQ1: K-Error | BR1: Ca | BS1: Ca-Error
A2: One Earth | B2: =E2+(C2*0.03280839895) -> 4310.19685 | C2: 6 | D2: 1 | E2: 4310 | F2: 0 | H2: 2.6971 | I2: 19 | K2: 0.0192 | L2: 1124461 | M2: 50 | N2: 3409.67 | O2: 109.38 | P2: 318.59 | Q2: 41.66 | R2: 410.12 | S2: 35.77 | T2: 656.9 | U2: 28.63 | V2: 42384.44 | W2: 203.76 | X2: 108.22 | Y2: 17.27 | Z2: 97.97 | AA2: 7.88 | AB2: 0 | AC2: 36.16 | AD2: 70.71 | AE2: 4.84 | AF2: 0 | AG2: 32.86 | AH2: 157.62 | AI2: 2.2 | AJ2: 0 | AK2: 44.72 | AL2: 0 | AM2: 0 | AN2: 278.71 | AO2: 9.7 | AP2: 105.29 | AQ2: 3.32 | AR2: 135.67 | AS2: 3.69 | AT2: 58.19 | AU2: 7.17 | AV2: 0 | AW2: 73.83 | AX2: 141.64 | AY2: 4.35 | AZ2: 32.08 | BA2: 2.3 | BB2: 673696.51 | BC2: 1362.13 | BD2: 0 | BE2: 6813.27 | BF2: 57527.75 | BG2: 912.18 | BH2: 140494.81 | BI2: 698.99 | BJ2: 0 | BK2: 93.84 | BL2: 674.02 | BM2: 31.28 | BN2: 0 | BO2: 17.55 | BP2: 60695.22 | BQ2: 410.51 | BR2: 18545.88 | BS2: 104.66
A3: One Earth | B3: =E3+(C3*0.03280839895) -> 4310.393701 | C3: 12 | D3: 1 | E3: 4310 | F3: 0 | H3: 2.5278 | I3: 28 | J3: 255.5611 | K3: 0.0808 | L3: 868100 | M3: 52 | N3: 4257.76 | O3: 134.63 | P3: 349.61 | Q3: 49.61 | R3: 556.36 | S3: 43.95 | T3: 501.72 | U3: 30.15 | V3: 45192.55 | W3: 245.79 | X3: 108.06 | Y3: 20.11 | Z3: 124.67 | AA3: 9.69 | AB3: 0 | AC3: 40.1 | AD3: 71.56 | AE3: 5.62 | AF3: 0 | AG3: 33.79 | AH3: 145.83 | AI3: 2.45 | AJ3: 0 | AK3: 49.07 | AL3: 0 | AM3: 0 | AN3: 332.05 | AO3: 11.33 | AP3: 125.49 | AQ3: 3.94 | AR3: 166.12 | AS3: 4.42 | AT3: 44.91 | AU3: 7.79 | AV3: 0 | AW3: 87.43 | AX3: 116.12 | AY3: 4.61 | AZ3: 27.62 | BA3: 2.51 | BB3: 683884.47 | BC3: 1544.05 | BD3: 0 | BE3: 8868.07 | BF3: 53077.52 | BG3: 1027.56 | BH3: 136273.06 | BI3: 785.47 | BJ3: 0 | BK3: 101.41 | BL3: 669.62 | BM3: 36.58 | BN3: 0 | BO3: 20.89 | BP3: 66070.96 | BQ3: 479.12 | BR3: 7903.93 | BS3: 81.35
A4: One Earth | B4: =E4+(C4*0.03280839895) -> 4310.590551 | C4: 18 | D4: 1 | E4: 4310 | F4: 0 | H4: 2.6034 | I4: 21 | J4: 263.2057 | K4: 0.0533 | L4: 1088531 | M4: 50 | N4: 3613.77 | O4: 113.19 | P4: 234.07 | Q4: 40.95 | R4: 783.55 | S4: 43.04 | T4: 484.04 | U4: 26.97 | V4: 42955.57 | W4: 210.76 | X4: 157.8 | Y4: 17.83 | Z4: 169.97 | AA4: 9.49 | AB4: 0 | AC4: 35.1 | AD4: 81.45 | AE4: 5.15 | AF4: 0 | AG4: 36.67 | AH4: 148.98 | AI4: 2.2 | AJ4: 0 | AK4: 44.89 | AL4: 0 | AM4: 0 | AN4: 258.18 | AO4: 9.84 | AP4: 101.58 | AQ4: 3.36 | AR4: 130.92 | AS4: 3.74 | AT4: 53.63 | AU4: 7.21 | AV4: 0 | AW4: 77.93 | AX4: 182.82 | AY4: 4.93 | AZ4: 28.87 | BA4: 2.32 | BB4: 684935.73 | BC4: 1361.72 | BD4: 0 | BE4: 8869.05 | BF4: 48765.03 | BG4: 893.21 | BH4: 134740.86 | BI4: 694.17 | BJ4: 0 | BK4: 92.61 | BL4: 1152.75 | BM4: 34.12 | BN4: 0 | BO4: 17.01 | BP4: 65193.43 | BQ4: 416.13 | BR4: 15826.98 | BS4: 97.75
A5: One Earth | B5: =E5+(C5*0.03280839895) -> 4310.787402 | C5: 24 | D5: 1 | E5: 4310 | F5: 0 | H5: 2.4273 | I5: 4 | J5: 245.4073 | K5: 0.1174 | L5: 1107891 | M5: 50 | N5: 3719.53 | O5: 114.34 | P5: 251.36 | Q5: 41.53 | R5: 555.56 | S5: 38.9 | T5: 470.53 | U5: 26.27 | V5: 42773.89 | W5: 206.18 | X5: 139.96 | Y5: 17.66 | Z5: 135.75 | AA5: 8.77 | AB5: 0 | AC5: 36.73 | AD5: 72.65 | AE5: 4.94 | AF5: 0 | AG5: 36.72 | AH5: 158.52 | AI5: 2.23 | AJ5: 0 | AK5: 44.64 | AL5: 0 | AM5: 0 | AN5: 255.67 | AO5: 9.73 | AP5: 99.14 | AQ5: 3.32 | AR5: 134.13 | AS5: 3.71 | AT5: 60.17 | AU5: 7.41 | AV5: 0 | AW5: 75.29 | AX5: 188.61 | AY5: 4.96 | AZ5: 29.8 | BA5: 2.32 | BB5: 666093.35 | BC5: 1377.97 | BD5: 0 | BE5: 8463.95 | BF5: 54666.25 | BG5: 903.6 | BH5: 147002.89 | BI5: 719.27 | BJ5: 0 | BK5: 86.45 | BL5: 1204.46 | BM5: 34.77 | BN5: 0 | BO5: 16.46 | BP5: 66804.27 | BQ5: 426.39 | BR5: 15183.54 | BS5: 95.32
A6: One Earth | B6: =E6+(C6*0.03280839895) -> 4310.984252 | C6: 30 | D6: 1 | E6: 4310 | F6: 0 | H6: 2.6207 | I6: 6 | J6: 264.9551 | K6: 0.047 | L6: 990407 | M6: 51 | N6: 15429.86 | O6: 228.86 | P6: 242.63 | Q6: 66.22 | R6: 530.43 | S6: 42.64 | T6: 415.85 | U6: 27.43 | V6: 36889.44 | W6: 207.83 | X6: 117.74 | Y6: 17.93 | Z6: 102.48 | AA6: 8.64 | AB6: 0 | AC6: 40.2 | AD6: 74.68 | AE6: 5.44 | AF6: 48.96 | AG6: 6.59 | AH6: 144.96 | AI6: 2.35 | AJ6: 0 | AK6: 48.57 | AL6: 0 | AM6: 0 | AN6: 239.7 | AO6: 10.61 | AP6: 103.07 | AQ6: 3.66 | AR6: 132.07 | AS6: 4.06 | AT6: 57.36 | AU6: 8.69 | AV6: 0 | AW6: 85.35 | AX6: 451.7 | AY6: 8.07 | AZ6: 30.03 | BA6: 2.76 | BB6: 715401.06 | BC6: 1425.11 | BD6: 0 | BE6: 7545.25 | BF6: 41510.74 | BG6: 943.58 | BH6: 115957.62 | BI6: 695.31 | BJ6: 0 | BK6: 70.44 | BL6: 970.56 | BM6: 35.96 | BN6: 0 | BO6: 14.34 | BP6: 57623.99 | BQ6: 420.78 | BR6: 13525.1 | BS6: 96.13
A7: One Earth | B7: 4311.181102 | C7: 36 | D7: 1 | E7: 4310 | F7: 0 | H7: 2.5192 | I7: 7 | J7: 254.6916 | K7: 0.084 | L7: 833727 | M7: 53 | N7: 2739.34 | O7: 107.77 | P7: 298.08 | Q7: 43.52 | R7: 153.17 | S7: 32.85 | T7: 498.07 | U7: 27.71 | V7: 31630.99 | W7: 198.32 | X7: 110.02 | Y7: 16.18 | Z7: 0 | AA7: 32.13 | AB7: 123.32 | AC7: 14.54 | AD7: 213.4 | AE7: 8.15 | AF7: 710.61 | AG7: 29.94 | AH7: 128.36 | AI7: 2.49 | AJ7: 0 | AK7: 39.2 | AL7: 0 | AM7: 0 | AN7: 297.5 | AO7: 11.96 | AP7: 110.6 | AQ7: 4.12 | AR7: 145.39 | AS7: 4.62 | AT7: 238.82 | AU7: 24.63 | AV7: 0 | AW7: 110.57 | AX7: 10915.58 | AY7: 64.5 | AZ7: 85.72 | BA7: 8.04 | BB7: 768651.76 | BC7: 1359.59 | BD7: 0 | BE7: 11158.37 | BF7: 28150.82 | BG7: 838.35 | BH7: 86540.53 | BI7: 616.67 | BJ7: 0 | BK7: 151.3 | BL7: 9985.44 | BM7: 84.52 | BN7: 0 | BO7: 28.32 | BP7: 35400.94 | BQ7: 348.23 | BR7: 22871.57 | BS7: 139.43
A8: One Earth | B8: 4311.377953 | C8: 42 | D8: 1 | E8: 4310 | F8: 0 | I8: 11 | J8: 29.5622 | K8: 0.8941 | L8: 503915 | M8: 56 | N8: 1454.62 | O8: 327.3 | P8: 0 | Q8: 385.23 | R8: 0 | S8: 381.26 | T8: 0 | U8: 42626.59 | V8: 1495.17 | W8: 112.13 | X8: 0 | Y8: 75.13 | Z8: 0 | AA8: 129.59 | AB8: 0 | AC8: 238.73 | AD8: 907.01 | AE8: 47.76 | AF8: 0 | AG8: 251.78 | AH8: 27.08 | AI8: 4.93 | AJ8: 0 | AK8: 233.1 | AL8: 0 | AM8: 0 | AN8: 0 | AO8: 1873.8 | AP8: 0 | AQ8: 658.71 | AR8: 0 | AS8: 689.3 | AT8: 0 | AU8: 595.46 | AV8: 0 | AW8: 543.61 | AX8: 493.99 | AY8: 26.28 | AZ8: 0 | BA8: 376.95 | BB8: 892782.21 | BC8: 2359.5 | BD8: 0 | BE8: 382433.03 | BF8: 0 | BG8: 30358.3 | BH8: 13867.92 | BI8: 1567.59 | BJ8: 0 | BK8: 2582.94 | BL8: 0 | BM8: 3771.76 | BN8: 88972.01 | BO8: 1563.33 | BP8: 0 | BQ8: 36418.95 | BR8: 0 | BS8: 6038.28
A9: One Earth | B9: 4311.574803 | C9: 48 | D9: 1 | E9: 4310 | F9: 0 | H9: 2.1456 | I9: 20 | J9: 216.9214 | K9: 0.2199 | L9: 1096141 | M9: 50 | N9: 3127.1 | O9: 103.04 | P9: 276.15 | Q9: 39.27 | R9: 141.93 | S9: 29.47 | T9: 1252.51 | U9: 35.68 | V9: 46107.22 | W9: 231.98 | X9: 132.9 | Y9: 17.75 | Z9: 30.06 | AA9: 7.24 | AB9: 124.99 | AC9: 11.71 | AD9: 141.58 | AE9: 6.46 | AF9: 485.42 | AG9: 20.49 | AH9: 124.7 | AI9: 2.17 | AJ9: 0 | AK9: 38.53 | AL9: 0 | AM9: 0 | AN9: 251.84 | AO9: 10.35 | AP9: 106.64 | AQ9: 3.58 | AR9: 132.89 | AS9: 3.96 | AT9: 149.79 | AU9: 17.47 | AV9: 0 | AW9: 85.69 | AX9: 5557.99 | AY9: 33.51 | AZ9: 53.5 | BA9: 5.49 | BB9: 725729.5 | BC9: 1307.43 | BD9: 0 | BE9: 7902.13 | BF9: 35896.67 | BG9: 800.71 | BH9: 105219.67 | BI9: 611.86 | BJ9: 0 | BK9: 118.31 | BL9: 6587.36 | BM9: 59.88 | BN9: 0 | BO9: 20.59 | BP9: 46636.01 | BQ9: 348.5 | BR9: 21733.57 | BS9: 118.03
A10: One Earth | B10: 4311.771654 | C10: 54 | D10: 1 | E10: 4310 | F10: 0 | H10: 2.6259 | I10: 14 | J10: 265.4841 | K10: 0.0451 | L10: 870252 | M10: 52 | N10: 2833.28 | O10: 105.16 | P10: 212.89 | Q10: 40.09 | R10: 140.63 | S10: 30.77 | T10: 547.45 | U10: 27.52 | V10: 34195.52 | W10: 202.38 | X10: 0 | Y10: 74.15 | Z10: 23.28 | AA10: 6.98 | AB10: 160.7 | AC10: 14.21 | AD10: 231.28 | AE10: 8.09 | AF10: 710.42 | AG10: 27.25 | AH10: 117.34 | AI10: 2.31 | AJ10: 0 | AK10: 38.74 | AL10: 0 | AM10: 0 | AN10: 284.39 | AO10: 11.4 | AP10: 103.17 | AQ10: 3.9 | AR10: 149.73 | AS10: 4.44 | AT10: 244.5 | AU10: 22.8 | AV10: 0 | AW10: 101.45 | AX10: 9421.15 | AY10: 54.94 | AZ10: 79.84 | BA10: 7.3 | BB10: 764956.31 | BC10: 1321.45 | BD10: 0 | BE10: 10825.74 | BF10: 27688.17 | BG10: 814.75 | BH10: 90639.91 | BI10: 612.81 | BJ10: 0 | BK10: 142.83 | BL10: 14152.99 | BM10: 102.13 | BN10: 0 | BO10: 28.01 | BP10: 42596.6 | BQ10: 361.22 | BR10: 10510.45 | BS10: 81.76
A11: One Earth | B11: 4313.19685 | C11: 6 | D11: 1 | E11: 4313 | F11: 0 | H11: 2.7416 | I11: 14 | K11: 0.003 | L11: 1078493 | M11: 50 | N11: 3838.99 | O11: 116.09 | P11: 265.29 | Q11: 41.51 | R11: 403.41 | S11: 35.56 | T11: 560.5 | U11: 27.3 | V11: 43477.59 | W11: 212.16 | X11: 163.69 | Y11: 17.64 | Z11: 93.54 | AA11: 8.13 | AB11: 0 | AC11: 35.02 | AD11: 60.44 | AE11: 4.7 | AF11: 0 | AG11: 23.76 | AH11: 148.37 | AI11: 2.18 | AJ11: 0 | AK11: 44.72 | AL11: 0 | AM11: 0 | AN11: 259.18 | AO11: 9.77 | AP11: 100.31 | AQ11: 3.33 | AR11: 128.36 | AS11: 3.7 | AT11: 57.13 | AU11: 6.92 | AV11: 23.73 | AW11: 4.68 | AX11: 62.63 | AY11: 3.26 | AZ11: 31.44 | BA11: 2.24 | BB11: 688574.54 | BC11: 1344.59 | BD11: 0 | BE11: 8942.99 | BF11: 47643.19 | BG11: 883.23 | BH11: 132037.1 | BI11: 680.99 | BJ11: 0 | BK11: 94.45 | BL11: 0 | BM11: 84.72 | BN11: 0 | BO11: 16.77 | BP11: 64101.15 | BQ11: 408.37 | BR11: 17969.41 | BS11: 104.08
A12: One Earth | B12: 4313.393701 | C12: 12 | D12: 1 | E12: 4313 | F12: 0.0001 | G12: 4521.039 | H12: 2.6664 | I12: 26 | J12: 12055.09 | K12: 0.0304 | L12: 1058872 | M12: 51 | N12: 3607.41 | O12: 117.76 | P12: 307.42 | Q12: 43.59 | R12: 507.15 | S12: 39.37 | T12: 1637.79 | U12: 42.78 | V12: 42473.56 | W12: 214.4 | X12: 99.48 | Y12: 17.94 | Z12: 127.26 | AA12: 8.73 | AB12: 0 | AC12: 36.1 | AD12: 55.74 | AE12: 4.74 | AF12: 0 | AG12: 22.05 | AH12: 215.85 | AI12: 2.63 | AJ12: 0 | AK12: 47.93 | AL12: 0 | AM12: 0 | AN12: 267.26 | AO12: 10.1 | AP12: 100.36 | AQ12: 3.44 | AR12: 137.33 | AS12: 3.86 | AT12: 34.35 | AU12: 6.52 | AV12: 0 | AW12: 76.47 | AX12: 36.06 | AY12: 2.86 | AZ12: 31.45 | BA12: 2.28 | BB12: 679425.45 | BC12: 1392.2 | BD12: 0 | BE12: 8977.88 | BF12: 44881.79 | BG12: 891.07 | BH12: 135545.58 | BI12: 706.68 | BJ12: 360.29 | BK12: 46.99 | BL12: 407.91 | BM12: 30.02 | BN12: 0 | BO12: 16.58 | BP12: 66944.9 | BQ12: 425.54 | BR12: 22795.61 | BS12: 124.16
A13: One Earth | B13: 4313.590551 | C13: 18 | D13: 1 | E13: 4313 | F13: 0 | H13: 1.9981 | I13: 33 | J13: 202.0064 | K13: 0.2736 | L13: 1591482 | M13: 45 | N13: 23074.46 | O13: 258.41 | P13: 0 | Q13: 196.04 | R13: 727.65 | S13: 43.96 | T13: 7798.03 | U13: 90.75 | V13: 60454.88 | W13: 288.91 | X13: 0 | Y13: 94.42 | Z13: 158.4 | AA13: 10.06 | AB13: 0 | AC13: 30.4 | AD13: 32.49 | AE13: 4.42 | AF13: 0 | AG13: 19.14 | AH13: 145.98 | AI13: 2.34 | AJ13: 0 | AK13: 41.64 | AL13: 0 | AM13: 0 | AN13: 267.1 | AO13: 10.52 | AP13: 97.28 | AQ13: 3.57 | AR13: 131.16 | AS13: 3.97 | AT13: 36.53 | AU13: 6.7 | AV13: 25.86 | AW13: 5.09 | AX13: 35.14 | AY13: 3.02 | AZ13: 21.56 | BA13: 2.19 | BB13: 677829.99 | BC13: 1395.64 | BD13: 0 | BE13: 3255.38 | BF13: 29404.55 | BG13: 785.73 | BH13: 88365.79 | BI13: 543.64 | BJ13: 1242.92 | BK13: 61.9 | BL13: 0 | BM13: 41.77 | BN13: 63.1 | BO13: 4.54 | BP13: 28480.08 | BQ13: 288.3 | BR13: 81607.06 | BS13: 341.29
A14: One Earth | B14: 4313.787402 | C14: 24 | D14: 1 | E14: 4313 | F14: 0 | H14: 2.4724 | I14: 17 | J14: 249.9654 | K14: 0.101 | L14: 1027906 | M14: 51 | N14: 3674.03 | O14: 117.51 | P14: 356.67 | Q14: 44.12 | R14: 227.3 | S14: 33.02 | T14: 733.15 | U14: 30.62 | V14: 43089.21 | W14: 224.76 | X14: 134.77 | Y14: 18 | Z14: 64.63 | AA14: 7.87 | AB14: 0 | AC14: 40.11 | AD14: 98.06 | AE14: 5.74 | AF14: 120.56 | AG14: 9.86 | AH14: 143.97 | AI14: 2.27 | AJ14: 0 | AK14: 45.76 | AL14: 0 | AM14: 0 | AN14: 283.89 | AO14: 10.43 | AP14: 106.03 | AQ14: 3.57 | AR14: 132.35 | AS14: 3.96 | AT14: 69.27 | AU14: 10.21 | AV14: 0 | AW14: 84.59 | AX14: 1129.31 | AY14: 12.58 | AZ14: 31.29 | BA14: 3.2 | BB14: 714362.94 | BC14: 1392.36 | BD14: 0 | BE14: 11619.31 | BF14: 44430.58 | BG14: 937.02 | BH14: 121930.84 | BI14: 699.61 | BJ14: 0 | BK14: 115.06 | BL14: 1923.25 | BM14: 43.08 | BN14: 1812.43 | BO14: 11.65 | BP14: 54499.58 | BQ14: 412.16 | BR14: 10645.89 | BS14: 83.46
A15: One Earth | B15: 4313.984252 | C15: 30 | D15: 1 | E15: 4313 | F15: 0 | H15: 2.7252 | I15: 28 | J15: 275.5208 | K15: 0.009 | L15: 997974 | M15: 51 | N15: 3666.43 | O15: 118.81 | P15: 259.94 | Q15: 42.58 | R15: 402.55 | S15: 37.06 | T15: 848.69 | U15: 33.05 | V15: 47485.74 | W15: 239.79 | X15: 107.15 | Y15: 18.95 | Z15: 97.63 | AA15: 8.57 | AB15: 0 | AC15: 36.03 | AD15: 58.01 | AE15: 4.95 | AF15: 0 | AG15: 19.44 | AH15: 150.99 | AI15: 2.32 | AJ15: 0 | AK15: 46.85 | AL15: 0 | AM15: 0 | AN15: 263.14 | AO15: 10.38 | AP15: 98.65 | AQ15: 3.53 | AR15: 130.27 | AS15: 3.93 | AT15: 49.95 | AU15: 7.03 | AV15: 29.75 | AW15: 5.15 | AX15: 24.53 | AY15: 2.69 | AZ15: 25.65 | BA15: 2.22 | BB15: 690798 | BC15: 1428.14 | BD15: 0 | BE15: 10358.27 | BF15: 48691.26 | BG15: 948.12 | BH15: 130662.05 | BI15: 717.82 | BJ15: 0 | BK15: 93.02 | BL15: 0 | BM15: 94.76 | BN15: 0 | BO15: 19.2 | BP15: 70113.42 | BQ15: 451.27 | BR15: 6036.19 | BS15: 70.56
A16: One Earth | B16: 4314.181102 | C16: 36 | D16: 1 | E16: 4313 | F16: 0 | H16: 1.7206 | I16: 6 | J16: 173.9565 | K16: 0.3745 | L16: 1597061 | M16: 45 | N16: 900.41 | O16: 94.02 | P16: 178.56 | Q16: 43.3 | R16: 0 | S16: 110.09 | T16: 179.84 | U16: 23.42 | V16: 13186.69 | W16: 129.3 | X16: 116.46 | Y16: 13.35 | Z16: 22.29 | AA16: 6.7 | AB16: 0 | AC16: 46.63 | AD16: 150.92 | AE16: 7.6 | AF16: 0 | AG16: 40.72 | AH16: 88.87 | AI16: 2.19 | AJ16: 0 | AK16: 64.64 | AL16: 0 | AM16: 0 | AN16: 240.75 | AO16: 12 | AP16: 99.75 | AQ16: 4.18 | AR16: 131.77 | AS16: 4.73 | AT16: 0 | AU16: 123.3 | AV16: 0 | AW16: 117 | AX16: 109.2 | AY16: 4.7 | AZ16: 0 | BA16: 84.54 | BB16: 873341.18 | BC16: 1756.41 | BD16: 0 | BE16: 71740.08 | BF16: 9531.18 | BG16: 1732.21 | BH16: 29239.82 | BI16: 568.31 | BJ16: 0 | BK16: 735.14 | BL16: 0 | BM16: 1160.94 | BN16: 72482.31 | BO16: 428.92 | BP16: 0 | BQ16: 8053.38 | BR16: 0 | BS16: 1314.24
A17: One Earth | B17: 4314.377953 | C17: 42 | D17: 1 | E17: 4313 | F17: 0 | H17: 2.5931 | I17: 18 | J17: 262.1661 | K17: 0.0571 | L17: 981163 | M17: 51 | N17: 4065.98 | O17: 116.68 | P17: 252.09 | Q17: 40.71 | R17: 353.35 | S17: 34 | T17: 938.84 | U17: 32.56 | V17: 50848.86 | W17: 245.89 | X17: 167.91 | Y17: 18.81 | Z17: 64.11 | AA17: 8.01 | AB17: 0 | AC17: 35.37 | AD17: 75.79 | AE17: 5.14 | AF17: 0 | AG17: 25.06 | AH17: 162.33 | AI17: 2.32 | AJ17: 0 | AK17: 44.11 | AL17: 0 | AM17: 0 | AN17: 274.55 | AO17: 10.08 | AP17: 100.78 | AQ17: 3.43 | AR17: 128.16 | AS17: 3.8 | AT17: 58.93 | AU17: 7.23 | AV17: 27.02 | AW17: 4.94 | AX17: 74.99 | AY17: 3.56 | AZ17: 32.15 | BA17: 2.32 | BB17: 710106.29 | BC17: 1336.32 | BD17: 0 | BE17: 8049.21 | BF17: 43799.05 | BG17: 876.78 | BH17: 119427.54 | BI17: 657.8 | BJ17: 0 | BK17: 93.93 | BL17: 195.47 | BM17: 26.55 | BN17: 0 | BO17: 18.9 | BP17: 60673.29 | BQ17: 396.65 | BR17: 8172.51 | BS17: 70.76
A18: One Earth | B18: 4314.574803 | C18: 48 | D18: 1 | E18: 4313 | F18: 0 | H18: 2.525 | I18: 13 | J18: 255.2785 | K18: 0.0819
A19: One Earth | B19: 4314.771654 | C19: 54 | D19: 1 | E19: 4313 | F19: 0 | H19: 2.6078 | I19: 16 | J19: 263.6535 | K19: 0.0517 | L19: 1021004 | M19: 51 | N19: 3872.35 | O19: 118.8 | P19: 239.38 | Q19: 41.79 | R19: 362.42 | S19: 35.33 | T19: 694.67 | U19: 29.98 | V19: 45682.91 | W19: 226.52 | X19: 141.73 | Y19: 18.33 | Z19: 88.23 | AA19: 8.25 | AB19: 39.55 | AC19: 7.41 | AD19: 72.59 | AE19: 5.1 | AF19: 0 | AG19: 18.75 | AH19: 155.51 | AI19: 2.29 | AJ19: 0 | AK19: 45.42 | AL19: 0 | AM19: 0 | AN19: 264.12 | AO19: 10.09 | AP19: 104.39 | AQ19: 3.46 | AR19: 135.54 | AS19: 3.85 | AT19: 40.96 | AU19: 6.66 | AV19: 0 | AW19: 78.34 | AX19: 22.7 | AY19: 2.58 | AZ19: 29.7 | BA19: 2.24 | BB19: 689203.88 | BC19: 1392.24 | BD19: 0 | BE19: 9755.55 | BF19: 49976.13 | BG19: 923.94 | BH19: 133386.1 | BI19: 708 | BJ19: 0 | BK19: 89.27 | BL19: 0 | BM19: 91.51 | BN19: 0 | BO19: 18.53 | BP19: 68775.36 | BQ19: 439.04 | BR19: 6711.79 | BS19: 70.96
A20: One Earth | B20: 4314.968504 | C20: 60 | D20: 1 | E20: 4313 | F20: 0 | H20: 2.6329 | I20: 25 | J20: 266.1926 | K20: 0.0426 | L20: 353034 | M20: 57 | N20: 3554.99 | O20: 350.77 | P20: 0 | Q20: 380.72 | R20: 0 | S20: 380.01 | T20: 977.91 | U20: 105.54 | V20: 49795.34 | W20: 777.53 | X20: 0 | Y20: 274.25 | Z20: 117.51 | AA20: 28.36 | AB20: 0 | AC20: 155.02 | AD20: 0 | AE20: 95.91 | AF20: 0 | AG20: 81.09 | AH20: 134.85 | AI20: 6.83 | AJ20: 0 | AK20: 152.89 | AL20: 0 | AM20: 0 | AN20: 0 | AO20: 1357.88 | AP20: 77.88 | AQ20: 10.85 | AR20: 125.18 | AS20: 12.26 | AT20: 0 | AU20: 373.76 | AV20: 0 | AW20: 320.19 | AX20: 71.94 | AY20: 11.41 | AZ20: 0 | BA20: 232.73 | BB20: 691276.41 | BC20: 4786.96 | BD20: 0 | BE20: 78940.68 | BF20: 46477.42 | BG20: 3513.45 | BH20: 132143.16 | BI20: 2251.11 | BJ20: 0 | BK20: 494.03 | BL20: 0 | BM20: 542.07 | BN20: 0 | BO20: 113.18 | BP20: 65353.46 | BQ20: 1723.87 | BR20: 9893.94 | BS20: 293.74
A21: One Earth | B21: 4315.165354 | C21: 66 | D21: 1 | E21: 4313 | F21: 0 | H21: 1.8922 | I21: 6 | J21: 191.3081 | K21: 0.3121 | L21: 556940 | M21: 55 | N21: 3089.69 | O21: 210.33 | P21: 0 | Q21: 239.69 | R21: 300.76 | S21: 65.3 | T21: 641.58 | U21: 56.57 | V21: 36406.41 | W21: 420.84 | X21: 0 | Y21: 170.63 | Z21: 83.04 | AA21: 15.88 | AB21: 0 | AC21: 79.33 | AD21: 188.35 | AE21: 14.24 | AF21: 0 | AG21: 66.85 | AH21: 109.45 | AI21: 4.06 | AJ21: 0 | AK21: 101.39 | AL21: 0 | AM21: 0 | AN21: 169.56 | AO21: 20.47 | AP21: 61.86 | AQ21: 6.74 | AR21: 85.46 | AS21: 7.55 | AT21: 0 | AU21: 231.88 | AV21: 0 | AW21: 191.64 | AX21: 122.02 | AY21: 8.52 | AZ21: 0 | BA21: 141.26 | BB21: 808247.05 | BC21: 2818.62 | BD21: 0 | BE21: 84939.58 | BF21: 27411.52 | BG21: 2457.47 | BH21: 96022.24 | BI21: 1372.06 | BJ21: 0 | BK21: 762.42 | BL21: 0 | BM21: 1096.67 | BN21: 22186.65 | BO21: 211.9 | BP21: 0 | BQ21: 14201.77 | BR21: 4874.36 | BS21: 141.26
A22: One Earth | B22: 4316.19685 | C22: 6 | D22: 1 | E22: 4316 | F22: 0 | H22: 1.6402 | I22: 9 | K22: 0.4037 | L22: 587665 | M22: 55 | N22: 3713.94 | O22: 183.63 | P22: 279.15 | Q22: 67.95 | R22: 318.93 | S22: 55.59 | T22: 701.68 | U22: 47.75 | V22: 43846.1 | W22: 349.1 | X22: 0 | Y22: 134.03 | Z22: 62.98 | AA22: 11.79 | AB22: 0 | AC22: 62.32 | AD22: 74.48 | AE22: 8.22 | AF22: 0 | AG22: 41.15 | AH22: 148.92 | AI22: 3.55 | AJ22: 0 | AK22: 73.26 | AL22: 0 | AM22: 0 | AN22: 313.67 | AO22: 16.28 | AP22: 124.63 | AQ22: 5.68 | AR22: 163.2 | AS22: 6.35 | AT22: 71.29 | AU22: 12.36 | AV22: 0 | AW22: 129.29 | AX22: 73.75 | AY22: 5.62 | AZ22: 28.45 | BA22: 3.61 | BB22: 692170.9 | BC22: 2219.01 | BD22: 0 | BE22: 21864.25 | BF22: 46014.49 | BG22: 1493.37 | BH22: 130784.41 | BI22: 1101.15 | BJ22: 0 | BK22: 171.75 | BL22: 0 | BM22: 187.27 | BN22: 0 | BO22: 36.22 | BP22: 70460.34 | BQ22: 727.92 | BR22: 10648.67
A23: One Earth | B23: 4316.393701 | C23: 12 | D23: 1 | E23: 4316 | F23: 0 | H23: 2.6145 | I23: 17 | J23: 264.3279 | K23: 0.0493 | L23: 801162 | M23: 53 | N23: 3495.25 | O23: 125.68 | P23: 281.23 | Q23: 46.83 | R23: 332.33 | S23: 38.55 | T23: 593.06 | U23: 31.39 | V23: 39993.12 | W23: 235.09 | X23: 132.94 | Y23: 19.2 | Z23: 70.36 | AA23: 8.57 | AB23: 0 | AC23: 42.33 | AD23: 65.15 | AE23: 5.46 | AF23: 0 | AG23: 20.2 | AH23: 151.89 | AI23: 2.52 | AJ23: 0 | AK23: 53 | AL23: 0 | AM23: 0 | AN23: 275.61 | AO23: 11.33 | AP23: 99.62 | AQ23: 3.85 | AR23: 140.3 | AS23: 4.35 | AT23: 43.73 | AU23: 7.5 | AV23: 0 | AW23: 85.6 | AX23: 20.49 | AY23: 2.78 | AZ23: 27.85 | BA23: 2.43 | BB23: 738119.15 | BC23: 1455.17 | BD23: 0 | BE23: 13918.87 | BF23: 36651.73 | BG23: 985.46 | BH23: 109825.3 | BI23: 719.33 | BJ23: 0 | BK23: 124.15 | BL23: 0 | BM23: 124.98 | BN23: 0 | BO23: 24.02 | BP23: 57875.97 | BQ23: 440.16 | BR23: 11804.9
A24: One Earth | B24: 4316.590551 | C24: 18 | D24: 1 | E24: 4316 | F24: 0 | H24: 2.6918 | I24: 25 | J24: 272.1487 | K24: 0.0212 | L24: 965248 | M24: 51 | N24: 3550.07 | O24: 117.37 | P24: 257.58 | Q24: 43.15 | R24: 423.19 | S24: 37.86 | T24: 692.48 | U24: 30.94 | V24: 42874.38 | W24: 223.27 | X24: 135.75 | Y24: 18.4 | Z24: 92.15 | AA24: 8.44 | AB24: 45.6 | AC24: 7.89 | AD24: 56.89 | AE24: 4.9 | AF24: 0 | AG24: 19.16 | AH24: 173.62 | AI24: 2.45 | AJ24: 0 | AK24: 48.87 | AL24: 0 | AM24: 0 | AN24: 262.31 | AO24: 10.36 | AP24: 105.07 | AQ24: 3.56 | AR24: 128.41 | AS24: 3.92 | AT24: 50.28 | AU24: 7.16 | AV24: 0 | AW24: 81.52 | AX24: 21.27 | AY24: 2.59 | AZ24: 30.52 | BA24: 2.3 | BB24: 698478.91 | BC24: 1405.99 | BD24: 0 | BE24: 8059.77 | BF24: 44409.77 | BG24: 920.95 | BH24: 129840.13 | BI24: 715.51 | BJ24: 0 | BK24: 98.03 | BL24: 452.27 | BM24: 31.26 | BN24: 0 | BO24: 19.14 | BP24: 67170.73 | BQ24: 439.59 | BR24: 10748.64
A25: One Earth | B25: 4316.787402 | C25: 24 | D25: 1 | E25: 4316 | F25: 0 | H25: 2.6934 | I25: 20 | J25: 272.3074 | K25: 0.0206 | L25: 905891 | M25: 52 | N25: 3294.3 | O25: 119.15 | P25: 313.07 | Q25: 45.7 | R25: 371.52 | S25: 38.47 | T25: 522.14 | U25: 29.2 | V25: 40404.64 | W25: 223.78 | X25: 117.52 | Y25: 18.57 | Z25: 83.93 | AA25: 8.43 | AB25: 0 | AC25: 40.42 | AD25: 65.65 | AE25: 5.22 | AF25: 0 | AG25: 23.83 | AH25: 171.34 | AI25: 2.53 | AJ25: 0 | AK25: 50.36 | AL25: 0 | AM25: 0 | AN25: 261.75 | AO25: 10.77 | AP25: 102.17 | AQ25: 3.68 | AR25: 145.12 | AS25: 4.17 | AT25: 46.91 | AU25: 7.36 | AV25: 0 | AW25: 78.41 | AX25: 43.03 | AY25: 3.18 | AZ25: 31.37 | BA25: 2.43 | BB25: 710804.19 | BC25: 1439.78 | BD25: 0 | BE25: 11122.93 | BF25: 41542.48 | BG25: 950.21 | BH25: 123744.05 | BI25: 727.32 | BJ25: 0 | BK25: 109.64 | BL25: 519.91 | BM25: 33.45 | BN25: 0 | BO25: 20.85 | BP25: 63419.23 | BQ25: 444.04 | BR25: 13995.65
A26: One Earth | B26: 4316.984252 | C26: 30 | D26: 1 | E26: 4316 | F26: 0 | I26: 16 | J26: 118.3416 | K26: 0.5746 | L26: 1778111 | M26: 43 | N26: 599.23 | O26: 87.61 | P26: 0 | Q26: 109.15 | R26: 137.17 | S26: 37.09 | T26: 176.21 | U26: 24.11 | V26: 6508.57 | W26: 86.11 | X26: 101.03 | Y26: 10.54 | Z26: 0 | AA26: 34.1 | AB26: 0 | AC26: 49.96 | AD26: 204.79 | AE26: 8.58 | AF26: 0 | AG26: 53.25 | AH26: 94.27 | AI26: 2.23 | AJ26: 0 | AK26: 68.7 | AL26: 0 | AM26: 0 | AN26: 210.26 | AO26: 11.81 | AP26: 92.55 | AQ26: 4.11 | AR26: 120.81 | AS26: 4.63 | AT26: 0 | AU26: 130.6 | AV26: 0 | AW26: 120.65 | AX26: 173.87 | AY26: 5.73 | AZ26: 0 | BA26: 87.82 | BB26: 865863.61 | BC26: 1889.35 | BD26: 0 | BE26: 67523.81 | BF26: 7844.86 | BG26: 1899.64 | BH26: 25566.65 | BI26: 578.7 | BJ26: 0 | BK26: 717.31 | BL26: 0 | BM26: 1129.79 | BN26: 92306.11 | BO26: 551.55 | BP26: 0 | BQ26: 7331.45 | BR26: 0
A27: One Earth | B27: 4317.181102 | C27: 36 | D27: 1 | E27: 4316 | F27: 0 | H27: 2.6646 | I27: 18 | J27: 269.3986 | K27: 0.0311 | L27: 1074127 | M27: 50 | N27: 3204.78 | O27: 109.13 | P27: 273.84 | Q27: 41.35 | R27: 438.46 | S27: 36.92 | T27: 528.09 | U27: 27.23 | V27: 41476.48 | W27: 207.04 | X27: 188.7 | Y27: 17.69 | Z27: 105.75 | AA27: 8.5 | AB27: 148.18 | AC27: 9.52 | AD27: 63.45 | AE27: 4.88 | AF27: 0 | AG27: 30.83 | AH27: 141.74 | AI27: 2.16 | AJ27: 0 | AK27: 45.36 | AL27: 0 | AM27: 0 | AN27: 265.81 | AO27: 9.9 | AP27: 106.73 | AQ27: 3.4 | AR27: 135.64 | AS27: 3.78 | AT27: 61.31 | AU27: 7.81 | AV27: 0 | AW27: 77.06 | AX27: 120.76 | AY27: 4.17 | AZ27: 29.41 | BA27: 2.28 | BB27: 686180.25 | BC27: 1357.05 | BD27: 0 | BE27: 9182.52 | BF27: 46714.7 | BG27: 875.43 | BH27: 137735.47 | BI27: 704.89 | BJ27: 0 | BK27: 100.94 | BL27: 520.6 | BM27: 30.35 | BN27: 0 | BO27: 17.23 | BP27: 57228.62 | BQ27: 397.54 | BR27: 24331.22
A28: One Earth | B28: 4317.377953 | C28: 42 | D28: 1 | E28: 4316 | F28: 0 | H28: 2.668 | I28: 14 | J28: 269.7362 | K28: 0.0298 | L28: 883847 | M28: 52 | N28: 3382.4 | O28: 120.2 | P28: 258.71 | Q28: 44.73 | R28: 318.93 | S28: 36.97 | T28: 509.93 | U28: 28.82 | V28: 39513.36 | W28: 220.08 | X28: 149.16 | Y28: 18.5 | Z28: 92.94 | AA28: 8.74 | AB28: 0 | AC28: 40.68 | AD28: 62.32 | AE28: 5.19 | AF28: 0 | AG28: 42.2 | AH28: 148 | AI28: 2.39 | AJ28: 0 | AK28: 49.68 | AL28: 0 | AM28: 0 | AN28: 286.31 | AO28: 10.84 | AP28: 104.64 | AQ28: 3.7 | AR28: 142.7 | AS28: 4.16 | AT28: 58.5 | AU28: 8.13 | AV28: 0 | AW28: 84.56 | AX28: 205.78 | AY28: 5.64 | AZ28: 33.07 | BA28: 2.62 | BB28: 712040.47 | BC28: 1443.47 | BD28: 0 | BE28: 9099.56 | BF28: 44644.08 | BG28: 964.13 | BH28: 124056.38 | BI28: 730.94 | BJ28: 0 | BK28: 112.87 | BL28: 522.22 | BM28: 33.72 | BN28: 0 | BO28: 21.31 | BP28: 58469.92 | BQ28: 434.61 | BR28: 15000.16
A29: One Earth | B29: 4317.574803 | C29: 48 | D29: 1 | E29: 4316 | F29: 0 | H29: 2.3162 | I29: 10 | J29: 234.1732 | K29: 0.1578 | L29: 610423 | M29: 55 | N29: 3814.69 | O29: 161.49 | P29: 369.47 | Q29: 61.67 | R29: 318.74 | S29: 48.38 | T29: 440.88 | U29: 35.69 | V29: 40975.83 | W29: 297.72 | X29: 144.19 | Y29: 24.11 | Z29: 102.71 | AA29: 11.72 | AB29: 0 | AC29: 54.73 | AD29: 63.61 | AE29: 6.85 | AF29: 0 | AG29: 45.23 | AH29: 148.49 | AI29: 3.12 | AJ29: 0 | AK29: 65.96 | AL29: 0 | AM29: 0 | AN29: 305.9 | AO29: 14.3 | AP29: 112.69 | AQ29: 4.92 | AR29: 142.54 | AS29: 5.46 | AT29: 0 | AU29: 146.24 | AV29: 0 | AW29: 111.48 | AX29: 131.85 | AY29: 6.08 | AZ29: 27.16 | BA29: 3.18 | BB29: 731230.82 | BC29: 1852.96 | BD29: 0 | BE29: 20113.58 | BF29: 38989.54 | BG29: 1265.46 | BH29: 114787.73 | BI29: 915.83 | BJ29: 0 | BK29: 159.85 | BL29: 0 | BM29: 168.02 | BN29: 0 | BO29: 34.01 | BP29: 59914.4 | BQ29: 579.64 | BR29: 7978.77
A30: One Earth | B30: 4317.771654 | C30: 54 | D30: 1 | E30: 4316 | F30: 0 | H30: 2.6976 | I30: 20 | J30: 272.7317 | K30: 0.0191 | L30: 731741 | M30: 54 | N30: 4357.88 | O30: 138.59 | P30: 392.41 | Q30: 51.52 | R30: 463.01 | S30: 42.97 | T30: 622.38 | U30: 33.22 | V30: 50428.92 | W30: 292.32 | X30: 144.95 | Y30: 21.85 | Z30: 111.94 | AA30: 10.4 | AB30: 78.43 | AC30: 10.07 | AD30: 78.47 | AE30: 6.18 | AF30: 0 | AG30: 33.88 | AH30: 193.23 | AI30: 2.95 | AJ30: 0 | AK30: 52.76 | AL30: 0 | AM30: 0 | AN30: 278.24 | AO30: 11.98 | AP30: 110.49 | AQ30: 4.13 | AR30: 145.13 | AS30: 4.62 | AT30: 59.24 | AU30: 9 | AV30: 0 | AW30: 93.27 | AX30: 107.29 | AY30: 4.78 | AZ30: 34.39 | BA30: 2.81 | BB30: 729705.21 | BC30: 1536.33 | BD30: 0 | BE30: 11541.69 | BF30: 38272.51 | BG30: 1010.8 | BH30: 109431 | BI30: 740.2 | BJ30: 0 | BK30: 132.03 | BL30: 453.07 | BM30: 35.5 | BN30: 0 | BO30: 25.8 | BP30: 57824.83 | BQ30: 456.82 | BR30: 6706.97
A31: One Earth | B31: 4317.968504 | C31: 60 | D31: 1 | E31: 4316 | F31: 0 | H31: 2.4081 | I31: 15 | J31: 243.4615 | K31: 0.1244
A32: One Earth | B32: 4318.165354 | C32: 66 | D32: 1 | E32: 4316 | F32: 0 | H32: 2.5684 | I32: 8 | J32: 259.6721 | K32: 0.0661 | L32: 998039 | M32: 51 | N32: 3356.58 | O32: 112.95 | P32: 286.69 | Q32: 42.44 | R32: 354.59 | S32: 35.94 | T32: 957.37 | U32: 34.32 | V32: 47349.33 | W32: 238.15 | X32: 167.89 | Y32: 19.11 | Z32: 82.92 | AA32: 8.54 | AB32: 0 | AC32: 37.38 | AD32: 76.7 | AE32: 5.29 | AF32: 0 | AG32: 53.46 | AH32: 132.65 | AI32: 2.21 | AJ32: 0 | AK32: 45.7 | AL32: 0 | AM32: 0 | AN32: 264.88 | AO32: 10.38 | AP32: 101.17 | AQ32: 3.54 | AR32: 133.8 | AS32: 3.95 | AT32: 59.94 | AU32: 8.4 | AV32: 0 | AW32: 76.25 | AX32: 411.45 | AY32: 7.51 | AZ32: 24.38 | BA32: 2.55 | BB32: 689035.03 | BC32: 1424.53 | BD32: 0 | BE32: 7921.55 | BF32: 50459.34 | BG32: 935.65 | BH32: 133907.94 | BI32: 723.95 | BJ32: 0 | BK32: 90.77 | BL32: 303.29 | BM32: 29.94 | BN32: 0 | BO32: 19.12 | BP32: 67272.18 | BQ32: 444.38 | BR32: 5261.88
A33: One Earth | B33: 4318.362205 | C33: 72 | D33: 1 | E33: 4316 | F33: 0 | H33: 2.6966 | I33: 22 | J33: 272.6255 | K33: 0.0194
A34: One Earth | B34: 4318.94685 | C34: 6 | D34: 1 | E34: 4318.75 | F34: 0 | H34: 2.6731 | I34: 20 | K34: 0.028 | L34: 1037938 | M34: 51 | N34: 4065.33 | O34: 117.67 | P34: 305.73 | Q34: 42.14 | R34: 533.14 | S34: 38.58 | T34: 952.72 | U34: 33.5 | V34: 50748.37 | W34: 239.28 | X34: 144.37 | Y34: 18.8 | Z34: 127.42 | AA34: 9.11 | AB34: 0 | AC34: 33.76 | AD34: 59.18 | AE34: 4.84 | AF34: 0 | AG34: 16.18 | AH34: 162.73 | AI34: 2.3 | AJ34: 0 | AK34: 43.58 | AL34: 0 | AM34: 0 | AN34: 297.77 | AO34: 10.06 | AP34: 115.12 | AQ34: 3.48 | AR34: 145.61 | AS34: 3.86 | AT34: 61.95 | AU34: 7.04 | AV34: 30.02 | AW34: 4.97 | AX34: 13.6 | AY34: 2.37 | AZ34: 29.24 | BA34: 2.2 | BB34: 676373.41 | BC34: 1386.92 | BD34: 0 | BE34: 9256.96 | BF34: 53734.19 | BG34: 905.66 | BH34: 141061.07 | BI34: 712.79 | BJ34: 0 | BK34: 82.99 | BL34: 272.67 | BM34: 28.31 | BN34: 0 | BO34: 18.37 | BP34: 68347.79 | BQ34: 431.44 | BR34: 2418.57
A35: One Earth | B35: 4319.143701 | C35: 12 | D35: 1 | E35: 4318.75 | F35: 0 | H35: 2.618 | I35: 20 | J35: 264.6788 | K35: 0.048 | L35: 941580 | M35: 52 | N35: 3529.47 | O35: 119.04 | P35: 271.84 | Q35: 43.25 | R35: 352.14 | S35: 37.02 | T35: 900.69 | U35: 34.53 | V35: 44873.03 | W35: 234.1 | X35: 164.45 | Y35: 19.01 | Z35: 77.53 | AA35: 8.55 | AB35: 0 | AC35: 35.98 | AD35: 50.37 | AE35: 4.78 | AF35: 0 | AG35: 17.62 | AH35: 153.68 | AI35: 2.37 | AJ35: 0 | AK35: 48.35 | AL35: 0 | AM35: 0 | AN35: 273.31 | AO35: 10.55 | AP35: 110.05 | AQ35: 3.64 | AR35: 142.05 | AS35: 4.06 | AT35: 38.19 | AU35: 6.73 | AV35: 0 | AW35: 72.87 | AX35: 16.21 | AY35: 2.51 | AZ35: 25.12 | BA35: 2.21 | BB35: 699914.5 | BC35: 1431.41 | BD35: 0 | BE35: 11061.16 | BF35: 48222.35 | BG35: 951.25 | BH35: 129485.09 | BI35: 726.83 | BJ35: 0 | BK35: 96.55 | BL35: 0 | BM35: 100.65 | BN35: 0 | BO35: 20.35 | BP35: 64519.54 | BQ35: 442.91 | BR35: 6880.38
A36: One Earth | B36: 4319.340551 | C36: 18 | D36: 1 | E36: 4318.75 | F36: 0 | H36: 2.6729 | I36: 26 | J36: 270.2311 | K36: 0.0281
A37: One Earth | B37: 4319.537402 | C37: 24 | D37: 1 | E37: 4318.75 | F37: 0 | H37: 2.5629 | I37: 24 | J37: 259.1156 | K37: 0.0681 | L37: 1102533 | M37: 50 | N37: 3905.01 | O37: 116.22 | P37: 352.18 | Q37: 42.99 | R37: 507.85 | S37: 38.36 | T37: 1105.66 | U37: 35.33 | V37: 46683.51 | W37: 220.96 | X37: 94.86 | Y37: 17.92 | Z37: 121.63 | AA37: 8.54 | AB37: 0 | AC37: 34.44 | AD37: 62.04 | AE37: 4.8 | AF37: 0 | AG37: 17.14 | AH37: 186.23 | AI37: 2.4 | AJ37: 0 | AK37: 44.67 | AL37: 0 | AM37: 0 | AN37: 252.88 | AO37: 9.75 | AP37: 99.92 | AQ37: 3.33 | AR37: 136.48 | AS37: 3.73 | AT37: 44.77 | AU37: 6.51 | AV37: 26.08 | AW37: 4.77 | AX37: 12.02 | AY37: 2.28 | AZ37: 30.42 | BA37: 2.18 | BB37: 669864.77 | BC37: 1366.28 | BD37: 0 | BE37: 8393.65 | BF37: 50941.14 | BG37: 877.58 | BH37: 143870.55 | BI37: 706.08 | BJ37: 0 | BK37: 93.13 | BL37: 586.31 | BM37: 30.17 | BN37: 0 | BO37: 17.03 | BP37: 69624.65 | BQ37: 426.2 | BR37: 11491.06
A38: One Earth | B38: 4319.734252 | C38: 30 | D38: 1 | E38: 4318.75 | F38: 0 | H38: 2.3223 | I38: 15 | J38: 234.7875 | K38: 0.1556
A39: One Earth | B39: 4319.931102 | C39: 36 | D39: 1 | E39: 4318.75 | F39: 0 | H39: 2.7284 | I39: 23 | J39: 275.8462 | K39: 0.0079 | L39: 1064627 | M39: 51 | N39: 3624.65 | O39: 117.57 | P39: 229.68 | Q39: 41.88 | R39: 400.87 | S39: 37.21 | T39: 1123.58 | U39: 36.7 | V39: 43027.64 | W39: 214.36 | X39: 155.23 | Y39: 18.17 | Z39: 76.16 | AA39: 8.06 | AB39: 0 | AC39: 36.04 | AD39: 57.61 | AE39: 4.79 | AF39: 0 | AG39: 17.96 | AH39: 166.46 | AI39: 2.35 | AJ39: 0 | AK39: 46.57 | AL39: 0 | AM39: 0 | AN39: 259.39 | AO39: 10.02 | AP39: 97.31 | AQ39: 3.4 | AR39: 129.88 | AS39: 3.8 | AT39: 47.01 | AU39: 6.75 | AV39: 0 | AW39: 74.67 | AX39: 17.79 | AY39: 2.44 | AZ39: 22.35 | BA39: 2.08 | BB39: 671817.57 | BC39: 1393.88 | BD39: 0 | BE39: 8580 | BF39: 47476.94 | BG39: 885.29 | BH39: 143013.03 | BI39: 721.41 | BJ39: 0 | BK39: 99.58 | BL39: 568.93 | BM39: 31.17 | BN39: 0 | BO39: 16.69 | BP39: 69143.94 | BQ39: 433.57 | BR39: 18543.96
A40: One Earth | B40: 4320.19685 | C40: 6 | D40: 1 | E40: 4320 | F40: 0 | H40: 2.6078 | I40: 6 | K40: 0.0517 | L40: 1067194 | M40: 50 | N40: 3554.81 | O40: 118.68 | P40: 297.58 | Q40: 43.69 | R40: 444.5 | S40: 38.5 | T40: 831.13 | U40: 33.39 | V40: 46337.01 | W40: 229.91 | X40: 169.55 | Y40: 19.12 | Z40: 97.88 | AA40: 8.82 | AB40: 0 | AC40: 37.11 | AD40: 73.64 | AE40: 5.27 | AF40: 0 | AG40: 19.98 | AH40: 152.85 | AI40: 2.32 | AJ40: 0 | AK40: 46.76 | AL40: 0 | AM40: 0 | AN40: 261.32 | AO40: 10.24 | AP40: 104.96 | AQ40: 3.52 | AR40: 137.48 | AS40: 3.91 | AT40: 55.42 | AU40: 7.19 | AV40: 0 | AW40: 79.27 | AX40: 28.56 | AY40: 2.77 | AZ40: 27.62 | BA40: 2.25 | BB40: 662365.98 | BC40: 1447.82 | BD40: 0 | BE40: 8796.5 | BF40: 51021.66 | BG40: 935.47 | BH40: 146015.3 | BI40: 747.81 | BJ40: 0 | BK40: 91.58 | BL40: 2794.62 | BM40: 45.63 | BN40: 0 | BO40: 17.53 | BP40: 70468.07 | BQ40: 451.36 | BR40: 14760.05
A41: One Earth | B41: 4320.393701 | C41: 12 | D41: 1 | E41: 4320 | F41: 0 | H41: 2.7212 | I41: 21 | J41: 275.1151 | K41: 0.0105 | L41: 1014015 | M41: 51 | N41: 4038.8 | O41: 122.37 | P41: 218.42 | Q41: 42.41 | R41: 449.92 | S41: 37.52 | T41: 572.1 | U41: 28.71 | V41: 42057.34 | W41: 211.17 | X41: 122.25 | Y41: 17.75 | Z41: 99.63 | AA41: 8.32 | AB41: 0 | AC41: 35.93 | AD41: 63.2 | AE41: 4.93 | AF41: 0 | AG41: 17.67 | AH41: 148.02 | AI41: 2.23 | AJ41: 0 | AK41: 46.65 | AL41: 0 | AM41: 0 | AN41: 270.54 | AO41: 10.03 | AP41: 104.37 | AQ41: 3.43 | AR41: 133.54 | AS41: 3.81 | AT41: 45.11 | AU41: 6.66 | AV41: 25.6 | AW41: 4.86 | AX41: 18.16 | AY41: 2.43 | AZ41: 27.11 | BA41: 2.16 | BB41: 676115.18 | BC41: 1410.33 | BD41: 0 | BE41: 9300.53 | BF41: 54432.04 | BG41: 944.78 | BH41: 141756.19 | BI41: 729.09 | BJ41: 0 | BK41: 90.86 | BL41: 828.59 | BM41: 33.61 | BN41: 0 | BO41: 18.15 | BP41: 70872.75 | BQ41: 448.83 | BR41: 7601.14
A42: One Earth | B42: 4320.590551 | C42: 18 | D42: 1 | E42: 4320 | F42: 0 | H42: 2.498 | I42: 19 | J42: 252.5518 | K42: 0.0917 | L42: 993420 | M42: 51 | N42: 3794.65 | O42: 118.14 | P42: 304.99 | Q42: 43.1 | R42: 383.63 | S42: 35.97 | T42: 548.87 | U42: 27.9 | V42: 41863.04 | W42: 210.05 | X42: 138.36 | Y42: 17.6 | Z42: 89.93 | AA42: 8.13 | AB42: 0 | AC42: 35.67 | AD42: 69.23 | AE42: 5 | AF42: 0 | AG42: 17.34 | AH42: 155.22 | AI42: 2.26 | AJ42: 0 | AK42: 46.66 | AL42: 0 | AM42: 0 | AN42: 268.1 | AO42: 9.96 | AP42: 98.24 | AQ42: 3.38 | AR42: 131.28 | AS42: 3.78 | AT42: 55.23 | AU42: 6.87 | AV42: 0 | AW42: 77.64 | AX42: 17.02 | AY42: 2.41 | AZ42: 30.52 | BA42: 2.22 | BB42: 687624.09 | BC42: 1382.46 | BD42: 0 | BE42: 9494.58 | BF42: 50843.76 | BG42: 929.37 | BH42: 135749.58 | BI42: 709.43 | BJ42: 0 | BK42: 88.12 | BL42: 0 | BM42: 90.6 | BN42: 0 | BO42: 17.94 | BP42: 71117.57 | BQ42: 439.77 | BR42: 6716.7
A43: One Earth | B43: 4320.787402 | C43: 24 | D43: 1 | E43: 4320 | F43: 0 | H43: 2.5904 | I43: 9 | J43: 261.8951 | K43: 0.0581 | L43: 898580 | M43: 52 | N43: 3602.27 | O43: 123.36 | P43: 283.88 | Q43: 44.84 | R43: 283.69 | S43: 35.92 | T43: 682.03 | U43: 31.97 | V43: 44901.54 | W43: 242.29 | X43: 156.03 | Y43: 19.48 | Z43: 62.73 | AA43: 8.45 | AB43: 39.62 | AC43: 7.9 | AD43: 63.22 | AE43: 5.32 | AF43: 0 | AG43: 18.25 | AH43: 125.23 | AI43: 2.26 | AJ43: 0 | AK43: 49.49 | AL43: 0 | AM43: 0 | AN43: 268.13 | AO43: 10.85 | AP43: 116.62 | AQ43: 3.79 | AR43: 138.37 | AS43: 4.16 | AT43: 38.23 | AU43: 7.01 | AV43: 27.01 | AW43: 5.29 | AX43: 13.83 | AY43: 2.53 | AZ43: 29.31 | BA43: 2.37 | BB43: 708194.76 | BC43: 1466.79 | BD43: 0 | BE43: 9356.14 | BF43: 45569.7 | BG43: 994.39 | BH43: 122657.09 | BI43: 730.25 | BJ43: 0 | BK43: 96.94 | BL43: 0 | BM43: 106.23 | BN43: 0 | BO43: 21.12 | BP43: 67853.16 | BQ43: 461.23 | BR43: 4893.53
A44: One Earth | B44: 4320.984252 | C44: 30 | D44: 1 | E44: 4320 | F44: 0 | H44: 2.6125 | I44: 17 | J44: 264.1277 | K44: 0.05 | L44: 982578 | M44: 51 | N44: 3225.35 | O44: 112.62 | P44: 308.17 | Q44: 42.34 | R44: 270.05 | S44: 33.89 | T44: 733.45 | U44: 31.15 | V44: 44586.16 | W44: 228.41 | X44: 159.75 | Y44: 18.5 | Z44: 47.54 | AA44: 7.68 | AB44: 45.23 | AC44: 7.63 | AD44: 61.81 | AE44: 4.95 | AF44: 0 | AG44: 18.43 | AH44: 131.39 | AI44: 2.18 | AJ44: 0 | AK44: 46.48 | AL44: 0 | AM44: 0 | AN44: 242.64 | AO44: 10.21 | AP44: 95.99 | AQ44: 3.48 | AR44: 138.79 | AS44: 3.93 | AT44: 44.77 | AU44: 6.86 | AV44: 0 | AW44: 74.44 | AX44: 19.8 | AY44: 2.55 | AZ44: 29.89 | BA44: 2.27 | BB44: 706982.15 | BC44: 1384.73 | BD44: 0 | BE44: 8455.67 | BF44: 45518.06 | BG44: 926.93 | BH44: 123164.08 | BI44: 693.76 | BJ44: 0 | BK44: 101.83 | BL44: 0 | BM44: 91.37 | BN44: 0 | BO44: 19.03 | BP44: 56845.62 | BQ44: 403.59 | BR44: 17349.32
A45: One Earth | B45: 4321.181102 | C45: 36 | D45: 1 | E45: 4320 | F45: 0 | H45: 2.3931 | I45: 16 | J45: 241.9486 | K45: 0.1298 | L45: 1012426 | M45: 51 | N45: 3787.33 | O45: 115.85 | P45: 251.48 | Q45: 40.92 | R45: 257.31 | S45: 32.55 | T45: 906.9 | U45: 32.89 | V45: 50777.03 | W45: 247.31 | X45: 183.33 | Y45: 19.19 | Z45: 76.61 | AA45: 8.49 | AB45: 37.95 | AC45: 7.49 | AD45: 72.33 | AE45: 5.15 | AF45: 0 | AG45: 17.88 | AH45: 131.78 | AI45: 2.16 | AJ45: 0 | AK45: 44.52 | AL45: 0 | AM45: 0 | AN45: 267.74 | AO45: 10.16 | AP45: 106.16 | AQ45: 3.49 | AR45: 139.06 | AS45: 3.89 | AT45: 48.95 | AU45: 6.89 | AV45: 0 | AW45: 74.21 | AX45: 17.97 | AY45: 2.51 | AZ45: 32.31 | BA45: 2.3 | BB45: 701081.83 | BC45: 1371.93 | BD45: 0 | BE45: 10120.36 | BF45: 46219.86 | BG45: 906.91 | BH45: 123700.1 | BI45: 680.4 | BJ45: 0 | BK45: 96.19 | BL45: 0 | BM45: 88.76 | BN45: 0 | BO45: 18.93 | BP45: 59010.88 | BQ45: 399.37 | BR45: 12893.08
A46: One Earth | B46: 4321.377953 | C46: 42 | D46: 1 | E46: 4320 | F46: 0 | H46: 2.2042 | I46: 18 | J46: 222.8494 | K46: 0.1986 | L46: 1033836 | M46: 51 | N46: 4108.49 | O46: 122.09 | P46: 148.24 | Q46: 40.59 | R46: 445.61 | S46: 36.99 | T46: 668.9 | U46: 30.24 | V46: 48544.05 | W46: 234.97 | X46: 163.08 | Y46: 19.01 | Z46: 75.39 | AA46: 8.31 | AB46: 0 | AC46: 36.13 | AD46: 68.09 | AE46: 5.08 | AF46: 0 | AG46: 18.58 | AH46: 128.66 | AI46: 2.14 | AJ46: 0 | AK46: 44.83 | AL46: 0 | AM46: 0 | AN46: 295.72 | AO46: 10.21 | AP46: 105.19 | AQ46: 3.48 | AR46: 135.47 | AS46: 3.87 | AT46: 53.09 | AU46: 7 | AV46: 0 | AW46: 76.83 | AX46: 22.55 | AY46: 2.6 | AZ46: 28.16 | BA46: 2.22 | BB46: 667188.82 | BC46: 1436.22 | BD46: 0 | BE46: 7347.08 | BF46: 58260.7 | BG46: 961.38 | BH46: 144282.33 | BI46: 738.6 | BJ46: 0 | BK46: 81.04 | BL46: 0 | BM46: 83.52 | BN46: 0 | BO46: 18.24 | BP46: 70843.52 | BQ46: 452.6 | BR46: 4433.95
A47: One Earth | B47: 4321.574803 | C47: 48 | D47: 1 | E47: 4320 | F47: 0 | H47: 2.7351 | I47: 24 | J47: 276.5266 | K47: 0.0054 | L47: 999103 | M47: 51 | N47: 3493.28 | O47: 117.62 | P47: 246.57 | Q47: 42.06 | R47: 315.93 | S47: 35.44 | T47: 1103.77 | U47: 37.22 | V47: 52220.03 | W47: 262.33 | X47: 175.68 | Y47: 20.31 | Z47: 86.62 | AA47: 9.1 | AB47: 0 | AC47: 36.11 | AD47: 60.28 | AE47: 5.12 | AF47: 0 | AG47: 20.26 | AH47: 131.37 | AI47: 2.26 | AJ47: 0 | AK47: 45.73 | AL47: 0 | AM47: 0 | AN47: 244.63 | AO47: 10.57 | AP47: 105.07 | AQ47: 3.65 | AR47: 131.37 | AS47: 4.03 | AT47: 43.75 | AU47: 7.04 | AV47: 0 | AW47: 77 | AX47: 29.29 | AY47: 2.9 | AZ47: 32.6 | BA47: 2.42 | BB47: 687258.59 | BC47: 1467.34 | BD47: 0 | BE47: 8525.42 | BF47: 51199.03 | BG47: 977.75 | BH47: 130339.93 | BI47: 730.93 | BJ47: 0 | BK47: 95.18 | BL47: 0 | BM47: 97.64 | BN47: 0 | BO47: 20.02 | BP47: 66457.82 | BQ47: 448.42 | BR47: 6324.39
A48: One Earth | B48: 4321.771654 | C48: 54 | D48: 1 | E48: 4320 | F48: 0 | H48: 1.656 | I48: 19 | J48: 167.4198 | K48: 0.398 | L48: 844541 | M48: 53 | N48: 3169.57 | O48: 119.85 | P48: 311.68 | Q48: 45.24 | R48: 273.65 | S48: 36.36 | T48: 771.95 | U48: 33.99 | V48: 44241.06 | W48: 244.41 | X48: 111.45 | Y48: 19.5 | Z48: 88.35 | AA48: 8.92 | AB48: 0 | AC48: 38.29 | AD48: 74.7 | AE48: 5.57 | AF48: 0 | AG48: 18.2 | AH48: 133.11 | AI48: 2.36 | AJ48: 0 | AK48: 50.06 | AL48: 0 | AM48: 0 | AN48: 286.08 | AO48: 11.13 | AP48: 117.8 | AQ48: 3.88 | AR48: 148.05 | AS48: 4.3 | AT48: 35.2 | AU48: 6.97 | AV48: 0 | AW48: 74.72 | AX48: 10.74 | AY48: 2.49 | AZ48: 26.66 | BA48: 2.35 | BB48: 707240.23 | BC48: 1519.86 | BD48: 0 | BE48: 10393.34 | BF48: 53912.56 | BG48: 1060.11 | BH48: 126576.09 | BI48: 767.45 | BJ48: 0 | BK48: 109.53 | BL48: 0 | BM48: 122.6 | BN48: 0 | BO48: 25.11 | BP48: 58273.5 | BQ48: 459.31 | BR48: 4197.58
A49: One Earth | B49: 4321.968504 | C49: 60 | D49: 1 | E49: 4320 | F49: 0 | H49: 2.7303 | I49: 16 | J49: 276.0364 | K49: 0.0072 | L49: 1167223 | M49: 49 | N49: 3857.57 | O49: 114.07 | P49: 283.31 | Q49: 41.02 | R49: 279.31 | S49: 32.51 | T49: 757.11 | U49: 29.92 | V49: 47750.27 | W49: 220.39 | X49: 155.34 | Y49: 18.02 | Z49: 79.58 | AA49: 7.95 | AB49: 0 | AC49: 35.77 | AD49: 77 | AE49: 5.08 | AF49: 64.48 | AG49: 6.47 | AH49: 144.52 | AI49: 2.14 | AJ49: 0 | AK49: 43.13 | AL49: 0 | AM49: 0 | AN49: 269.99 | AO49: 9.67 | AP49: 100.6 | AQ49: 3.29 | AR49: 136.78 | AS49: 3.69 | AT49: 79.02 | AU49: 8.53 | AV49: 30.72 | AW49: 4.96 | AX49: 521.89 | AY49: 7.91 | AZ49: 33.21 | BA49: 2.62 | BB49: 661323.05 | BC49: 1365.46 | BD49: 0 | BE49: 6460.07 | BF49: 55172.42 | BG49: 887.66 | BH49: 147808.99 | BI49: 709.49 | BJ49: 0 | BK49: 91.59 | BL49: 788.85 | BM49: 31.29 | BN49: 0 | BO49: 16.27 | BP49: 61833.41 | BQ49: 405.21 | BR49: 18452.57
A50: One Earth | B50: 4322.165354 | C50: 66 | D50: 1 | E50: 4320 | F50: 0 | H50: 2.6357 | I50: 19 | J50: 266.4718 | K50: 0.0416 | L50: 799044 | M50: 53 | N50: 3563.98 | O50: 130.14 | P50: 349.93 | Q50: 48.76 | R50: 314.55 | S50: 39.17 | T50: 732.39 | U50: 34.99 | V50: 47002.12 | W50: 272.16 | X50: 109.66 | Y50: 20.93 | Z50: 89.17 | AA50: 9.52 | AB50: 0 | AC50: 42.98 | AD50: 65.26 | AE50: 5.74 | AF50: 0 | AG50: 19.37 | AH50: 134.33 | AI50: 2.5 | AJ50: 0 | AK50: 51.49 | AL50: 0 | AM50: 0 | AN50: 269.93 | AO50: 11.72 | AP50: 106.62 | AQ50: 4.03 | AR50: 138.04 | AS50: 4.49 | AT50: 44.2 | AU50: 7.81 | AV50: 0 | AW50: 86.31 | AX50: 17.18 | AY50: 2.81 | AZ50: 25.83 | BA50: 2.47 | BB50: 724769.55 | BC50: 1540.03 | BD50: 0 | BE50: 11220.13 | BF50: 41131.33 | BG50: 1044.21 | BH50: 112255.32 | BI50: 747.58 | BJ50: 0 | BK50: 115.8 | BL50: 0 | BM50: 120.17 | BN50: 0 | BO50: 24.21 | BP50: 60873.94 | BQ50: 466.2 | BR50: 8006.68
A51: One Earth | B51: 4322.362205 | C51: 72 | D51: 1 | E51: 4320 | F51: 0 | H51: 2.726 | I51: 27 | J51: 275.6021 | K51: 0.0087 | L51: 980360 | M51: 51 | N51: 3482.99 | O51: 116.98 | P51: 279.5 | Q51: 42.73 | R51: 284.04 | S51: 34.52 | T51: 796.36 | U51: 32.45 | V51: 45699.15 | W51: 232.98 | X51: 161.33 | Y51: 18.89 | Z51: 72.07 | AA51: 8.32 | AB51: 0 | AC51: 36.32 | AD51: 59.04 | AE51: 4.96 | AF51: 0 | AG51: 18.03 | AH51: 132.79 | AI51: 2.21 | AJ51: 0 | AK51: 46.59 | AL51: 0 | AM51: 0 | AN51: 263.36 | AO51: 10.35 | AP51: 107.41 | AQ51: 3.57 | AR51: 135.99 | AS51: 3.95 | AT51: 49.66 | AU51: 6.97 | AV51: 0 | AW51: 77.67 | AX51: 15.19 | AY51: 2.47 | AZ51: 28.65 | BA51: 2.26 | BB51: 693784.97 | BC51: 1423.59 | BD51: 0 | BE51: 8263.75 | BF51: 49707.81 | BG51: 953.77 | BH51: 131133.83 | BI51: 722.28 | BJ51: 0 | BK51: 95.81 | BL51: 0 | BM51: 94.96 | BN51: 0 | BO51: 19.3 | BP51: 62756.68 | BQ51: 430.31 | BR51: 11049.18
A52: One Earth | B52: 4322.559055 | C52: 78 | D52: 1 | E52: 4320 | F52: 0 | H52: 2.726 | I52: 17 | J52: 275.6021 | K52: 0.0087 | L52: 914615 | M52: 52 | N52: 3682.97 | O52: 126.35 | P52: 210.47 | Q52: 44.23 | R52: 339.33 | S52: 37.6 | T52: 802.65 | U52: 34.47 | V52: 44737.84 | W52: 241.42 | X52: 114.91 | Y52: 19.54 | Z52: 94.76 | AA52: 8.98 | AB52: 0 | AC52: 39.03 | AD52: 55.43 | AE52: 5.15 | AF52: 0 | AG52: 17.9 | AH52: 148.03 | AI52: 2.43 | AJ52: 0 | AK52: 49.87 | AL52: 0 | AM52: 0 | AN52: 295.65 | AO52: 11 | AP52: 108.45 | AQ52: 3.76 | AR52: 144.15 | AS52: 4.22 | AT52: 47.23 | AU52: 7.32 | AV52: 0 | AW52: 82.37 | AX52: 12.4 | AY52: 2.52 | AZ52: 29.36 | BA52: 2.39 | BB52: 692177.18 | BC52: 1502.44 | BD52: 0 | BE52: 11026.18 | BF52: 48752.22 | BG52: 1005.5 | BH52: 132389.49 | BI52: 763.36 | BJ52: 0 | BK52: 104.86 | BL52: 0 | BM52: 102.36 | BN52: 0 | BO52: 20.57 | BP52: 67492.28 | BQ52: 468.39 | BR52: 8365.19
A53: One Earth | B53: 4322.755906 | C53: 84 | D53: 1 | E53: 4320 | F53: 0 | H53: 2.6974 | I53: 14 | J53: 272.7051 | K53: 0.0192 | L53: 911790 | M53: 52 | N53: 3798.04 | O53: 122.08 | P53: 225.75 | Q53: 42.79 | R53: 381.51 | S53: 36.82 | T53: 568.19 | U53: 29.27 | V53: 43506.41 | W53: 228.08 | X53: 158.09 | Y53: 18.63 | Z53: 80.27 | AA53: 8.46 | AB53: 0 | AC53: 38.3 | AD53: 62.65 | AE53: 5.05 | AF53: 0 | AG53: 16.93 | AH53: 157.76 | AI53: 2.38 | AJ53: 0 | AK53: 47.84 | AL53: 0 | AM53: 0 | AN53: 271.92 | AO53: 10.47 | AP53: 97.56 | AQ53: 3.55 | AR53: 132.66 | AS53: 3.98 | AT53: 48.54 | AU53: 7.05 | AV53: 0 | AW53: 75.35 | AX53: 9.81 | AY53: 2.33 | AZ53: 30.78 | BA53: 2.31 | BB53: 705038.19 | BC53: 1418.22 | BD53: 0 | BE53: 10967.69 | BF53: 46555.53 | BG53: 954.13 | BH53: 127268.48 | BI53: 719.52 | BJ53: 0 | BK53: 97.72 | BL53: 0 | BM53: 100.78 | BN53: 0 | BO53: 20.24 | BP53: 66146.39 | BQ53: 441.54 | BR53: 5461.47
A54: One Earth | B54: 4322.952756 | C54: 90 | D54: 1 | E54: 4320 | F54: 0 | H54: 2.7021 | I54: 16 | J54: 273.1838 | K54: 0.0174
A55: One Earth | B55: 4323.19685 | C55: 6 | D55: 1 | E55: 4323 | F55: 0 | G55: 4588.823 | H55: 2.6603 | I55: 20 | K55: 0.0326 | L55: 993421 | M55: 51 | N55: 3956.49 | O55: 119.19 | P55: 286.32 | Q55: 42.65 | R55: 541.24 | S55: 38.67 | T55: 380.04 | U55: 25.02 | V55: 40797.48 | W55: 206.28 | X55: 146.56 | Y55: 17.28 | Z55: 113.1 | AA55: 8.42 | AB55: 0 | AC55: 37.76 | AD55: 73.43 | AE55: 5 | AF55: 0 | AG55: 20.78 | AH55: 155.18 | AI55: 2.24 | AJ55: 0 | AK55: 46.08 | AL55: 0 | AM55: 0 | AN55: 242.97 | AO55: 9.82 | AP55: 98.92 | AQ55: 3.36 | AR55: 128.98 | AS55: 3.74 | AT55: 58.63 | AU55: 7.03 | AV55: 0 | AW55: 77.4 | AX55: 37.18 | AY55: 2.81 | AZ55: 34.06 | BA55: 2.28 | BB55: 699983.91 | BC55: 1367.22 | BD55: 0 | BE55: 9425.67 | BF55: 46808 | BG55: 944.22 | BH55: 130600.93 | BI55: 701.94 | BJ55: 0 | BK55: 88.04 | BL55: 0 | BM55: 91.84 | BN55: 0 | BO55: 17.63 | BP55: 67261.57 | BQ55: 420.37 | BR55: 8295.01
A56: One Earth | B56: 4323.393701 | C56: 12 | D56: 1 | E56: 4323 | F56: 0 | G56: 4611.873 | H56: 2.6806 | I56: 18 | J56: 12362.79 | K56: 0.0252 | L56: 1062648 | M56: 51 | N56: 4163.06 | O56: 120.22 | P56: 271.1 | Q56: 42.33 | R56: 588.12 | S56: 39.19 | T56: 476.2 | U56: 26.55 | V56: 43073.47 | W56: 207.82 | X56: 162.89 | Y56: 17.56 | Z56: 131.24 | AA56: 8.74 | AB56: 0 | AC56: 35.59 | AD56: 64.92 | AE56: 4.78 | AF56: 0 | AG56: 17.04 | AH56: 169.36 | AI56: 2.28 | AJ56: 0 | AK56: 45.23 | AL56: 0 | AM56: 0 | AN56: 271.82 | AO56: 9.73 | AP56: 106.22 | AQ56: 3.34 | AR56: 124.9 | AS56: 3.66 | AT56: 49.55 | AU56: 6.61 | AV56: 23.95 | AW56: 4.67 | AX56: 14.26 | AY56: 2.3 | AZ56: 32.51 | BA56: 2.21 | BB56: 668517.78 | BC56: 1387.91 | BD56: 0 | BE56: 8663.83 | BF56: 53500.47 | BG56: 942.4 | BH56: 149236.92 | BI56: 735.12 | BJ56: 0 | BK56: 80.39 | BL56: 1016.05 | BM56: 34.17 | BN56: 0 | BO56: 16.69 | BP56: 73932.81 | BQ56: 440.7 | BR56: 4072.37
A57: One Earth | B57: 4323.590551 | C57: 18 | D57: 1 | E57: 4323 | F57: 0 | G57: 4630.903 | H57: 2.7116 | I57: 17 | J57: 12557.18 | K57: 0.014 | L57: 1026063 | M57: 51 | N57: 4263.67 | O57: 122.21 | P57: 261.73 | Q57: 42.71 | R57: 588.52 | S57: 39.43 | T57: 465.12 | U57: 26.48 | V57: 41195.23 | W57: 202.98 | X57: 130.55 | Y57: 17.19 | Z57: 133.07 | AA57: 8.64 | AB57: 37.58 | AC57: 7.19 | AD57: 72.87 | AE57: 4.95 | AF57: 0 | AG57: 20.62 | AH57: 184.19 | AI57: 2.37 | AJ57: 0 | AK57: 46.15 | AL57: 0 | AM57: 0 | AN57: 265.34 | AO57: 9.75 | AP57: 104.01 | AQ57: 3.34 | AR57: 131.66 | AS57: 3.7 | AT57: 39.97 | AU57: 6.47 | AV57: 0 | AW57: 77.01 | AX57: 36.01 | AY57: 2.77 | AZ57: 31.11 | BA57: 2.21 | BB57: 676421.92 | BC57: 1383.37 | BD57: 0 | BE57: 8826.77 | BF57: 51280.03 | BG57: 941.25 | BH57: 145230.27 | BI57: 730.11 | BJ57: 0 | BK57: 88.24 | BL57: 846.08 | BM57: 33.26 | BN57: 0 | BO57: 16.92 | BP57: 72514.1 | BQ57: 437.42 | BR57: 5766.99
A58: One Earth | B58: 4323.787402 | C58: 24 | D58: 1 | E58: 4323 | F58: 0 | G58: 4613.979 | H58: 2.736 | I58: 19 | J58: 12623.66 | K58: 0.0051 | L58: 1006822 | M58: 51 | N58: 3941.32 | O58: 119.39 | P58: 301.87 | Q58: 43.08 | R58: 409.96 | S58: 36.26 | T58: 464.43 | U58: 26.36 | V58: 41909.71 | W58: 208.4 | X58: 121.11 | Y58: 17.41 | Z58: 114.72 | AA58: 8.4 | AB58: 0 | AC58: 36.23 | AD58: 66.92 | AE58: 4.91 | AF58: 0 | AG58: 31.01 | AH58: 156.8 | AI58: 2.25 | AJ58: 0 | AK58: 45.83 | AL58: 0 | AM58: 0 | AN58: 259.07 | AO58: 9.87 | AP58: 101.25 | AQ58: 3.37 | AR58: 136.2 | AS58: 3.77 | AT58: 39.84 | AU58: 6.76 | AV58: 27.48 | AW58: 4.87 | AX58: 120.37 | AY58: 4.16 | AZ58: 25.71 | BA58: 2.2 | BB58: 680688.92 | BC58: 1398.99 | BD58: 0 | BE58: 9110.92 | BF58: 53472.38 | BG58: 961.13 | BH58: 141919.9 | BI58: 730.45 | BJ58: 0 | BK58: 84.6 | BL58: 975.38 | BM58: 34.48 | BN58: 0 | BO58: 17.7 | BP58: 70574.33 | BQ58: 440.19 | BR58: 4172.3
A59: One Earth | B59: 4323.984252 | C59: 30 | D59: 1 | E59: 4323 | F59: 0 | G59: 4633.028 | H59: 2.3609 | I59: 10 | J59: 10938.3 | K59: 0.1415 | L59: 1062306 | M59: 50 | N59: 3275.1 | O59: 109.3 | P59: 324.75 | Q59: 41.47 | R59: 285.46 | S59: 33.01 | T59: 701.91 | U59: 29.41 | V59: 40136.39 | W59: 200.7 | X59: 137.48 | Y59: 16.89 | Z59: 90.8 | AA59: 7.83 | AB59: 56.07 | AC59: 7.76 | AD59: 75.95 | AE59: 4.96 | AF59: 48.59 | AG59: 5.9 | AH59: 154.87 | AI59: 2.21 | AJ59: 0 | AK59: 44.81 | AL59: 0 | AM59: 0 | AN59: 261.96 | AO59: 9.74 | AP59: 102.7 | AQ59: 3.33 | AR59: 126.93 | AS59: 3.68 | AT59: 50.68 | AU59: 7.84 | AV59: 0 | AW59: 72.94 | AX59: 430.01 | AY59: 7.22 | AZ59: 29.62 | BA59: 2.5 | BB59: 700365.16 | BC59: 1334.25 | BD59: 0 | BE59: 9044.54 | BF59: 47133.43 | BG59: 902.39 | BH59: 127173.48 | BI59: 676.89 | BJ59: 0 | BK59: 111.1 | BL59: 1247.14 | BM59: 34.8 | BN59: 0 | BO59: 17.46 | BP59: 50563.47 | BQ59: 370.36 | BR59: 27228.06
A60: One Earth | B60: 4324.181102 | C60: 36 | D60: 1 | E60: 4323 | F60: 0 | G60: 4616.088 | H60: 2.9836 | I60: 66 | J60: 13772.78 | K60: -0.085 | L60: 1896588 | M60: 41 | N60: 409.48 | O60: 76.8 | P60: 0 | Q60: 86.8 | R60: 238.51 | S60: 37.31 | T60: 22613.87 | U60: 226.75 | V60: 92493.78 | W60: 733.69 | X60: 0 | Y60: 114.03 | Z60: 146.13 | AA60: 11.03 | AB60: 0 | AC60: 37.5 | AD60: 0 | AE60: 22.03 | AF60: 295.04 | AG60: 14.47 | AH60: 12.8 | AI60: 1.58 | AJ60: 0 | AK60: 37.02 | AL60: 0 | AM60: 0 | AN60: 257.73 | AO60: 11.92 | AP60: 95.04 | AQ60: 4.05 | AR60: 124.63 | AS60: 4.49 | AT60: 121.09 | AU60: 14.17 | AV60: 0 | AW60: 67.33 | AX60: 1723.51 | AY60: 21.33 | AZ60: 0 | BA60: 80.97 | BB60: 632321.29 | BC60: 4343.41 | BD60: 22522.62 | BE60: 6263.47 | BF60: 12562.67 | BG60: 672.05 | BH60: 37586.2 | BI60: 432.78 | BJ60: 219.25 | BK60: 68.57 | BL60: 5101.65 | BM60: 62.71 | BN60: 105.88 | BO60: 4.23 | BP60: 0 | BQ60: 572.16 | BR60: 171048.84
A61: One Earth | B61: 4324.377953 | C61: 42 | D61: 1 | E61: 4323 | F61: 0 | G61: 4582.577 | H61: 2.6435 | I61: 9 | J61: 12114.09 | K61: 0.0387 | L61: 440865 | M61: 56 | N61: 2980.62 | O61: 176.83 | P61: 233.81 | Q61: 65.47 | R61: 286.44 | S61: 54.82 | T61: 611.87 | U61: 47.33 | V61: 33454.85 | W61: 330.66 | X61: 0 | Y61: 130.99 | Z61: 71.24 | AA61: 12.53 | AB61: 0 | AC61: 74.99 | AD61: 69.78 | AE61: 8.57 | AF61: 0 | AG61: 128.49 | AH61: 118.37 | AI61: 3.52 | AJ61: 0 | AK61: 82.17 | AL61: 0 | AM61: 0 | AN61: 294.7 | AO61: 17.77 | AP61: 127.93 | AQ61: 6.28 | AR61: 149.92 | AS61: 6.92 | AT61: 0 | AU61: 243.29 | AV61: 0 | AW61: 144.1 | AX61: 874.86 | AY61: 18.2 | AZ61: 0 | BA61: 148.83 | BB61: 836248.53 | BC61: 2011.92 | BD61: 0 | BE61: 38195.41 | BF61: 14944.91 | BG61: 1630.52 | BH61: 57585.48 | BI61: 817.14 | BJ61: 0 | BK61: 300.8 | BL61: 0 | BM61: 360.31 | BN61: 0 | BO61: 66.21 | BP61: 43704.21 | BQ61: 620.38 | BR61: 8242.49
A62: One Earth | B62: 4324.574803 | C62: 48 | D62: 1 | E62: 4323 | F62: 0 | G62: 4611.873 | H62: 2.7311 | I62: 34 | J62: 12595.52 | K62: 0.0069 | L62: 999707 | M62: 51 | N62: 3493.17 | O62: 114.14 | P62: 282.7 | Q62: 41.5 | R62: 417.88 | S62: 36.54 | T62: 1143.53 | U62: 36.75 | V62: 50716.65 | W62: 252.51 | X62: 155.67 | Y62: 19.4 | Z62: 104.42 | AA62: 8.98 | AB62: 0 | AC62: 37.09 | AD62: 65.59 | AE62: 5.11 | AF62: 0 | AG62: 44.75 | AH62: 126.43 | AI62: 2.17 | AJ62: 0 | AK62: 44.84 | AL62: 0 | AM62: 0 | AN62: 265.73 | AO62: 10.38 | AP62: 108.16 | AQ62: 3.58 | AR62: 135.6 | AS62: 3.96 | AT62: 58.55 | AU62: 8.05 | AV62: 27.64 | AW62: 5.14 | AX62: 293.03 | AY62: 6.41 | AZ62: 32.18 | BA62: 2.59 | BB62: 702512.98 | BC62: 1412.78 | BD62: 0 | BE62: 10555.79 | BF62: 47539.31 | BG62: 958.32 | BH62: 122655.43 | BI62: 697.04 | BJ62: 0 | BK62: 97.21 | BL62: 388.93 | BM62: 30.38 | BN62: 0 | BO62: 19.85 | BP62: 61451.69 | BQ62: 416.09 | BR62: 8024.73
A63: One Earth | B63: 4324.771654 | C63: 54 | D63: 1 | E63: 4323 | F63: 0 | G63: 4561.879 | H63: 2.376 | I63: 14 | J63: 10839.05 | K63: 0.1361 | L63: 591822 | M63: 55 | N63: 3415.25 | O63: 151.34 | P63: 341.67 | Q63: 57.37 | R63: 198.5 | S63: 42.44 | T63: 609.86 | U63: 38.03 | V63: 37872.82 | W63: 270.46 | X63: 111.88 | Y63: 22.18 | Z63: 59.37 | AA63: 9.79 | AB63: 55.17 | AC63: 10.65 | AD63: 46.42 | AE63: 6.07 | AF63: 0 | AG63: 59.65 | AH63: 117.33 | AI63: 2.74 | AJ63: 0 | AK63: 62 | AL63: 0 | AM63: 0 | AN63: 322.28 | AO63: 13.78 | AP63: 121.92 | AQ63: 4.79 | AR63: 164.5 | AS63: 5.4 | AT63: 0 | AU63: 144.7 | AV63: 0 | AW63: 104.9 | AX63: 288.21 | AY63: 8.19 | AZ63: 26.13 | BA63: 3.2 | BB63: 735221.43 | BC63: 1830.97 | BD63: 0 | BE63: 21363.34 | BF63: 48747.4 | BG63: 1337.05 | BH63: 116323.36 | BI63: 915.89 | BJ63: 0 | BK63: 160.5 | BL63: 0 | BM63: 180.02 | BN63: 0 | BO63: 36 | BP63: 46951.56 | BQ63: 533.03 | BR63: 9004.93
A64: One Earth | B64: 4326.19685 | C64: 6 | D64: 1 | E64: 4326 | F64: 0 | H64: 2.4077 | I64: 3 | K64: 0.1245 | M64: 54 | N64: 4518.15 | O64: 147.87 | P64: 296.21 | Q64: 52.14 | R64: 194.43 | S64: 38.45 | T64: 929.62 | U64: 40 | V64: 57318.36 | W64: 343.04 | X64: 0 | Y64: 118.02 | Z64: 102.51 | AA64: 11.13 | AB64: 0 | AC64: 53.02 | AD64: 124.46 | AE64: 7.78 | AF64: 158.39 | AG64: 14.39 | AH64: 160.3 | AI64: 2.95 | AJ64: 0 | AK64: 50.55 | AL64: 0 | AM64: 0 | AN64: 298.37 | AO64: 13.04 | AP64: 113.05 | AQ64: 4.5 | AR64: 159.26 | AS64: 5.09 | AT64: 119.28 | AU64: 15.04 | AV64: 0 | AW64: 104.63 | AX64: 1614.99 | AY64: 19.03 | AZ64: 45.49 | BA64: 4.57 | BB64: 713020.03 | BC64: 1710.68 | BD64: 0 | BE64: 13525.36 | BF64: 42422.56 | BG64: 1134.55 | BH64: 114609.51 | BI64: 817.97 | BJ64: 0 | BK64: 135.85 | BL64: 1188.82 | BM64: 44.99 | BN64: 0 | BO64: 27.38 | BP64: 53442.04 | BQ64: 475.72 | BR64: 9164.18 | BS64: 90.65
A65: One Earth | B65: 4326.393701 | C65: 12 | D65: 1 | E65: 4326 | F65: 0 | H65: 1.8986 | I65: 6 | J65: 191.9512 | K65: 0.3097 | M65: 52 | N65: 4195.3 | O65: 125.38 | P65: 260.33 | Q65: 44.62 | R65: 360.22 | S65: 36.51 | T65: 370.85 | U65: 25.2 | V65: 40351.35 | W65: 209.68 | X65: 115.93 | Y65: 17.8 | Z65: 88.84 | AA65: 8.15 | AB65: 0 | AC65: 37.17 | AD65: 72.2 | AE65: 5.18 | AF65: 0 | AG65: 65.26 | AH65: 137.05 | AI65: 2.21 | AJ65: 0 | AK65: 46.43 | AL65: 0 | AM65: 0 | AN65: 283.37 | AO65: 10.32 | AP65: 107.21 | AQ65: 3.54 | AR65: 145.74 | AS65: 3.98 | AT65: 61.98 | AU65: 8.87 | AV65: 0 | AW65: 82.37 | AX65: 635.31 | AY65: 9.21 | AZ65: 33.03 | BA65: 2.85 | BB65: 685283.09 | BC65: 1444.47 | BD65: 0 | BE65: 8471.66 | BF65: 53856.3 | BG65: 993.42 | BH65: 139094.41 | BI65: 748.71 | BJ65: 0 | BK65: 86.61 | BL65: 499.78 | BM65: 32.64 | BN65: 0 | BO65: 18.54 | BP65: 70973.25 | BQ65: 458.19 | BR65: 3074.47 | BS65: 62.28
A66: One Earth | B66: 4326.590551 | C66: 18 | D66: 1 | E66: 4326 | F66: 0 | H66: 2.5716 | I66: 18 | J66: 259.9875 | K66: 0.0649 | M66: 55 | N66: 3380.8 | O66: 147.07 | P66: 242.72 | Q66: 53.96 | R66: 361.72 | S66: 46.39 | T66: 395.67 | U66: 32.93 | V66: 38540.11 | W66: 281.33 | X66: 122.02 | Y66: 22.39 | Z66: 97.35 | AA66: 10.95 | AB66: 58.63 | AC66: 11.46 | AD66: 69.73 | AE66: 6.76 | AF66: 85.03 | AG66: 11.04 | AH66: 139.65 | AI66: 2.96 | AJ66: 0 | AK66: 61.43 | AL66: 0 | AM66: 0 | AN66: 282.52 | AO66: 13.83 | AP66: 117.68 | AQ66: 4.83 | AR66: 146.51 | AS66: 5.36 | AT66: 0 | AU66: 179.2 | AV66: 0 | AW66: 106.24 | AX66: 828.24 | AY66: 13.99 | AZ66: 36.61 | BA66: 4.01 | BB66: 780123.04 | BC66: 1671.35 | BD66: 0 | BE66: 18990.6 | BF66: 25095.53 | BG66: 1201.66 | BH66: 85153.98 | BI66: 770.98 | BJ66: 0 | BK66: 181.82 | BL66: 1244.02 | BM66: 51.74 | BN66: 0 | BO66: 35.24 | BP66: 50365.45 | BQ66: 494.53 | BR66: 13113 | BS66: 119.97
A67: One Earth | B67: 4326.787402 | C67: 24 | D67: 1 | E67: 4326 | F67: 0 | H67: 2.7498 | I67: 9 | J67: 278.0075 | K67: 0.0001 | M67: 56 | N67: 4641.03 | O67: 182.12 | P67: 451.24 | Q67: 67.72 | R67: 288.03 | S67: 50.51 | T67: 730.54 | U67: 45.14 | V67: 55403.58 | W67: 429.02 | X67: 0 | Y67: 147.3 | Z67: 124.85 | AA67: 14.28 | AB67: 0 | AC67: 55.49 | AD67: 91.76 | AE67: 8.67 | AF67: 0 | AG67: 59.73 | AH67: 164.05 | AI67: 3.67 | AJ67: 0 | AK67: 68.82 | AL67: 0 | AM67: 0 | AN67: 282.53 | AO67: 16.11 | AP67: 115.64 | AQ67: 5.6 | AR67: 154.54 | AS67: 6.28 | AT67: 64.23 | AU67: 12.47 | AV67: 0 | AW67: 129.74 | AX67: 237.22 | AY67: 8.84 | AZ67: 38.85 | BA67: 4.05 | BB67: 765763 | BC67: 1976.01 | BD67: 0 | BE67: 23446.42 | BF67: 27223.22 | BG67: 1398.44 | BH67: 83233.31 | BI67: 855.94 | BJ67: 0 | BK67: 188.2 | BL67: 0 | BM67: 223.61 | BN67: 0 | BO67: 42.83 | BP67: 58569.12 | BQ67: 606.79 | BR67: 2423.25 | BS67: 80.36
A68: One Earth | B68: 4326.984252 | C68: 30 | D68: 1 | E68: 4326 | F68: 0.0001 | G68: 3899.614 | I68: 6 | J68: 5612.784 | K68: 0.4768 | M68: 49 | N68: 1275.5 | O68: 90.42 | P68: 0 | Q68: 101.58 | R68: 169.81 | S68: 32.28 | T68: 232.94 | U68: 22.46 | V68: 15820.05 | W68: 128.46 | X68: 103.97 | Y68: 12.71 | Z68: 30.8 | AA68: 6.32 | AB68: 0 | AC68: 43.6 | AD68: 267.8 | AE68: 8.64 | AF68: 0 | AG68: 53.42 | AH68: 94 | AI68: 2.03 | AJ68: 0 | AK68: 56.45 | AL68: 0 | AM68: 0 | AN68: 251.62 | AO68: 11.09 | AP68: 100.43 | AQ68: 3.84 | AR68: 139.6 | AS68: 4.39 | AT68: 0 | AU68: 119.78 | AV68: 0 | AW68: 101.72 | AX68: 270.89 | AY68: 6.35 | AZ68: 21.1 | BA68: 2.41 | BB68: 872746.73 | BC68: 1501.21 | BD68: 0 | BE68: 60051.12 | BF68: 20134.79 | BG68: 1413.87 | BH68: 54752.19 | BI68: 626.05 | BJ68: 0 | BK68: 656.88 | BL68: 0 | BM68: 1033.22 | BN68: 33587.77 | BO68: 178.09 | BP68: 0 | BQ68: 9656.74 | BR68: 0 | BS68: 1812.41
A69: One Earth | B69: 4327.181102 | C69: 36 | D69: 1 | E69: 4326 | F69: 0 | H69: 2.6237 | I69: 22 | J69: 265.2572 | K69: 0.046 | M69: 53 | N69: 3223.54 | O69: 122.41 | P69: 275.44 | Q69: 46 | R69: 491.85 | S69: 42.46 | T69: 687.03 | U69: 33.52 | V69: 42176.41 | W69: 246.33 | X69: 141.82 | Y69: 19.92 | Z69: 147.26 | AA69: 10.39 | AB69: 0 | AC69: 41.69 | AD69: 60.03 | AE69: 5.43 | AF69: 0 | AG69: 50.82 | AH69: 139.03 | AI69: 2.47 | AJ69: 0 | AK69: 51.99 | AL69: 0 | AM69: 0 | AN69: 261.35 | AO69: 11.42 | AP69: 103.03 | AQ69: 3.92 | AR69: 143.28 | AS69: 4.42 | AT69: 68.16 | AU69: 9.04 | AV69: 0 | AW69: 89.24 | AX69: 289.15 | AY69: 6.96 | AZ69: 31.8 | BA69: 2.82 | BB69: 737905.24 | BC69: 1476.82 | BD69: 0 | BE69: 11511.73 | BF69: 35641.67 | BG69: 1007.69 | BH69: 107056.61 | BI69: 720.61 | BJ69: 0 | BK69: 128.57 | BL69: 858.55 | BM69: 38.14 | BN69: 0 | BO69: 23.61 | BP69: 52857.95 | BQ69: 422.94 | BR69: 17440.79 | BS69: 117.46
A70: One Earth | B70: 4327.377953 | C70: 42 | D70: 1 | E70: 4326 | F70: 0.0001 | G70: 3363.303 | H70: 2.6392 | I70: 21 | J70: 8876.498 | K70: 0.0403 | M70: 52 | N70: 3955.32 | O70: 121.44 | P70: 331.85 | Q70: 45.03 | R70: 415.53 | S70: 37.59 | T70: 502.49 | U70: 27.53 | V70: 41025.42 | W70: 215.96 | X70: 113.4 | Y70: 17.87 | Z70: 120.21 | AA70: 8.78 | AB70: 0 | AC70: 37.36 | AD70: 58.52 | AE70: 4.88 | AF70: 0 | AG70: 43.57 | AH70: 150.37 | AI70: 2.3 | AJ70: 0 | AK70: 47.55 | AL70: 0 | AM70: 0 | AN70: 258.08 | AO70: 10.3 | AP70: 101.57 | AQ70: 3.52 | AR70: 131.18 | AS70: 3.92 | AT70: 37.97 | AU70: 7.36 | AV70: 0 | AW70: 80.8 | AX70: 258.88 | AY70: 5.99 | AZ70: 30.99 | BA70: 2.51 | BB70: 712951.32 | BC70: 1397.75 | BD70: 0 | BE70: 10986.2 | BF70: 46573.98 | BG70: 961.56 | BH70: 122592.05 | BI70: 703.36 | BJ70: 0 | BK70: 95.78 | BL70: 419.43 | BM70: 31.24 | BN70: 0 | BO70: 20.23 | BP70: 63521.46 | BQ70: 428.06 | BR70: 6449.99 | BS70: 69.61
A71: One Earth | B71: 4327.574803 | C71: 48 | D71: 1 | E71: 4326 | F71: 0 | H71: 2.1418 | I71: 18 | J71: 216.5377 | K71: 0.2213 | M71: 53 | N71: 3855.19 | O71: 123.32 | P71: 247.77 | Q71: 44.13 | R71: 358.45 | S71: 36.93 | T71: 403.98 | U71: 26.42 | V71: 42453.94 | W71: 231.03 | X71: 120.15 | Y71: 18.65 | Z71: 93.44 | AA71: 8.66 | AB71: 0 | AC71: 41.31 | AD71: 83.99 | AE71: 5.63 | AF71: 0 | AG71: 49.13 | AH71: 144.38 | AI71: 2.35 | AJ71: 0 | AK71: 48.31 | AL71: 0 | AM71: 0 | AN71: 277.52 | AO71: 10.77 | AP71: 109.93 | AQ71: 3.72 | AR71: 144.66 | AS71: 4.16 | AT71: 70.22 | AU71: 8.69 | AV71: 0 | AW71: 83.83 | AX71: 307.84 | AY71: 6.73 | AZ71: 32.4 | BA71: 2.67 | BB71: 725629.38 | BC71: 1427.45 | BD71: 0 | BE71: 12382.91 | BF71: 44530.19 | BG71: 986.95 | BH71: 116609.07 | BI71: 711.46 | BJ71: 0 | BK71: 100.7 | BL71: 646.04 | BM71: 34.05 | BN71: 0 | BO71: 22.56 | BP71: 60087.31 | BQ71: 431.47 | BR71: 3794.13 | BS71: 61.79
A72: One Earth | B72: 4327.771654 | C72: 54 | D72: 1 | E72: 4326 | F72: 0 | H72: 2.3086 | I72: 18 | J72: 233.3988 | K72: 0.1606 | M72: 51 | N72: 3876.79 | O72: 114.57 | P72: 244.68 | Q72: 40.87 | R72: 373.59 | S72: 34.8 | T72: 761.43 | U72: 30.3 | V72: 49062.14 | W72: 232.63 | X72: 123.61 | Y72: 18.54 | Z72: 95.52 | AA72: 8.28 | AB72: 41.05 | AC72: 7.74 | AD72: 75.57 | AE72: 5.11 | AF72: 0 | AG72: 44.44 | AH72: 129.54 | AI72: 2.1 | AJ72: 0 | AK72: 43.42 | AL72: 0 | AM72: 0 | AN72: 291.52 | AO72: 10 | AP72: 102.35 | AQ72: 3.4 | AR72: 138.55 | AS72: 3.81 | AT72: 62.07 | AU72: 7.92 | AV72: 28.8 | AW72: 5 | AX72: 309.27 | AY72: 6.3 | AZ72: 33.96 | BA72: 2.53 | BB72: 680441.87 | BC72: 1386.16 | BD72: 0 | BE72: 9075.57 | BF72: 53433.73 | BG72: 926.66 | BH72: 136321.16 | BI72: 704.12 | BJ72: 0 | BK72: 85.18 | BL72: 418.5 | BM72: 29.47 | BN72: 0 | BO72: 17.72 | BP72: 65859.24 | BQ72: 421.1 | BR72: 7775.05 | BS72: 71.42
A73: One Earth | B73: =E73+(C73*0.03280839895) -> 4327.968504 | C73: 60 | D73: 1 | E73: 4326 | F73: 0 | I73: 9 | J73: 134.7722 | K73: 0.5155 | M73: 54 | N73: 2650.49 | O73: 127.74 | P73: 211.23 | Q73: 48.09 | R73: 187.39 | S73: 38.17 | T73: 477.79 | U73: 32.53 | V73: 34362.11 | W73: 255.16 | X73: 0 | Y73: 104.68 | Z73: 58.26 | AA73: 9.2 | AB73: 0 | AC73: 49.65 | AD73: 148.26 | AE73: 8.23 | AF73: 0 | AG73: 47.91 | AH73: 119.15 | AI73: 2.67 | AJ73: 0 | AK73: 62.4 | AL73: 0 | AM73: 0 | AN73: 242.39 | AO73: 13.21 | AP73: 108 | AQ73: 4.61 | AR73: 134.2 | AS73: 5.11 | AT73: 56.11 | AU73: 9.63 | AV73: 0 | AW73: 110.99 | AX73: 190.8 | AY73: 6.56 | AZ73: 30.32 | BA73: 3.07 | BB73: 830310.79 | BC73: 1547.81 | BD73: 0 | BE73: 28654.49 | BF73: 21784.55 | BG73: 1233.01 | BH73: 66060.01 | BI73: 683.71 | BJ73: 0 | BK73: 269.5 | BL73: 0 | BM73: 329.57 | BN73: 5326.84 | BO73: 35.58 | BP73: 28481.93 | BQ73: 430.68 | BR73: 9059.4 | BS73: 95.73
A74: One Earth | B74: 4328.165354 | C74: 66 | D74: 1 | E74: 4326 | F74: 0 | H74: 2.4978 | I74: 8 | J74: 252.5287 | K74: 0.0918 | M74: 52 | N74: 3752.11 | O74: 122.84 | P74: 234.6 | Q74: 44.06 | R74: 251.57 | S74: 34.52 | T74: 449.45 | U74: 27.05 | V74: 39425.31 | W74: 216.34 | X74: 120.24 | Y74: 18.12 | Z74: 71.99 | AA74: 8.03 | AB74: 0 | AC74: 38.16 | AD74: 86.25 | AE74: 5.58 | AF74: 0 | AG74: 33.95 | AH74: 139.39 | AI74: 2.29 | AJ74: 0 | AK74: 49.19 | AL74: 0 | AM74: 0 | AN74: 249.6 | AO74: 10.56 | AP74: 101.95 | AQ74: 3.62 | AR74: 134.8 | AS74: 4.05 | AT74: 58.93 | AU74: 7.71 | AV74: 0 | AW74: 82.53 | AX74: 127.87 | AY74: 4.54 | AZ74: 32.47 | BA74: 2.49 | BB74: 717976.74 | BC74: 1434.34 | BD74: 0 | BE74: 11856.88 | BF74: 48093.96 | BG74: 998.77 | BH74: 120684.33 | BI74: 720.03 | BJ74: 0 | BK74: 107.85 | BL74: 271.67 | BM74: 32.43 | BN74: 41.22 | BO74: 5.78 | BP74: 58615.85 | BQ74: 432.49 | BR74: 9079.68 | BS74: 80.36
A75: One Earth | B75: 4328.362205 | C75: 72 | D75: 1 | E75: 4326 | F75: 0 | H75: 1.9777 | I75: 15 | J75: 199.9496 | K75: 0.281 | M75: 56 | N75: 2850.87 | O75: 200.17 | P75: 269.44 | Q75: 78.09 | R75: 0 | S75: 193.11 | T75: 505.03 | U75: 50.2 | V75: 30276.01 | W75: 330.72 | X75: 0 | Y75: 137.5 | Z75: 58.15 | AA75: 13.13 | AB75: 0 | AC75: 78.17 | AD75: 0 | AE75: 49.28 | AF75: 0 | AG75: 57.9 | AH75: 92.69 | AI75: 3.54 | AJ75: 0 | AK75: 92.3 | AL75: 0 | AM75: 0 | AN75: 314.96 | AO75: 19.58 | AP75: 141.29 | AQ75: 7.01 | AR75: 178.26 | AS75: 7.82 | AT75: 0 | AU75: 200.93 | AV75: 0 | AW75: 154.93 | AX75: 116.73 | AY75: 7.76 | AZ75: 0 | BA75: 120.86 | BB75: 772416.75 | BC75: 2606.74 | BD75: 0 | BE75: 40086.97 | BF75: 41896.39 | BG75: 2061.02 | BH75: 103156.15 | BI75: 1255.02 | BJ75: 0 | BK75: 317.1 | BL75: 0 | BM75: 355.85 | BN75: 0 | BO75: 76.43 | BP75: 42152.58 | BQ75: 822.28 | BR75: 5574.72 | BS75: 130.33
A76: One Earth | B76: 4328.559055 | C76: 78 | D76: 1 | E76: 4326 | F76: 0 | H76: 2.6744 | I76: 17 | J76: 270.3878 | K76: 0.0275 | M76: 51 | N76: 3998.51 | O76: 119.64 | P76: 259.35 | Q76: 42.83 | R76: 290.52 | S76: 34.04 | T76: 489.01 | U76: 26.7 | V76: 45141.24 | W76: 224.48 | X76: 114.52 | Y76: 18.33 | Z76: 79.76 | AA76: 7.97 | AB76: 0 | AC76: 36.1 | AD76: 72.93 | AE76: 5.08 | AF76: 0 | AG76: 19.89 | AH76: 136.26 | AI76: 2.18 | AJ76: 0 | AK76: 45.69 | AL76: 0 | AM76: 0 | AN76: 280.6 | AO76: 10.16 | AP76: 99.79 | AQ76: 3.45 | AR76: 126.99 | AS76: 3.82 | AT76: 51.14 | AU76: 6.93 | AV76: 0 | AW76: 75.29 | AX76: 29.87 | AY76: 2.74 | AZ76: 29.84 | BA76: 2.25 | BB76: 689079.97 | BC76: 1403.28 | BD76: 0 | BE76: 9533.65 | BF76: 51865.38 | BG76: 947.29 | BH76: 132926.15 | BI76: 711.69 | BJ76: 0 | BK76: 86.37 | BL76: 0 | BM76: 93.64 | BN76: 0 | BO76: 18.53 | BP76: 69310.36 | BQ76: 440.44 | BR76: 5617.83 | BS76: 67.46
A77: One Earth | B77: 4328.755906 | C77: 84 | D77: 1 | E77: 4326 | F77: 0 | H77: 2.5423 | I77: 5 | J77: 257.0296 | K77: 0.0756 | M77: 56 | N77: 3018.96 | O77: 182.99 | P77: 423.49 | Q77: 74.82 | R77: 0 | S77: 188.15 | T77: 309.05 | U77: 39.61 | V77: 37475 | W77: 371.01 | X77: 0 | Y77: 144.99 | Z77: 64.34 | AA77: 13.17 | AB77: 0 | AC77: 71.64 | AD77: 63.5 | AE77: 8.74 | AF77: 0 | AG77: 34.51 | AH77: 109.9 | AI77: 3.55 | AJ77: 0 | AK77: 83.09 | AL77: 0 | AM77: 0 | AN77: 332.59 | AO77: 18.63 | AP77: 129.23 | AQ77: 6.53 | AR77: 177.54 | AS77: 7.42 | AT77: 71.83 | AU77: 13.53 | AV77: 0 | AW77: 149.88 | AX77: 29.47 | AY77: 4.83 | AZ77: 0 | BA77: 112.01 | BB77: 818833.52 | BC77: 2159.03 | BD77: 0 | BE77: 48116.03 | BF77: 19500.31 | BG77: 1703.92 | BH77: 68598.82 | BI77: 925.71 | BJ77: 0 | BK77: 319.11 | BL77: 0 | BM77: 351.17 | BN77: 0 | BO77: 71.48 | BP77: 45972.36 | BQ77: 679.19 | BR77: 4890.11 | BS77: 108.75
A78: One Earth | B78: 4329.10685 | C78: 6 | D78: 1 | E78: 4328.91 | F78: 0 | H78: 2.6197 | I78: -3 | K78: 0.0474 | M78: 55 | N78: 3255.09 | O78: 155.45 | P78: 0 | Q78: 156.3 | R78: 244.28 | S78: 44.77 | T78: 354.56 | U78: 33.57 | V78: 34548.91 | W78: 273.31 | X78: 0 | Y78: 110.13 | Z78: 74.6 | AA78: 10.36 | AB78: 0 | AC78: 50.46 | AD78: 53.65 | AE78: 6.51 | AF78: 0 | AG78: 28.24 | AH78: 111.86 | AI78: 2.83 | AJ78: 0 | AK78: 68.48 | AL78: 0 | AM78: 0 | AN78: 277.8 | AO78: 14.35 | AP78: 112.7 | AQ78: 4.98 | AR78: 151.52 | AS78: 5.6 | AT78: 0 | AU78: 135.57 | AV78: 0 | AW78: 112.64 | AX78: 31.88 | AY78: 3.83 | AZ78: 26.49 | BA78: 3.04 | BB78: 793208.43 | BC78: 1712.89 | BD78: 0 | BE78: 20812.9 | BF78: 23431.32 | BG78: 1263.61 | BH78: 80115.21 | BI78: 781.14 | BJ78: 0 | BK78: 183.51 | BL78: 0 | BM78: 204.7 | BN78: 0 | BO78: 39.8 | BP78: 55570.83 | BQ78: 547.84 | BR78: 8430.86 | BS78: 103.92
A79: One Earth | B79: 4329.303701 | C79: 12 | D79: 1 | E79: 4328.91 | F79: 0.0001 | G79: 3368.913 | H79: 2.6987 | I79: 1 | J79: 9091.564 | K79: 0.0187 | M79: 51 | N79: 3868.4 | O79: 118.65 | P79: 351.72 | Q79: 43.96 | R79: 382 | S79: 36.04 | T79: 406.07 | U79: 25.41 | V79: 43256.43 | W79: 212.57 | X79: 0 | Y79: 84.06 | Z79: 108.52 | AA79: 8.16 | AB79: 0 | AC79: 35.15 | AD79: 65.82 | AE79: 4.85 | AF79: 0 | AG79: 28.73 | AH79: 146.94 | AI79: 2.2 | AJ79: 0 | AK79: 45.59 | AL79: 0 | AM79: 0 | AN79: 286.92 | AO79: 9.97 | AP79: 107.74 | AQ79: 3.42 | AR79: 138.45 | AS79: 3.8 | AT79: 51.16 | AU79: 7 | AV79: 0 | AW79: 74.59 | AX79: 106.8 | AY79: 4 | AZ79: 32.74 | BA79: 2.34 | BB79: 671892.94 | BC79: 1405.94 | BD79: 0 | BE79: 9219.79 | BF79: 56777.71 | BG79: 945.56 | BH79: 147328.48 | BI79: 740.29 | BJ79: 0 | BK79: 90.02 | BL79: 725.2 | BM79: 32.77 | BN79: 0 | BO79: 18.26 | BP79: 71055.11 | BQ79: 450.45 | BR79: 2910.86 | BS79: 60.99
A80: One Earth | B80: 4329.500551 | C80: 18 | D80: 1 | E80: 4328.91 | F80: 0 | H80: 1.9779 | I80: 2 | J80: 199.9661 | K80: 0.2809 | M80: 56 | N80: 3942.74 | O80: 191.79 | P80: 284.54 | Q80: 68.45 | R80: 266.9 | S80: 53.8 | T80: 428.68 | U80: 41.91 | V80: 44247.68 | W80: 393.01 | X80: 0 | Y80: 146.85 | Z80: 81.73 | AA80: 13.56 | AB80: 0 | AC80: 65.53 | AD80: 61.38 | AE80: 8.08 | AF80: 0 | AG80: 29.73 | AH80: 126.51 | AI80: 3.56 | AJ80: 0 | AK80: 78.07 | AL80: 0 | AM80: 0 | AN80: 273.22 | AO80: 17.26 | AP80: 111.7 | AQ80: 5.98 | AR80: 150.45 | AS80: 6.72 | AT80: 0 | AU80: 172.62 | AV80: 0 | AW80: 120.56 | AX80: 21.54 | AY80: 4.35 | AZ80: 37.44 | BA80: 4.01 | BB80: 786339.88 | BC80: 2104.04 | BD80: 0 | BE80: 28114.69 | BF80: 26576.87 | BG80: 1569.74 | BH80: 77474.22 | BI80: 904.62 | BJ80: 0 | BK80: 252.11 | BL80: 0 | BM80: 285.23 | BN80: 0 | BO80: 52.48 | BP80: 55194.47 | BQ80: 669.79 | BR80: 4380.04 | BS80: 100.78
A81: One Earth | B81: 4329.697402 | C81: 24 | D81: 1 | E81: 4328.91 | F81: 0 | H81: 2.3931 | I81: 10 | J81: 241.9486 | K81: 0.1298 | M81: 56 | N81: 2897.79 | O81: 157.24 | P81: 258.59 | Q81: 59.36 | R81: 191.03 | S81: 45.97 | T81: 467.28 | U81: 38.38 | V81: 33695.48 | W81: 284.62 | X81: 0 | Y81: 114.77 | Z81: 77.03 | AA81: 10.96 | AB81: 0 | AC81: 56.63 | AD81: 49.71 | AE81: 6.81 | AF81: 0 | AG81: 26.11 | AH81: 102.89 | AI81: 2.9 | AJ81: 0 | AK81: 71.65 | AL81: 0 | AM81: 0 | AN81: 305.36 | AO81: 15.32 | AP81: 115.81 | AQ81: 5.31 | AR81: 155.67 | AS81: 5.98 | AT81: 0 | AU81: 141.6 | AV81: 0 | AW81: 123.49 | AX81: 17.89 | AY81: 3.63 | AZ81: 29.59 | BA81: 3.29 | BB81: 799488.77 | BC81: 1803.56 | BD81: 0 | BE81: 23895.61 | BF81: 23188.28 | BG81: 1345.41 | BH81: 79098.47 | BI81: 825.96 | BJ81: 0 | BK81: 225.61 | BL81: 0 | BM81: 225.72 | BN81: 0 | BO81: 44.78 | BP81: 45597.51 | BQ81: 545.09 | BR81: 14262.84 | BS81: 140.95
A82: One Earth | B82: 4329.894252 | C82: 30 | D82: 1 | E82: 4328.91 | F82: 0 | H82: 2.5878 | I82: 4 | J82: 261.6245 | K82: 0.059 | M82: 54 | N82: 561.55 | O82: 178.05 | P82: 0 | Q82: 246.45 | R82: 0 | S82: 210.79 | T82: 0 | U82: 26883.18 | V82: 1256.75 | W82: 70.36 | X82: 0 | Y82: 51.26 | Z82: 0 | AA82: 66.75 | AB82: 0 | AC82: 117.82 | AD82: 344.08 | AE82: 20.36 | AF82: 0 | AG82: 53.4 | AH82: 38.49 | AI82: 3.36 | AJ82: 0 | AK82: 145.48 | AL82: 0 | AM82: 0 | AN82: 0 | AO82: 1243.4 | AP82: 0 | AQ82: 463.74 | AR82: 63.24 | AS82: 8.42 | AT82: 0 | AU82: 245.32 | AV82: 0 | AW82: 279.5 | AX82: 29.74 | AY82: 5.8 | AZ82: 0 | BA82: 152.62 | BB82: 914625.31 | BC82: 1292.88 | BD82: 0 | BE82: 241091.75 | BF82: 0 | BG82: 20437.94 | BH82: 5228.8 | BI82: 907.92 | BJ82: 0 | BK82: 1854.4 | BL82: 0 | BM82: 2822.04 | BN82: 77852.05 | BO82: 891.67 | BP82: 0 | BQ82: 22979.78 | BR82: 0 | BS82: 3511.8
A83: One Earth | B83: 4330.091102 | C83: 36 | D83: 1 | E83: 4328.91 | F83: 0 | H83: 2.5841 | I83: 25 | J83: 261.2564 | K83: 0.0604 | M83: 52 | N83: 4132.44 | O83: 124.66 | P83: 326.35 | Q83: 44.73 | R83: 278.99 | S83: 34.78 | T83: 730.37 | U83: 31.8 | V83: 52592.89 | W83: 267.96 | X83: 125.61 | Y83: 20.06 | Z83: 81.47 | AA83: 8.73 | AB83: 0 | AC83: 37.5 | AD83: 87.7 | AE83: 5.69 | AF83: 0 | AG83: 21.24 | AH83: 134.39 | AI83: 2.29 | AJ83: 0 | AK83: 45.95 | AL83: 0 | AM83: 0 | AN83: 268.74 | AO83: 10.71 | AP83: 108.45 | AQ83: 3.69 | AR83: 139.01 | AS83: 4.1 | AT83: 67.63 | AU83: 7.81 | AV83: 0 | AW83: 79.35 | AX83: 35.83 | AY83: 3.06 | AZ83: 36.13 | BA83: 2.51 | BB83: 706900.27 | BC83: 1428.75 | BD83: 0 | BE83: 8995.03 | BF83: 44918.44 | BG83: 938.17 | BH83: 120441.62 | BI83: 702.94 | BJ83: 0 | BK83: 106.6 | BL83: 0 | BM83: 101.32 | BN83: 0 | BO83: 20.73 | BP83: 55412.5 | BQ83: 407.64 | BR83: 13181.18 | BS83: 92.15
A84: One Earth | B84: 4330.287953 | C84: 42 | D84: 1 | E84: 4328.91 | F84: 0 | H84: 2.6524 | I84: 13 | J84: 268.159 | K84: 0.0355 | M84: 54 | N84: 3826.01 | O84: 146.34 | P84: 252.43 | Q84: 51.84 | R84: 300.13 | S84: 42.27 | T84: 740.53 | U84: 38.38 | V84: 47279.15 | W84: 293.42 | X84: 123.42 | Y84: 22.93 | Z84: 71.29 | AA84: 9.9 | AB84: 63.28 | AC84: 9.91 | AD84: 72.89 | AE84: 6.38 | AF84: 0 | AG84: 22.23 | AH84: 110.75 | AI84: 2.53 | AJ84: 0 | AK84: 55.24 | AL84: 0 | AM84: 0 | AN84: 294.32 | AO84: 12.8 | AP84: 116.53 | AQ84: 4.43 | AR84: 149.91 | AS84: 4.94 | AT84: 0 | AU84: 114.09 | AV84: 0 | AW84: 92.2 | AX84: 19.18 | AY84: 3.14 | AZ84: 27.8 | BA84: 2.75 | BB84: 703005.69 | BC84: 1729.34 | BD84: 0 | BE84: 12034.81 | BF84: 47904.15 | BG84: 1171.27 | BH84: 123872.1 | BI84: 853.18 | BJ84: 0 | BK84: 125.43 | BL84: 0 | BM84: 122.12 | BN84: 0 | BO84: 26.83 | BP84: 63892.78 | BQ84: 536.37 | BR84: 7877.66 | BS84: 92.01
A85: One Earth | B85: 4330.484803 | C85: 48 | D85: 1 | E85: 4328.91 | F85: 0 | H85: 2.5699 | I85: 21 | J85: 259.8176 | K85: 0.0655 | M85: 51 | N85: 3597.65 | O85: 118.74 | P85: 265.19 | Q85: 42.76 | R85: 262.31 | S85: 34.2 | T85: 733.16 | U85: 31.63 | V85: 48785.87 | W85: 243.21 | X85: 97.58 | Y85: 19.2 | Z85: 74.69 | AA85: 8.12 | AB85: 0 | AC85: 37.42 | AD85: 70.33 | AE85: 5.2 | AF85: 0 | AG85: 19.51 | AH85: 110.88 | AI85: 2.08 | AJ85: 0 | AK85: 46.1 | AL85: 0 | AM85: 0 | AN85: 272.3 | AO85: 10.41 | AP85: 104.13 | AQ85: 3.56 | AR85: 137.86 | AS85: 3.98 | AT85: 44.47 | AU85: 6.97 | AV85: 0 | AW85: 77.91 | AX85: 28.31 | AY85: 2.81 | AZ85: 33.86 | BA85: 2.4 | BB85: 675559.06 | BC85: 1458.82 | BD85: 0 | BE85: 7927.18 | BF85: 54434.58 | BG85: 970.91 | BH85: 137588.17 | BI85: 738.95 | BJ85: 0 | BK85: 88.7 | BL85: 0 | BM85: 84.72 | BN85: 0 | BO85: 18.97 | BP85: 69804.12 | BQ85: 458.4 | BR85: 7995.49 | BS85: 77.54
A86: One Earth | B86: 4330.681654 | C86: 54 | D86: 1 | E86: 4328.91 | F86: 0 | H86: 2.2288 | I86: 6 | J86: 225.3385 | K86: 0.1896 | M86: 52 | N86: 3769.25 | O86: 125.44 | P86: 270.39 | Q86: 44.87 | R86: 144.77 | S86: 32.5 | T86: 692.26 | U86: 31.98 | V86: 47279.76 | W86: 251.9 | X86: 107.96 | Y86: 19.72 | Z86: 62.7 | AA86: 8.23 | AB86: 0 | AC86: 38.06 | AD86: 72.35 | AE86: 5.48 | AF86: 0 | AG86: 19.12 | AH86: 113.09 | AI86: 2.19 | AJ86: 0 | AK86: 48.18 | AL86: 0 | AM86: 0 | AN86: 293.3 | AO86: 10.97 | AP86: 103.82 | AQ86: 3.73 | AR86: 135.35 | AS86: 4.16 | AT86: 45.78 | AU86: 7.24 | AV86: 0 | AW86: 83.9 | AX86: 19.23 | AY86: 2.68 | AZ86: 28.32 | BA86: 2.38 | BB86: 701348.95 | BC86: 1482.76 | BD86: 0 | BE86: 9194.67 | BF86: 49251.94 | BG86: 999.26 | BH86: 122961.22 | BI86: 730 | BJ86: 0 | BK86: 104.45 | BL86: 0 | BM86: 96.07 | BN86: 0 | BO86: 21.04 | BP86: 63105.92 | BQ86: 452.39 | BR86: 10193.64 | BS86: 86.43
A87: One Earth | B87: 4330.878504 | C87: 60 | D87: 1 | E87: 4328.91 | F87: 0 | H87: 2.599 | I87: 14 | J87: 262.7592 | K87: 0.0549 | M87: 39 | N87: 443 | O87: 69.73 | P87: 0 | Q87: 79.03 | R87: 92.91 | S87: 28.73 | T87: 0 | U87: 8926.34 | V87: 1366.57 | W87: 31.55 | X87: 53.34 | Y87: 5.09 | Z87: 0 | AA87: 24.14 | AB87: 0 | AC87: 37.62 | AD87: 317.59 | AE87: 8.48 | AF87: 0 | AG87: 29.45 | AH87: 50.8 | AI87: 1.51 | AJ87: 0 | AK87: 56.63 | AL87: 0 | AM87: 0 | AN87: 183.36 | AO87: 9.66 | AP87: 74.12 | AQ87: 3.28 | AR87: 95.53 | AS87: 3.71 | AT87: 0 | AU87: 96.36 | AV87: 0 | AW87: 103.86 | AX87: 73.47 | AY87: 3.26 | AZ87: 0 | BA87: 68.35 | BB87: 899171.03 | BC87: 617.87 | BD87: 0 | BE87: 65126.3 | BF87: 0 | BG87: 6096.2 | BH87: 10105.11 | BI87: 426.4 | BJ87: 0 | BK87: 704.2 | BL87: 0 | BM87: 1113.18 | BN87: 87973.18 | BO87: 419.61 | BP87: 0 | BQ87: 6756.47 | BR87: 0 | BS87: 871.74
A88: One Earth | B88: 4331.075354 | C88: 66 | D88: 1 | E88: 4328.91 | F88: 0 | H88: 2.0095 | I88: 12 | J88: 203.1621 | K88: 0.2694 | M88: 52 | N88: 6497.21 | O88: 156.1 | P88: 218.34 | Q88: 49.74 | R88: 236.85 | S88: 34.8 | T88: 696.43 | U88: 32.16 | V88: 43824.57 | W88: 239.55 | X88: 147.81 | Y88: 19.27 | Z88: 66.31 | AA88: 8.35 | AB88: 39.26 | AC88: 7.74 | AD88: 49.03 | AE88: 4.9 | AF88: 0 | AG88: 18.49 | AH88: 112.11 | AI88: 2.17 | AJ88: 0 | AK88: 48.7 | AL88: 0 | AM88: 0 | AN88: 271.18 | AO88: 10.86 | AP88: 107.33 | AQ88: 3.74 | AR88: 129.89 | AS88: 4.11 | AT88: 0 | AU88: 94.66 | AV88: 0 | AW88: 82.16 | AX88: 19.97 | AY88: 2.66 | AZ88: 25.31 | BA88: 2.29 | BB88: 718595.29 | BC88: 1437.09 | BD88: 0 | BE88: 8995.23 | BF88: 42076.17 | BG88: 962.1 | BH88: 114110.75 | BI88: 700.23 | BJ88: 0 | BK88: 88.27 | BL88: 0 | BM88: 77.37 | BN88: 0 | BO88: 16.06 | BP88: 54096.14 | BQ88: 415.39 | BR88: 18680.04 | BS88: 116.62
A89: One Earth | B89: 4331.272205 | C89: 72 | D89: 1 | E89: 4328.91 | F89: 0 | H89: 2.5383 | I89: 17 | J89: 256.6255 | K89: 0.077 | M89: 56 | N89: 3492.7 | O89: 190.66 | P89: 264.79 | Q89: 69.68 | R89: 198.26 | S89: 52.84 | T89: 498.97 | U89: 44.62 | V89: 34003.56 | W89: 327.86 | X89: 0 | Y89: 130.54 | Z89: 64.4 | AA89: 12.16 | AB89: 0 | AC89: 65.9 | AD89: 0 | AE89: 46.29 | AF89: 0 | AG89: 34.85 | AH89: 105.95 | AI89: 3.35 | AJ89: 0 | AK89: 82.32 | AL89: 0 | AM89: 0 | AN89: 332.52 | AO89: 17.67 | AP89: 125.7 | AQ89: 6.17 | AR89: 165.66 | AS89: 6.94 | AT89: 0 | AU89: 170.39 | AV89: 0 | AW89: 142.99 | AX89: 29.18 | AY89: 4.59 | AZ89: 31.56 | BA89: 3.85 | BB89: 803414.48 | BC89: 2120.86 | BD89: 0 | BE89: 40966.77 | BF89: 27675.68 | BG89: 1653.78 | BH89: 74999.48 | BI89: 923.38 | BJ89: 0 | BK89: 282.84 | BL89: 0 | BM89: 301.9 | BN89: 0 | BO89: 62.89 | BP89: 46177.94 | BQ89: 663.82 | BR89: 8419.17 | BS89: 126.6
A90: One Earth | B90: 4331.469055 | C90: 78 | D90: 1 | E90: 4328.91 | F90: 0 | H90: 2.746 | I90: 18 | J90: 277.6221 | K90: 0.0015 | M90: 56 | N90: 3237.02 | O90: 181.79 | P90: 301.35 | Q90: 68.66 | R90: 258.55 | S90: 54.69 | T90: 578.1 | U90: 46.3 | V90: 38455.45 | W90: 342.98 | X90: 151.48 | Y90: 27.67 | Z90: 42.51 | AA90: 11.91 | AB90: 0 | AC90: 63.48 | AD90: 69.82 | AE90: 8.31 | AF90: 0 | AG90: 28.39 | AH90: 107.84 | AI90: 3.29 | AJ90: 0 | AK90: 78.54 | AL90: 0 | AM90: 0 | AN90: 320.85 | AO90: 17.13 | AP90: 121.83 | AQ90: 5.95 | AR90: 153.57 | AS90: 6.62 | AT90: 0 | AU90: 155.98 | AV90: 0 | AW90: 132.4 | AX90: 15.74 | AY90: 4 | AZ90: 0 | BA90: 103.07 | BB90: 757636.29 | BC90: 2184.18 | BD90: 0 | BE90: 31211.03 | BF90: 37407.06 | BG90: 1599.77 | BH90: 97033.05 | BI90: 1011.98 | BJ90: 0 | BK90: 226.84 | BL90: 0 | BM90: 235.34 | BN90: 0 | BO90: 49.31 | BP90: 50488.98 | BQ90: 673.43 | BR90: 13620.52 | BS90: 154.62
A91: One Earth | B91: 4331.665906 | C91: 84 | D91: 1 | E91: 4328.91 | F91: 0 | H91: 2.6825 | I91: 21 | J91: 271.1998 | K91: 0.0246 | M91: 51 | N91: 3716.92 | O91: 120.19 | P91: 214.98 | Q91: 42.01 | R91: 334.37 | S91: 35.61 | T91: 808.7 | U91: 32.89 | V91: 47119.74 | W91: 241.26 | X91: 137.83 | Y91: 19.13 | Z91: 70.05 | AA91: 8.2 | AB91: 0 | AC91: 35.91 | AD91: 58.5 | AE91: 4.97 | AF91: 0 | AG91: 19.52 | AH91: 128.69 | AI91: 2.21 | AJ91: 0 | AK91: 47.46 | AL91: 0 | AM91: 0 | AN91: 274.59 | AO91: 10.49 | AP91: 104.27 | AQ91: 3.59 | AR91: 134.86 | AS91: 3.99 | AT91: 35.09 | AU91: 6.65 | AV91: 0 | AW91: 80.53 | AX91: 30.04 | AY91: 2.83 | AZ91: 27.45 | BA91: 2.28 | BB91: 699892.01 | BC91: 1416 | BD91: 0 | BE91: 10523.51 | BF91: 46102.5 | BG91: 933.58 | BH91: 124046.96 | BI91: 701.04 | BJ91: 0 | BK91: 96.92 | BL91: 0 | BM91: 99.18 | BN91: 0 | BO91: 19.5 | BP91: 64949.9 | BQ91: 434.28 | BR91: 11812.54 | BS91: 88.72
A92: One Earth | B92: 4331.862756 | C92: 90 | D92: 1 | E92: 4328.91 | F92: 0 | H92: 2.668 | I92: 19 | J92: 269.7362 | K92: 0.0298
A93: One Earth | B93: 4332.09685 | C93: 6 | D93: 1 | E93: 4331.9 | F93: 0 | H93: 2.6491 | I93: 13 | K93: 0.0367 | M93: 51 | N93: 3621.76 | O93: 115.27 | P93: 360.64 | Q93: 44.14 | R93: 325.81 | S93: 35.03 | T93: 501.83 | U93: 27.23 | V93: 42925.25 | W93: 219.59 | X93: 117.54 | Y93: 17.82 | Z93: 81.52 | AA93: 7.95 | AB93: 0 | AC93: 36.52 | AD93: 71.4 | AE93: 5.07 | AF93: 0 | AG93: 18.36 | AH93: 139.03 | AI93: 2.2 | AJ93: 0 | AK93: 46.33 | AL93: 0 | AM93: 0 | AN93: 247.53 | AO93: 9.91 | AP93: 98.81 | AQ93: 3.44 | AR93: 128.54 | AS93: 3.83 | AT93: 45.15 | AU93: 6.72 | AV93: 0 | AW93: 79.28 | AX93: 21.56 | AY93: 2.52 | AZ93: 26.35 | BA93: 2.17 | BB93: 708451.76 | BC93: 1361.51 | BD93: 0 | BE93: 10043.12 | BF93: 44850.28 | BG93: 906.97 | BH93: 123024.44 | BI93: 683.64 | BJ93: 0 | BK93: 100.16 | BL93: 0 | BM93: 91.04 | BN93: 0 | BO93: 19.09 | BP93: 57524.81 | BQ93: 399.43 | BR93: 17436 | BS93: 104.7
A94: One Earth | B94: 4332.293701 | C94: 12 | D94: 1 | E94: 4331.9 | F94: 0 | H94: 2.733 | I94: 16 | J94: 276.3085 | K94: 0.0062 | M94: 51 | N94: 3763.61 | O94: 119.37 | P94: 319.06 | Q94: 44.57 | R94: 344.76 | S94: 36.11 | T94: 550.76 | U94: 28.65 | V94: 43640.34 | W94: 222.46 | X94: 0 | Y94: 87.57 | Z94: 100.29 | AA94: 8.33 | AB94: 0 | AC94: 38.24 | AD94: 79.44 | AE94: 5.33 | AF94: 0 | AG94: 18.18 | AH94: 132.88 | AI94: 2.19 | AJ94: 0 | AK94: 46.8 | AL94: 0 | AM94: 0 | AN94: 279.74 | AO94: 10.12 | AP94: 107.97 | AQ94: 3.54 | AR94: 144.05 | AS94: 3.96 | AT94: 54.39 | AU94: 7.14 | AV94: 0 | AW94: 80.73 | AX94: 20.53 | AY94: 2.56 | AZ94: 29.5 | BA94: 2.27 | BB94: 685450.61 | BC94: 1420.57 | BD94: 0 | BE94: 9896.08 | BF94: 51412.06 | BG94: 942.63 | BH94: 136841.56 | BI94: 730.19 | BJ94: 0 | BK94: 95.51 | BL94: 0 | BM94: 92.6 | BN94: 0 | BO94: 19.1 | BP94: 64028.61 | BQ94: 434.51 | BR94: 12699.84 | BS94: 90.77
A95: One Earth | B95: 4332.490551 | C95: 18 | D95: 1 | E95: 4331.9 | F95: 0 | H95: 2.6903 | I95: 13 | J95: 271.9901 | K95: 0.0217 | M95: 55 | N95: 3127.28 | O95: 148.61 | P95: 290.75 | Q95: 56.93 | R95: 175.16 | S95: 42.38 | T95: 382.29 | U95: 33.66 | V95: 36662.96 | W95: 279.99 | X95: 0 | Y95: 111.94 | Z95: 55.92 | AA95: 9.88 | AB95: 0 | AC95: 52.05 | AD95: 60.28 | AE95: 6.64 | AF95: 0 | AG95: 24.64 | AH95: 125.39 | AI95: 2.91 | AJ95: 0 | AK95: 66.87 | AL95: 0 | AM95: 0 | AN95: 272.31 | AO95: 13.89 | AP95: 115.53 | AQ95: 4.93 | AR95: 151.89 | AS95: 5.52 | AT95: 0 | AU95: 138.22 | AV95: 0 | AW95: 110.87 | AX95: 21.74 | AY95: 3.51 | AZ95: 30.65 | BA95: 3.1 | BB95: 782024.56 | BC95: 1713.22 | BD95: 0 | BE95: 24312.82 | BF95: 27761.05 | BG95: 1239.42 | BH95: 85886.33 | BI95: 793.22 | BJ95: 0 | BK95: 188.69 | BL95: 0 | BM95: 199.42 | BN95: 0 | BO95: 38.12 | BP95: 52170.68 | BQ95: 526.65 | BR95: 10685.24 | BS95: 112.04
A96: One Earth | B96: 4332.687402 | C96: 24 | D96: 1 | E96: 4331.9 | F96: 0 | H96: 2.6641 | I96: 21 | J96: 269.3467 | K96: 0.0312 | M96: 53 | N96: 3534.02 | O96: 117.65 | P96: 327.21 | Q96: 44.52 | R96: 274.31 | S96: 34.67 | T96: 348.61 | U96: 25.12 | V96: 42537.8 | W96: 229.39 | X96: 113.33 | Y96: 18.26 | Z96: 64.1 | AA96: 7.88 | AB96: 0 | AC96: 38.3 | AD96: 77.12 | AE96: 5.38 | AF96: 0 | AG96: 18.44 | AH96: 134.6 | AI96: 2.26 | AJ96: 0 | AK96: 48.61 | AL96: 0 | AM96: 0 | AN96: 280.72 | AO96: 10.44 | AP96: 108.02 | AQ96: 3.65 | AR96: 142.46 | AS96: 4.09 | AT96: 58.95 | AU96: 7.39 | AV96: 0 | AW96: 81.21 | AX96: 19.34 | AY96: 2.58 | AZ96: 25.51 | BA96: 2.23 | BB96: 730234.42 | BC96: 1384.37 | BD96: 0 | BE96: 11928.48 | BF96: 42381.02 | BG96: 944.11 | BH96: 112123.52 | BI96: 680.8 | BJ96: 0 | BK96: 108.1 | BL96: 299.45 | BM96: 30.42 | BN96: 0 | BO96: 22.09 | BP96: 59211.3 | BQ96: 418.32 | BR96: 7704.2 | BS96: 73.63
A97: One Earth | B97: 4332.884252 | C97: 30 | D97: 1 | E97: 4331.9 | F97: 0 | H97: 1.9445 | I97: 9 | J97: 196.5879 | K97: 0.2931 | M97: 43 | N97: 294.83 | O97: 72.26 | P97: 0 | Q97: 93.75 | R97: 0 | S97: 93.89 | T97: 104.42 | U97: 19.79 | V97: 5912.7 | W97: 75.13 | X97: 132.93 | Y97: 9.8 | Z97: 0 | AA97: 29.32 | AB97: 0 | AC97: 46.81 | AD97: 149.48 | AE97: 7.01 | AF97: 0 | AG97: 25.79 | AH97: 91.84 | AI97: 2.05 | AJ97: 0 | AK97: 63.39 | AL97: 0 | AM97: 0 | AN97: 242.6 | AO97: 11.01 | AP97: 99.5 | AQ97: 3.91 | AR97: 133.54 | AS97: 4.46 | AT97: 0 | AU97: 123.62 | AV97: 0 | AW97: 110.47 | AX97: 29.42 | AY97: 2.79 | AZ97: 16.95 | BA97: 2.1 | BB97: 908738.04 | BC97: 615.47 | BD97: 0 | BE97: 58658.35 | BF97: 0 | BG97: 7816.83 | BH97: 2168.12 | BI97: 389.73 | BJ97: 0 | BK97: 771.62 | BL97: 0 | BM97: 1316.75 | BN97: 81885.64 | BO97: 445.54 | BP97: 0 | BQ97: 7479.06 | BR97: 0 | BS97: 943.83
A98: One Earth | B98: 4333.081102 | C98: 36 | D98: 1 | E98: 4331.9 | F98: 0 | H98: 2.7201 | I98: 11 | J98: 275.0071 | K98: 0.0109 | M98: 52 | N98: 3636.53 | O98: 116.8 | P98: 390.11 | Q98: 45.25 | R98: 226.1 | S98: 33.28 | T98: 349.13 | U98: 24.6 | V98: 43290.2 | W98: 223.78 | X98: 125.46 | Y98: 18.11 | Z98: 71.63 | AA98: 7.92 | AB98: 0 | AC98: 37.01 | AD98: 57.17 | AE98: 4.87 | AF98: 0 | AG98: 17.06 | AH98: 138 | AI98: 2.22 | AJ98: 0 | AK98: 46.54 | AL98: 0 | AM98: 0 | AN98: 278.91 | AO98: 10.14 | AP98: 103.85 | AQ98: 3.52 | AR98: 133.11 | AS98: 3.92 | AT98: 55.02 | AU98: 7.07 | AV98: 30.25 | AW98: 5.09 | AX98: 15.18 | AY98: 2.41 | AZ98: 28.28 | BA98: 2.23 | BB98: 707796.79 | BC98: 1383.66 | BD98: 0 | BE98: 8279.79 | BF98: 46758.4 | BG98: 924.9 | BH98: 123235.31 | BI98: 692 | BJ98: 0 | BK98: 103.11 | BL98: 686.46 | BM98: 32.43 | BN98: 0 | BO98: 20.03 | BP98: 60926.13 | BQ98: 418.26 | BR98: 11667.99 | BS98: 86.27
A99: One Earth | B99: 4333.277953 | C99: 42 | D99: 1 | E99: 4331.9 | F99: 0 | H99: 2.6984 | I99: 9 | J99: 272.8114 | K99: 0.0188 | M99: 52 | N99: 3765.43 | O99: 119.88 | P99: 273.49 | Q99: 43.82 | R99: 266.62 | S99: 34.23 | T99: 492.32 | U99: 27.61 | V99: 43115.64 | W99: 224.36 | X99: 98.66 | Y99: 18.18 | Z99: 66.07 | AA99: 7.74 | AB99: 0 | AC99: 37.26 | AD99: 71.81 | AE99: 5.2 | AF99: 0 | AG99: 17.04 | AH99: 118.29 | AI99: 2.12 | AJ99: 0 | AK99: 46.73 | AL99: 0 | AM99: 0 | AN99: 264.19 | AO99: 10.19 | AP99: 111.92 | AQ99: 3.6 | AR99: 141.56 | AS99: 3.99 | AT99: 57.75 | AU99: 7.19 | AV99: 0 | AW99: 80.31 | AX99: 10.36 | AY99: 2.33 | AZ99: 31.87 | BA99: 2.32 | BB99: 700656.29 | BC99: 1410.97 | BD99: 0 | BE99: 8240.05 | BF99: 49022.63 | BG99: 943.25 | BH99: 128553.67 | BI99: 715.42 | BJ99: 0 | BK99: 96.36 | BL99: 0 | BM99: 97.9 | BN99: 0 | BO99: 20.13 | BP99: 61016.78 | BQ99: 427.19 | BR99: 11864.64 | BS99: 88.08
A100: One Earth | B100: 4333.474803 | C100: 48 | D100: 1 | E100: 4331.9 | F100: 0 | H100: 2.7387 | I100: 16 | J100: 276.8817 | K100: 0.0041 | M100: 51 | N100: 3833.41 | O100: 112.98 | P100: 253.18 | Q100: 40.54 | R100: 220.15 | S100: 31.09 | T100: 791.36 | U100: 30.63 | V100: 50222.76 | W100: 239.24 | X100: 132.29 | Y100: 18.52 | Z100: 73.74 | AA100: 7.93 | AB100: 0 | AC100: 33.97 | AD100: 67.71 | AE100: 4.89 | AF100: 0 | AG100: 17.02 | AH100: 126.49 | AI100: 2.08 | AJ100: 0 | AK100: 43.42 | AL100: 0 | AM100: 0 | AN100: 243.58 | AO100: 9.71 | AP100: 102.09 | AQ100: 3.4 | AR100: 129.91 | AS100: 3.76 | AT100: 43.91 | AU100: 6.52 | AV100: 0 | AW100: 73.17 | AX100: 15.63 | AY100: 2.39 | AZ100: 32.34 | BA100: 2.25 | BB100: 693496.39 | BC100: 1362.25 | BD100: 0 | BE100: 9568.68 | BF100: 52652.15 | BG100: 910.2 | BH100: 126904.99 | BI100: 674.19 | BJ100: 0 | BK100: 86.82 | BL100: 0 | BM100: 88.33 | BN100: 0 | BO100: 18.75 | BP100: 65875.36 | BQ100: 418.59 | BR100: 4782.55 | BS100: 61.72
A101: One Earth | B101: 4333.671654 | C101: 54 | D101: 1 | E101: 4331.9 | F101: 0 | H101: 2.4367 | I101: 19 | J101: 246.3566 | K101: 0.114 | M101: 52 | N101: 3899.28 | O101: 117.45 | P101: 269.07 | Q101: 42.36 | R101: 247.66 | S101: 32.73 | T101: 692.24 | U101: 30.14 | V101: 47684.9 | W101: 239.8 | X101: 133.57 | Y101: 18.68 | Z101: 58.82 | AA101: 7.81 | AB101: 0 | AC101: 34.85 | AD101: 67.41 | AE101: 5.05 | AF101: 0 | AG101: 18.36 | AH101: 129.12 | AI101: 2.17 | AJ101: 0 | AK101: 45.45 | AL101: 0 | AM101: 0 | AN101: 282.86 | AO101: 10.14 | AP101: 101.14 | AQ101: 3.51 | AR101: 131.45 | AS101: 3.91 | AT101: 57.57 | AU101: 7.09 | AV101: 0 | AW101: 78.05 | AX101: 21.53 | AY101: 2.58 | AZ101: 24.46 | BA101: 2.16 | BB101: 710014.42 | BC101: 1377.62 | BD101: 0 | BE101: 8331.88 | BF101: 47342.64 | BG101: 923.59 | BH101: 120374.59 | BI101: 680.17 | BJ101: 0 | BK101: 92.17 | BL101: 0 | BM101: 94.66 | BN101: 0 | BO101: 20.19 | BP101: 63259.97 | BQ101: 420.39 | BR101: 5207.28 | BS101: 64.05
A102: One Earth | B102: 4333.868504 | C102: 60 | D102: 1 | E102: 4331.9 | F102: 0 | H102: 2.4835 | I102: 11 | J102: 251.0814 | K102: 0.097 | M102: 35 | N102: 344.93 | O102: 61.99 | P102: 132.25 | Q102: 34.12 | R102: 0 | S102: 76.33 | T102: 44.84 | U102: 14.45 | V102: 670.33 | W102: 21.81 | X102: 0 | Y102: 15.62 | Z102: 0 | AA102: 21.61 | AB102: 0 | AC102: 35.94 | AD102: 284.24 | AE102: 7.74 | AF102: 0 | AG102: 19.45 | AH102: 25.92 | AI102: 1.25 | AJ102: 0 | AK102: 55.38 | AL102: 0 | AM102: 0 | AN102: 119.74 | AO102: 8.8 | AP102: 53.56 | AQ102: 2.98 | AR102: 64.75 | AS102: 3.32 | AT102: 0 | AU102: 88.88 | AV102: 0 | AW102: 99.78 | AX102: 17.32 | AY102: 2 | AZ102: 0 | BA102: 59.35 | BB102: 887173.52 | BC102: 1644.69 | BD102: 0 | BE102: 59400.96 | BF102: 3413.03 | BG102: 1699.15 | BH102: 10441.43 | BI102: 426.75 | BJ102: 0 | BK102: 664.81 | BL102: 1162.69 | BM102: 131.78 | BN102: 96051.45 | BO102: 463.04 | BP102: 0 | BQ102: 6200.73 | BR102: 0 | BS102: 784.63
A103: One Earth | B103: 4334.065354 | C103: 66 | D103: 1 | E103: 4331.9 | F103: 0 | H103: 2.7074 | I103: 20 | J103: 273.7177 | K103: 0.0155 | M103: 52 | N103: 3547 | O103: 118.18 | P103: 354.83 | Q103: 45.3 | R103: 234.48 | S103: 34.14 | T103: 693.44 | U103: 31.29 | V103: 44846 | W103: 235.43 | X103: 130.87 | Y103: 18.87 | Z103: 70.52 | AA103: 8.19 | AB103: 0 | AC103: 36.8 | AD103: 54.75 | AE103: 4.9 | AF103: 0 | AG103: 22.83 | AH103: 127.42 | AI103: 2.22 | AJ103: 0 | AK103: 46.87 | AL103: 0 | AM103: 0 | AN103: 289.23 | AO103: 10.46 | AP103: 111.29 | AQ103: 3.66 | AR103: 141.88 | AS103: 4.07 | AT103: 63.32 | AU103: 7.55 | AV103: 0 | AW103: 78.56 | AX103: 44.69 | AY103: 3.15 | AZ103: 27.7 | BA103: 2.32 | BB103: 705976 | BC103: 1420.3 | BD103: 0 | BE103: 8511.49 | BF103: 47452.81 | BG103: 940.94 | BH103: 125051.1 | BI103: 715.12 | BJ103: 0 | BK103: 110.08 | BL103: 0 | BM103: 100.96 | BN103: 0 | BO103: 20.25 | BP103: 53342.33 | BQ103: 409.29 | BR103: 17440.34 | BS103: 108.08
A104: One Earth | B104: 4334.54685 | C104: 6 | D104: 1 | E104: 4334.35 | F104: 0 | H104: 1.8015 | I104: 16 | K104: 0.3451 | M104: 50 | N104: 4198.18 | O104: 117.3 | P104: 293.88 | Q104: 41.67 | R104: 331.65 | S104: 33.43 | T104: 472.13 | U104: 25.55 | V104: 47302.52 | W104: 219.59 | X104: 138.46 | Y104: 17.8 | Z104: 87.54 | AA104: 7.98 | AB104: 0 | AC104: 33.38 | AD104: 77.55 | AE104: 4.95 | AF104: 0 | AG104: 17.3 | AH104: 140.71 | AI104: 2.1 | AJ104: 0 | AK104: 43.17 | AL104: 0 | AM104: 0 | AN104: 263.74 | AO104: 9.61 | AP104: 111.04 | AQ104: 3.33 | AR104: 134.78 | AS104: 3.66 | AT104: 50.29 | AU104: 6.51 | AV104: 0 | AW104: 73.26 | AX104: 20.17 | AY104: 2.42 | AZ104: 32.74 | BA104: 2.19 | BB104: 672256.38 | BC104: 1350.13 | BD104: 0 | BE104: 8293.08 | BF104: 54761.6 | BG104: 891.99 | BH104: 141165.4 | BI104: 692.02 | BJ104: 0 | BK104: 80.58 | BL104: 419.43 | BM104: 28.62 | BN104: 0 | BO104: 17.37 | BP104: 69380.81 | BQ104: 421.14 | BR104: 8361 | BS104: 72.42
A105: One Earth | B105: 4334.743701 | C105: 12 | D105: 1 | E105: 4334.35 | F105: 0 | H105: 2.7368 | I105: 20 | J105: 276.6904 | K105: 0.0048 | M105: 54 | N105: 3554.25 | O105: 130.87 | P105: 221.9 | Q105: 46.38 | R105: 269.26 | S105: 37.42 | T105: 419.3 | U105: 28.96 | V105: 39455.4 | W105: 243.51 | X105: 138.04 | Y105: 19.55 | Z105: 67.66 | AA105: 8.92 | AB105: 0 | AC105: 43.41 | AD105: 51.38 | AE105: 5.39 | AF105: 0 | AG105: 26.97 | AH105: 124.91 | AI105: 2.42 | AJ105: 0 | AK105: 53.45 | AL105: 0 | AM105: 0 | AN105: 279.02 | AO105: 11.76 | AP105: 110.86 | AQ105: 4.06 | AR105: 144.27 | AS105: 4.54 | AT105: 59.22 | AU105: 8.28 | AV105: 35.77 | AW105: 5.94 | AX105: 55.88 | AY105: 3.69 | AZ105: 27.15 | BA105: 2.53 | BB105: 762985.82 | BC105: 1456.01 | BD105: 0 | BE105: 16612.14 | BF105: 34332.43 | BG105: 1018.48 | BH105: 95439.22 | BI105: 694.87 | BJ105: 0 | BK105: 149.08 | BL105: 0 | BM105: 144.67 | BN105: 0 | BO105: 28.1 | BP105: 48792.25 | BQ105: 420.64 | BR105: 13436.01 | BS105: 103
A106: One Earth | B106: 4334.940551 | C106: 18 | D106: 1 | E106: 4334.35 | F106: 0 | H106: 2.6471 | I106: 20 | J106: 267.62 | K106: 0.0375 | M106: 51 | N106: 3764.56 | O106: 121.1 | P106: 216.73 | Q106: 42.45 | R106: 195.34 | S106: 32.22 | T106: 446.22 | U106: 26.58 | V106: 41972.83 | W106: 222.08 | X106: 92.39 | Y106: 17.96 | Z106: 58.83 | AA106: 7.57 | AB106: 42.46 | AC106: 7.66 | AD106: 59.83 | AE106: 4.93 | AF106: 0 | AG106: 20.01 | AH106: 134.82 | AI106: 2.22 | AJ106: 0 | AK106: 47.83 | AL106: 0 | AM106: 0 | AN106: 243.21 | AO106: 10.3 | AP106: 101.9 | AQ106: 3.54 | AR106: 133.44 | AS106: 3.94 | AT106: 45.29 | AU106: 6.95 | AV106: 0 | AW106: 79.42 | AX106: 27.07 | AY106: 2.72 | AZ106: 29.31 | BA106: 2.28 | BB106: 719491.46 | BC106: 1359.06 | BD106: 0 | BE106: 8356.6 | BF106: 38897.95 | BG106: 890.98 | BH106: 114870.15 | BI106: 670.08 | BJ106: 0 | BK106: 116.09 | BL106: 716.24 | BM106: 32.65 | BN106: 0 | BO106: 20.58 | BP106: 52730.97 | BQ106: 386.6 | BR106: 25729.01 | BS106: 137.7
A107: One Earth | B107: 4335.137402 | C107: 24 | D107: 1 | E107: 4334.35 | F107: 0 | H107: 2.5644 | I107: 12 | J107: 259.2605 | K107: 0.0675 | M107: 52 | N107: 4351.88 | O107: 132.47 | P107: 362.49 | Q107: 48.02 | R107: 328.36 | S107: 37.45 | T107: 387.39 | U107: 27.05 | V107: 48217.15 | W107: 259.5 | X107: 114.06 | Y107: 20 | Z107: 96.62 | AA107: 9.17 | AB107: 55.75 | AC107: 8.54 | AD107: 82.1 | AE107: 5.73 | AF107: 0 | AG107: 19.16 | AH107: 138.85 | AI107: 2.38 | AJ107: 0 | AK107: 49.43 | AL107: 0 | AM107: 0 | AN107: 244.03 | AO107: 10.93 | AP107: 98.16 | AQ107: 3.73 | AR107: 114.63 | AS107: 4.08 | AT107: 48.7 | AU107: 7.53 | AV107: 0 | AW107: 82.08 | AX107: 16.42 | AY107: 2.64 | AZ107: 35.19 | BA107: 2.54 | BB107: 713468.98 | BC107: 1457.94 | BD107: 0 | BE107: 11853.98 | BF107: 42050.44 | BG107: 962.26 | BH107: 115074.85 | BI107: 704.8 | BJ107: 0 | BK107: 109.01 | BL107: 961.53 | BM107: 36.17 | BN107: 0 | BO107: 21.51 | BP107: 62640.73 | BQ107: 441.02 | BR107: 11111.7 | BS107: 89.1
A108: One Earth | B108: 4335.334252 | C108: 30 | D108: 1 | E108: 4334.35 | F108: 0 | H108: 2.7016 | I108: 14 | J108: 273.1306 | K108: 0.0176 | M108: 52 | N108: 3540.76 | O108: 124.73 | P108: 216.36 | Q108: 44.35 | R108: 266.1 | S108: 35.73 | T108: 301.73 | U108: 25.09 | V108: 38866.67 | W108: 219.23 | X108: 110.45 | Y108: 18.3 | Z108: 75.14 | AA108: 8.27 | AB108: 44.23 | AC108: 8.06 | AD108: 60.95 | AE108: 5.15 | AF108: 0 | AG108: 22.67 | AH108: 128.97 | AI108: 2.28 | AJ108: 0 | AK108: 50.96 | AL108: 0 | AM108: 0 | AN108: 271.09 | AO108: 10.83 | AP108: 102.69 | AQ108: 3.7 | AR108: 129.61 | AS108: 4.1 | AT108: 43.5 | AU108: 7.23 | AV108: 0 | AW108: 81.65 | AX108: 33.57 | AY108: 2.97 | AZ108: 26 | BA108: 2.31 | BB108: 717202.09 | BC108: 1437.62 | BD108: 0 | BE108: 11584.08 | BF108: 43015.06 | BG108: 964.16 | BH108: 116845.94 | BI108: 709.48 | BJ108: 0 | BK108: 118.93 | BL108: 1119.99 | BM108: 37.92 | BN108: 0 | BO108: 20.93 | BP108: 57371.19 | BQ108: 429.3 | BR108: 20227.9 | BS108: 123.66
A109: One Earth | B109: 4335.531102 | C109: 36 | D109: 1 | E109: 4334.35 | F109: 0 | I109: 44 | J109: 28.7084 | K109: 0.8972 | M109: 47 | N109: 893.15 | O109: 94.72 | P109: 185.08 | Q109: 40.14 | R109: 147.4 | S109: 39.03 | T109: 14828.84 | U109: 185.88 | V109: 85627.56 | W109: 764.05 | X109: 0 | Y109: 131.51 | Z109: 87.83 | AA109: 11.31 | AB109: 0 | AC109: 37.21 | AD109: 0 | AE109: 24.47 | AF109: 0 | AG109: 37.52 | AH109: 40.48 | AI109: 2.04 | AJ109: 0 | AK109: 45.88 | AL109: 0 | AM109: 0 | AN109: 268.98 | AO109: 13.31 | AP109: 100.9 | AQ109: 4.55 | AR109: 136.58 | AS109: 5.08 | AT109: 0 | AU109: 98.18 | AV109: 0 | AW109: 79.74 | AX109: 177.69 | AY109: 6.75 | AZ109: 0 | BA109: 62.43 | BB109: 649276.75 | BC109: 4944.15 | BD109: 16710.7 | BE109: 7009.72 | BF109: 21298.5 | BG109: 846.4 | BH109: 70787.56 | BI109: 752.43 | BJ109: 2155.32 | BK109: 89.09 | BL109: 915.78 | BM109: 38.69 | BN109: 152.34 | BO109: 5.47 | BP109: 4558.21 | BQ109: 268.24 | BR109: 131650.36 | BS109: 1133.08
A110: One Earth | B110: 4335.727953 | C110: 42 | D110: 1 | E110: 4334.35 | F110: 0 | H110: 2.7354 | I110: 22 | J110: 276.5539 | K110: 0.0053 | M110: 51 | N110: 3290.77 | O110: 114.66 | P110: 190.27 | Q110: 41.1 | R110: 738.05 | S110: 43.67 | T110: 1339.61 | U110: 40 | V110: 34125.85 | W110: 181.08 | X110: 0 | Y110: 75.89 | Z110: 163.1 | AA110: 8.95 | AB110: 0 | AC110: 35.99 | AD110: 46.17 | AE110: 4.44 | AF110: 0 | AG110: 37.7 | AH110: 174.16 | AI110: 2.35 | AJ110: 0 | AK110: 47.42 | AL110: 0 | AM110: 0 | AN110: 261.14 | AO110: 9.89 | AP110: 100.38 | AQ110: 3.37 | AR110: 136.2 | AS110: 3.78 | AT110: 0 | AU110: 95.85 | AV110: 0 | AW110: 78.53 | AX110: 179.37 | AY110: 4.91 | AZ110: 24.81 | BA110: 2.24 | BB110: 680357.62 | BC110: 1360.79 | BD110: 0 | BE110: 8662.08 | BF110: 39567.69 | BG110: 857.7 | BH110: 145722.55 | BI110: 725.42 | BJ110: 0 | BK110: 90.77 | BL110: 712.95 | BM110: 31.81 | BN110: 0 | BO110: 16.26 | BP110: 82764.08 | BQ110: 460.14 | BR110: 10105.24 | BS110: 83.66
A111: One Earth | B111: 4335.924803 | C111: 48 | D111: 1 | E111: 4334.35 | F111: 0 | H111: 2.7295 | I111: 14 | J111: 275.9549 | K111: 0.0075 | M111: 52 | N111: 4251.55 | O111: 126.2 | P111: 294.04 | Q111: 45.04 | R111: 293.95 | S111: 34.68 | T111: 363.93 | U111: 24.83 | V111: 37087.11 | W111: 196.36 | X111: 0 | Y111: 80.32 | Z111: 109.3 | AA111: 8.19 | AB111: 44.09 | AC111: 7.79 | AD111: 67.28 | AE111: 4.98 | AF111: 0 | AG111: 33.03 | AH111: 170.04 | AI111: 2.37 | AJ111: 0 | AK111: 47.96 | AL111: 0 | AM111: 0 | AN111: 264.11 | AO111: 10.07 | AP111: 100.96 | AQ111: 3.43 | AR111: 129.94 | AS111: 3.82 | AT111: 58.06 | AU111: 7.47 | AV111: 0 | AW111: 80.5 | AX111: 133.05 | AY111: 4.39 | AZ111: 28.55 | BA111: 2.3 | BB111: 700168 | BC111: 1376.26 | BD111: 0 | BE111: 9792.61 | BF111: 47781.42 | BG111: 921.79 | BH111: 130069.13 | BI111: 702.54 | BJ111: 0 | BK111: 94.39 | BL111: 406.23 | BM111: 30.52 | BN111: 0 | BO111: 18.37 | BP111: 70081.89 | BQ111: 443.16 | BR111: 8097.39 | BS111: 76.18
A112: One Earth | B112: 4336.121654 | C112: 54 | D112: 1 | E112: 4334.35 | F112: 0 | H112: 2.6372 | I112: 18 | J112: 266.6244 | K112: 0.041 | M112: 51 | N112: 3943.44 | O112: 121.56 | P112: 358.52 | Q112: 45.55 | R112: 1370.22 | S112: 54.24 | T112: 869.02 | U112: 34.51 | V112: 34971.2 | W112: 184.05 | X112: 0 | Y112: 76.15 | Z112: 256.58 | AA112: 10.42 | AB112: 0 | AC112: 39.57 | AD112: 53.47 | AE112: 4.6 | AF112: 0 | AG112: 23.49 | AH112: 235.2 | AI112: 2.67 | AJ112: 0 | AK112: 48.11 | AL112: 0 | AM112: 0 | AN112: 260.39 | AO112: 9.86 | AP112: 104.94 | AQ112: 3.39 | AR112: 130.41 | AS112: 3.74 | AT112: 53.3 | AU112: 7.02 | AV112: 0 | AW112: 78.31 | AX112: 53.32 | AY112: 3.1 | AZ112: 24.95 | BA112: 2.12 | BB112: 686388.88 | BC112: 1350.87 | BD112: 0 | BE112: 8530.8 | BF112: 40780.46 | BG112: 859.87 | BH112: 139485.31 | BI112: 706.74 | BJ112: 0 | BK112: 89.22 | BL112: 317.35 | BM112: 28.83 | BN112: 0 | BO112: 16.29 | BP112: 81594.82 | BQ112: 456.59 | BR112: 8748.24 | BS112: 78.96
A113: One Earth | B113: 4336.318504 | C113: 60 | D113: 1 | E113: 4334.35 | F113: 0 | H113: 2.7411 | I113: 10 | J113: 277.1281 | K113: 0.0032
A114: One Earth | B114: 4336.515354 | C114: 66 | D114: 1 | E114: 4334.35 | F114: 0 | H114: 2.7498 | I114: 12 | J114: 278.0075 | K114: 0.0001
A115: One Earth | B115: 4336.712205 | C115: 72 | D115: 1 | E115: 4334.35 | F115: 0 | H115: 2.6835 | I115: 17 | J115: 271.3049 | K115: 0.0242
A116: One Earth | B116: 4336.909055 | C116: 78 | D116: 1 | E116: 4334.35 | F116: 0 | H116: 2.7108 | I116: 18 | J116: 274.0657 | K116: 0.0143
A117: One Earth | B117: 4337.19685 | C117: 6 | D117: 1 | E117: 4337 | F117: 0 | H117: 2.7422 | I117: 21 | K117: 0.0028 | M117: 52 | N117: 3894.85 | O117: 123.95 | P117: 306.59 | Q117: 45.46 | R117: 345.96 | S117: 36.99 | T117: 493.77 | U117: 28.08 | V117: 45497.16 | W117: 236.02 | X117: 150.34 | Y117: 19.21 | Z117: 76.4 | AA117: 8.43 | AB117: 0 | AC117: 38.77 | AD117: 74.38 | AE117: 5.39 | AF117: 0 | AG117: 23.03 | AH117: 123.81 | AI117: 2.19 | AJ117: 0 | AK117: 47.35 | AL117: 0 | AM117: 0 | AN117: 282.36 | AO117: 10.6 | AP117: 106.66 | AQ117: 3.63 | AR117: 135.48 | AS117: 4.03 | AT117: 54.03 | AU117: 7.41 | AV117: 0 | AW117: 82.76 | AX117: 49.76 | AY117: 3.26 | AZ117: 27.59 | BA117: 2.31 | BB117: 682585.66 | BC117: 1491.77 | BD117: 0 | BE117: 10255.5 | BF117: 55250.39 | BG117: 1036.02 | BH117: 133854.24 | BI117: 750.99 | BJ117: 0 | BK117: 90.09 | BL117: 672.51 | BM117: 35 | BN117: 0 | BO117: 20.45 | BP117: 69138.11 | BQ117: 462.72 | BR117: 6879.94 | BS117: 74.71
A118: One Earth | B118: 4337.393701 | C118: 12 | D118: 1 | E118: 4337 | F118: 0 | H118: 2.677 | I118: 18 | J118: 270.6492 | K118: 0.0266 | M118: 51 | N118: 3776.05 | O118: 116.61 | P118: 232.18 | Q118: 41.64 | R118: 348.36 | S118: 34.88 | T118: 312.71 | U118: 23.34 | V118: 43138.14 | W118: 212.78 | X118: 112.55 | Y118: 17.64 | Z118: 89.78 | AA118: 7.94 | AB118: 44.72 | AC118: 7.55 | AD118: 62.07 | AE118: 4.78 | AF118: 0 | AG118: 18.78 | AH118: 124.04 | AI118: 2.06 | AJ118: 0 | AK118: 45.3 | AL118: 0 | AM118: 0 | AN118: 277.68 | AO118: 9.94 | AP118: 104.09 | AQ118: 3.39 | AR118: 135.08 | AS118: 3.78 | AT118: 53.96 | AU118: 6.93 | AV118: 0 | AW118: 73.32 | AX118: 25.67 | AY118: 2.61 | AZ118: 33.8 | BA118: 2.28 | BB118: 673679.99 | BC118: 1418.02 | BD118: 0 | BE118: 8994.54 | BF118: 58452.28 | BG118: 986.11 | BH118: 141172.77 | BI118: 729.25 | BJ118: 0 | BK118: 83.34 | BL118: 867.97 | BM118: 34.08 | BN118: 0 | BO118: 17.83 | BP118: 71674.49 | BQ118: 448.96 | BR118: 5281.59 | BS118: 67.22
A119: One Earth | B119: 4337.590551 | C119: 18 | D119: 1 | E119: 4337 | F119: 0 | G119: 3910.182 | H119: 2.7627 | I119: 19 | J119: 10802.56 | K119: -0.0046
A120: One Earth | B120: 4337.787402 | C120: 24 | D120: 1 | E120: 4337 | F120: 0 | H120: 2.689 | I120: 16 | J120: 271.858 | K120: 0.0222
A121: One Earth | B121: 4337.984252 | C121: 30 | D121: 1 | E121: 4337 | F121: 0 | I121: 16 | J121: 130.3972 | K121: 0.5312 | M121: 56 | N121: 0 | O121: 12927.85 | P121: 0 | Q121: 242.93 | R121: 0 | S121: 254.09 | T121: 0 | U121: 31688.49 | V121: 1501.98 | W121: 85.62 | X121: 0 | Y121: 53.94 | Z121: 0 | AA121: 72.2 | AB121: 0 | AC121: 144.37 | AD121: 189.09 | AE121: 17.99 | AF121: 0 | AG121: 64.16 | AH121: 35.72 | AI121: 3.73 | AJ121: 0 | AK121: 156.8 | AL121: 0 | AM121: 0 | AN121: 0 | AO121: 1376.23 | AP121: 83.98 | AQ121: 9.16 | AR121: 124.22 | AS121: 10.51 | AT121: 0 | AU121: 321.28 | AV121: 0 | AW121: 318.67 | AX121: 42.59 | AY121: 7.31 | AZ121: 0 | BA121: 194.44 | BB121: 924772.46 | BC121: 1485.17 | BD121: 0 | BE121: 251571.36 | BF121: 0 | BG121: 21383.93 | BH121: 16468.92 | BI121: 1216.23 | BJ121: 0 | BK121: 1950.5 | BL121: 0 | BM121: 2893.76 | BN121: 56781.03 | BO121: 735.94 | BP121: 0 | BQ121: 28078.58 | BR121: 0 | BS121: 4764.88
A122: One Earth | B122: 4338.181102 | C122: 36 | D122: 1 | E122: 4337 | F122: 0 | H122: 2.5575 | I122: 14 | J122: 258.5612 | K122: 0.0701
A123: One Earth | B123: 4338.377953 | C123: 42 | D123: 1 | E123: 4337 | F123: 0 | H123: 1.6965 | I123: 9 | J123: 171.5226 | K123: 0.3833 | M123: 57 | N123: 2283.88 | O123: 234.33 | P123: 346.31 | Q123: 99.07 | R123: 0 | S123: 285.66 | T123: 557.93 | U123: 67.32 | V123: 30394.03 | W123: 486.28 | X123: 0 | Y123: 195.99 | Z123: 0 | AA123: 89.33 | AB123: 0 | AC123: 117.22 | AD123: 0 | AE123: 85.69 | AF123: 0 | AG123: 117.08 | AH123: 103.49 | AI123: 5.08 | AJ123: 0 | AK123: 132.39 | AL123: 0 | AM123: 0 | AN123: 277.86 | AO123: 27.61 | AP123: 121.16 | AQ123: 9.76 | AR123: 184.8 | AS123: 11.28 | AT123: 0 | AU123: 305.86 | AV123: 0 | AW123: 227.13 | AX123: 323.32 | AY123: 16.42 | AZ123: 0 | BA123: 201.79 | BB123: 899005.88 | BC123: 3469.07 | BD123: 0 | BE123: 115026.62 | BF123: 8865.51 | BG123: 3389.71 | BH123: 35211.81 | BI123: 1101.12 | BJ123: 0 | BK123: 841.73 | BL123: 0 | BM123: 884.51 | BN123: 0 | BO123: 189.4 | BP123: 0 | BQ123: 14247.65 | BR123: 22324.02 | BS123: 349.58
A124: One Earth | B124: 4338.574803 | C124: 48 | D124: 1 | E124: 4337 | F124: 0 | H124: 2.5941 | I124: 11 | J124: 262.2648 | K124: 0.0567
A125: One Earth | B125: 4338.771654 | C125: 54 | D125: 1 | E125: 4337 | F125: 0 | H125: 2.2361 | I125: 9 | J125: 226.0736 | K125: 0.187
A126: One Earth | B126: 4338.968504 | C126: 60 | D126: 1 | E126: 4337 | F126: 0 | H126: 2.5484 | I126: 18 | J126: 257.6499 | K126: 0.0733
A127: One Earth | B127: 4339.165354 | C127: 66 | D127: 1 | E127: 4337 | F127: 0 | I127: 13 | J127: 32.0047 | K127: 0.8853
A128: One Earth | B128: 4339.362205 | C128: 72 | D128: 1 | E128: 4337 | F128: 0 | H128: 2.5171 | I128: 16 | J128: 254.4809 | K128: 0.0847
A129: One Earth | B129: 4339.559055 | C129: 78 | D129: 1 | E129: 4337 | F129: 0 | H129: 2.7273 | I129: 9 | J129: 275.7377 | K129: 0.0082 | M129: 55 | N129: 3554.76 | O129: 148.58 | P129: 281.7 | Q129: 54.86 | R129: 260.76 | S129: 42.99 | T129: 265.02 | U129: 29.09 | V129: 39176.86 | W129: 283.01 | X129: 152.79 | Y129: 22.36 | Z129: 51.54 | AA129: 9.88 | AB129: 0 | AC129: 50.69 | AD129: 64.63 | AE129: 6.59 | AF129: 0 | AG129: 22.18 | AH129: 123.21 | AI129: 2.78 | AJ129: 0 | AK129: 61.93 | AL129: 0 | AM129: 0 | AN129: 315.45 | AO129: 13.8 | AP129: 127.09 | AQ129: 4.84 | AR129: 163.93 | AS129: 5.42 | AT129: 52.05 | AU129: 9.28 | AV129: 0 | AW129: 110.29 | AX129: 14.24 | AY129: 3.17 | AZ129: 31 | BA129: 2.99 | BB129: 779971.1 | BC129: 1688.67 | BD129: 0 | BE129: 20072.53 | BF129: 32698.06 | BG129: 1250.83 | BH129: 88400.8 | BI129: 788.31 | BJ129: 0 | BK129: 172.06 | BL129: 0 | BM129: 195.74 | BN129: 0 | BO129: 37.82 | BP129: 48342.58 | BQ129: 497.41 | BR129: 5952.43 | BS129: 83.84
A130: One Earth | B130: 4339.755906 | C130: 84 | D130: 1 | E130: 4337 | F130: 0 | H130: 2.6559 | I130: 15 | J130: 268.5194 | K130: 0.0342 | M130: 52 | N130: 3943.49 | O130: 118.13 | P130: 333.62 | Q130: 43.48 | R130: 179.5 | S130: 31.4 | T130: 647.31 | U130: 29.11 | V130: 49375.21 | W130: 250.4 | X130: 108.61 | Y130: 18.91 | Z130: 72.62 | AA130: 8.12 | AB130: 0 | AC130: 36.21 | AD130: 63.32 | AE130: 5.04 | AF130: 0 | AG130: 16.28 | AH130: 121.13 | AI130: 2.14 | AJ130: 0 | AK130: 44.78 | AL130: 0 | AM130: 0 | AN130: 269.36 | AO130: 10.41 | AP130: 105.67 | AQ130: 3.58 | AR130: 151.95 | AS130: 4.06 | AT130: 49.69 | AU130: 6.97 | AV130: 27.69 | AW130: 5.08 | AX130: 8.18 | AY130: 2.32 | AZ130: 35.01 | BA130: 2.39 | BB130: 720004.09 | BC130: 1390.1 | BD130: 0 | BE130: 9387.46 | BF130: 48293.9 | BG130: 964.21 | BH130: 112466.91 | BI130: 668.39 | BJ130: 0 | BK130: 93.19 | BL130: 0 | BM130: 98.52 | BN130: 0 | BO130: 21.13 | BP130: 60168.63 | BQ130: 412.7 | BR130: 3574.09 | BS130: 57.85
A131: One Earth | B131: 4339.952756 | C131: 90 | D131: 1 | E131: 4337 | F131: 0 | H131: 2.0543 | I131: 15 | J131: 207.6951 | K131: 0.2531
A132: One Earth | B132: 4340.18685 | C132: 6 | D132: 1 | E132: 4339.99 | F132: 0 | H132: 1.9756 | I132: 7 | K132: 0.2817 | M132: 54 | N132: 4085.02 | O132: 170.88 | P132: 203.44 | Q132: 58.78 | R132: 340.61 | S132: 49.29 | T132: 435.66 | U132: 36.56 | V132: 43527.27 | W132: 294.61 | X132: 0 | Y132: 117.15 | Z132: 67.73 | AA132: 10.6 | AB132: 0 | AC132: 52.65 | AD132: 64.57 | AE132: 6.97 | AF132: 0 | AG132: 23.25 | AH132: 111.97 | AI132: 2.78 | AJ132: 0 | AK132: 61.04 | AL132: 0 | AM132: 0 | AN132: 326.7 | AO132: 14.1 | AP132: 129.56 | AQ132: 4.93 | AR132: 170.47 | AS132: 5.53 | AT132: 67.53 | AU132: 10.23 | AV132: 0 | AW132: 115.37 | AX132: 12.35 | AY132: 3.23 | AZ132: 21.93 | BA132: 2.86 | BB132: 644210.24 | BC132: 2042.03 | BD132: 0 | BE132: 12876.51 | BF132: 68173.97 | BG132: 1417.73 | BH132: 161481.87 | BI132: 1084.26 | BJ132: 0 | BK132: 120.59 | BL132: 0 | BM132: 130.34 | BN132: 0 | BO132: 27.62 | BP132: 72037.09 | BQ132: 671.1 | BR132: 4532 | BS132: 96.39
A133: One Earth | B133: 4340.383701 | C133: 12 | D133: 1 | E133: 4339.99 | F133: 0 | H133: 2.4682 | I133: 6 | J133: 249.5349 | K133: 0.1025 | M133: 53 | N133: 3359.78 | O133: 132.8 | P133: 268.83 | Q133: 48.47 | R133: 218.27 | S133: 37.69 | T133: 564.81 | U133: 32.93 | V133: 42221.15 | W133: 263.22 | X133: 111.34 | Y133: 20.72 | Z133: 71.27 | AA133: 9.14 | AB133: 0 | AC133: 44.1 | AD133: 58.15 | AE133: 5.69 | AF133: 0 | AG133: 19.97 | AH133: 107.96 | AI133: 2.38 | AJ133: 0 | AK133: 54.4 | AL133: 0 | AM133: 0 | AN133: 254.88 | AO133: 12.05 | AP133: 107.06 | AQ133: 4.17 | AR133: 140.11 | AS133: 4.65 | AT133: 44.05 | AU133: 7.94 | AV133: 0 | AW133: 88.62 | AX133: 14.89 | AY133: 2.83 | AZ133: 26.98 | BA133: 2.58 | BB133: 747413.73 | BC133: 1556.3 | BD133: 0 | BE133: 13046.77 | BF133: 35654.05 | BG133: 1099.84 | BH133: 96819.72 | BI133: 721.77 | BJ133: 0 | BK133: 126.17 | BL133: 0 | BM133: 128.74 | BN133: 0 | BO133: 26.21 | BP133: 64603.23 | BQ133: 490.15 | BR133: 7939.73 | BS133: 86.28
A134: One Earth | B134: 4340.580551 | C134: 18 | D134: 1 | E134: 4339.99 | F134: 0 | G134: 3923.854 | H134: 2.264 | I134: 12 | J134: 8883.538 | K134: 0.1768 | M134: 54 | N134: 3290.89 | O134: 136.35 | P134: 253.15 | Q134: 49.51 | R134: 261.04 | S134: 40.17 | T134: 571.65 | U134: 34.5 | V134: 43286.03 | W134: 286.14 | X134: 119.91 | Y134: 21.83 | Z134: 81.85 | AA134: 9.98 | AB134: 0 | AC134: 45.9 | AD134: 72.06 | AE134: 6.33 | AF134: 0 | AG134: 21.9 | AH134: 119.03 | AI134: 2.6 | AJ134: 0 | AK134: 57.69 | AL134: 0 | AM134: 0 | AN134: 285.16 | AO134: 12.86 | AP134: 113.32 | AQ134: 4.45 | AR134: 134.83 | AS134: 4.9 | AT134: 46.54 | AU134: 8.47 | AV134: 0 | AW134: 90.56 | AX134: 19.96 | AY134: 3.14 | AZ134: 28.32 | BA134: 2.75 | BB134: 774021.05 | BC134: 1545.76 | BD134: 0 | BE134: 15719.08 | BF134: 25896.41 | BG134: 1084.69 | BH134: 83722.18 | BI134: 701.84 | BJ134: 0 | BK134: 157.82 | BL134: 0 | BM134: 148.42 | BN134: 0 | BO134: 29.71 | BP134: 50806.21 | BQ134: 448.82 | BR134: 16870.4 | BS134: 128.23
A135: One Earth | B135: 4340.777402 | C135: 24 | D135: 1 | E135: 4339.99 | F135: 0 | H135: 2.6284 | I135: 24 | J135: 265.7368 | K135: 0.0442 | M135: 53 | N135: 3731.28 | O135: 128.12 | P135: 221.36 | Q135: 44.73 | R135: 232.85 | S135: 35.34 | T135: 677.08 | U135: 32.71 | V135: 46583.43 | W135: 261.16 | X135: 164.46 | Y135: 20.4 | Z135: 61.86 | AA135: 8.76 | AB135: 0 | AC135: 40.02 | AD135: 80.13 | AE135: 5.9 | AF135: 0 | AG135: 22.12 | AH135: 131.11 | AI135: 2.39 | AJ135: 0 | AK135: 50.39 | AL135: 0 | AM135: 0 | AN135: 294.36 | AO135: 11.37 | AP135: 112.87 | AQ135: 3.92 | AR135: 142.35 | AS135: 4.35 | AT135: 49.37 | AU135: 7.64 | AV135: 0 | AW135: 89.01 | AX135: 28.57 | AY135: 3.02 | AZ135: 34.23 | BA135: 2.58 | BB135: 727755.53 | BC135: 1472.83 | BD135: 0 | BE135: 10775.27 | BF135: 39100.27 | BG135: 996.29 | BH135: 108775.15 | BI135: 709.79 | BJ135: 0 | BK135: 120.76 | BL135: 0 | BM135: 111.29 | BN135: 0 | BO135: 21.95 | BP135: 52825.89 | BQ135: 414.97 | BR135: 18997.82 | BS135: 120.97
A136: One Earth | B136: 4340.974252 | C136: 30 | D136: 1 | E136: 4339.99 | F136: 0 | H136: 2.4539 | I136: 15 | J136: 248.094 | K136: 0.1077 | M136: 51 | N136: 3829.89 | O136: 117.54 | P136: 278.36 | Q136: 41.98 | R136: 252.12 | S136: 32.73 | T136: 478.37 | U136: 26.44 | V136: 46513.03 | W136: 229.61 | X136: 141.04 | Y136: 18.35 | Z136: 70.43 | AA136: 7.88 | AB136: 0 | AC136: 35.52 | AD136: 64.34 | AE136: 4.94 | AF136: 0 | AG136: 15.83 | AH136: 130.33 | AI136: 2.13 | AJ136: 0 | AK136: 45.12 | AL136: 0 | AM136: 0 | AN136: 253.07 | AO136: 10.02 | AP136: 97.76 | AQ136: 3.41 | AR136: 130.35 | AS136: 3.81 | AT136: 39.55 | AU136: 6.46 | AV136: 0 | AW136: 76.94 | AX136: 8.72 | AY136: 2.24 | AZ136: 29.72 | BA136: 2.21 | BB136: 695420.28 | BC136: 1384.86 | BD136: 0 | BE136: 8103.27 | BF136: 49904.74 | BG136: 940.36 | BH136: 126576.65 | BI136: 688.97 | BJ136: 0 | BK136: 86.8 | BL136: 208.9 | BM136: 28.57 | BN136: 0 | BO136: 18.28 | BP136: 67466.88 | BQ136: 426.31 | BR136: 8105.46 | BS136: 73.55
A137: One Earth | B137: =E137+(C137*0.03280839895) -> 4341.171102 | C137: 36 | D137: 1 | E137: 4339.99 | F137: 0 | H137: 2.6953 | I137: 17 | J137: 272.4929 | K137: 0.0199 | M137: 51 | N137: 3880.54 | O137: 118.6 | P137: 296.98 | Q137: 42.68 | R137: 327.41 | S137: 34.7 | T137: 556.01 | U137: 27.97 | V137: 47165.23 | W137: 228.86 | X137: 157.52 | Y137: 18.58 | Z137: 70.35 | AA137: 7.97 | AB137: 49.23 | AC137: 7.47 | AD137: 61.91 | AE137: 4.93 | AF137: 0 | AG137: 16.79 | AH137: 122.75 | AI137: 2.08 | AJ137: 0 | AK137: 45 | AL137: 0 | AM137: 0 | AN137: 280.38 | AO137: 10.06 | AP137: 100.64 | AQ137: 3.41 | AR137: 135.91 | AS137: 3.83 | AT137: 35.77 | AU137: 6.45 | AV137: 30.46 | AW137: 5.01 | AX137: 16.31 | AY137: 2.44 | AZ137: 32.34 | BA137: 2.27 | BB137: 673969.54 | BC137: 1417.28 | BD137: 0 | BE137: 9182.09 | BF137: 55078.09 | BG137: 959.5 | BH137: 139276.33 | BI137: 721.94 | BJ137: 0 | BK137: 82.05 | BL137: 314.76 | BM137: 30.07 | BN137: 0 | BO137: 18.01 | BP137: 74460.67 | BQ137: 453.61 | BR137: 3580.85 | BS137: 62.79
A138: One Earth | B138: 4341.367953 | C138: 42 | D138: 1 | E138: 4339.99 | F138: 0 | H138: 2.6981 | I138: 10 | J138: 272.7848 | K138: 0.0189 | M138: 52 | N138: 3530.9 | O138: 131.36 | P138: 275.23 | Q138: 47.9 | R138: 315.72 | S138: 39.3 | T138: 431.07 | U138: 29.36 | V138: 40899.21 | W138: 234.38 | X138: 139.5 | Y138: 19.8 | Z138: 64.51 | AA138: 8.57 | AB138: 0 | AC138: 40.41 | AD138: 52.85 | AE138: 5.3 | AF138: 0 | AG138: 17.43 | AH138: 113.04 | AI138: 2.27 | AJ138: 0 | AK138: 51.77 | AL138: 0 | AM138: 0 | AN138: 279.17 | AO138: 11.35 | AP138: 113.88 | AQ138: 3.93 | AR138: 144.96 | AS138: 4.37 | AT138: 49 | AU138: 7.55 | AV138: 0 | AW138: 89.44 | AX138: 0 | AY138: 65.19 | AZ138: 24.83 | BA138: 2.37 | BB138: 681665.62 | BC138: 1604.65 | BD138: 0 | BE138: 11768.46 | BF138: 57092.88 | BG138: 1116.73 | BH138: 137862.45 | BI138: 819.6 | BJ138: 0 | BK138: 100.64 | BL138: 0 | BM138: 112.69 | BN138: 0 | BO138: 22.2 | BP138: 73523.99 | BQ138: 523.16 | BR138: 3421.17 | BS138: 72.12
A139: One Earth | B139: 4341.564803 | C139: 48 | D139: 1 | E139: 4339.99 | F139: 0 | H139: 2.6706 | I139: 19 | J139: 269.9965 | K139: 0.0289 | M139: 53 | N139: 3740.74 | O139: 131.81 | P139: 255.15 | Q139: 46.79 | R139: 368.93 | S139: 39.8 | T139: 371.78 | U139: 28.08 | V139: 44833 | W139: 259.98 | X139: 0 | Y139: 99.27 | Z139: 97.47 | AA139: 9.25 | AB139: 0 | AC139: 41.49 | AD139: 74.77 | AE139: 5.84 | AF139: 0 | AG139: 18.41 | AH139: 126.61 | AI139: 2.41 | AJ139: 0 | AK139: 51.46 | AL139: 0 | AM139: 0 | AN139: 283.61 | AO139: 11.61 | AP139: 117.85 | AQ139: 4.05 | AR139: 143.09 | AS139: 4.46 | AT139: 45.2 | AU139: 7.63 | AV139: 0 | AW139: 83.55 | AX139: 11.04 | AY139: 2.6 | AZ139: 26.04 | BA139: 2.44 | BB139: 727368.85 | BC139: 1528.61 | BD139: 0 | BE139: 11479.64 | BF139: 43202.06 | BG139: 1059.19 | BH139: 111694.46 | BI139: 743 | BJ139: 0 | BK139: 118.88 | BL139: 0 | BM139: 122.79 | BN139: 0 | BO139: 24.9 | BP139: 60746.09 | BQ139: 463.33 | BR139: 6493.27 | BS139: 76.12
A140: One Earth | B140: 4341.761654 | C140: 54 | D140: 1 | E140: 4339.99 | F140: 0 | H140: 2.7021 | I140: 14 | J140: 273.1838 | K140: 0.0174
A141: One Earth | B141: 4341.958504 | C141: 60 | D141: 1 | E141: 4339.99 | F141: 0 | H141: 2.7055 | I141: 19 | J141: 273.5306 | K141: 0.0162
A142: One Earth | B142: 4342.155354 | C142: 66 | D142: 1 | E142: 4339.99 | F142: 0 | H142: 2.7068 | I142: 17 | J142: 273.6642 | K142: 0.0157 | M142: 52 | N142: 3579.93 | O142: 117.55 | P142: 299.93 | Q142: 43.12 | R142: 345 | S142: 35.69 | T142: 318.4 | U142: 24.21 | V142: 43024.83 | W142: 221.77 | X142: 134.52 | Y142: 18.11 | Z142: 71.96 | AA142: 7.91 | AB142: 45.91 | AC142: 7.76 | AD142: 68.76 | AE142: 5.11 | AF142: 0 | AG142: 18.4 | AH142: 132.16 | AI142: 2.18 | AJ142: 0 | AK142: 46.75 | AL142: 0 | AM142: 0 | AN142: 257.47 | AO142: 10.21 | AP142: 99.82 | AQ142: 3.48 | AR142: 131.87 | AS142: 3.89 | AT142: 52.33 | AU142: 7.06 | AV142: 0 | AW142: 77.86 | AX142: 21.35 | AY142: 2.56 | AZ142: 29.9 | BA142: 2.27 | BB142: 703660.8 | BC142: 1394.25 | BD142: 0 | BE142: 10277.44 | BF142: 47035.75 | BG142: 945.86 | BH142: 123833.6 | BI142: 695.2 | BJ142: 0 | BK142: 103.48 | BL142: 356.68 | BM142: 30.5 | BN142: 0 | BO142: 19.05 | BP142: 65897.16 | BQ142: 429.28 | BR142: 10601.89 | BS142: 83.31
A143: One Earth | B143: 4342.352205 | C143: 72 | D143: 1 | E143: 4339.99 | F143: 0 | H143: 2.6864 | I143: 17 | J143: 271.5944 | K143: 0.0232 | M143: 51 | N143: 3736.21 | O143: 122.14 | P143: 335.26 | Q143: 44.97 | R143: 422.86 | S143: 38.67 | T143: 436.37 | U143: 27.65 | V143: 53001.28 | W143: 262.87 | X143: 197 | Y143: 20.67 | Z143: 93.71 | AA143: 9.27 | AB143: 0 | AC143: 36.63 | AD143: 61.31 | AE143: 5.16 | AF143: 0 | AG143: 19.04 | AH143: 134.7 | AI143: 2.29 | AJ143: 0 | AK143: 47.26 | AL143: 0 | AM143: 0 | AN143: 274.57 | AO143: 10.64 | AP143: 103.51 | AQ143: 3.63 | AR143: 132.34 | AS143: 4.03 | AT143: 53.84 | AU143: 7.32 | AV143: 0 | AW143: 78.05 | AX143: 21.03 | AY143: 2.72 | AZ143: 32.67 | BA143: 2.42 | BB143: 666452.97 | BC143: 1496.91 | BD143: 0 | BE143: 9642.82 | BF143: 54336.83 | BG143: 982.16 | BH143: 136384.07 | BI143: 741.36 | BJ143: 0 | BK143: 100.85 | BL143: 4332.97 | BM143: 54.86 | BN143: 0 | BO143: 18.66 | BP143: 69521.32 | BQ143: 460.15 | BR143: 9935.17 | BS143: 84.07
A144: One Earth | B144: 4342.74685 | C144: 6 | D144: 1 | E144: 4342.55 | F144: 0 | G144: 3907.157 | H144: 2.6652 | I144: 14 | K144: 0.0309 | M144: 52 | N144: 4061.84 | O144: 126.79 | P144: 282.06 | Q144: 45.76 | R144: 303.14 | S144: 35.7 | T144: 400.38 | U144: 26.52 | V144: 45284.26 | W144: 236.73 | X144: 113.67 | Y144: 18.93 | Z144: 86.01 | AA144: 8.55 | AB144: 0 | AC144: 39.95 | AD144: 74.8 | AE144: 5.38 | AF144: 0 | AG144: 19.79 | AH144: 126.01 | AI144: 2.21 | AJ144: 0 | AK144: 46.68 | AL144: 0 | AM144: 0 | AN144: 295.27 | AO144: 10.49 | AP144: 120.95 | AQ144: 3.72 | AR144: 148.92 | AS144: 4.12 | AT144: 69.09 | AU144: 7.8 | AV144: 0 | AW144: 79.88 | AX144: 24.66 | AY144: 2.74 | AZ144: 30.23 | BA144: 2.35 | BB144: 695012.18 | BC144: 1463.43 | BD144: 0 | BE144: 10631.81 | BF144: 53747.65 | BG144: 1003.15 | BH144: 127695.75 | BI144: 728.26 | BJ144: 0 | BK144: 93.49 | BL144: 0 | BM144: 100.03 | BN144: 0 | BO144: 20.68 | BP144: 64721.56 | BQ144: 449.09 | BR144: 7401.58 | BS144: 75.01
A145: One Earth | B145: 4342.943701 | C145: 12 | D145: 1 | E145: 4342.55 | F145: 0 | H145: 2.5692 | I145: 12 | J145: 259.7448 | K145: 0.0658
A146: One Earth | B146: 4343.140551 | C146: 18 | D146: 1 | E146: 4342.55 | F146: 0 | H146: 2.4898 | I146: 13 | J146: 251.7229 | K146: 0.0947
A147: One Earth | B147: 4343.337402 | C147: 24 | D147: 1 | E147: 4342.55 | F147: 0 | H147: 2.6237 | I147: 22 | J147: 265.2572 | K147: 0.046 | M147: 52 | N147: 3753.36 | O147: 124.06 | P147: 259.39 | Q147: 45.09 | R147: 387.26 | S147: 37.77 | T147: 363.04 | U147: 26.08 | V147: 42758.85 | W147: 227.86 | X147: 115.1 | Y147: 18.59 | Z147: 98.31 | AA147: 8.72 | AB147: 0 | AC147: 39.07 | AD147: 63.38 | AE147: 5.11 | AF147: 0 | AG147: 19.54 | AH147: 134.14 | AI147: 2.27 | AJ147: 0 | AK147: 49.14 | AL147: 0 | AM147: 0 | AN147: 264.04 | AO147: 10.4 | AP147: 103.83 | AQ147: 3.63 | AR147: 138.5 | AS147: 4.06 | AT147: 50.43 | AU147: 7.23 | AV147: 0 | AW147: 79.05 | AX147: 23.23 | AY147: 2.7 | AZ147: 31.36 | BA147: 2.37 | BB147: 699494.04 | BC147: 1450.62 | BD147: 0 | BE147: 10807.89 | BF147: 48430.77 | BG147: 983.8 | BH147: 126744.58 | BI147: 726.3 | BJ147: 0 | BK147: 96.25 | BL147: 0 | BM147: 100.25 | BN147: 0 | BO147: 19.91 | BP147: 69383.91 | BQ147: 458.63 | BR147: 7402.47 | BS147: 76.41
A148: One Earth | B148: 4343.534252 | C148: 30 | D148: 1 | E148: 4342.55 | F148: 0 | H148: 2.6214 | I148: 22 | J148: 265.0306 | K148: 0.0468 | M148: 52 | N148: 3860.1 | O148: 124.5 | P148: 292 | Q148: 45.73 | R148: 413.46 | S148: 38.27 | T148: 405.64 | U148: 26.78 | V148: 43183.48 | W148: 225.94 | X148: 112.2 | Y148: 18.53 | Z148: 118.24 | AA148: 9.04 | AB148: 0 | AC148: 38.45 | AD148: 64.73 | AE148: 5.12 | AF148: 0 | AG148: 33.92 | AH148: 132.85 | AI148: 2.24 | AJ148: 0 | AK148: 46.99 | AL148: 0 | AM148: 0 | AN148: 259.76 | AO148: 10.28 | AP148: 103.07 | AQ148: 3.59 | AR148: 142.17 | AS148: 4.03 | AT148: 45.58 | AU148: 7.37 | AV148: 0 | AW148: 81.65 | AX148: 135.57 | AY148: 4.63 | AZ148: 36.94 | BA148: 2.56 | BB148: 688212.38 | BC148: 1451.21 | BD148: 0 | BE148: 8230.66 | BF148: 50507.85 | BG148: 971.55 | BH148: 133074.33 | BI148: 734.79 | BJ148: 0 | BK148: 94.81 | BL148: 279 | BM148: 31.17 | BN148: 0 | BO148: 19.15 | BP148: 70230.68 | BQ148: 459.07 | BR148: 8389.99 | BS148: 79.34
A149: One Earth | B149: 4343.731102 | C149: 36 | D149: 1 | E149: 4342.55 | F149: 0 | H149: 2.7074 | I149: 17 | J149: 273.7177 | K149: 0.0155 | M149: 52 | N149: 3706.8 | O149: 123.93 | P149: 291.4 | Q149: 45.8 | R149: 300.84 | S149: 36.01 | T149: 357.61 | U149: 25.9 | V149: 42538.08 | W149: 230.93 | X149: 122.05 | Y149: 18.68 | Z149: 70.66 | AA149: 8.26 | AB149: 0 | AC149: 39.51 | AD149: 56.84 | AE149: 5.04 | AF149: 0 | AG149: 27.02 | AH149: 119.02 | AI149: 2.19 | AJ149: 0 | AK149: 48.87 | AL149: 0 | AM149: 0 | AN149: 259.8 | AO149: 10.5 | AP149: 98.79 | AQ149: 3.64 | AR149: 137.78 | AS149: 4.1 | AT149: 65.31 | AU149: 7.83 | AV149: 0 | AW149: 83.83 | AX149: 75.2 | AY149: 3.75 | AZ149: 25.05 | BA149: 2.31 | BB149: 714948.36 | BC149: 1429.64 | BD149: 0 | BE149: 11605.26 | BF149: 43281.16 | BG149: 963.05 | BH149: 118765.91 | BI149: 708.39 | BJ149: 0 | BK149: 102.8 | BL149: 300.68 | BM149: 31.43 | BN149: 0 | BO149: 20.86 | BP149: 62345.16 | BQ149: 434.84 | BR149: 12133.5 | BS149: 91.68
A150: One Earth | B150: 4343.927953 | C150: 42 | D150: 1 | E150: 4342.55 | F150: 0 | H150: 2.7045 | I150: 19 | J150: 273.4238 | K150: 0.0166 | M150: 53 | N150: 3292.39 | O150: 125.94 | P150: 222.96 | Q150: 46.18 | R150: 253.9 | S150: 36.72 | T150: 434.76 | U150: 28.9 | V150: 40281.21 | W150: 236.25 | X150: 150.92 | Y150: 19.5 | Z150: 64.9 | AA150: 8.66 | AB150: 0 | AC150: 40.1 | AD150: 64.82 | AE150: 5.48 | AF150: 0 | AG150: 21.4 | AH150: 112.83 | AI150: 2.27 | AJ150: 0 | AK150: 52.32 | AL150: 0 | AM150: 0 | AN150: 268.79 | AO150: 11.14 | AP150: 104.08 | AQ150: 3.88 | AR150: 137.85 | AS150: 4.34 | AT150: 41.52 | AU150: 7.36 | AV150: 0 | AW150: 88.05 | AX150: 27.36 | AY150: 2.97 | AZ150: 28.9 | BA150: 2.48 | BB150: 727612.74 | BC150: 1477.99 | BD150: 0 | BE150: 10363.86 | BF150: 38173.9 | BG150: 994.6 | BH150: 110113.78 | BI150: 718.13 | BJ150: 0 | BK150: 123.27 | BL150: 0 | BM150: 114.3 | BN150: 0 | BO150: 22.13 | BP150: 55905.14 | BQ150: 433.38 | BR150: 22707.23 | BS150: 138.91
A151: One Earth | B151: 4344.124803 | C151: 48 | D151: 1 | E151: 4342.55 | F151: 0 | H151: 2.7121 | I151: 10 | J151: 274.1998 | K151: 0.0138 | M151: 53 | N151: 3768.83 | O151: 126.41 | P151: 302.93 | Q151: 46.71 | R151: 273.67 | S151: 35.95 | T151: 377.5 | U151: 26.76 | V151: 44862.78 | W151: 247.88 | X151: 150.03 | Y151: 19.58 | Z151: 69.75 | AA151: 8.68 | AB151: 0 | AC151: 39.34 | AD151: 72.86 | AE151: 5.54 | AF151: 0 | AG151: 17.96 | AH151: 121.87 | AI151: 2.27 | AJ151: 0 | AK151: 49.93 | AL151: 0 | AM151: 0 | AN151: 277.58 | AO151: 10.86 | AP151: 104.96 | AQ151: 3.78 | AR151: 141 | AS151: 4.24 | AT151: 48.8 | AU151: 7.38 | AV151: 0 | AW151: 86.87 | AX151: 12.35 | AY151: 2.53 | AZ151: 31.81 | BA151: 2.45 | BB151: 726487.27 | BC151: 1439.03 | BD151: 0 | BE151: 9868.73 | BF151: 39423.85 | BG151: 968.82 | BH151: 109792.08 | BI151: 692.97 | BJ151: 0 | BK151: 105.76 | BL151: 0 | BM151: 113.29 | BN151: 0 | BO151: 21.85 | BP151: 65517.85 | BQ151: 448.15 | BR151: 8162.23 | BS151: 79.09
A152: One Earth | B152: 4344.321654 | C152: 54 | D152: 1 | E152: 4342.55 | F152: 0 | H152: 1.9533 | I152: 6 | J152: 197.4789 | K152: 0.2899 | M152: 52 | N152: 3683.28 | O152: 125.27 | P152: 277.12 | Q152: 46.12 | R152: 294.51 | S152: 36.28 | T152: 360.49 | U152: 26.21 | V152: 41736.42 | W152: 226.87 | X152: 0 | Y152: 89.89 | Z152: 79.38 | AA152: 8.25 | AB152: 0 | AC152: 38.72 | AD152: 54.85 | AE152: 4.98 | AF152: 0 | AG152: 18.15 | AH152: 123.35 | AI152: 2.22 | AJ152: 0 | AK152: 48.94 | AL152: 0 | AM152: 0 | AN152: 276.03 | AO152: 10.57 | AP152: 115.04 | AQ152: 3.74 | AR152: 142.93 | AS152: 4.14 | AT152: 47.15 | AU152: 7.16 | AV152: 0 | AW152: 80.37 | AX152: 15.19 | AY152: 2.52 | AZ152: 25.57 | BA152: 2.27 | BB152: 699349.91 | BC152: 1472.22 | BD152: 0 | BE152: 11169.05 | BF152: 49827.51 | BG152: 1001.22 | BH152: 127974.06 | BI152: 740.26 | BJ152: 0 | BK152: 95.38 | BL152: 0 | BM152: 104.01 | BN152: 0 | BO152: 20.88 | BP152: 71174.6 | BQ152: 474.42 | BR152: 4442.61 | BS152: 68.79
A153: One Earth | B153: 4344.518504 | C153: 60 | D153: 1 | E153: 4342.55 | F153: 0 | H153: 2.2044 | I153: 8 | J153: 222.8684 | K153: 0.1985 | M153: 51 | N153: 3656.61 | O153: 115.94 | P153: 219.82 | Q153: 41.49 | R153: 381.7 | S153: 35.4 | T153: 405.78 | U153: 25.46 | V153: 44588.95 | W153: 223.17 | X153: 134.17 | Y153: 18.02 | Z153: 90.02 | AA153: 8.27 | AB153: 0 | AC153: 35.97 | AD153: 70.99 | AE153: 5.04 | AF153: 0 | AG153: 24.23 | AH153: 122.99 | AI153: 2.09 | AJ153: 0 | AK153: 45.16 | AL153: 0 | AM153: 0 | AN153: 251.88 | AO153: 9.85 | AP153: 97.87 | AQ153: 3.41 | AR153: 135.17 | AS153: 3.84 | AT153: 53.99 | AU153: 7.03 | AV153: 0 | AW153: 78.69 | AX153: 65.46 | AY153: 3.4 | AZ153: 29.16 | BA153: 2.26 | BB153: 700269.76 | BC153: 1367.7 | BD153: 0 | BE153: 7863.14 | BF153: 47332.59 | BG153: 910.46 | BH153: 126842.18 | BI153: 687.88 | BJ153: 0 | BK153: 93.88 | BL153: 488.63 | BM153: 30.25 | BN153: 0 | BO153: 18.81 | BP153: 63280.39 | BQ153: 414.77 | BR153: 11481.87 | BS153: 84.07
A154: One Earth | B154: 4344.715354 | C154: 66 | D154: 1 | E154: 4342.55 | F154: 0 | H154: 2.5946 | I154: 12 | J154: 262.3141 | K154: 0.0565 | M154: 51 | N154: 570.96 | O154: 121.74 | P154: 0 | Q154: 158.77 | R154: 0 | S154: 151.22 | T154: 122.6 | U154: 31.79 | V154: 14200.2 | W154: 194.77 | X154: 146.35 | Y154: 20.01 | Z154: 0 | AA154: 53.57 | AB154: 0 | AC154: 77.18 | AD154: 296.61 | AE154: 14.59 | AF154: 0 | AG154: 38.15 | AH154: 85.22 | AI154: 3.15 | AJ154: 0 | AK154: 99.03 | AL154: 0 | AM154: 0 | AN154: 143.37 | AO154: 16.83 | AP154: 69.35 | AQ154: 5.81 | AR154: 81.17 | AS154: 6.44 | AT154: 0 | AU154: 199.81 | AV154: 0 | AW154: 194.83 | AX154: 26.6 | AY154: 4.34 | AZ154: 0 | BA154: 122.98 | BB154: 898203.4 | BC154: 1047.51 | BD154: 0 | BE154: 90999.5 | BF154: 0 | BG154: 9131.33 | BH154: 9139.09 | BI154: 628.83 | BJ154: 0 | BK154: 1019.41 | BL154: 0 | BM154: 1638.12 | BN154: 76915.07 | BO154: 656.34 | BP154: 0 | BQ154: 11194.36 | BR154: 0 | BS154: 1550.41
A155: One Earth | B155: 4346.07685 | C155: 6 | D155: 1 | E155: 4345.88 | F155: 0 | H155: 2.6516 | I155: 12 | K155: 0.0358 | M155: 51 | N155: 3866.48 | O155: 121.9 | P155: 277.08 | Q155: 43.72 | R155: 304.26 | S155: 35.55 | T155: 396.54 | U155: 25.75 | V155: 42696.65 | W155: 216.44 | X155: 119.09 | Y155: 18.04 | Z155: 86.29 | AA155: 8.11 | AB155: 43.13 | AC155: 7.65 | AD155: 70.69 | AE155: 5.13 | AF155: 0 | AG155: 16.96 | AH155: 131.07 | AI155: 2.16 | AJ155: 0 | AK155: 46.54 | AL155: 0 | AM155: 0 | AN155: 283.16 | AO155: 10.21 | AP155: 113.7 | AQ155: 3.53 | AR155: 141.63 | AS155: 3.91 | AT155: 47.69 | AU155: 6.89 | AV155: 24.85 | AW155: 4.94 | AX155: 10.92 | AY155: 2.3 | AZ155: 27.9 | BA155: 2.21 | BB155: 675333.15 | BC155: 1432.87 | BD155: 0 | BE155: 7502.58 | BF155: 55571.18 | BG155: 962.04 | BH155: 140973.34 | BI155: 736.1 | BJ155: 0 | BK155: 96.03 | BL155: 655.39 | BM155: 33.27 | BN155: 0 | BO155: 18.98 | BP155: 72683.63 | BQ155: 462.58 | BR155: 6142.17 | BS155: 71.94
A156: One Earth | B156: 4346.273701 | C156: 12 | D156: 1 | E156: 4345.88 | F156: 0 | H156: 2.7113 | I156: 12 | J156: 274.1194 | K156: 0.0141 | M156: 51 | N156: 3736.22 | O156: 121.52 | P156: 336.16 | Q156: 45.04 | R156: 286.7 | S156: 35.72 | T156: 332.93 | U156: 24.79 | V156: 43036.38 | W156: 221.67 | X156: 96.96 | Y156: 18.2 | Z156: 98.79 | AA156: 8.38 | AB156: 0 | AC156: 36.77 | AD156: 62.72 | AE156: 5.04 | AF156: 0 | AG156: 17.16 | AH156: 118.84 | AI156: 2.12 | AJ156: 0 | AK156: 46.87 | AL156: 0 | AM156: 0 | AN156: 285.12 | AO156: 10.37 | AP156: 103.09 | AQ156: 3.53 | AR156: 136.16 | AS156: 3.94 | AT156: 48.73 | AU156: 6.9 | AV156: 31.69 | AW156: 5.2 | AX156: 9.52 | AY156: 2.29 | AZ156: 27.46 | BA156: 2.22 | BB156: 684455.77 | BC156: 1434.27 | BD156: 0 | BE156: 9733.42 | BF156: 51948.39 | BG156: 957.9 | BH156: 135483.8 | BI156: 729.42 | BJ156: 0 | BK156: 91.47 | BL156: 272.68 | BM156: 30.65 | BN156: 0 | BO156: 19.3 | BP156: 71781.74 | BQ156: 459.27 | BR156: 7310.15 | BS156: 75.42
A157: One Earth | B157: 4346.470551 | C157: 18 | D157: 1 | E157: 4345.88 | F157: 0 | H157: 2.5092 | I157: 11 | J157: 253.6876 | K157: 0.0876 | M157: 51 | N157: 3858.41 | O157: 117.21 | P157: 368.3 | Q157: 43.67 | R157: 318.59 | S157: 34.92 | T157: 367.94 | U157: 24.46 | V157: 45990.55 | W157: 221.78 | X157: 112.79 | Y157: 17.97 | Z157: 86.59 | AA157: 7.95 | AB157: 0 | AC157: 33.57 | AD157: 70.73 | AE157: 4.95 | AF157: 0 | AG157: 16.34 | AH157: 128.71 | AI157: 2.09 | AJ157: 0 | AK157: 44.65 | AL157: 0 | AM157: 0 | AN157: 270.42 | AO157: 9.9 | AP157: 99.28 | AQ157: 3.36 | AR157: 141.37 | AS157: 3.8 | AT157: 47.43 | AU157: 6.55 | AV157: 0 | AW157: 75.75 | AX157: 12.57 | AY157: 2.31 | AZ157: 31.6 | BA157: 2.22 | BB157: 675328.22 | BC157: 1387.31 | BD157: 0 | BE157: 9039.82 | BF157: 55585.68 | BG157: 924.17 | BH157: 139054.22 | BI157: 706.38 | BJ157: 0 | BK157: 83.3 | BL157: 0 | BM157: 85.15 | BN157: 0 | BO157: 17.74 | BP157: 71645.49 | BQ157: 440.6 | BR157: 6481.12 | BS157: 69.47
A158: One Earth | B158: 4346.667402 | C158: 24 | D158: 1 | E158: 4345.88 | F158: 0 | I158: 2 | J158: 82.5767 | K158: 0.7033 | M158: 54 | N158: 1490.05 | O158: 168.2 | P158: 0 | Q158: 200.03 | R158: 0 | S158: 210.98 | T158: 166.46 | U158: 38.77 | V158: 22482.88 | W158: 300.1 | X158: 140.62 | Y158: 25.95 | Z158: 0 | AA158: 64.07 | AB158: 0 | AC158: 85.99 | AD158: 110.94 | AE158: 11.36 | AF158: 0 | AG158: 66.92 | AH158: 96.1 | AI158: 3.77 | AJ158: 0 | AK158: 106.69 | AL158: 0 | AM158: 0 | AN158: 339.97 | AO158: 21.05 | AP158: 129.79 | AQ158: 7.45 | AR158: 163.14 | AS158: 8.38 | AT158: 0 | AU158: 214.54 | AV158: 0 | AW158: 188.57 | AX158: 120.57 | AY158: 8.22 | AZ158: 0 | BA158: 147.61 | BB158: 907652.36 | BC158: 1114.95 | BD158: 0 | BE158: 148456.34 | BF158: 0 | BG158: 14353.8 | BH158: 9959.13 | BI158: 671.05 | BJ158: 0 | BK158: 1516.78 | BL158: 0 | BM158: 2375.42 | BN158: 57147.99 | BO158: 562.57 | BP158: 0 | BQ158: 18819.12 | BR158: 0 | BS158: 2967.03
A159: One Earth | B159: 4346.864252 | C159: 30 | D159: 1 | E159: 4345.88 | F159: 0 | H159: 2.0899 | I159: 16 | J159: 211.2943 | K159: 0.2401 | M159: 51 | N159: 3898.08 | O159: 118.23 | P159: 274.55 | Q159: 42.23 | R159: 185.7 | S159: 31.58 | T159: 401.04 | U159: 24.82 | V159: 43168.56 | W159: 215.85 | X159: 138.77 | Y159: 17.68 | Z159: 57.72 | AA159: 7.44 | AB159: 38.33 | AC159: 7.32 | AD159: 66.42 | AE159: 4.87 | AF159: 0 | AG159: 20.86 | AH159: 122.18 | AI159: 2.06 | AJ159: 0 | AK159: 45.19 | AL159: 0 | AM159: 0 | AN159: 256.57 | AO159: 9.93 | AP159: 98.7 | AQ159: 3.38 | AR159: 127.68 | AS159: 3.76 | AT159: 48.74 | AU159: 6.79 | AV159: 0 | AW159: 74.03 | AX159: 40.77 | AY159: 2.91 | AZ159: 31.04 | BA159: 2.25 | BB159: 700282.07 | BC159: 1350.78 | BD159: 0 | BE159: 9703.81 | BF159: 46554.35 | BG159: 892.68 | BH159: 127729.98 | BI159: 683.84 | BJ159: 0 | BK159: 101.92 | BL159: 368.76 | BM159: 29.16 | BN159: 0 | BO159: 18.17 | BP159: 60450.69 | BQ159: 404.45 | BR159: 15659.29 | BS159: 97.37
A160: One Earth | B160: 4347.061102 | C160: 36 | D160: 1 | E160: 4345.88 | F160: 0 | H160: 2.328 | I160: 7 | J160: 235.3629 | K160: 0.1535 | M160: 54 | N160: 1865.79 | O160: 238.78 | P160: 377.94 | Q160: 108.51 | R160: 0 | S160: 293.72 | T160: 0 | U160: 22104.04 | V160: 17533.69 | W160: 317.46 | X160: 0 | Y160: 156.98 | Z160: 73.39 | AA160: 17.65 | AB160: 0 | AC160: 137.3 | AD160: 308.14 | AE160: 21.18 | AF160: 0 | AG160: 90.57 | AH160: 76.55 | AI160: 4.41 | AJ160: 0 | AK160: 148.81 | AL160: 0 | AM160: 0 | AN160: 186.43 | AO160: 25.07 | AP160: 80.5 | AQ160: 8.56 | AR160: 99.61 | AS160: 9.49 | AT160: 0 | AU160: 320.08 | AV160: 0 | AW160: 253.26 | AX160: 123.31 | AY160: 10.41 | AZ160: 0 | BA160: 203.35 | BB160: 863599.59 | BC160: 1927.17 | BD160: 0 | BE160: 183589.82 | BF160: 0 | BG160: 14249.79 | BH160: 32934.83 | BI160: 1161.56 | BJ160: 0 | BK160: 1512.59 | BL160: 0 | BM160: 2296.1 | BN160: 82740.23 | BO160: 1000.07 | BP160: 0 | BQ160: 19067.15 | BR160: 0 | BS160: 3248.49
A161: One Earth | B161: 4347.257953 | C161: 42 | D161: 1 | E161: 4345.88 | F161: 0 | H161: 2.657 | I161: 18 | J161: 268.6226 | K161: 0.0338 | M161: 50 | N161: 3866.42 | O161: 117.12 | P161: 338.44 | Q161: 43.13 | R161: 248.75 | S161: 33.22 | T161: 470.99 | U161: 26.05 | V161: 44869.16 | W161: 216.7 | X161: 123.31 | Y161: 17.79 | Z161: 72.72 | AA161: 7.65 | AB161: 0 | AC161: 33.77 | AD161: 75.16 | AE161: 5.02 | AF161: 0 | AG161: 23.45 | AH161: 122.85 | AI161: 2.04 | AJ161: 0 | AK161: 44.56 | AL161: 0 | AM161: 0 | AN161: 275.83 | AO161: 9.86 | AP161: 105.35 | AQ161: 3.38 | AR161: 135.42 | AS161: 3.75 | AT161: 61.25 | AU161: 7.01 | AV161: 0 | AW161: 76.56 | AX161: 56.32 | AY161: 3.18 | AZ161: 32.18 | BA161: 2.26 | BB161: 674845.42 | BC161: 1378.54 | BD161: 0 | BE161: 8774.86 | BF161: 55006.47 | BG161: 912.97 | BH161: 139224.49 | BI161: 702.65 | BJ161: 0 | BK161: 84.6 | BL161: 666.78 | BM161: 31.16 | BN161: 0 | BO161: 17.15 | BP161: 70396.54 | BQ161: 435.54 | BR161: 9006.14 | BS161: 76.66
A162: One Earth | B162: 4347.454803 | C162: 48 | D162: 1 | E162: 4345.88 | F162: 0 | H162: 2.5851 | I162: 8 | J162: 261.3545 | K162: 0.06 | M162: 53 | N162: 3777.92 | O162: 131.03 | P162: 255.59 | Q162: 46.64 | R162: 331.26 | S162: 39.02 | T162: 325.29 | U162: 26.55 | V162: 41728.67 | W162: 237.45 | X162: 101.81 | Y162: 19.29 | Z162: 71.95 | AA162: 8.49 | AB162: 0 | AC162: 37.06 | AD162: 58.59 | AE162: 5.3 | AF162: 0 | AG162: 18.14 | AH162: 121.74 | AI162: 2.31 | AJ162: 0 | AK162: 50.21 | AL162: 0 | AM162: 0 | AN162: 299.64 | AO162: 11.33 | AP162: 118.91 | AQ162: 3.94 | AR162: 155.96 | AS162: 4.41 | AT162: 59.97 | AU162: 7.76 | AV162: 0 | AW162: 86.36 | AX162: 7.74 | AY162: 2.45 | AZ162: 29.25 | BA162: 2.45 | BB162: 705285.78 | BC162: 1541.77 | BD162: 0 | BE162: 13424.97 | BF162: 54609.22 | BG162: 1064.16 | BH162: 131412.14 | BI162: 793.51 | BJ162: 0 | BK162: 116.54 | BL162: 456.22 | BM162: 36.45 | BN162: 0 | BO162: 24.64 | BP162: 58467.7 | BQ162: 472.22 | BR162: 2324.67 | BS162: 62.34
A163: One Earth | B163: 4347.651654 | C163: 54 | D163: 1 | E163: 4345.88 | F163: 0 | G163: 3847.619 | H163: 2.5551 | I163: 11 | J163: 9830.952 | K163: 0.0709 | M163: 55 | N163: 3699.14 | O163: 162.24 | P163: 237.73 | Q163: 57.82 | R163: 236.21 | S163: 45.77 | T163: 363.33 | U163: 33.79 | V163: 37569.54 | W163: 277.9 | X163: 0 | Y163: 111.96 | Z163: 79.7 | AA163: 10.66 | AB163: 0 | AC163: 51.17 | AD163: 61.86 | AE163: 6.71 | AF163: 0 | AG163: 33.86 | AH163: 118.62 | AI163: 2.84 | AJ163: 0 | AK163: 63.27 | AL163: 0 | AM163: 0 | AN163: 295.72 | AO163: 14.11 | AP163: 121.63 | AQ163: 4.93 | AR163: 152.21 | AS163: 5.47 | AT163: 0 | AU163: 138.5 | AV163: 0 | AW163: 111.17 | AX163: 63.65 | AY163: 4.61 | AZ163: 25.2 | BA163: 3.01 | BB163: 735213.98 | BC163: 1842.6 | BD163: 0 | BE163: 20653.89 | BF163: 41295.12 | BG163: 1287.44 | BH163: 112830.7 | BI163: 907.76 | BJ163: 0 | BK163: 162.72 | BL163: 0 | BM163: 173.7 | BN163: 0 | BO163: 33.92 | BP163: 57353 | BQ163: 572.49 | BR163: 10282.68 | BS163: 112.25
A164: One Earth | B164: 4347.79685 | C164: 6 | D164: 1 | E164: 4347.6 | F164: 0 | H164: 2.6937 | I164: 11 | K164: 0.0205 | M164: 53 | N164: 3668.1 | O164: 126.84 | P164: 320.78 | Q164: 46.68 | R164: 290.92 | S164: 36.94 | T164: 482.73 | U164: 29.18 | V164: 43135.48 | W164: 248.41 | X164: 105.56 | Y164: 19.35 | Z164: 95.95 | AA164: 9.06 | AB164: 0 | AC164: 40.3 | AD164: 71.55 | AE164: 5.59 | AF164: 0 | AG164: 18.15 | AH164: 130.64 | AI164: 2.38 | AJ164: 0 | AK164: 50.61 | AL164: 0 | AM164: 0 | AN164: 282.23 | AO164: 11.12 | AP164: 110.8 | AQ164: 3.9 | AR164: 141.87 | AS164: 4.35 | AT164: 53.44 | AU164: 7.64 | AV164: 0 | AW164: 86.28 | AX164: 9.57 | AY164: 2.49 | AZ164: 29.99 | BA164: 2.46 | BB164: 747591.14 | BC164: 1428.01 | BD164: 0 | BE164: 14036.95 | BF164: 36759.29 | BG164: 979.03 | BH164: 99684.95 | BI164: 676.66 | BJ164: 0 | BK164: 127.91 | BL164: 0 | BM164: 123.72 | BN164: 0 | BO164: 25.37 | BP164: 57977.03 | BQ164: 433.62 | BR164: 9057.96 | BS164: 82.75
A165: One Earth | B165: 4347.993701 | C165: 12 | D165: 1 | E165: 4347.6 | F165: 0 | H165: 2.6879 | I165: 8 | J165: 271.7525 | K165: 0.0226 | M165: 52 | N165: 3026.36 | O165: 118.12 | P165: 272.29 | Q165: 44.35 | R165: 225.78 | S165: 35.04 | T165: 441.18 | U165: 28.02 | V165: 40255.65 | W165: 227.93 | X165: 95.32 | Y165: 18.6 | Z165: 74.4 | AA165: 8.22 | AB165: 0 | AC165: 40.07 | AD165: 55.66 | AE165: 5.09 | AF165: 0 | AG165: 18.56 | AH165: 115.52 | AI165: 2.21 | AJ165: 0 | AK165: 50.05 | AL165: 0 | AM165: 0 | AN165: 239.59 | AO165: 10.67 | AP165: 100.05 | AQ165: 3.72 | AR165: 127.77 | AS165: 4.13 | AT165: 45.96 | AU165: 7.24 | AV165: 0 | AW165: 84.15 | AX165: 16.28 | AY165: 2.6 | AZ165: 30.47 | BA165: 2.41 | BB165: 724194.67 | BC165: 1435.6 | BD165: 0 | BE165: 9473.3 | BF165: 38742.55 | BG165: 960.24 | BH165: 113327.2 | BI165: 705.46 | BJ165: 0 | BK165: 116.29 | BL165: 0 | BM165: 104.52 | BN165: 0 | BO165: 21.34 | BP165: 62073.68 | BQ165: 442.03 | BR165: 16539.64 | BS165: 111.41
A166: One Earth | B166: 4348.190551 | C166: 18 | D166: 1 | E166: 4347.6 | F166: 0 | H166: 2.465 | I166: 17 | J166: 249.2186 | K166: 0.1037 | M166: 53 | N166: 3670.33 | O166: 126.2 | P166: 243.1 | Q166: 44.85 | R166: 317.9 | S166: 37.13 | T166: 396.45 | U166: 27.37 | V166: 43177.57 | W166: 241.64 | X166: 156.24 | Y166: 19.43 | Z166: 52.41 | AA166: 8.21 | AB166: 0 | AC166: 38.09 | AD166: 67.36 | AE166: 5.41 | AF166: 0 | AG166: 17.9 | AH166: 126.68 | AI166: 2.31 | AJ166: 0 | AK166: 50.44 | AL166: 0 | AM166: 0 | AN166: 254.83 | AO166: 10.81 | AP166: 100.69 | AQ166: 3.76 | AR166: 135.43 | AS166: 4.21 | AT166: 40.13 | AU166: 7.07 | AV166: 0 | AW166: 86.22 | AX166: 12.29 | AY166: 2.52 | AZ166: 28.55 | BA166: 2.39 | BB166: 724782.66 | BC166: 1454.8 | BD166: 0 | BE166: 12675.72 | BF166: 41563.67 | BG166: 988.42 | BH166: 110800.06 | BI166: 701.01 | BJ166: 0 | BK166: 101.35 | BL166: 0 | BM166: 112.28 | BN166: 0 | BO166: 22.85 | BP166: 69759.02 | BQ166: 471.27 | BR166: 4314.64 | BS166: 68.3
A167: One Earth | B167: 4348.387402 | C167: 24 | D167: 1 | E167: 4347.6 | F167: 0 | H167: 2.6724 | I167: 17 | J167: 270.1789 | K167: 0.0282 | M167: 52 | N167: 4009.74 | O167: 123.19 | P167: 304.76 | Q167: 44.32 | R167: 242.59 | S167: 33.62 | T167: 408.52 | U167: 25.93 | V167: 44325.21 | W167: 229.48 | X167: 106.56 | Y167: 18.33 | Z167: 77.87 | AA167: 8.04 | AB167: 0 | AC167: 36.13 | AD167: 67.28 | AE167: 5.11 | AF167: 0 | AG167: 19.15 | AH167: 136.97 | AI167: 2.23 | AJ167: 0 | AK167: 46.54 | AL167: 0 | AM167: 0 | AN167: 266.19 | AO167: 10.18 | AP167: 107.12 | AQ167: 3.57 | AR167: 133.23 | AS167: 3.94 | AT167: 52.04 | AU167: 7.03 | AV167: 26.96 | AW167: 5.06 | AX167: 22.91 | AY167: 2.63 | AZ167: 30.43 | BA167: 2.3 | BB167: 708549.08 | BC167: 1387.6 | BD167: 0 | BE167: 8191.65 | BF167: 43825.21 | BG167: 919.55 | BH167: 120006.3 | BI167: 682.93 | BJ167: 0 | BK167: 104.29 | BL167: 658.88 | BM167: 32.18 | BN167: 0 | BO167: 20.03 | BP167: 68951.71 | BQ167: 440.41 | BR167: 7690.42 | BS167: 74.9
A168: One Earth | B168: 4348.584252 | C168: 30 | D168: 1 | E168: 4347.6 | F168: 0 | I168: 5 | J168: 102.5803 | K168: 0.6313 | M168: 54 | N168: 3433.35 | O168: 137.87 | P168: 357.19 | Q168: 52.47 | R168: 213.25 | S168: 39.21 | T168: 446.2 | U168: 31.52 | V168: 40872.27 | W168: 267.04 | X168: 132.58 | Y168: 21.15 | Z168: 60.99 | AA168: 9.28 | AB168: 0 | AC168: 47.25 | AD168: 69.57 | AE168: 6.21 | AF168: 0 | AG168: 21.82 | AH168: 128.72 | AI168: 2.62 | AJ168: 0 | AK168: 58.35 | AL168: 0 | AM168: 0 | AN168: 280.61 | AO168: 12.35 | AP168: 108.89 | AQ168: 4.33 | AR168: 136.02 | AS168: 4.8 | AT168: 0 | AU168: 118.04 | AV168: 0 | AW168: 101.32 | AX168: 19.14 | AY168: 3.05 | AZ168: 29.04 | BA168: 2.72 | BB168: 759966.26 | BC168: 1556.75 | BD168: 0 | BE168: 17679.56 | BF168: 31433.58 | BG168: 1080.16 | BH168: 92025.28 | BI168: 719.41 | BJ168: 0 | BK168: 152.27 | BL168: 0 | BM168: 153.02 | BN168: 762.92 | BO168: 9.2 | BP168: 56114.66 | BQ168: 477.2 | BR168: 13409.48 | BS168: 111.96
A169: One Earth | B169: 4348.781102 | C169: 36 | D169: 1 | E169: 4347.6 | F169: 0 | H169: 2.5334 | I169: 12 | J169: 256.1277 | K169: 0.0788 | M169: 51 | N169: 3749.31 | O169: 119.78 | P169: 282.53 | Q169: 43.32 | R169: 293.4 | S169: 34.73 | T169: 477.04 | U169: 27.17 | V169: 45158.76 | W169: 224.63 | X169: 173.79 | Y169: 18.68 | Z169: 69.26 | AA169: 8.08 | AB169: 0 | AC169: 36.63 | AD169: 60.27 | AE169: 4.9 | AF169: 0 | AG169: 16.22 | AH169: 136.92 | AI169: 2.2 | AJ169: 0 | AK169: 46.24 | AL169: 0 | AM169: 0 | AN169: 254.18 | AO169: 9.95 | AP169: 98.85 | AQ169: 3.45 | AR169: 125.64 | AS169: 3.82 | AT169: 44.07 | AU169: 6.73 | AV169: 27.4 | AW169: 4.99 | AX169: 10.79 | AY169: 2.31 | AZ169: 29.35 | BA169: 2.24 | BB169: 670177.97 | BC169: 1432.73 | BD169: 0 | BE169: 9073.09 | BF169: 55279.08 | BG169: 948.37 | BH169: 139144.46 | BI169: 723.39 | BJ169: 159.97 | BK169: 42.72 | BL169: 784.06 | BM169: 33.67 | BN169: 0 | BO169: 18.35 | BP169: 75892.61 | BQ169: 468.65 | BR169: 7570.28 | BS169: 76.81
A170: One Earth | B170: 4348.977953 | C170: 42 | D170: 1 | E170: 4347.6 | F170: 0 | H170: 2.6882 | I170: 21 | J170: 271.7789 | K170: 0.0225 | M170: 52 | N170: 6574.34 | O170: 158.38 | P170: 233.31 | Q170: 50.55 | R170: 274.57 | S170: 36.12 | T170: 406.16 | U170: 27.43 | V170: 44649.54 | W170: 248.77 | X170: 137.56 | Y170: 19.57 | Z170: 67.61 | AA170: 8.5 | AB170: 0 | AC170: 39.04 | AD170: 61.42 | AE170: 5.27 | AF170: 0 | AG170: 17.36 | AH170: 116.58 | AI170: 2.24 | AJ170: 0 | AK170: 50.17 | AL170: 0 | AM170: 0 | AN170: 258.4 | AO170: 10.85 | AP170: 105.84 | AQ170: 3.8 | AR170: 141.53 | AS170: 4.26 | AT170: 39.16 | AU170: 7.09 | AV170: 0 | AW170: 82.75 | AX170: 9.88 | AY170: 2.46 | AZ170: 28.08 | BA170: 2.38 | BB170: 729957.36 | BC170: 1443.87 | BD170: 0 | BE170: 10156.6 | BF170: 42056.98 | BG170: 981.56 | BH170: 104181.97 | BI170: 676.57 | BJ170: 0 | BK170: 93.15 | BL170: 0 | BM170: 87.92 | BN170: 0 | BO170: 18.51 | BP170: 58344.69 | BQ170: 433.55 | BR170: 12355.01 | BS170: 94.5
A171: One Earth | B171: 4349.174803 | C171: 48 | D171: 1 | E171: 4347.6 | F171: 0 | H171: 2.6359 | I171: 17 | J171: 266.4973 | K171: 0.0415 | M171: 53 | N171: 4211.96 | O171: 137.02 | P171: 189.23 | Q171: 46.35 | R171: 280.48 | S171: 37.12 | T171: 359 | U171: 27.29 | V171: 42154.47 | W171: 243.8 | X171: 142.89 | Y171: 19.71 | Z171: 77.34 | AA171: 8.87 | AB171: 0 | AC171: 39.59 | AD171: 59.54 | AE171: 5.3 | AF171: 0 | AG171: 17.75 | AH171: 118.31 | AI171: 2.31 | AJ171: 0 | AK171: 51.79 | AL171: 0 | AM171: 0 | AN171: 248.16 | AO171: 11.07 | AP171: 104.28 | AQ171: 3.88 | AR171: 137.37 | AS171: 4.33 | AT171: 53.73 | AU171: 7.65 | AV171: 0 | AW171: 79.63 | AX171: 0 | AY171: 65.94 | AZ171: 26.04 | BA171: 2.39 | BB171: 725413.83 | BC171: 1492.1 | BD171: 0 | BE171: 13023.98 | BF171: 41963.31 | BG171: 1014.68 | BH171: 110061.38 | BI171: 716.83 | BJ171: 0 | BK171: 107.52 | BL171: 0 | BM171: 113.48 | BN171: 0 | BO171: 23 | BP171: 65237.73 | BQ171: 471.51 | BR171: 9160.96 | BS171: 86.8
A172: One Earth | B172: 4349.371654 | C172: 54 | D172: 1 | E172: 4347.6 | F172: 0 | H172: 2.1924 | I172: 12 | J172: 221.6573 | K172: 0.2028 | M172: 51 | N172: 3813.56 | O172: 119.12 | P172: 292.65 | Q172: 43.01 | R172: 294.74 | S172: 34.43 | T172: 504.75 | U172: 27.47 | V172: 47978.99 | W172: 236.19 | X172: 122.9 | Y172: 18.81 | Z172: 81.9 | AA172: 8.19 | AB172: 43.51 | AC172: 7.65 | AD172: 64.98 | AE172: 5.01 | AF172: 0 | AG172: 15.43 | AH172: 125.64 | AI172: 2.13 | AJ172: 0 | AK172: 45.75 | AL172: 0 | AM172: 0 | AN172: 271.14 | AO172: 10.03 | AP172: 100.96 | AQ172: 3.47 | AR172: 132.46 | AS172: 3.87 | AT172: 47.69 | AU172: 6.88 | AV172: 25.86 | AW172: 4.96 | AX172: 0 | AY172: 59.3 | AZ172: 33.04 | BA172: 2.32 | BB172: 681664.76 | BC172: 1411.9 | BD172: 0 | BE172: 9637.09 | BF172: 51121.87 | BG172: 930.49 | BH172: 130730.12 | BI172: 698.07 | BJ172: 0 | BK172: 84.3 | BL172: 0 | BM172: 88 | BN172: 0 | BO172: 18.22 | BP172: 75694.9 | BQ172: 459.09 | BR172: 6853.58 | BS172: 73.32
A173: One Earth | B173: 4349.568504 | C173: 60 | D173: 1 | E173: 4347.6 | F173: 0 | H173: 1.5315 | I173: 6 | J173: 154.8343 | K173: 0.4433 | M173: 50 | N173: 1241.32 | O173: 119.96 | P173: 168.38 | Q173: 50.71 | R173: 191.44 | S173: 44.48 | T173: 210.51 | U173: 30.25 | V173: 21479.08 | W173: 218.43 | X173: 165.81 | Y173: 19.7 | Z173: 0 | AA173: 48.91 | AB173: 0 | AC173: 61.09 | AD173: 145.25 | AE173: 9.34 | AF173: 0 | AG173: 26.43 | AH173: 92.97 | AI173: 2.79 | AJ173: 0 | AK173: 78.45 | AL173: 0 | AM173: 0 | AN173: 304.01 | AO173: 15.19 | AP173: 112.19 | AQ173: 5.39 | AR173: 144.01 | AS173: 6.08 | AT173: 0 | AU173: 157.64 | AV173: 0 | AW173: 140.37 | AX173: 12.64 | AY173: 3.33 | AZ173: 27.59 | BA173: 3.18 | BB173: 905693.18 | BC173: 832.94 | BD173: 0 | BE173: 86441.67 | BF173: 0 | BG173: 9092.11 | BH173: 7875.64 | BI173: 481.58 | BJ173: 0 | BK173: 1020.5 | BL173: 0 | BM173: 1657.41 | BN173: 62135.97 | BO173: 453.86 | BP173: 0 | BQ173: 11369.57 | BR173: 0 | BS173: 1616.28
A174: One Earth | B174: 4349.765354 | C174: 66 | D174: 1 | E174: 4347.6 | F174: 0 | H174: 2.3031 | I174: 12 | J174: 232.8508 | K174: 0.1626 | M174: 51 | N174: 4042.39 | O174: 117.65 | P174: 259.9 | Q174: 41.3 | R174: 297.59 | S174: 33.15 | T174: 380.78 | U174: 24.47 | V174: 48664.35 | W174: 233.03 | X174: 134.49 | Y174: 18.33 | Z174: 83.6 | AA174: 8.09 | AB174: 56.05 | AC174: 7.66 | AD174: 86.6 | AE174: 5.28 | AF174: 0 | AG174: 15.08 | AH174: 127.27 | AI174: 2.09 | AJ174: 0 | AK174: 43.08 | AL174: 0 | AM174: 0 | AN174: 277.3 | AO174: 9.8 | AP174: 117.58 | AQ174: 3.48 | AR174: 151.49 | AS174: 3.87 | AT174: 45.84 | AU174: 6.7 | AV174: 0 | AW174: 74.47 | AX174: 0 | AY174: 56.58 | AZ174: 33.85 | BA174: 2.27 | BB174: 687716.59 | BC174: 1374.07 | BD174: 0 | BE174: 9541.19 | BF174: 55703.09 | BG174: 920.1 | BH174: 130281.62 | BI174: 683.64 | BJ174: 0 | BK174: 91.62 | BL174: 314.89 | BM174: 28.54 | BN174: 0 | BO174: 19.09 | BP174: 67337.55 | BQ174: 430.4 | BR174: 3887.16 | BS174: 60.63
A175: One Earth | B175: 4349.962205 | C175: 72 | D175: 1 | E175: 4347.6 | F175: 0 | H175: 2.1554 | I175: 5 | J175: 217.9126 | K175: 0.2163 | M175: 50 | N175: 3712.06 | O175: 118.22 | P175: 301.26 | Q175: 43.32 | R175: 349.5 | S175: 35.7 | T175: 482.8 | U175: 27 | V175: 43057.14 | W175: 211.34 | X175: 129.93 | Y175: 17.89 | Z175: 73.04 | AA175: 7.73 | AB175: 0 | AC175: 34.76 | AD175: 71.1 | AE175: 4.99 | AF175: 0 | AG175: 16.32 | AH175: 137.75 | AI175: 2.16 | AJ175: 0 | AK175: 45.29 | AL175: 0 | AM175: 0 | AN175: 274.92 | AO175: 9.79 | AP175: 105.62 | AQ175: 3.41 | AR175: 132.46 | AS175: 3.77 | AT175: 48.26 | AU175: 6.65 | AV175: 0 | AW175: 76.61 | AX175: 12.68 | AY175: 2.3 | AZ175: 29.96 | BA175: 2.21 | BB175: 657892.22 | BC175: 1419.6 | BD175: 0 | BE175: 8481.52 | BF175: 59432.92 | BG175: 940.54 | BH175: 146691.59 | BI175: 728.15 | BJ175: 0 | BK175: 95.31 | BL175: 782.12 | BM175: 33.31 | BN175: 0 | BO175: 17.29 | BP175: 77287.17 | BQ175: 469.52 | BR175: 8995.51 | BS175: 80.73
A176: One Earth | B176: 4350.159055 | C176: 78 | D176: 1 | E176: 4347.6 | F176: 0 | H176: 2.6866 | I176: 17 | J176: 271.6207 | K176: 0.0231 | M176: 53 | N176: 3456.03 | O176: 125.44 | P176: 227.93 | Q176: 44.85 | R176: 248.74 | S176: 35.95 | T176: 436.66 | U176: 28.42 | V176: 42045.72 | W176: 240.13 | X176: 108.96 | Y176: 19.29 | Z176: 80.12 | AA176: 8.64 | AB176: 0 | AC176: 39.83 | AD176: 53.19 | AE176: 5.11 | AF176: 0 | AG176: 20.06 | AH176: 117.83 | AI176: 2.28 | AJ176: 0 | AK176: 51.5 | AL176: 0 | AM176: 0 | AN176: 263.91 | AO176: 10.97 | AP176: 100.39 | AQ176: 3.8 | AR176: 130.04 | AS176: 4.24 | AT176: 47.45 | AU176: 7.43 | AV176: 0 | AW176: 83.07 | AX176: 19.76 | AY176: 2.76 | AZ176: 33.32 | BA176: 2.53 | BB176: 726308.74 | BC176: 1461.45 | BD176: 0 | BE176: 12679.77 | BF176: 40470.01 | BG176: 983.28 | BH176: 108535.12 | BI176: 698.83 | BJ176: 0 | BK176: 115.62 | BL176: 382.88 | BM176: 33.4 | BN176: 0 | BO176: 22.53 | BP176: 63545.21 | BQ176: 455.63 | BR176: 13387.98 | BS176: 101.08
A177: One Earth | B177: 4350.355906 | C177: 84 | D177: 1 | E177: 4347.6 | F177: 0 | H177: 2.7273 | I177: 16 | J177: 275.7377 | K177: 0.0082
A178: One Earth | B178: 4350.552756 | C178: 90 | D178: 1 | E178: 4347.6 | F178: 0 | H178: 2.1503 | I178: 9 | J178: 217.3979 | K178: 0.2182
A179: One Earth | B179: 4350.82685 | C179: 6 | D179: 1 | E179: 4350.63 | F179: 0 | H179: 2.5329 | I179: 13 | K179: 0.079 | M179: 51 | N179: 3701.74 | O179: 117.76 | P179: 246.71 | Q179: 42.58 | R179: 306.61 | S179: 34.19 | T179: 501.65 | U179: 27.16 | V179: 43441.61 | W179: 217.73 | X179: 136.43 | Y179: 17.94 | Z179: 72.54 | AA179: 7.91 | AB179: 67.16 | AC179: 7.82 | AD179: 66.69 | AE179: 4.97 | AF179: 0 | AG179: 16.68 | AH179: 129.66 | AI179: 2.13 | AJ179: 0 | AK179: 45.86 | AL179: 0 | AM179: 0 | AN179: 263.01 | AO179: 10.03 | AP179: 103.79 | AQ179: 3.44 | AR179: 137.07 | AS179: 3.84 | AT179: 34.48 | AU179: 6.5 | AV179: 25.28 | AW179: 4.86 | AX179: 12.72 | AY179: 2.32 | AZ179: 26.91 | BA179: 2.16 | BB179: 687155.25 | BC179: 1401.11 | BD179: 0 | BE179: 9412.93 | BF179: 51025.02 | BG179: 953.41 | BH179: 133463.44 | BI179: 711.56 | BJ179: 0 | BK179: 94.57 | BL179: 325.52 | BM179: 30.08 | BN179: 0 | BO179: 18.58 | BP179: 66508.44 | BQ179: 429.58 | BR179: 12248.28 | BS179: 87.96
A180: One Earth | B180: 4351.023701 | C180: 12 | D180: 1 | E180: 4350.63 | F180: 0 | H180: 2.2535 | I180: 18 | J180: 227.8286 | K180: 0.1806 | M180: 51 | N180: 4028.48 | O180: 122.29 | P180: 269.39 | Q180: 43.94 | R180: 306.56 | S180: 34.5 | T180: 585.81 | U180: 28.78 | V180: 43986.67 | W180: 224.03 | X180: 142.35 | Y180: 18.22 | Z180: 81.86 | AA180: 8.24 | AB180: 88.03 | AC180: 8.54 | AD180: 62.23 | AE180: 4.93 | AF180: 0 | AG180: 18.85 | AH180: 125.25 | AI180: 2.13 | AJ180: 0 | AK180: 45.94 | AL180: 0 | AM180: 0 | AN180: 249.4 | AO180: 10.14 | AP180: 104.88 | AQ180: 3.49 | AR180: 134.25 | AS180: 3.88 | AT180: 51.24 | AU180: 7.2 | AV180: 0 | AW180: 76.08 | AX180: 22.63 | AY180: 2.59 | AZ180: 25.29 | BA180: 2.16 | BB180: 699440.03 | BC180: 1400.14 | BD180: 0 | BE180: 9734.24 | BF180: 48574.34 | BG180: 957.38 | BH180: 124183.98 | BI180: 693.69 | BJ180: 0 | BK180: 100.68 | BL180: 510.59 | BM180: 31.29 | BN180: 0 | BO180: 19.16 | BP180: 64829.51 | BQ180: 425.12 | BR180: 12197.22 | BS180: 88.13
A181: One Earth | B181: 4351.220551 | C181: 18 | D181: 1 | E181: 4350.63 | F181: 0 | H181: 2.729 | I181: 17 | J181: 275.9005 | K181: 0.0077 | M181: 51 | N181: 3697.97 | O181: 118.06 | P181: 305.36 | Q181: 43.86 | R181: 298.17 | S181: 34.38 | T181: 556.49 | U181: 28.21 | V181: 44702.1 | W181: 223.13 | X181: 122.32 | Y181: 18.19 | Z181: 88.8 | AA181: 8.24 | AB181: 40.96 | AC181: 7.45 | AD181: 65.21 | AE181: 4.93 | AF181: 0 | AG181: 16.84 | AH181: 130.38 | AI181: 2.14 | AJ181: 0 | AK181: 45.97 | AL181: 0 | AM181: 0 | AN181: 255.36 | AO181: 10.06 | AP181: 102.04 | AQ181: 3.45 | AR181: 131.31 | AS181: 3.83 | AT181: 42.34 | AU181: 6.67 | AV181: 0 | AW181: 76.52 | AX181: 15.36 | AY181: 2.4 | AZ181: 26.72 | BA181: 2.17 | BB181: 683670.38 | BC181: 1412.74 | BD181: 0 | BE181: 9430.21 | BF181: 51937.69 | BG181: 959.93 | BH181: 131914.1 | BI181: 706.96 | BJ181: 0 | BK181: 96.12 | BL181: 555.5 | BM181: 31.58 | BN181: 0 | BO181: 18.32 | BP181: 71530.06 | BQ181: 444.9 | BR181: 9811.4 | BS181: 81.22
A182: One Earth | B182: 4351.417402 | C182: 24 | D182: 1 | E182: 4350.63 | F182: 0 | H182: 2.7161 | I182: 9 | J182: 274.6029 | K182: 0.0123 | M182: 52 | N182: 3589.93 | O182: 122.85 | P182: 271.17 | Q182: 45.24 | R182: 330.96 | S182: 36.69 | T182: 649.55 | U182: 31.24 | V182: 40869.21 | W182: 224.82 | X182: 131.02 | Y182: 18.46 | Z182: 88.84 | AA182: 8.63 | AB182: 0 | AC182: 38.79 | AD182: 62.8 | AE182: 5.17 | AF182: 0 | AG182: 17.53 | AH182: 145.42 | AI182: 2.36 | AJ182: 0 | AK182: 49.71 | AL182: 0 | AM182: 0 | AN182: 258.36 | AO182: 10.66 | AP182: 97.89 | AQ182: 3.62 | AR182: 134.07 | AS182: 4.07 | AT182: 44.88 | AU182: 7.04 | AV182: 27.27 | AW182: 5.21 | AX182: 11.1 | AY182: 2.39 | AZ182: 25.52 | BA182: 2.25 | BB182: 719510.24 | BC182: 1427.38 | BD182: 0 | BE182: 11330.82 | BF182: 41289.43 | BG182: 978.12 | BH182: 115165.88 | BI182: 699.83 | BJ182: 0 | BK182: 117.89 | BL182: 722.48 | BM182: 34.51 | BN182: 0 | BO182: 21.46 | BP182: 64842.17 | BQ182: 439.35 | BR182: 11731.8 | BS182: 90.74
A183: One Earth | B183: 4351.614252 | C183: 30 | D183: 1 | E183: 4350.63 | F183: 0 | H183: 2.7327 | I183: 24 | J183: 276.2813 | K183: 0.0063 | M183: 51 | N183: 3307.7 | O183: 114.03 | P183: 221.71 | Q183: 41.66 | R183: 288.28 | S183: 33.93 | T183: 1035.84 | U183: 35.5 | V183: 40267.99 | W183: 213.52 | X183: 122.52 | Y183: 17.58 | Z183: 92.57 | AA183: 8.27 | AB183: 0 | AC183: 35.92 | AD183: 61.93 | AE183: 4.91 | AF183: 0 | AG183: 19.55 | AH183: 172.06 | AI183: 2.42 | AJ183: 0 | AK183: 48.21 | AL183: 0 | AM183: 0 | AN183: 257.61 | AO183: 10.2 | AP183: 92.62 | AQ183: 3.44 | AR183: 130.8 | AS183: 3.88 | AT183: 64.5 | AU183: 7.25 | AV183: 25.96 | AW183: 4.93 | AX183: 24.57 | AY183: 2.62 | AZ183: 29.43 | BA183: 2.24 | BB183: 723693.51 | BC183: 1355.24 | BD183: 0 | BE183: 9236.39 | BF183: 39886.42 | BG183: 922.75 | BH183: 111589.17 | BI183: 660.28 | BJ183: 849.26 | BK183: 55.66 | BL183: 929.91 | BM183: 36.78 | BN183: 1660.52 | BO183: 10.87 | BP183: 48056.66 | BQ183: 376.45 | BR183: 27138.46 | BS183: 142.05
A184: One Earth | B184: 4351.811102 | C184: 36 | D184: 1 | E184: 4350.63 | F184: 0 | H184: 2.7058 | I184: 13 | J184: 273.5573 | K184: 0.0161
A185: One Earth | B185: 4352.007953 | C185: 42 | D185: 1 | E185: 4350.63 | F185: 0 | H185: 2.6934 | I185: 12 | J185: 272.3074 | K185: 0.0206
A186: One Earth | B186: 4352.204803 | C186: 48 | D186: 1 | E186: 4350.63 | F186: 0 | H186: 2.6929 | I186: 18 | J186: 272.2545 | K186: 0.0208 | M186: 51 | N186: 3512.27 | O186: 118.62 | P186: 300.19 | Q186: 44.56 | R186: 360.42 | S186: 36.6 | T186: 615.31 | U186: 29.88 | V186: 42277.53 | W186: 217.18 | X186: 124.77 | Y186: 18.16 | Z186: 85.01 | AA186: 8.24 | AB186: 0 | AC186: 36.6 | AD186: 53.45 | AE186: 4.77 | AF186: 0 | AG186: 16.41 | AH186: 136.57 | AI186: 2.21 | AJ186: 0 | AK186: 47.5 | AL186: 0 | AM186: 0 | AN186: 271.98 | AO186: 10.26 | AP186: 103.17 | AQ186: 3.5 | AR186: 136.33 | AS186: 3.91 | AT186: 55.66 | AU186: 7.05 | AV186: 25.47 | AW186: 4.94 | AX186: 9.52 | AY186: 2.28 | AZ186: 27.58 | BA186: 2.21 | BB186: 680746.17 | BC186: 1430.86 | BD186: 0 | BE186: 9191.4 | BF186: 49344.96 | BG186: 956.41 | BH186: 136978.69 | BI186: 730.33 | BJ186: 0 | BK186: 95.88 | BL186: 689.99 | BM186: 33.3 | BN186: 0 | BO186: 18.19 | BP186: 74010.23 | BQ186: 458.42 | BR186: 10134.73 | BS186: 84.39
A187: One Earth | B187: 4352.401654 | C187: 54 | D187: 1 | E187: 4350.63 | F187: 0 | H187: 2.3737 | I187: 13 | J187: 239.9831 | K187: 0.1369 | M187: 52 | N187: 3632.56 | O187: 119.73 | P187: 266.16 | Q187: 43.85 | R187: 360.4 | S187: 36.31 | T187: 526.92 | U187: 28.41 | V187: 43346.81 | W187: 226.12 | X187: 136.81 | Y187: 18.41 | Z187: 87.67 | AA187: 8.47 | AB187: 0 | AC187: 35.18 | AD187: 63.12 | AE187: 5.02 | AF187: 0 | AG187: 16.48 | AH187: 123.22 | AI187: 2.15 | AJ187: 0 | AK187: 46.91 | AL187: 0 | AM187: 0 | AN187: 282.45 | AO187: 10.42 | AP187: 105.3 | AQ187: 3.56 | AR187: 136.99 | AS187: 3.97 | AT187: 47.13 | AU187: 6.81 | AV187: 0 | AW187: 81.37 | AX187: 8.24 | AY187: 2.27 | AZ187: 29.42 | BA187: 2.26 | BB187: 703151.92 | BC187: 1419.08 | BD187: 0 | BE187: 8669.4 | BF187: 48684.92 | BG187: 971.2 | BH187: 122366.06 | BI187: 699.45 | BJ187: 0 | BK187: 104.38 | BL187: 723.78 | BM187: 33.45 | BN187: 0 | BO187: 20.61 | BP187: 66381.78 | BQ187: 439 | BR187: 9538.33 | BS187: 80.99
A188: One Earth | B188: 4352.598504 | C188: 60 | D188: 1 | E188: 4350.63 | F188: 0 | H188: 2.7161 | I188: 16 | J188: 274.6029 | K188: 0.0123 | M188: 50 | N188: 3401.81 | O188: 128.78 | P188: 347.13 | Q188: 49.37 | R188: 623.08 | S188: 46.37 | T188: 2703.88 | U188: 62.11 | V188: 43878.52 | W188: 366.92 | X188: 138.92 | Y188: 20.46 | Z188: 162.5 | AA188: 10.7 | AB188: 0 | AC188: 40.87 | AD188: 56.54 | AE188: 5.28 | AF188: 0 | AG188: 20.84 | AH188: 158.68 | AI188: 2.75 | AJ188: 0 | AK188: 52.53 | AL188: 0 | AM188: 0 | AN188: 272.09 | AO188: 11.32 | AP188: 101.66 | AQ188: 3.86 | AR188: 124.11 | AS188: 4.26 | AT188: 58.94 | AU188: 7.91 | AV188: 0 | AW188: 84.62 | AX188: 21.2 | AY188: 2.81 | AZ188: 25.2 | BA188: 2.38 | BB188: 684922.84 | BC188: 4536.97 | BD188: 13063.23 | BE188: 6166.86 | BF188: 36666.79 | BG188: 971.78 | BH188: 101802.69 | BI188: 911.26 | BJ188: 2070.83 | BK188: 76.56 | BL188: 1332.25 | BM188: 40.22 | BN188: 0 | BO188: 17.63 | BP188: 44196.24 | BQ188: 466.93 | BR188: 63870.89 | BS188: 497.79
A189: One Earth | B189: 4352.795354 | C189: 66 | D189: 1 | E189: 4350.63 | F189: 0 | I189: 11 | J189: 31.5814 | K189: 0.8868
A190: One Earth | B190: 4353.06685 | C190: 6 | D190: 1 | E190: 4352.87 | F190: 0 | H190: 2.7346 | I190: 15 | K190: 0.0056 | M190: 52 | N190: 3379.29 | O190: 116.59 | P190: 217.78 | Q190: 42.1 | R190: 238.66 | S190: 33.9 | T190: 1174.21 | U190: 38.1 | V190: 47003.89 | W190: 250.09 | X190: 119.17 | Y190: 19.23 | Z190: 81.05 | AA190: 8.58 | AB190: 48.72 | AC190: 8.17 | AD190: 60.62 | AE190: 5.13 | AF190: 0 | AG190: 18.17 | AH190: 121.2 | AI190: 2.2 | AJ190: 0 | AK190: 46.95 | AL190: 0 | AM190: 0 | AN190: 274.76 | AO190: 10.72 | AP190: 107.81 | AQ190: 3.69 | AR190: 141.04 | AS190: 4.12 | AT190: 53.11 | AU190: 7.39 | AV190: 28.12 | AW190: 5.23 | AX190: 15.84 | AY190: 2.57 | AZ190: 32.91 | BA190: 2.42 | BB190: 734864.21 | BC190: 1361.83 | BD190: 0 | BE190: 11694.78 | BF190: 33852.11 | BG190: 896.6 | BH190: 103172.01 | BI190: 648.16 | BJ190: 0 | BK190: 133.25 | BL190: 314.58 | BM190: 29.77 | BN190: 0 | BO190: 20.49 | BP190: 49638.69 | BQ190: 372.26 | BR190: 25060.22 | BS190: 138.02
A191: One Earth | B191: 4353.263701 | C191: 12 | D191: 1 | E191: 4352.87 | F191: 0 | H191: 2.7209 | I191: 16 | J191: 275.0881 | K191: 0.0106 | M191: 54 | N191: 2961.27 | O191: 137.01 | P191: 254.24 | Q191: 51.99 | R191: 147.13 | S191: 38.91 | T191: 694.82 | U191: 38.04 | V191: 39230.05 | W191: 272.99 | X191: 141.14 | Y191: 21.82 | Z191: 41.44 | AA191: 9.27 | AB191: 0 | AC191: 49.05 | AD191: 61.86 | AE191: 6.29 | AF191: 0 | AG191: 21.16 | AH191: 107.9 | AI191: 2.57 | AJ191: 0 | AK191: 60.34 | AL191: 0 | AM191: 0 | AN191: 251.38 | AO191: 13.06 | AP191: 112.88 | AQ191: 4.56 | AR191: 142.2 | AS191: 5.06 | AT191: 51.7 | AU191: 8.89 | AV191: 0 | AW191: 108.61 | AX191: 9.47 | AY191: 2.88 | AZ191: 24.89 | BA191: 2.72 | BB191: 773331.97 | BC191: 1589.26 | BD191: 0 | BE191: 18802.03 | BF191: 25799.48 | BG191: 1115.71 | BH191: 84241.75 | BI191: 722.02 | BJ191: 0 | BK191: 176.91 | BL191: 0 | BM191: 167.63 | BN191: 0 | BO191: 31.2 | BP191: 52526.68 | BQ191: 473.82 | BR191: 19867.72 | BS191: 148.03
A192: One Earth | B192: 4353.460551 | C192: 18 | D192: 1 | E192: 4352.87 | F192: 0 | H192: 2.7129 | I192: 19 | J192: 274.2803 | K192: 0.0135 | M192: 52 | N192: 3693.5 | O192: 120.79 | P192: 331.55 | Q192: 45.43 | R192: 270.28 | S192: 35.24 | T192: 792.14 | U192: 32.7 | V192: 45384.22 | W192: 235.73 | X192: 183.66 | Y192: 19.12 | Z192: 62.43 | AA192: 8.31 | AB192: 0 | AC192: 36.6 | AD192: 62.11 | AE192: 5.06 | AF192: 0 | AG192: 16.01 | AH192: 125.58 | AI192: 2.19 | AJ192: 0 | AK192: 47.74 | AL192: 0 | AM192: 0 | AN192: 254.85 | AO192: 10.44 | AP192: 101.34 | AQ192: 3.57 | AR192: 129.68 | AS192: 3.96 | AT192: 50.62 | AU192: 7.04 | AV192: 25.7 | AW192: 5.07 | AX192: 8.17 | AY192: 2.31 | AZ192: 28.75 | BA192: 2.28 | BB192: 702962.74 | BC192: 1418.44 | BD192: 0 | BE192: 10464.96 | BF192: 45791.23 | BG192: 951.29 | BH192: 119605.68 | BI192: 689.68 | BJ192: 0 | BK192: 108.89 | BL192: 278.42 | BM192: 30.1 | BN192: 0 | BO192: 19.3 | BP192: 64946.95 | BQ192: 430.47 | BR192: 14910.4 | BS192: 99.45
A193: One Earth | B193: 4353.657402 | C193: 24 | D193: 1 | E193: 4352.87 | F193: 0 | H193: 2.6337 | I193: 18 | J193: 266.2687 | K193: 0.0423 | M193: 52 | N193: 3581.37 | O193: 116.77 | P193: 376.28 | Q193: 45.07 | R193: 223.74 | S193: 33.4 | T193: 479.43 | U193: 26.78 | V193: 43188.64 | W193: 221.66 | X193: 138.31 | Y193: 18.03 | Z193: 64.7 | AA193: 7.84 | AB193: 0 | AC193: 36.08 | AD193: 56.45 | AE193: 4.78 | AF193: 0 | AG193: 15.98 | AH193: 128.3 | AI193: 2.14 | AJ193: 0 | AK193: 46.48 | AL193: 0 | AM193: 0 | AN193: 268.94 | AO193: 10.19 | AP193: 99.47 | AQ193: 3.47 | AR193: 132.29 | AS193: 3.87 | AT193: 49.88 | AU193: 6.81 | AV193: 0 | AW193: 78.76 | AX193: 6.61 | AY193: 2.18 | AZ193: 28.8 | BA193: 2.22 | BB193: 707594.36 | BC193: 1376.16 | BD193: 0 | BE193: 10189.53 | BF193: 44790.98 | BG193: 926.95 | BH193: 123317.56 | BI193: 689.55 | BJ193: 0 | BK193: 103.12 | BL193: 309.23 | BM193: 29.55 | BN193: 0 | BO193: 19.12 | BP193: 64008.52 | BQ193: 418.72 | BR193: 11156.14 | BS193: 84.09
A194: One Earth | B194: 4353.854252 | C194: 30 | D194: 1 | E194: 4352.87 | F194: 0 | H194: 2.7068 | I194: 15 | J194: 273.6642 | K194: 0.0157 | M194: 49 | N194: 2622.35 | O194: 109.68 | P194: 242.12 | Q194: 42.59 | R194: 330.18 | S194: 37.65 | T194: 3811.1 | U194: 66.26 | V194: 44003.66 | W194: 231.03 | X194: 0 | Y194: 90.86 | Z194: 74.03 | AA194: 8.14 | AB194: 0 | AC194: 35.38 | AD194: 35.87 | AE194: 4.44 | AF194: 0 | AG194: 17.11 | AH194: 193.15 | AI194: 2.63 | AJ194: 0 | AK194: 49.43 | AL194: 0 | AM194: 0 | AN194: 239.78 | AO194: 10.47 | AP194: 97.45 | AQ194: 3.57 | AR194: 125.96 | AS194: 3.96 | AT194: 35.43 | AU194: 6.65 | AV194: 0 | AW194: 77.02 | AX194: 6.9 | AY194: 2.27 | AZ194: 22.69 | BA194: 2.17 | BB194: 684951.57 | BC194: 1417.79 | BD194: 0 | BE194: 7116.8 | BF194: 35249.36 | BG194: 869.64 | BH194: 109836.16 | BI194: 641.01 | BJ194: 2075.99 | BK194: 70.43 | BL194: 796.32 | BM194: 33.23 | BN194: 0 | BO194: 14.83 | BP194: 49944.88 | BQ194: 368.57 | BR194: 65305.06 | BS194: 287.07
A195: One Earth | B195: 4354.051102 | C195: 36 | D195: 1 | E195: 4352.87 | F195: 0 | H195: 2.518 | I195: 14 | J195: 254.5745 | K195: 0.0844 | M195: 52 | N195: 3619.46 | O195: 118.09 | P195: 227.05 | Q195: 42.44 | R195: 277.32 | S195: 34.28 | T195: 385.83 | U195: 25.38 | V195: 43315.88 | W195: 224.94 | X195: 114.18 | Y195: 18.07 | Z195: 80.25 | AA195: 8.14 | AB195: 40.68 | AC195: 7.56 | AD195: 58.84 | AE195: 4.91 | AF195: 0 | AG195: 16.08 | AH195: 115.26 | AI195: 2.08 | AJ195: 0 | AK195: 46.31 | AL195: 0 | AM195: 0 | AN195: 283.86 | AO195: 10.35 | AP195: 106.91 | AQ195: 3.55 | AR195: 134.16 | AS195: 3.93 | AT195: 42.72 | AU195: 6.75 | AV195: 27.71 | AW195: 5.03 | AX195: 8.29 | AY195: 2.24 | AZ195: 27.72 | BA195: 2.22 | BB195: 711597.2 | BC195: 1390.56 | BD195: 0 | BE195: 10717.86 | BF195: 46610.52 | BG195: 950.1 | BH195: 119787.27 | BI195: 686.68 | BJ195: 0 | BK195: 97.18 | BL195: 370.13 | BM195: 30.39 | BN195: 0 | BO195: 20.37 | BP195: 66061.94 | BQ195: 432.3 | BR195: 6706.83 | BS195: 70.58
A196: One Earth | B196: 4354.247953 | C196: 42 | D196: 1 | E196: 4352.87 | F196: 0 | H196: 1.9981 | I196: 10 | J196: 202.0064 | K196: 0.2736 | M196: 56 | N196: 3398.61 | O196: 163.67 | P196: 0 | Q196: 163.76 | R196: 246.12 | S196: 46.96 | T196: 370.12 | U196: 35.47 | V196: 36750.95 | W196: 303.55 | X196: 0 | Y196: 119.8 | Z196: 49.39 | AA196: 10.44 | AB196: 0 | AC196: 58.03 | AD196: 55.87 | AE196: 6.97 | AF196: 0 | AG196: 23.27 | AH196: 108.28 | AI196: 2.95 | AJ196: 0 | AK196: 70.39 | AL196: 0 | AM196: 0 | AN196: 281.51 | AO196: 15.19 | AP196: 111.21 | AQ196: 5.26 | AR196: 139.55 | AS196: 5.84 | AT196: 0 | AU196: 144.49 | AV196: 0 | AW196: 119.39 | AX196: 0 | AY196: 93.54 | AZ196: 32.42 | BA196: 3.35 | BB196: 807211.43 | BC196: 1765.15 | BD196: 0 | BE196: 29570.21 | BF196: 20123.01 | BG196: 1334.95 | BH196: 69088.58 | BI196: 757.52 | BJ196: 0 | BK196: 206.8 | BL196: 0 | BM196: 227.12 | BN196: 0 | BO196: 45.98 | BP196: 56704.97 | BQ196: 575.92 | BR196: 5327.98 | BS196: 92.2
A197: One Earth | B197: 4354.444803 | C197: 48 | D197: 1 | E197: 4352.87 | F197: 0 | I197: 8 | J197: 129.9481 | K197: 0.5329 | M197: 48 | N197: 3239.16 | O197: 113.19 | P197: 261.75 | Q197: 42.12 | R197: 269.54 | S197: 33.79 | T197: 360.4 | U197: 24.67 | V197: 38886.73 | W197: 214.83 | X197: 129.99 | Y197: 17.27 | Z197: 52.16 | AA197: 7.56 | AB197: 0 | AC197: 37.84 | AD197: 77.3 | AE197: 5.24 | AF197: 0 | AG197: 16.13 | AH197: 103.4 | AI197: 2.02 | AJ197: 0 | AK197: 47.11 | AL197: 0 | AM197: 0 | AN197: 267.09 | AO197: 10.38 | AP197: 103.36 | AQ197: 3.56 | AR197: 138.44 | AS197: 4 | AT197: 51.5 | AU197: 6.94 | AV197: 0 | AW197: 77.27 | AX197: 0 | AY197: 61.5 | AZ197: 28.88 | BA197: 2.23 | BB197: 738325.47 | BC197: 1492.4 | BD197: 0 | BE197: 17339.82 | BF197: 51029.25 | BG197: 1153.93 | BH197: 122483.4 | BI197: 767.62 | BJ197: 0 | BK197: 211.81 | BL197: 0 | BM197: 301.29 | BN197: 17536.18 | BO197: 78.58 | BP197: 23786.7 | BQ197: 451.75 | BR197: 2869.3 | BS197: 64.23
A198: One Earth | B198: 4354.641654 | C198: 54 | D198: 1 | E198: 4352.87 | F198: 0 | H198: 2.5264 | I198: 18 | J198: 255.4197 | K198: 0.0814 | M198: 53 | N198: 3605.24 | O198: 132.72 | P198: 182.76 | Q198: 46.72 | R198: 234.59 | S198: 37.33 | T198: 411.25 | U198: 29.06 | V198: 43237.01 | W198: 255.34 | X198: 122.11 | Y198: 20.36 | Z198: 69.24 | AA198: 8.98 | AB198: 0 | AC198: 41.88 | AD198: 69.36 | AE198: 5.75 | AF198: 0 | AG198: 18.49 | AH198: 107.23 | AI198: 2.3 | AJ198: 0 | AK198: 52.35 | AL198: 0 | AM198: 0 | AN198: 268.43 | AO198: 11.66 | AP198: 109.26 | AQ198: 4.03 | AR198: 140.44 | AS198: 4.48 | AT198: 46.69 | AU198: 7.73 | AV198: 0 | AW198: 88.43 | AX198: 8.17 | AY198: 2.55 | AZ198: 29.55 | BA198: 2.54 | BB198: 722537.68 | BC198: 1549.71 | BD198: 0 | BE198: 13831.22 | BF198: 42756.25 | BG198: 1066.34 | BH198: 110925.34 | BI198: 742.03 | BJ198: 0 | BK198: 115.69 | BL198: 652.7 | BM198: 37.87 | BN198: 0 | BO198: 24.11 | BP198: 67221.66 | BQ198: 490.19 | BR198: 7265.06 | BS198: 81.97
A199: One Earth | B199: 4354.838504 | C199: 60 | D199: 1 | E199: 4352.87 | F199: 0 | H199: 2.5088 | I199: 25 | J199: 253.6411 | K199: 0.0878
A200: One Earth | B200: 4355.035354 | C200: 66 | D200: 1 | E200: 4352.87 | F200: 0 | H200: 2.4778 | I200: 12 | J200: 250.511 | K200: 0.099
... 825 more rows

Sheet Vanta XRF
A1: Instrument Serial Num | B1: Reading # | C1: Depth | D1: Date | E1: Time | F1: Method Name | G1: User Factor Name | H1: Test Label | I1: Collimation Status | J1: Latitude | K1: Longitude | L1: Units | M1: Concentration | N1: Error1s | O1: Mg Concentration | P1: Mg Error1s | Q1: Al Concentration | R1: Al Error1s | S1: Si Concentration | T1: Si Error1s | U1: P Concentration | V1: P Error1s | W1: S Concentration | X1: S Error1s | Y1: K Concentration | Z1: K Error1s | AA1: Ca Concentration | AB1: Ca Error1s | AC1: Ti Concentration | AD1: Ti Error1s | AE1: V Concentration | AF1: V Error1s | AG1: Cr Concentration | AH1: Cr Error1s | AI1: Mn Concentration | AJ1: Mn Error1s | AK1: Fe Concentration | AL1: Fe Error1s | AM1: Co Concentration | AN1: Co Error1s | AO1: Ni Concentration | AP1: Ni Error1s | AQ1: Cu Concentration | AR1: Cu Error1s | AS1: Zn Concentration | AT1: Zn Error1s | AU1: As Concentration | AV1: As Error1s | AW1: Se Concentration | AX1: Se Error1s | AY1: Rb Concentration | AZ1: Rb Error1s | BA1: Sr Concentration | BB1: Sr Error1s | BC1: Y Concentration | BD1: Y Error1s | BE1: Zr Concentration | BF1: Zr Error1s | BG1: Nb Concentration | BH1: Nb Error1s | BI1: Mo Concentration | BJ1: Mo Error1s | BK1: Ag Concentration | BL1: Ag Error1s | BM1: Cd Concentration | BN1: Cd Error1s | BO1: Sn Concentration | BP1: Sn Error1s | BQ1: Sb Concentration | BR1: Sb Error1s | BS1: Ba Concentration | BT1: Ba Error1s | BU1: La Concentration | BV1: La Error1s | BW1: Ce Concentration | BX1: Ce Error1s | BY1: Pr Concentration | BZ1: Pr Error1s | CA1: Nd Concentration | CB1: Nd Error1s | CC1: W Concentration | CD1: W Error1s | CE1: Hg Concentration | CF1: Hg Error1s | CG1: Pb Concentration | CH1: Pb Error1s | CI1: Bi Concentration | CJ1: Bi Error1s | CK1: Th Concentration | CL1: Th Error1s | CM1: U Concentration | CN1: U Error1s | CO1: LE Concentration | CP1: LE Error1s | CQ1: Real Time 1 | CR1: Real Time 2 | CS1: Real Time 3
A2: 842781 | B2: 2 | C2: 6341 | D2: 2021-12-16 | E2: 08:26:34 | F2: Geochem(3-Beam) | H2: 2 | I2: No | L2: PPM | M2: <LOD | N2: 0 | O2: 7547 | P2: 742 | Q2: 61708 | R2: 308 | S2: 341079 | T2: 545 | U2: 542 | V2: 20 | W2: 415 | X2: 24 | Y2: 49103 | Z2: 111 | AA2: 1798 | AB2: 22 | AC2: 2003 | AD2: 76 | AE2: <LOD | AF2: 76 | AG2: <LOD | AH2: 40 | AI2: 32 | AJ2: 8 | AK2: 6175 | AL2: 28 | AM2: <LOD | AN2: 34 | AO2: 14 | AP2: 2 | AQ2: 6 | AR2: 2 | AS2: 4 | AT2: 1 | AU2: <LOD | AV2: 3 | AW2: <LOD | AX2: 2 | AY2: 157 | AZ2: 1 | BA2: 98 | BB2: 1 | BC2: 19 | BD2: 1 | BE2: 339 | BF2: 1 | BG2: 4 | BH2: 1 | BI2: 8 | BJ2: 1 | BK2: <LOD | BL2: 52 | BM2: <LOD | BN2: 21 | BO2: 17 | BP2: 5 | BQ2: 24 | BR2: 7 | BS2: 814 | BT2: 13 | BU2: <LOD | BV2: 1324 | BW2: 129 | BX2: 27 | BY2: <LOD | BZ2: 2531 | CA2: <LOD | CB2: 3441 | CC2: <LOD | CD2: 11 | CE2: 4 | CF2: 1 | CG2: 12 | CH2: 1 | CI2: <LOD | CJ2: 41 | CK2: 29 | CL2: 2 | CM2: 6 | CN2: 1 | CO2: 527914 | CP2: 648 | CQ2: 40 | CR2: 40 | CS2: 40
A3: 842781 | B3: 4 | C3: 6342 | D3: 2021-12-16 | E3: 08:34:46 | F3: Geochem(3-Beam) | H3: 4 | I3: No | L3: PPM | M3: <LOD | N3: 0 | O3: 2779 | P3: 658 | Q3: 35721 | R3: 242 | S3: 399066 | T3: 549 | U3: 304 | V3: 18 | W3: 519 | X3: 24 | Y3: 37973 | Z3: 86 | AA3: 1963 | AB3: 20 | AC3: 277 | AD3: 65 | AE3: <LOD | AF3: 65 | AG3: <LOD | AH3: 38 | AI3: <LOD | AJ3: 271 | AK3: 1660 | AL3: 14 | AM3: <LOD | AN3: 21 | AO3: 8 | AP3: 2 | AQ3: 7 | AR3: 2 | AS3: <LOD | AT3: 6 | AU3: <LOD | AV3: 3 | AW3: <LOD | AX3: 2 | AY3: 96 | AZ3: 1 | BA3: 51 | BB3: 1 | BC3: 17 | BD3: 1 | BE3: 66 | BF3: 1 | BG3: <LOD | BH3: 4 | BI3: 6 | BJ3: 1 | BK3: <LOD | BL3: 52 | BM3: <LOD | BN3: 21 | BO3: <LOD | BP3: 30 | BQ3: <LOD | BR3: 42 | BS3: 498 | BT3: 12 | BU3: <LOD | BV3: 1299 | BW3: <LOD | BX3: 1695 | BY3: <LOD | BZ3: 2506 | CA3: <LOD | CB3: 3379 | CC3: <LOD | CD3: 10 | CE3: 4 | CF3: 1 | CG3: 8 | CH3: 1 | CI3: <LOD | CJ3: 40 | CK3: 26 | CL3: 2 | CM3: 8 | CN3: 1 | CO3: 518944 | CP3: 601 | CQ3: 40 | CR3: 40 | CS3: 40
A4: 842781 | B4: 5 | C4: 6343 | D4: 2021-12-16 | E4: 08:37:46 | F4: Geochem(3-Beam) | H4: 5 | I4: No | L4: PPM | M4: <LOD | N4: 0 | O4: 5585 | P4: 666 | Q4: 35267 | R4: 237 | S4: 387096 | T4: 541 | U4: 446 | V4: 19 | W4: 1076 | X4: 25 | Y4: 26837 | Z4: 66 | AA4: 3282 | AB4: 21 | AC4: 494 | AD4: 63 | AE4: <LOD | AF4: 61 | AG4: <LOD | AH4: 35 | AI4: 26 | AJ4: 7 | AK4: 2146 | AL4: 15 | AM4: <LOD | AN4: 22 | AO4: 19 | AP4: 2 | AQ4: 51 | AR4: 2 | AS4: <LOD | AT4: 6 | AU4: <LOD | AV4: 3 | AW4: <LOD | AX4: 2 | AY4: 79 | AZ4: 1 | BA4: 47 | BB4: 1 | BC4: 13 | BD4: 1 | BE4: 94 | BF4: 1 | BG4: <LOD | BH4: 4 | BI4: 4 | BJ4: 1 | BK4: <LOD | BL4: 51 | BM4: <LOD | BN4: 21 | BO4: 17 | BP4: 5 | BQ4: <LOD | BR4: 40 | BS4: 383 | BT4: 12 | BU4: <LOD | BV4: 1265 | BW4: <LOD | BX4: 1649 | BY4: <LOD | BZ4: 2443 | CA4: <LOD | CB4: 3304 | CC4: <LOD | CD4: 10 | CE4: 3 | CF4: 1 | CG4: 7 | CH4: 1 | CI4: <LOD | CJ4: 38 | CK4: 24 | CL4: 2 | CM4: 7 | CN4: 1 | CO4: 536996 | CP4: 605 | CQ4: 40 | CR4: 40 | CS4: 40
A5: 842781 | B5: 6 | C5: 6344 | D5: 2021-12-16 | E5: 08:40:05 | F5: Geochem(3-Beam) | H5: 6 | I5: No | L5: PPM | M5: <LOD | N5: 0 | O5: 3903 | P5: 681 | Q5: 47427 | R5: 271 | S5: 362468 | T5: 536 | U5: 743 | V5: 21 | W5: 2792 | X5: 29 | Y5: 45199 | Z5: 100 | AA5: 5725 | AB5: 27 | AC5: 628 | AD5: 67 | AE5: <LOD | AF5: 68 | AG5: <LOD | AH5: 39 | AI5: <LOD | AJ5: 286 | AK5: 3898 | AL5: 21 | AM5: <LOD | AN5: 28 | AO5: 36 | AP5: 2 | AQ5: 63 | AR5: 2 | AS5: <LOD | AT5: 6 | AU5: <LOD | AV5: 3 | AW5: <LOD | AX5: 2 | AY5: 127 | AZ5: 1 | BA5: 82 | BB5: 1 | BC5: 17 | BD5: 1 | BE5: 138 | BF5: 1 | BG5: <LOD | BH5: 4 | BI5: <LOD | BJ5: 6 | BK5: <LOD | BL5: 53 | BM5: 13 | BN5: 4 | BO5: 21 | BP5: 5 | BQ5: <LOD | BR5: 42 | BS5: 648 | BT5: 13 | BU5: <LOD | BV5: 1314 | BW5: <LOD | BX5: 1710 | BY5: <LOD | BZ5: 2534 | CA5: <LOD | CB5: 3429 | CC5: <LOD | CD5: 11 | CE5: <LOD | CF5: 8 | CG5: 11 | CH5: 1 | CI5: <LOD | CJ5: 40 | CK5: 26 | CL5: 2 | CM5: 5 | CN5: 1 | CO5: 526030 | CP5: 614 | CQ5: 40 | CR5: 40 | CS5: 40
A6: 842781 | B6: 10 | C6: 6348 | D6: 2021-12-16 | E6: 08:50:03 | F6: Geochem(3-Beam) | H6: 10 | I6: No | L6: PPM | M6: <LOD | N6: 0 | O6: 6027 | P6: 654 | Q6: 57828 | R6: 284 | S6: 346908 | T6: 514 | U6: 115 | V6: 16 | W6: 484 | X6: 22 | Y6: 44823 | Z6: 98 | AA6: 1599 | AB6: 20 | AC6: 820 | AD6: 67 | AE6: <LOD | AF6: 68 | AG6: <LOD | AH6: 38 | AI6: <LOD | AJ6: 295 | AK6: 3910 | AL6: 21 | AM6: <LOD | AN6: 27 | AO6: 10 | AP6: 2 | AQ6: 15 | AR6: 2 | AS6: <LOD | AT6: 6 | AU6: <LOD | AV6: 3 | AW6: <LOD | AX6: 2 | AY6: 141 | AZ6: 1 | BA6: 68 | BB6: 1 | BC6: 15 | BD6: 1 | BE6: 86 | BF6: 1 | BG6: <LOD | BH6: 4 | BI6: 5 | BJ6: 1 | BK6: <LOD | BL6: 53 | BM6: <LOD | BN6: 21 | BO6: <LOD | BP6: 30 | BQ6: <LOD | BR6: 41 | BS6: 687 | BT6: 13 | BU6: <LOD | BV6: 1307 | BW6: 117 | BX6: 26 | BY6: <LOD | BZ6: 2494 | CA6: <LOD | CB6: 3391 | CC6: <LOD | CD6: 10 | CE6: 5 | CF6: 1 | CG6: 13 | CH6: 1 | CI6: <LOD | CJ6: 39 | CK6: 29 | CL6: 2 | CM6: 5 | CN6: 1 | CO6: 536290 | CP6: 601 | CQ6: 40 | CR6: 40 | CS6: 40
A7: 842781 | B7: 11 | C7: 6349 | D7: 2021-12-16 | E7: 08:52:41 | F7: Geochem(3-Beam) | H7: 11 | I7: No | L7: PPM | M7: <LOD | N7: 0 | O7: 4938 | P7: 643 | Q7: 53291 | R7: 274 | S7: 357300 | T7: 520 | U7: 194 | V7: 17 | W7: <LOD | X7: 118 | Y7: 40070 | Z7: 89 | AA7: 1276 | AB7: 19 | AC7: 3160 | AD7: 78 | AE7: <LOD | AF7: 76 | AG7: <LOD | AH7: 38 | AI7: 25 | AJ7: 8 | AK7: 4687 | AL7: 23 | AM7: <LOD | AN7: 29 | AO7: 18 | AP7: 2 | AQ7: 17 | AR7: 2 | AS7: 6 | AT7: 1 | AU7: <LOD | AV7: 3 | AW7: <LOD | AX7: 2 | AY7: 120 | AZ7: 1 | BA7: 55 | BB7: 1 | BC7: 21 | BD7: 1 | BE7: 247 | BF7: 1 | BG7: 7 | BH7: 1 | BI7: 10 | BJ7: 1 | BK7: <LOD | BL7: 53 | BM7: <LOD | BN7: 21 | BO7: <LOD | BP7: 29 | BQ7: <LOD | BR7: 41 | BS7: 596 | BT7: 12 | BU7: <LOD | BV7: 1301 | BW7: <LOD | BX7: 1691 | BY7: <LOD | BZ7: 2497 | CA7: <LOD | CB7: 3376 | CC7: <LOD | CD7: 10 | CE7: 4 | CF7: 1 | CG7: 11 | CH7: 1 | CI7: <LOD | CJ7: 40 | CK7: 28 | CL7: 2 | CM7: 6 | CN7: 1 | CO7: 533912 | CP7: 598 | CQ7: 40 | CR7: 40 | CS7: 40
A8: 842781 | B8: 13 | C8: 6350 | D8: 2021-12-16 | E8: 09:01:40 | F8: Geochem(3-Beam) | H8: 13 | I8: No | L8: PPM | M8: <LOD | N8: 0 | O8: 6487 | P8: 671 | Q8: 65915 | R8: 303 | S8: 345636 | T8: 529 | U8: 505 | V8: 19 | W8: <LOD | X8: 125 | Y8: 51412 | Z8: 112 | AA8: 1121 | AB8: 21 | AC8: 2461 | AD8: 77 | AE8: <LOD | AF8: 79 | AG8: 30 | AH8: 10 | AI8: 38 | AJ8: 8 | AK8: 11889 | AL8: 41 | AM8: <LOD | AN8: 46 | AO8: 21 | AP8: 2 | AQ8: <LOD | AR8: 9 | AS8: 11 | AT8: 1 | AU8: <LOD | AV8: 3 | AW8: <LOD | AX8: 2 | AY8: 158 | AZ8: 1 | BA8: 83 | BB8: 1 | BC8: 25 | BD8: 1 | BE8: 447 | BF8: 2 | BG8: 7 | BH8: 1 | BI8: 8 | BJ8: 1 | BK8: <LOD | BL8: 54 | BM8: <LOD | BN8: 21 | BO8: <LOD | BP8: 30 | BQ8: <LOD | BR8: 41 | BS8: 749 | BT8: 14 | BU8: <LOD | BV8: 1347 | BW8: <LOD | BX8: 1761 | BY8: <LOD | BZ8: 2602 | CA8: <LOD | CB8: 3540 | CC8: <LOD | CD8: 11 | CE8: 5 | CF8: 1 | CG8: 10 | CH8: 1 | CI8: <LOD | CJ8: 41 | CK8: 33 | CL8: 2 | CM8: 10 | CN8: 1 | CO8: 512939 | CP8: 615 | CQ8: 40 | CR8: 40 | CS8: 40
A9: 842781 | B9: 14 | C9: 6351 | D9: 2021-12-16 | E9: 09:04:11 | F9: Geochem(3-Beam) | H9: 14 | I9: No | L9: PPM | M9: <LOD | N9: 0 | O9: 10160 | P9: 636 | Q9: 81208 | R9: 312 | S9: 350843 | T9: 507 | U9: 496 | V9: 18 | W9: <LOD | X9: 110 | Y9: 59570 | Z9: 120 | AA9: 796 | AB9: 21 | AC9: 2683 | AD9: 76 | AE9: <LOD | AF9: 81 | AG9: 36 | AH9: 10 | AI9: 68 | AJ9: 8 | AK9: 15572 | AL9: 47 | AM9: <LOD | AN9: 51 | AO9: 29 | AP9: 2 | AQ9: <LOD | AR9: 9 | AS9: 19 | AT9: 1 | AU9: <LOD | AV9: 3 | AW9: <LOD | AX9: 2 | AY9: 189 | AZ9: 1 | BA9: 111 | BB9: 1 | BC9: 35 | BD9: 1 | BE9: 292 | BF9: 1 | BG9: 6 | BH9: 1 | BI9: 7 | BJ9: 1 | BK9: <LOD | BL9: 54 | BM9: <LOD | BN9: 20 | BO9: 16 | BP9: 5 | BQ9: <LOD | BR9: 40 | BS9: 907 | BT9: 15 | BU9: <LOD | BV9: 1344 | BW9: 96 | BX9: 30 | BY9: <LOD | BZ9: 2598 | CA9: <LOD | CB9: 3527 | CC9: <LOD | CD9: 11 | CE9: 6 | CF9: 1 | CG9: 13 | CH9: 1 | CI9: <LOD | CJ9: 40 | CK9: 34 | CL9: 2 | CM9: 9 | CN9: 1 | CO9: 476801 | CP9: 581 | CQ9: 40 | CR9: 40 | CS9: 40
A10: 842781 | B10: 15 | C10: 6352 | D10: 2021-12-16 | E10: 09:06:31 | F10: Geochem(3-Beam) | H10: 15 | I10: No | L10: PPM | M10: <LOD | N10: 0 | O10: 11460 | P10: 721 | Q10: 62076 | R10: 306 | S10: 310369 | T10: 518 | U10: 655 | V10: 20 | W10: 1092 | X10: 27 | Y10: 47149 | Z10: 108 | AA10: 1780 | AB10: 22 | AC10: 2424 | AD10: 76 | AE10: <LOD | AF10: 79 | AG10: 37 | AH10: 10 | AI10: <LOD | AJ10: 344 | AK10: 10589 | AL10: 38 | AM10: <LOD | AN10: 43 | AO10: 14 | AP10: 2 | AQ10: <LOD | AR10: 9 | AS10: 6 | AT10: 1 | AU10: <LOD | AV10: 3 | AW10: <LOD | AX10: 2 | AY10: 164 | AZ10: 1 | BA10: 96 | BB10: 1 | BC10: 24 | BD10: 1 | BE10: 430 | BF10: 2 | BG10: 6 | BH10: 1 | BI10: 7 | BJ10: 1 | BK10: <LOD | BL10: 53 | BM10: <LOD | BN10: 21 | BO10: <LOD | BP10: 30 | BQ10: <LOD | BR10: 41 | BS10: 764 | BT10: 13 | BU10: <LOD | BV10: 1329 | BW10: 101 | BX10: 27 | BY10: <LOD | BZ10: 2543 | CA10: 188 | CB10: 58 | CC10: <LOD | CD10: 11 | CE10: 5 | CF10: 1 | CG10: 12 | CH10: 1 | CI10: <LOD | CJ10: 41 | CK10: 33 | CL10: 2 | CM10: 5 | CN10: 1 | CO10: 550515 | CP10: 646 | CQ10: 40 | CR10: 40 | CS10: 40
A11: 842781 | B11: 16 | C11: 6353 | D11: 2021-12-16 | E11: 09:08:51 | F11: Geochem(3-Beam) | H11: 16 | I11: No | L11: PPM | AC11: 863 | AD11: 91 | AE11: <LOD | AF11: 95 | AG11: <LOD | AH11: 54 | AI11: <LOD | AJ11: 45 | AK11: 4813 | AL11: 33 | AM11: <LOD | AN11: 43 | AO11: 12 | AP11: 2 | AQ11: 19 | AR11: 2 | AS11: 5 | AT11: 2 | AU11: <LOD | AV11: 4 | AW11: <LOD | AX11: 3 | AY11: 107 | AZ11: 1 | BA11: 59 | BB11: 1 | BC11: 16 | BD11: 1 | BE11: 139 | BF11: 2 | BG11: <LOD | BH11: 6 | BI11: <LOD | BJ11: 8 | BK11: <LOD | BL11: 28 | BM11: <LOD | BN11: 30 | BO11: <LOD | BP11: 42 | BQ11: <LOD | BR11: 58 | BS11: <LOD | BT11: 2091 | CC11: <LOD | CD11: 15 | CE11: <LOD | CF11: 11 | CG11: 11 | CH11: 1 | CI11: <LOD | CJ11: 56 | CK11: 33 | CL11: 3 | CM11: 6 | CN11: 1 | CO11: 993918 | CP11: 97 | CQ11: 20.7741
A12: 842781 | B12: 17 | C12: 6353 | D12: 2021-12-16 | E12: 08:23:36 | F12: Geochem(3-Beam) | H12: 17 | I12: No | L12: PPM | M12: <LOD | N12: 0 | O12: 6809 | P12: 633 | Q12: 59870 | R12: 282 | S12: 344705 | T12: 504 | U12: 389 | V12: 18 | W12: 130 | X12: 22 | Y12: 46915 | Z12: 100 | AA12: 2332 | AB12: 22 | AC12: 1553 | AD12: 70 | AE12: <LOD | AF12: 71 | AG12: <LOD | AH12: 38 | AI12: <LOD | AJ12: 293 | AK12: 5353 | AL12: 25 | AM12: <LOD | AN12: 31 | AO12: 13 | AP12: 2 | AQ12: 12 | AR12: 2 | AS12: 6 | AT12: 1 | AU12: <LOD | AV12: 3 | AW12: <LOD | AX12: 2 | AY12: 135 | AZ12: 1 | BA12: 80 | BB12: 1 | BC12: 18 | BD12: 1 | BE12: 334 | BF12: 1 | BG12: 4 | BH12: 1 | BI12: 5 | BJ12: 1 | BK12: <LOD | BL12: 52 | BM12: <LOD | BN12: 21 | BO12: <LOD | BP12: 29 | BQ12: <LOD | BR12: 41 | BS12: 725 | BT12: 13 | BU12: 77 | BV12: 20 | BW12: 103 | BX12: 26 | BY12: <LOD | BZ12: 2494 | CA12: <LOD | CB12: 3401 | CC12: <LOD | CD12: 11 | CE12: 4 | CF12: 1 | CG12: 11 | CH12: 1 | CI12: <LOD | CJ12: 40 | CK12: 27 | CL12: 2 | CM12: 6 | CN12: 1 | CO12: 530384 | CP12: 588 | CQ12: 40 | CR12: 40 | CS12: 40
A13: 842781 | B13: 18 | C13: 6354 | D13: 2021-12-16 | E13: 08:26:01 | F13: Geochem(3-Beam) | H13: 18 | I13: No | L13: PPM | M13: <LOD | N13: 0 | O13: 7635 | P13: 685 | Q13: 62297 | R13: 300 | S13: 335691 | T13: 528 | U13: 403 | V13: 19 | W13: 1334 | X13: 26 | Y13: 50501 | Z13: 112 | AA13: 2644 | AB13: 24 | AC13: 2576 | AD13: 78 | AE13: <LOD | AF13: 79 | AG13: <LOD | AH13: 41 | AI13: 24 | AJ13: 8 | AK13: 8589 | AL13: 34 | AM13: <LOD | AN13: 40 | AO13: 15 | AP13: 2 | AQ13: 76 | AR13: 2 | AS13: 6 | AT13: 1 | AU13: <LOD | AV13: 3 | AW13: <LOD | AX13: 2 | AY13: 148 | AZ13: 1 | BA13: 89 | BB13: 1 | BC13: 21 | BD13: 1 | BE13: 548 | BF13: 2 | BG13: 4 | BH13: 1 | BI13: 10 | BJ13: 1 | BK13: <LOD | BL13: 56 | BM13: <LOD | BN13: 22 | BO13: <LOD | BP13: 30 | BQ13: <LOD | BR13: 42 | BS13: 706 | BT13: 13 | BU13: <LOD | BV13: 1344 | BW13: <LOD | BX13: 1757 | BY13: <LOD | BZ13: 2599 | CA13: <LOD | CB13: 3516 | CC13: <LOD | CD13: 11 | CE13: 5 | CF13: 1 | CG13: 12 | CH13: 1 | CI13: <LOD | CJ13: 42 | CK13: 32 | CL13: 2 | CM13: 6 | CN13: 1 | CO13: 526629 | CP13: 624 | CQ13: 40 | CR13: 40 | CS13: 40
A14: 842781 | B14: 19 | C14: 6355 | D14: 2021-12-16 | E14: 08:28:23 | F14: Geochem(3-Beam) | H14: 19 | I14: No | L14: PPM | M14: <LOD | N14: 0 | O14: 6337 | P14: 615 | Q14: 62741 | R14: 283 | S14: 360951 | T14: 507 | U14: 364 | V14: 18 | W14: 288 | X14: 22 | Y14: 49132 | Z14: 102 | AA14: 1991 | AB14: 22 | AC14: 1445 | AD14: 70 | AE14: <LOD | AF14: 71 | AG14: <LOD | AH14: 38 | AI14: <LOD | AJ14: 275 | AK14: 4480 | AL14: 22 | AM14: <LOD | AN14: 29 | AO14: 14 | AP14: 2 | AQ14: 11 | AR14: 2 | AS14: 7 | AT14: 1 | AU14: <LOD | AV14: 3 | AW14: <LOD | AX14: 2 | AY14: 142 | AZ14: 1 | BA14: 78 | BB14: 1 | BC14: 20 | BD14: 1 | BE14: 290 | BF14: 1 | BG14: 3 | BH14: 1 | BI14: 7 | BJ14: 1 | BK14: <LOD | BL14: 53 | BM14: <LOD | BN14: 21 | BO14: <LOD | BP14: 29 | BQ14: <LOD | BR14: 41 | BS14: 737 | BT14: 13 | BU14: <LOD | BV14: 1296 | BW14: 86 | BX14: 27 | BY14: <LOD | BZ14: 2495 | CA14: <LOD | CB14: 3376 | CC14: <LOD | CD14: 10 | CE14: 3 | CF14: 1 | CG14: 12 | CH14: 1 | CI14: <LOD | CJ14: 40 | CK14: 26 | CL14: 2 | CM14: 8 | CN14: 1 | CO14: 510829 | CP14: 575 | CQ14: 40 | CR14: 40 | CS14: 40
A15: 842781 | B15: 20 | C15: 6356 | D15: 2021-12-16 | E15: 08:30:42 | F15: Geochem(3-Beam) | H15: 20 | I15: No | L15: PPM | M15: <LOD | N15: 0 | O15: 16883 | P15: 771 | Q15: 57538 | R15: 305 | S15: 294970 | T15: 519 | U15: 765 | V15: 20 | W15: 680 | X15: 28 | Y15: 43981 | Z15: 105 | AA15: 1298 | AB15: 21 | AC15: 2448 | AD15: 77 | AE15: <LOD | AF15: 78 | AG15: 35 | AH15: 10 | AI15: <LOD | AJ15: 376 | AK15: 6711 | AL15: 29 | AM15: <LOD | AN15: 35 | AO15: 17 | AP15: 2 | AQ15: 9 | AR15: 2 | AS15: 9 | AT15: 1 | AU15: <LOD | AV15: 3 | AW15: <LOD | AX15: 2 | AY15: 164 | AZ15: 1 | BA15: 103 | BB15: 1 | BC15: 21 | BD15: 1 | BE15: 375 | BF15: 2 | BG15: 6 | BH15: 1 | BI15: 7 | BJ15: 1 | BK15: <LOD | BL15: 54 | BM15: <LOD | BN15: 21 | BO15: 15 | BP15: 5 | BQ15: <LOD | BR15: 41 | BS15: 750 | BT15: 13 | BU15: <LOD | BV15: 1325 | BW15: 77 | BX15: 25 | BY15: <LOD | BZ15: 2536 | CA15: <LOD | CB15: 3454 | CC15: <LOD | CD15: 11 | CE15: 5 | CF15: 1 | CG15: 12 | CH15: 1 | CI15: <LOD | CJ15: 41 | CK15: 29 | CL15: 2 | CM15: 6 | CN15: 1 | CO15: 573085 | CP15: 676 | CQ15: 40 | CR15: 40 | CS15: 40
A16: 842781 | B16: 21 | C16: 6357 | D16: 2021-12-16 | E16: 08:33:21 | F16: Geochem(3-Beam) | H16: 21 | I16: No | L16: PPM | M16: <LOD | N16: 0 | O16: 7083 | P16: 715 | Q16: 54542 | R16: 294 | S16: 328814 | T16: 534 | U16: 436 | V16: 19 | W16: 1050 | X16: 26 | Y16: 47884 | Z16: 110 | AA16: 2778 | AB16: 24 | AC16: 1591 | AD16: 75 | AE16: <LOD | AF16: 76 | AG16: <LOD | AH16: 41 | AI16: 32 | AJ16: 8 | AK16: 4934 | AL16: 25 | AM16: <LOD | AN16: 32 | AO16: 17 | AP16: 2 | AQ16: 33 | AR16: 2 | AS16: 5 | AT16: 1 | AU16: <LOD | AV16: 3 | AW16: <LOD | AX16: 2 | AY16: 143 | AZ16: 1 | BA16: 78 | BB16: 1 | BC16: 17 | BD16: 1 | BE16: 153 | BF16: 1 | BG16: 3 | BH16: 1 | BI16: 6 | BJ16: 1 | BK16: <LOD | BL16: 55 | BM16: <LOD | BN16: 22 | BO16: <LOD | BP16: 31 | BQ16: <LOD | BR16: 43 | BS16: 640 | BT16: 12 | BU16: <LOD | BV16: 1358 | BW16: <LOD | BX16: 1770 | BY16: <LOD | BZ16: 2619 | CA16: <LOD | CB16: 3556 | CC16: <LOD | CD16: 11 | CE16: 5 | CF16: 1 | CG16: 12 | CH16: 1 | CI16: <LOD | CJ16: 42 | CK16: 31 | CL16: 2 | CM16: 8 | CN16: 1 | CO16: 549706 | CP16: 645 | CQ16: 40 | CR16: 40 | CS16: 40
A17: 842781 | B17: 22 | C17: 6358 | D17: 2021-12-16 | E17: 08:35:39 | F17: Geochem(3-Beam) | H17: 22 | I17: No | L17: PPM | M17: <LOD | N17: 0 | O17: 4607 | P17: 618 | Q17: 55498 | R17: 275 | S17: 362902 | T17: 517 | U17: 430 | V17: 18 | W17: 2415 | X17: 28 | Y17: 50614 | Z17: 107 | AA17: 3557 | AB17: 24 | AC17: 1570 | AD17: 72 | AE17: <LOD | AF17: 73 | AG17: <LOD | AH17: 40 | AI17: 37 | AJ17: 8 | AK17: 6009 | AL17: 27 | AM17: <LOD | AN17: 34 | AO17: 19 | AP17: 2 | AQ17: 18 | AR17: 2 | AS17: 5 | AT17: 1 | AU17: <LOD | AV17: 3 | AW17: <LOD | AX17: 2 | AY17: 152 | AZ17: 1 | BA17: 83 | BB17: 1 | BC17: 19 | BD17: 1 | BE17: 171 | BF17: 1 | BG17: <LOD | BH17: 4 | BI17: 4 | BJ17: 1 | BK17: <LOD | BL17: 53 | BM17: <LOD | BN17: 21 | BO17: <LOD | BP17: 30 | BQ17: <LOD | BR17: 42 | BS17: 740 | BT17: 14 | BU17: <LOD | BV17: 1332 | BW17: <LOD | BX17: 1729 | BY17: <LOD | BZ17: 2552 | CA17: <LOD | CB17: 3454 | CC17: <LOD | CD17: 11 | CE17: <LOD | CF17: 8 | CG17: 14 | CH17: 1 | CI17: <LOD | CJ17: 40 | CK17: 29 | CL17: 2 | CM17: 6 | CN17: 1 | CO17: 511102 | CP17: 584 | CQ17: 40 | CR17: 40 | CS17: 40
A18: 842781 | B18: 23 | C18: 6359 | D18: 2021-12-16 | E18: 08:38:05 | F18: Geochem(3-Beam) | H18: 23 | I18: No | L18: PPM | M18: <LOD | N18: 0 | O18: 5424 | P18: 652 | Q18: 49502 | R18: 271 | S18: 358567 | T18: 530 | U18: 324 | V18: 18 | W18: 2040 | X18: 27 | Y18: 46298 | Z18: 102 | AA18: 3835 | AB18: 25 | AC18: 712 | AD18: 69 | AE18: <LOD | AF18: 71 | AG18: <LOD | AH18: 40 | AI18: <LOD | AJ18: 294 | AK18: 2976 | AL18: 19 | AM18: <LOD | AN18: 25 | AO18: 17 | AP18: 2 | AQ18: 13 | AR18: 2 | AS18: 6 | AT18: 1 | AU18: <LOD | AV18: 3 | AW18: <LOD | AX18: 2 | AY18: 140 | AZ18: 1 | BA18: 77 | BB18: 1 | BC18: 14 | BD18: 1 | BE18: 66 | BF18: 1 | BG18: <LOD | BH18: 4 | BI18: 5 | BJ18: 1 | BK18: <LOD | BL18: 53 | BM18: <LOD | BN18: 22 | BO18: <LOD | BP18: 31 | BQ18: <LOD | BR18: 43 | BS18: 666 | BT18: 13 | BU18: 63 | BV18: 20 | BW18: <LOD | BX18: 1720 | BY18: <LOD | BZ18: 2547 | CA18: <LOD | CB18: 3427 | CC18: <LOD | CD18: 11 | CE18: 4 | CF18: 1 | CG18: 12 | CH18: 1 | CI18: <LOD | CJ18: 41 | CK18: 31 | CL18: 2 | CM18: 7 | CN18: 1 | CO18: 529201 | CP18: 606 | CQ18: 40 | CR18: 40 | CS18: 40
A19: 842781 | B19: 3 | D19: 2022-06-23 | E19: 09:10:31 | F19: Geochem(3-Beam) | H19: 3 | I19: No | L19: PPM | M19: <LOD | N19: 0 | O19: <LOD | P19: 1751 | Q19: <LOD | R19: 505 | S19: 524615 | T19: 404 | U19: <LOD | V19: 43 | W19: <LOD | X19: 80 | Y19: <LOD | Z19: 108 | AA19: <LOD | AB19: 90 | AC19: <LOD | AD19: 110 | AE19: <LOD | AF19: 51 | AG19: <LOD | AH19: 31 | AI19: <LOD | AJ19: 225 | AK19: <LOD | AL19: 19 | AM19: <LOD | AN19: 11 | AO19: <LOD | AP19: 6 | AQ19: <LOD | AR19: 7 | AS19: 3 | AT19: 1 | AU19: <LOD | AV19: 2 | AW19: <LOD | AX19: 2 | AY19: <LOD | AZ19: 2 | BA19: <LOD | BB19: 2 | BC19: <LOD | BD19: 3 | BE19: <LOD | BF19: 4 | BG19: <LOD | BH19: 4 | BI19: 5 | BJ19: 1 | BK19: <LOD | BL19: 49 | BM19: <LOD | BN19: 20 | BO19: <LOD | BP19: 27 | BQ19: <LOD | BR19: 38 | BS19: <LOD | BT19: 697 | BU19: <LOD | BV19: 1228 | BW19: <LOD | BX19: 1599 | BY19: <LOD | BZ19: 2355 | CA19: <LOD | CB19: 3161 | CC19: <LOD | CD19: 9 | CE19: <LOD | CF19: 7 | CG19: 3 | CH19: 1 | CI19: <LOD | CJ19: 35 | CK19: 20 | CL19: 2 | CM19: 5 | CN19: 1 | CO19: 475349 | CP19: 404 | CQ19: 40 | CR19: 40 | CS19: 40
A20: 842781 | B20: 4 | D20: 2022-06-23 | E20: 09:15:03 | F20: Geochem(3-Beam) | H20: 4 | I20: No | L20: PPM | M20: <LOD | N20: 0 | O20: 3251 | P20: 663 | Q20: 38582 | R20: 247 | S20: 387573 | T20: 545 | U20: 315 | V20: 18 | W20: 955 | X20: 24 | Y20: 32417 | Z20: 76 | AA20: 1981 | AB20: 19 | AC20: 1450 | AD20: 68 | AE20: <LOD | AF20: 67 | AG20: <LOD | AH20: 36 | AI20: <LOD | AJ20: 283 | AK20: 1551 | AL20: 13 | AM20: <LOD | AN20: 20 | AO20: 5 | AP20: 1 | AQ20: 12 | AR20: 2 | AS20: 5 | AT20: 1 | AU20: <LOD | AV20: 3 | AW20: <LOD | AX20: 2 | AY20: 105 | AZ20: 1 | BA20: 45 | BB20: 1 | BC20: 12 | BD20: 1 | BE20: 88 | BF20: 1 | BG20: <LOD | BH20: 4 | BI20: 5 | BJ20: 1 | BK20: <LOD | BL20: 52 | BM20: <LOD | BN20: 21 | BO20: <LOD | BP20: 30 | BQ20: <LOD | BR20: 41 | BS20: 489 | BT20: 12 | BU20: <LOD | BV20: 1286 | BW20: <LOD | BX20: 1660 | BY20: 124 | BZ20: 40 | CA20: 196 | CB20: 57 | CC20: <LOD | CD20: 10 | CE20: <LOD | CF20: 8 | CG20: 9 | CH20: 1 | CI20: <LOD | CJ20: 39 | CK20: 25 | CL20: 2 | CM20: 8 | CN20: 1 | CO20: 530796 | CP20: 608 | CQ20: 40 | CR20: 40 | CS20: 40
A21: 842781 | B21: 5 | D21: 2022-06-23 | E21: 09:18:19 | F21: Geochem(3-Beam) | H21: 5 | I21: No | L21: PPM | M21: <LOD | N21: 0 | O21: 5391 | P21: 699 | Q21: 57685 | R21: 295 | S21: 343743 | T21: 532 | U21: 368 | V21: 19 | W21: 1491 | X21: 26 | Y21: 49386 | Z21: 109 | AA21: 3019 | AB21: 24 | AC21: 816 | AD21: 68 | AE21: <LOD | AF21: 69 | AG21: <LOD | AH21: 38 | AI21: <LOD | AJ21: 300 | AK21: 3550 | AL21: 20 | AM21: <LOD | AN21: 27 | AO21: 8 | AP21: 2 | AQ21: <LOD | AR21: 9 | AS21: 5 | AT21: 1 | AU21: <LOD | AV21: 3 | AW21: <LOD | AX21: 2 | AY21: 161 | AZ21: 1 | BA21: 82 | BB21: 1 | BC21: 14 | BD21: 1 | BE21: 104 | BF21: 1 | BG21: <LOD | BH21: 4 | BI21: 5 | BJ21: 1 | BK21: <LOD | BL21: 52 | BM21: <LOD | BN21: 22 | BO21: <LOD | BP21: 30 | BQ21: <LOD | BR21: 42 | BS21: 753 | BT21: 13 | BU21: <LOD | BV21: 1314 | BW21: <LOD | BX21: 1704 | BY21: <LOD | BZ21: 2522 | CA21: <LOD | CB21: 3425 | CC21: <LOD | CD21: 10 | CE21: 5 | CF21: 1 | CG21: 12 | CH21: 1 | CI21: <LOD | CJ21: 41 | CK21: 29 | CL21: 2 | CM21: 9 | CN21: 1 | CO21: 533364 | CP21: 627 | CQ21: 40 | CR21: 40 | CS21: 40
A22: 842781 | B22: 6 | D22: 2022-06-23 | E22: 09:20:45 | F22: Geochem(3-Beam) | H22: 6 | I22: No | L22: PPM | M22: <LOD | N22: 0 | O22: 4812 | P22: 694 | Q22: 62020 | R22: 304 | S22: 339413 | T22: 533 | U22: 479 | V22: 19 | W22: 1018 | X22: 26 | Y22: 53768 | Z22: 118 | AA22: 1928 | AB22: 23 | AC22: 5657 | AD22: 91 | AE22: <LOD | AF22: 87 | AG22: <LOD | AH22: 40 | AI22: <LOD | AJ22: 300 | AK22: 6385 | AL22: 28 | AM22: 29 | AN22: 8 | AO22: 11 | AP22: 2 | AQ22: 8 | AR22: 2 | AS22: 7 | AT22: 1 | AU22: <LOD | AV22: 3 | AW22: <LOD | AX22: 2 | AY22: 174 | AZ22: 1 | BA22: 83 | BB22: 1 | BC22: 29 | BD22: 1 | BE22: 793 | BF22: 2 | BG22: 14 | BH22: 1 | BI22: 14 | BJ22: 1 | BK22: <LOD | BL22: 53 | BM22: <LOD | BN22: 21 | BO22: 20 | BP22: 5 | BQ22: <LOD | BR22: 42 | BS22: 818 | BT22: 14 | BU22: <LOD | BV22: 1346 | BW22: 113 | BX22: 27 | BY22: <LOD | BZ22: 2592 | CA22: <LOD | CB22: 3541 | CC22: <LOD | CD22: 11 | CE22: 4 | CF22: 1 | CG22: 11 | CH22: 1 | CI22: <LOD | CJ22: 43 | CK22: 32 | CL22: 2 | CM22: 7 | CN22: 1 | CO22: 522351 | CP22: 628 | CQ22: 40 | CR22: 40 | CS22: 40
A23: 842781 | B23: 7 | D23: 2022-06-23 | E23: 09:23:13 | F23: Geochem(3-Beam) | H23: 7 | I23: No | L23: PPM | M23: <LOD | N23: 0 | O23: 7354 | P23: 678 | Q23: 69094 | R23: 308 | S23: 341342 | T23: 520 | U23: 287 | V23: 18 | W23: 554 | X23: 23 | Y23: 56154 | Z23: 119 | AA23: 1699 | AB23: 22 | AC23: 812 | AD23: 69 | AE23: <LOD | AF23: 72 | AG23: <LOD | AH23: 40 | AI23: 42 | AJ23: 8 | AK23: 6484 | AL23: 28 | AM23: <LOD | AN23: 35 | AO23: 10 | AP23: 2 | AQ23: <LOD | AR23: 9 | AS23: 8 | AT23: 1 | AU23: <LOD | AV23: 3 | AW23: <LOD | AX23: 2 | AY23: 183 | AZ23: 1 | BA23: 101 | BB23: 1 | BC23: 15 | BD23: 1 | BE23: 99 | BF23: 1 | BG23: <LOD | BH23: 4 | BI23: 4 | BJ23: 1 | BK23: <LOD | BL23: 53 | BM23: <LOD | BN23: 22 | BO23: <LOD | BP23: 30 | BQ23: <LOD | BR23: 42 | BS23: 852 | BT23: 14 | BU23: 67 | BV23: 21 | BW23: 90 | BX23: 28 | BY23: <LOD | BZ23: 2552 | CA23: <LOD | CB23: 3462 | CC23: <LOD | CD23: 11 | CE23: 4 | CF23: 1 | CG23: 14 | CH23: 1 | CI23: <LOD | CJ23: 41 | CK23: 32 | CL23: 2 | CM23: 6 | CN23: 1 | CO23: 514693 | CP23: 611 | CQ23: 40 | CR23: 40 | CS23: 40
A24: 842781 | B24: 8 | D24: 2022-06-23 | E24: 09:25:43 | F24: Geochem(3-Beam) | H24: 8 | I24: No | L24: PPM | M24: <LOD | N24: 0 | O24: 6192 | P24: 725 | Q24: 59868 | R24: 306 | S24: 329631 | T24: 540 | U24: 501 | V24: 20 | W24: 2475 | X24: 29 | Y24: 52805 | Z24: 120 | AA24: 3463 | AB24: 26 | AC24: 2580 | AD24: 80 | AE24: <LOD | AF24: 81 | AG24: 32 | AH24: 10 | AI24: <LOD | AJ24: 322 | AK24: 6940 | AL24: 30 | AM24: <LOD | AN24: 37 | AO24: 12 | AP24: 2 | AQ24: 10 | AR24: 2 | AS24: 9 | AT24: 1 | AU24: <LOD | AV24: 3 | AW24: <LOD | AX24: 2 | AY24: 169 | AZ24: 1 | BA24: 111 | BB24: 1 | BC24: 22 | BD24: 1 | BE24: 523 | BF24: 2 | BG24: 7 | BH24: 1 | BI24: 9 | BJ24: 1 | BK24: <LOD | BL24: 55 | BM24: 13 | BN24: 4 | BO24: 25 | BP24: 5 | BQ24: <LOD | BR24: 43 | BS24: 767 | BT24: 13 | BU24: <LOD | BV24: 1354 | BW24: <LOD | BX24: 1756 | BY24: <LOD | BZ24: 2604 | CA24: <LOD | CB24: 3537 | CC24: <LOD | CD24: 11 | CE24: 3 | CF24: 1 | CG24: 13 | CH24: 1 | CI24: <LOD | CJ24: 43 | CK24: 30 | CL24: 2 | CM24: 7 | CN24: 1 | CO24: 533784 | CP24: 648 | CQ24: 40 | CR24: 40 | CS24: 40
A25: 842781 | B25: 9 | D25: 2022-06-23 | E25: 09:29:07 | F25: Geochem(3-Beam) | H25: 9 | I25: No | L25: PPM | M25: <LOD | N25: 0 | O25: 5606 | P25: 653 | Q25: 52761 | R25: 276 | S25: 360761 | T25: 526 | U25: 237 | V25: 18 | W25: 1320 | X25: 25 | Y25: 44921 | Z25: 98 | AA25: 2954 | AB25: 23 | AC25: 577 | AD25: 66 | AE25: <LOD | AF25: 65 | AG25: <LOD | AH25: 38 | AI25: <LOD | AJ25: 292 | AK25: 4392 | AL25: 22 | AM25: <LOD | AN25: 29 | AO25: 13 | AP25: 2 | AQ25: 14 | AR25: 2 | AS25: <LOD | AT25: 6 | AU25: <LOD | AV25: 3 | AW25: <LOD | AX25: 2 | AY25: 142 | AZ25: 1 | BA25: 79 | BB25: 1 | BC25: 14 | BD25: 1 | BE25: 80 | BF25: 1 | BG25: <LOD | BH25: 4 | BI25: 6 | BJ25: 1 | BK25: <LOD | BL25: 53 | BM25: <LOD | BN25: 21 | BO25: <LOD | BP25: 30 | BQ25: <LOD | BR25: 42 | BS25: 676 | BT25: 13 | BU25: 64 | BV25: 20 | BW25: 119 | BX25: 27 | BY25: <LOD | BZ25: 2453 | CA25: <LOD | CB25: 3317 | CC25: <LOD | CD25: 10 | CE25: <LOD | CF25: 8 | CG25: 12 | CH25: 1 | CI25: <LOD | CJ25: 40 | CK25: 29 | CL25: 2 | CM25: 6 | CN25: 1 | CO25: 525217 | CP25: 601 | CQ25: 40 | CR25: 40 | CS25: 40
A26: 842781 | B26: 10 | D26: 2022-06-23 | E26: 09:31:39 | F26: Geochem(3-Beam) | H26: 10 | I26: No | L26: PPM | M26: <LOD | N26: 0 | O26: 4163 | P26: 650 | Q26: 32125 | R26: 231 | S26: 387453 | T26: 544 | U26: 227 | V26: 18 | W26: 1165 | X26: 25 | Y26: 29271 | Z26: 71 | AA26: 2553 | AB26: 20 | AC26: 756 | AD26: 68 | AE26: <LOD | AF26: 67 | AG26: <LOD | AH26: 38 | AI26: <LOD | AJ26: 288 | AK26: 3482 | AL26: 20 | AM26: <LOD | AN26: 26 | AO26: 12 | AP26: 2 | AQ26: 28 | AR26: 2 | AS26: 4 | AT26: 1 | AU26: <LOD | AV26: 3 | AW26: <LOD | AX26: 2 | AY26: 89 | AZ26: 1 | BA26: 46 | BB26: 1 | BC26: 10 | BD26: 1 | BE26: 94 | BF26: 1 | BG26: <LOD | BH26: 4 | BI26: 3 | BJ26: 1 | BK26: <LOD | BL26: 53 | BM26: <LOD | BN26: 21 | BO26: <LOD | BP26: 30 | BQ26: <LOD | BR26: 42 | BS26: 427 | BT26: 12 | BU26: <LOD | BV26: 1314 | BW26: 82 | BX26: 25 | BY26: <LOD | BZ26: 2519 | CA26: <LOD | CB26: 3411 | CC26: <LOD | CD26: 10 | CE26: 4 | CF26: 1 | CG26: 9 | CH26: 1 | CI26: <LOD | CJ26: 40 | CK26: 29 | CL26: 2 | CM26: 8 | CN26: 1 | CO26: 537961 | CP26: 605 | CQ26: 40 | CR26: 40 | CS26: 40
A27: 842781 | B27: 11 | D27: 2022-06-23 | E27: 09:34:20 | F27: Geochem(3-Beam) | H27: 11 | I27: No | L27: PPM | M27: <LOD | N27: 0 | O27: 6652 | P27: 648 | Q27: 58115 | R27: 283 | S27: 353800 | T27: 516 | U27: 350 | V27: 18 | W27: 1265 | X27: 25 | Y27: 44751 | Z27: 97 | AA27: 3587 | AB27: 23 | AC27: 1844 | AD27: 73 | AE27: <LOD | AF27: 73 | AG27: <LOD | AH27: 38 | AI27: 29 | AJ27: 8 | AK27: 3688 | AL27: 20 | AM27: <LOD | AN27: 27 | AO27: 11 | AP27: 2 | AQ27: 14 | AR27: 2 | AS27: <LOD | AT27: 6 | AU27: <LOD | AV27: 3 | AW27: <LOD | AX27: 2 | AY27: 132 | AZ27: 1 | BA27: 84 | BB27: 1 | BC27: 14 | BD27: 1 | BE27: 198 | BF27: 1 | BG27: 3 | BH27: 1 | BI27: 5 | BJ27: 1 | BK27: <LOD | BL27: 53 | BM27: <LOD | BN27: 21 | BO27: 20 | BP27: 5 | BQ27: 23 | BR27: 7 | BS27: 659 | BT27: 13 | BU27: <LOD | BV27: 1303 | BW27: <LOD | BX27: 1703 | BY27: <LOD | BZ27: 2525 | CA27: <LOD | CB27: 3423 | CC27: <LOD | CD27: 10 | CE27: 4 | CF27: 1 | CG27: 11 | CH27: 1 | CI27: <LOD | CJ27: 40 | CK27: 30 | CL27: 2 | CM27: 6 | CN27: 1 | CO27: 524705 | CP27: 595 | CQ27: 40 | CR27: 40 | CS27: 40
A28: 842781 | B28: 12 | D28: 2022-06-23 | E28: 09:36:43 | F28: Geochem(3-Beam) | H28: 12 | I28: No | L28: PPM | M28: <LOD | N28: 0 | O28: 3102 | P28: 625 | Q28: 41603 | R28: 250 | S28: 377097 | T28: 526 | U28: 262 | V28: 18 | W28: 1960 | X28: 27 | Y28: 39356 | Z28: 87 | AA28: 3008 | AB28: 22 | AC28: 715 | AD28: 68 | AE28: <LOD | AF28: 67 | AG28: <LOD | AH28: 38 | AI28: <LOD | AJ28: 275 | AK28: 3379 | AL28: 19 | AM28: <LOD | AN28: 26 | AO28: 11 | AP28: 2 | AQ28: 9 | AR28: 2 | AS28: 4 | AT28: 1 | AU28: <LOD | AV28: 3 | AW28: <LOD | AX28: 2 | AY28: 124 | AZ28: 1 | BA28: 65 | BB28: 1 | BC28: 16 | BD28: 1 | BE28: 149 | BF28: 1 | BG28: <LOD | BH28: 4 | BI28: 6 | BJ28: 1 | BK28: <LOD | BL28: 51 | BM28: <LOD | BN28: 21 | BO28: <LOD | BP28: 30 | BQ28: <LOD | BR28: 41 | BS28: 591 | BT28: 12 | BU28: <LOD | BV28: 1290 | BW28: 88 | BX28: 26 | BY28: <LOD | BZ28: 2452 | CA28: <LOD | CB28: 3340 | CC28: <LOD | CD28: 11 | CE28: <LOD | CF28: 8 | CG28: 11 | CH28: 1 | CI28: <LOD | CJ28: 40 | CK28: 28 | CL28: 2 | CM28: 8 | CN28: 1 | CO28: 528407 | CP28: 588 | CQ28: 40 | CR28: 40 | CS28: 40
A29: 842781 | B29: 13 | D29: 2022-06-23 | E29: 09:39:33 | F29: Geochem(3-Beam) | H29: 13 | I29: No | L29: PPM | M29: <LOD | N29: 0 | O29: 5523 | P29: 695 | Q29: 60735 | R29: 303 | S29: 336393 | T29: 534 | U29: 321 | V29: 19 | W29: 1284 | X29: 26 | Y29: 54645 | Z29: 121 | AA29: 1830 | AB29: 23 | AC29: 926 | AD29: 73 | AE29: <LOD | AF29: 76 | AG29: <LOD | AH29: 41 | AI29: <LOD | AJ29: 315 | AK29: 7630 | AL29: 32 | AM29: 27 | AN29: 8 | AO29: 14 | AP29: 2 | AQ29: <LOD | AR29: 9 | AS29: 5 | AT29: 1 | AU29: <LOD | AV29: 3 | AW29: <LOD | AX29: 2 | AY29: 175 | AZ29: 1 | BA29: 86 | BB29: 1 | BC29: 24 | BD29: 1 | BE29: 165 | BF29: 1 | BG29: 2 | BH29: 1 | BI29: 5 | BJ29: 1 | BK29: 4 | BL29: 1 | BM29: 12 | BN29: 4 | BO29: 18 | BP29: 5 | BQ29: <LOD | BR29: 43 | BS29: 763 | BT29: 13 | BU29: <LOD | BV29: 1348 | BW29: <LOD | BX29: 1755 | BY29: <LOD | BZ29: 2597 | CA29: <LOD | CB29: 3509 | CC29: <LOD | CD29: 11 | CE29: 6 | CF29: 1 | CG29: 13 | CH29: 1 | CI29: <LOD | CJ29: 42 | CK29: 34 | CL29: 2 | CM29: 5 | CN29: 1 | CO29: 529354 | CP29: 633 | CQ29: 40 | CR29: 40 | CS29: 40
A30: 842781 | B30: 14 | D30: 2022-06-23 | E30: 09:42:16 | F30: Geochem(3-Beam) | H30: 14 | I30: No | L30: PPM | M30: <LOD | N30: 0 | O30: <LOD | P30: 1609 | Q30: <LOD | R30: 467 | S30: 524058 | T30: 404 | U30: <LOD | V30: 46 | W30: <LOD | X30: 79 | Y30: <LOD | Z30: 109 | AA30: <LOD | AB30: 91 | AC30: <LOD | AD30: 110 | AE30: <LOD | AF30: 51 | AG30: <LOD | AH30: 32 | AI30: <LOD | AJ30: 226 | AK30: <LOD | AL30: 19 | AM30: <LOD | AN30: 11 | AO30: <LOD | AP30: 6 | AQ30: <LOD | AR30: 7 | AS30: <LOD | AT30: 5 | AU30: <LOD | AV30: 2 | AW30: <LOD | AX30: 2 | AY30: <LOD | AZ30: 2 | BA30: <LOD | BB30: 2 | BC30: <LOD | BD30: 3 | BE30: <LOD | BF30: 4 | BG30: <LOD | BH30: 4 | BI30: 5 | BJ30: 1 | BK30: <LOD | BL30: 50 | BM30: <LOD | BN30: 20 | BO30: <LOD | BP30: 27 | BQ30: 19 | BR30: 6 | BS30: <LOD | BT30: 697 | BU30: <LOD | BV30: 1241 | BW30: <LOD | BX30: 1604 | BY30: <LOD | BZ30: 2368 | CA30: <LOD | CB30: 3168 | CC30: <LOD | CD30: 9 | CE30: <LOD | CF30: 7 | CG30: 2 | CH30: 1 | CI30: <LOD | CJ30: 35 | CK30: 23 | CL30: 2 | CM30: 6 | CN30: 1 | CO30: 475887 | CP30: 404 | CQ30: 40 | CR30: 40 | CS30: 40
A31: 842781 | B31: 15 | D31: 2022-06-23 | E31: 09:47:37 | F31: Geochem(3-Beam) | H31: 15 | I31: No | L31: PPM | M31: <LOD | N31: 0 | O31: 24820 | P31: 1033 | Q31: 48556 | R31: 331 | S31: 216949 | T31: 520 | U31: 661 | V31: 23 | W31: 4795 | X31: 40 | Y31: 24324 | Z31: 78 | AA31: 7459 | AB31: 33 | AC31: 1308 | AD31: 74 | AE31: <LOD | AF31: 76 | AG31: <LOD | AH31: 42 | AI31: 72 | AJ31: 9 | AK31: 6358 | AL31: 31 | AM31: <LOD | AN31: 37 | AO31: 19 | AP31: 2 | AQ31: 14 | AR31: 2 | AS31: 8 | AT31: 1 | AU31: 18 | AV31: 1 | AW31: <LOD | AX31: 2 | AY31: 142 | AZ31: 1 | BA31: 101 | BB31: 1 | BC31: 16 | BD31: 1 | BE31: 170 | BF31: 1 | BG31: 3 | BH31: 1 | BI31: 7 | BJ31: 1 | BK31: <LOD | BL31: 57 | BM31: <LOD | BN31: 23 | BO31: <LOD | BP31: 32 | BQ31: <LOD | BR31: 45 | BS31: 478 | BT31: 10 | BU31: <LOD | BV31: 1389 | BW31: <LOD | BX31: 1809 | BY31: <LOD | BZ31: 2659 | CA31: <LOD | CB31: 3597 | CC31: <LOD | CD31: 12 | CE31: 5 | CF31: 1 | CG31: 127 | CH31: 2 | CI31: <LOD | CJ31: 44 | CK31: 35 | CL31: 2 | CM31: 7 | CN31: 1 | CO31: 663548 | CP31: 883 | CQ31: 40 | CR31: 40 | CS31: 40
A32: 842781 | B32: 16 | D32: 2022-06-23 | E32: 09:50:52 | F32: Geochem(3-Beam) | H32: 16 | I32: No | L32: PPM | M32: <LOD | N32: 0 | O32: 7420 | P32: 626 | Q32: 61125 | R32: 284 | S32: 361421 | T32: 514 | U32: 482 | V32: 18 | W32: 602 | X32: 23 | Y32: 52304 | Z32: 109 | AA32: 2091 | AB32: 22 | AC32: 1582 | AD32: 71 | AE32: <LOD | AF32: 72 | AG32: 35 | AH32: 10 | AI32: 28 | AJ32: 8 | AK32: 4089 | AL32: 21 | AM32: <LOD | AN32: 29 | AO32: 14 | AP32: 2 | AQ32: 9 | AR32: 2 | AS32: 5 | AT32: 1 | AU32: <LOD | AV32: 3 | AW32: <LOD | AX32: 2 | AY32: 171 | AZ32: 1 | BA32: 106 | BB32: 1 | BC32: 23 | BD32: 1 | BE32: 215 | BF32: 1 | BG32: 4 | BH32: 1 | BI32: 6 | BJ32: 1 | BK32: <LOD | BL32: 52 | BM32: <LOD | BN32: 21 | BO32: <LOD | BP32: 30 | BQ32: <LOD | BR32: 41 | BS32: 829 | BT32: 14 | BU32: <LOD | BV32: 1307 | BW32: 116 | BX32: 28 | BY32: <LOD | BZ32: 2509 | CA32: <LOD | CB32: 3390 | CC32: <LOD | CD32: 11 | CE32: 5 | CF32: 1 | CG32: 13 | CH32: 1 | CI32: <LOD | CJ32: 40 | CK32: 26 | CL32: 2 | CM32: 6 | CN32: 1 | CO32: 507275 | CP32: 583 | CQ32: 40 | CR32: 40 | CS32: 40
A33: 842781 | B33: 17 | D33: 2022-06-23 | E33: 09:53:39 | F33: Geochem(3-Beam) | H33: 17 | I33: No | L33: PPM | M33: <LOD | N33: 0 | O33: 4493 | P33: 621 | Q33: 47024 | R33: 258 | S33: 353286 | T33: 507 | U33: 248 | V33: 17 | W33: 415 | X33: 22 | Y33: 37804 | Z33: 84 | AA33: 2623 | AB33: 21 | AC33: 2256 | AD33: 72 | AE33: <LOD | AF33: 70 | AG33: <LOD | AH33: 37 | AI33: 28 | AJ33: 8 | AK33: 4630 | AL33: 23 | AM33: <LOD | AN33: 29 | AO33: 57 | AP33: 2 | AQ33: 140 | AR33: 3 | AS33: <LOD | AT33: 6 | AU33: <LOD | AV33: 3 | AW33: <LOD | AX33: 2 | AY33: 115 | AZ33: 1 | BA33: 62 | BB33: 1 | BC33: 16 | BD33: 1 | BE33: 199 | BF33: 1 | BG33: 5 | BH33: 1 | BI33: 6 | BJ33: 1 | BK33: <LOD | BL33: 52 | BM33: <LOD | BN33: 21 | BO33: 17 | BP33: 5 | BQ33: <LOD | BR33: 40 | BS33: 548 | BT33: 12 | BU33: <LOD | BV33: 1297 | BW33: <LOD | BX33: 1688 | BY33: <LOD | BZ33: 2486 | CA33: <LOD | CB33: 3384 | CC33: <LOD | CD33: 10 | CE33: 5 | CF33: 1 | CG33: 12 | CH33: 1 | CI33: <LOD | CJ33: 39 | CK33: 26 | CL33: 2 | CM33: 7 | CN33: 1 | CO33: 545979 | CP33: 586 | CQ33: 40 | CR33: 40 | CS33: 40
A34: 842781 | B34: 18 | D34: 2022-06-23 | E34: 09:56:23 | F34: Geochem(3-Beam) | H34: 18 | I34: No | L34: PPM | M34: <LOD | N34: 0 | O34: 4435 | P34: 670 | Q34: 46217 | R34: 264 | S34: 348906 | T34: 528 | U34: 153 | V34: 17 | W34: <LOD | X34: 135 | Y34: 25964 | Z34: 66 | AA34: 1833 | AB34: 19 | AC34: 820 | AD34: 67 | AE34: <LOD | AF34: 65 | AG34: <LOD | AH34: 37 | AI34: <LOD | AJ34: 334 | AK34: 2321 | AL34: 16 | AM34: <LOD | AN34: 23 | AO34: 6 | AP34: 2 | AQ34: 10 | AR34: 2 | AS34: <LOD | AT34: 6 | AU34: <LOD | AV34: 3 | AW34: <LOD | AX34: 2 | AY34: 73 | AZ34: 1 | BA34: 34 | BB34: 1 | BC34: 12 | BD34: 1 | BE34: 73 | BF34: 1 | BG34: <LOD | BH34: 4 | BI34: 5 | BJ34: 1 | BK34: <LOD | BL34: 53 | BM34: <LOD | BN34: 21 | BO34: <LOD | BP34: 30 | BQ34: <LOD | BR34: 42 | BS34: 307 | BT34: 11 | BU34: <LOD | BV34: 1321 | BW34: <LOD | BX34: 1723 | BY34: <LOD | BZ34: 2544 | CA34: <LOD | CB34: 3415 | CC34: <LOD | CD34: 10 | CE34: <LOD | CF34: 8 | CG34: 11 | CH34: 1 | CI34: <LOD | CJ34: 39 | CK34: 27 | CL34: 2 | CM34: 6 | CN34: 1 | CO34: 568788 | CP34: 623 | CQ34: 40 | CR34: 40 | CS34: 40
A35: 842781 | B35: 19 | D35: 2022-06-23 | E35: 09:59:09 | F35: Geochem(3-Beam) | H35: 19 | I35: No | L35: PPM | M35: <LOD | N35: 0 | O35: <LOD | P35: 3578 | Q35: 34238 | R35: 278 | S35: 353431 | T35: 500 | U35: <LOD | V35: 98 | W35: 286 | X35: 30 | Y35: 34061 | Z35: 86 | AA35: 893 | AB35: 22 | AC35: 641 | AD35: 79 | AE35: <LOD | AF35: 79 | AG35: <LOD | AH35: 45 | AI35: <LOD | AJ35: 370 | AK35: 1839 | AL35: 17 | AM35: <LOD | AN35: 25 | AO35: 8 | AP35: 2 | AQ35: 8 | AR35: 2 | AS35: <LOD | AT35: 7 | AU35: <LOD | AV35: 4 | AW35: <LOD | AX35: 3 | AY35: 75 | AZ35: 1 | BA35: 34 | BB35: 1 | BC35: 7 | BD35: 1 | BE35: 97 | BF35: 1 | BG35: <LOD | BH35: 5 | BI35: 6 | BJ35: 1 | BK35: <LOD | BL35: 60 | BM35: <LOD | BN35: 26 | BO35: 20 | BP35: 6 | BQ35: <LOD | BR35: 50 | BS35: 282 | BT35: 10 | BU35: <LOD | BV35: 1497 | BW35: <LOD | BX35: 1948 | BY35: <LOD | BZ35: 2882 | CA35: <LOD | CB35: 3891 | CC35: <LOD | CD35: 13 | CE35: 5 | CF35: 1 | CG35: 9 | CH35: 1 | CI35: <LOD | CJ35: 47 | CK35: 37 | CL35: 2 | CM35: 7 | CN35: 1 | CO35: 574017 | CP35: 515 | CQ35: 40 | CR35: 40 | CS35: 40
A36: 842781 | B36: 20 | D36: 2022-06-23 | E36: 10:01:42 | F36: Geochem(3-Beam) | H36: 20 | I36: No | L36: PPM | M36: <LOD | N36: 0 | O36: 6782 | P36: 681 | Q36: 38901 | R36: 246 | S36: 345720 | T36: 528 | U36: 230 | V36: 17 | W36: <LOD | X36: 139 | Y36: 18316 | Z36: 52 | AA36: 3528 | AB36: 20 | AC36: 420 | AD36: 63 | AE36: <LOD | AF36: 63 | AG36: <LOD | AH36: 37 | AI36: 48 | AJ36: 7 | AK36: 3455 | AL36: 20 | AM36: <LOD | AN36: 25 | AO36: 8 | AP36: 2 | AQ36: 14 | AR36: 2 | AS36: 5 | AT36: 1 | AU36: <LOD | AV36: 3 | AW36: <LOD | AX36: 2 | AY36: 55 | AZ36: 1 | BA36: 37 | BB36: 1 | BC36: 7 | BD36: 1 | BE36: 40 | BF36: 1 | BG36: <LOD | BH36: 4 | BI36: 4 | BJ36: 1 | BK36: <LOD | BL36: 54 | BM36: <LOD | BN36: 21 | BO36: <LOD | BP36: 30 | BQ36: <LOD | BR36: 41 | BS36: 237 | BT36: 11 | BU36: 63 | BV36: 18 | BW36: <LOD | BX36: 1697 | BY36: <LOD | BZ36: 2500 | CA36: <LOD | CB36: 3379 | CC36: <LOD | CD36: 10 | CE36: <LOD | CF36: 8 | CG36: 19 | CH36: 1 | CI36: <LOD | CJ36: 39 | CK36: 27 | CL36: 2 | CM36: 5 | CN36: 1 | CO36: 582081 | CP36: 630 | CQ36: 40 | CR36: 40 | CS36: 40
A37: 842781 | B37: 21 | D37: 2022-06-23 | E37: 10:04:04 | F37: Geochem(3-Beam) | H37: 21 | I37: No | L37: PPM | M37: <LOD | N37: 0 | O37: 2190 | P37: 597 | Q37: 28646 | R37: 214 | S37: 397399 | T37: 528 | U37: 369 | V37: 18 | W37: <LOD | X37: 121 | Y37: 25538 | Z37: 62 | AA37: 1234 | AB37: 17 | AC37: 778 | AD37: 66 | AE37: <LOD | AF37: 64 | AG37: <LOD | AH37: 36 | AI37: <LOD | AJ37: 285 | AK37: 2000 | AL37: 15 | AM37: <LOD | AN37: 21 | AO37: 23 | AP37: 2 | AQ37: 57 | AR37: 2 | AS37: <LOD | AT37: 6 | AU37: <LOD | AV37: 3 | AW37: <LOD | AX37: 2 | AY37: 79 | AZ37: 1 | BA37: 31 | BB37: 1 | BC37: 10 | BD37: 1 | BE37: 73 | BF37: 1 | BG37: <LOD | BH37: 4 | BI37: 5 | BJ37: 1 | BK37: <LOD | BL37: 52 | BM37: <LOD | BN37: 21 | BO37: <LOD | BP37: 30 | BQ37: <LOD | BR37: 41 | BS37: 347 | BT37: 11 | BU37: 71 | BV37: 19 | BW37: 141 | BX37: 25 | BY37: <LOD | BZ37: 2482 | CA37: <LOD | CB37: 3379 | CC37: <LOD | CD37: 10 | CE37: 4 | CF37: 1 | CG37: 7 | CH37: 1 | CI37: <LOD | CJ37: 39 | CK37: 26 | CL37: 2 | CM37: 7 | CN37: 1 | CO37: 540966 | CP37: 579 | CQ37: 40 | CR37: 40 | CS37: 40
A38: 842781 | B38: 22 | D38: 2022-06-23 | E38: 10:06:53 | F38: Geochem(3-Beam) | H38: 22 | I38: No | L38: PPM | M38: <LOD | N38: 0 | O38: 5488 | P38: 703 | Q38: 44788 | R38: 270 | S38: 337356 | T38: 535 | U38: 399 | V38: 19 | W38: 601 | X38: 25 | Y38: 34356 | Z38: 84 | AA38: 5078 | AB38: 26 | AC38: 708 | AD38: 68 | AE38: <LOD | AF38: 69 | AG38: <LOD | AH38: 39 | AI38: <LOD | AJ38: 332 | AK38: 2188 | AL38: 16 | AM38: <LOD | AN38: 23 | AO38: 40 | AP38: 2 | AQ38: 109 | AR38: 3 | AS38: <LOD | AT38: 7 | AU38: <LOD | AV38: 3 | AW38: <LOD | AX38: 2 | AY38: 93 | AZ38: 1 | BA38: 68 | BB38: 1 | BC38: 13 | BD38: 1 | BE38: 69 | BF38: 1 | BG38: <LOD | BH38: 4 | BI38: 5 | BJ38: 1 | BK38: <LOD | BL38: 56 | BM38: <LOD | BN38: 22 | BO38: 18 | BP38: 5 | BQ38: <LOD | BR38: 43 | BS38: 419 | BT38: 11 | BU38: <LOD | BV38: 1359 | BW38: <LOD | BX38: 1772 | BY38: <LOD | BZ38: 2621 | CA38: <LOD | CB38: 3532 | CC38: <LOD | CD38: 11 | CE38: <LOD | CF38: 8 | CG38: 10 | CH38: 1 | CI38: <LOD | CJ38: 41 | CK38: 29 | CL38: 2 | CM38: 6 | CN38: 1 | CO38: 568157 | CP38: 642 | CQ38: 40 | CR38: 40 | CS38: 40
A39: 842781 | B39: 23 | D39: 2022-06-23 | E39: 10:10:04 | F39: Geochem(3-Beam) | H39: 23 | I39: No | L39: PPM | M39: <LOD | N39: 0 | O39: 5299 | P39: 656 | Q39: 47266 | R39: 263 | S39: 337817 | T39: 511 | U39: 254 | V39: 17 | W39: 797 | X39: 24 | Y39: 28649 | Z39: 70 | AA39: 3194 | AB39: 21 | AC39: 322 | AD39: 63 | AE39: <LOD | AF39: 63 | AG39: <LOD | AH39: 37 | AI39: <LOD | AJ39: 321 | AK39: 2436 | AL39: 16 | AM39: <LOD | AN39: 22 | AO39: 12 | AP39: 2 | AQ39: 49 | AR39: 2 | AS39: <LOD | AT39: 6 | AU39: <LOD | AV39: 3 | AW39: <LOD | AX39: 2 | AY39: 85 | AZ39: 1 | BA39: 46 | BB39: 1 | BC39: 11 | BD39: 1 | BE39: 55 | BF39: 1 | BG39: <LOD | BH39: 4 | BI39: 5 | BJ39: 1 | BK39: <LOD | BL39: 52 | BM39: <LOD | BN39: 21 | BO39: 21 | BP39: 5 | BQ39: <LOD | BR39: 41 | BS39: 407 | BT39: 11 | BU39: <LOD | BV39: 1313 | BW39: <LOD | BX39: 1715 | BY39: <LOD | BZ39: 2531 | CA39: <LOD | CB39: 3405 | CC39: <LOD | CD39: 10 | CE39: 3 | CF39: 1 | CG39: 8 | CH39: 1 | CI39: <LOD | CJ39: 39 | CK39: 26 | CL39: 2 | CM39: 6 | CN39: 1 | CO39: 573233 | CP39: 611 | CQ39: 40 | CR39: 40 | CS39: 40
A40: 842781 | B40: 24 | D40: 2022-06-23 | E40: 10:13:05 | F40: Geochem(3-Beam) | H40: 24 | I40: No | L40: PPM | M40: <LOD | N40: 0 | O40: 5530 | P40: 648 | Q40: 43030 | R40: 255 | S40: 350051 | T40: 520 | U40: 317 | V40: 18 | W40: 119 | X40: 23 | Y40: 34857 | Z40: 81 | AA40: 5624 | AB40: 26 | AC40: 681 | AD40: 66 | AE40: <LOD | AF40: 66 | AG40: <LOD | AH40: 37 | AI40: <LOD | AJ40: 303 | AK40: 2191 | AL40: 16 | AM40: <LOD | AN40: 22 | AO40: 35 | AP40: 2 | AQ40: 100 | AR40: 2 | AS40: 6 | AT40: 1 | AU40: <LOD | AV40: 3 | AW40: <LOD | AX40: 2 | AY40: 102 | AZ40: 1 | BA40: 71 | BB40: 1 | BC40: 13 | BD40: 1 | BE40: 73 | BF40: 1 | BG40: <LOD | BH40: 4 | BI40: 4 | BJ40: 1 | BK40: <LOD | BL40: 54 | BM40: <LOD | BN40: 21 | BO40: <LOD | BP40: 30 | BQ40: <LOD | BR40: 41 | BS40: 430 | BT40: 12 | BU40: <LOD | BV40: 1315 | BW40: <LOD | BX40: 1713 | BY40: <LOD | BZ40: 2533 | CA40: <LOD | CB40: 3413 | CC40: <LOD | CD40: 10 | CE40: 3 | CF40: 1 | CG40: 9 | CH40: 1 | CI40: <LOD | CJ40: 40 | CK40: 27 | CL40: 2 | CM40: 7 | CN40: 1 | CO40: 556718 | CP40: 607 | CQ40: 40 | CR40: 40 | CS40: 40
A41: 842781 | B41: 25 | D41: 2022-06-23 | E41: 10:15:44 | F41: Geochem(3-Beam) | H41: 25 | I41: No | L41: PPM | M41: <LOD | N41: 0 | O41: 1435 | P41: 467 | Q41: <LOD | R41: 456 | S41: 523888 | T41: 498 | U41: <LOD | V41: 42 | W41: <LOD | X41: 78 | Y41: <LOD | Z41: 107 | AA41: <LOD | AB41: 89 | AC41: <LOD | AD41: 110 | AE41: <LOD | AF41: 51 | AG41: <LOD | AH41: 31 | AI41: <LOD | AJ41: 225 | AK41: 13 | AL41: 4 | AM41: <LOD | AN41: 11 | AO41: <LOD | AP41: 7 | AQ41: <LOD | AR41: 7 | AS41: <LOD | AT41: 5 | AU41: <LOD | AV41: 2 | AW41: <LOD | AX41: 2 | AY41: <LOD | AZ41: 2 | BA41: <LOD | BB41: 2 | BC41: <LOD | BD41: 3 | BE41: <LOD | BF41: 4 | BG41: <LOD | BH41: 4 | BI41: 5 | BJ41: 1 | BK41: <LOD | BL41: 50 | BM41: <LOD | BN41: 20 | BO41: <LOD | BP41: 27 | BQ41: <LOD | BR41: 38 | BS41: <LOD | BT41: 704 | BU41: <LOD | BV41: 1247 | BW41: <LOD | BX41: 1612 | BY41: <LOD | BZ41: 2377 | CA41: <LOD | CB41: 3200 | CC41: <LOD | CD41: 9 | CE41: <LOD | CF41: 7 | CG41: 3 | CH41: 1 | CI41: <LOD | CJ41: 35 | CK41: 20 | CL41: 2 | CM41: 7 | CN41: 1 | CO41: 474628 | CP41: 488 | CQ41: 40 | CR41: 40 | CS41: 40
A42: 842781 | B42: 26 | D42: 2022-06-23 | E42: 10:19:53 | F42: Geochem(3-Beam) | H42: 26 | I42: No | L42: PPM | M42: <LOD | N42: 0 | O42: 5863 | P42: 666 | Q42: 43073 | R42: 258 | S42: 349178 | T42: 526 | U42: 239 | V42: 18 | W42: 1171 | X42: 25 | Y42: 33064 | Z42: 79 | AA42: 4929 | AB42: 25 | AC42: 538 | AD42: 67 | AE42: <LOD | AF42: 66 | AG42: <LOD | AH42: 38 | AI42: <LOD | AJ42: 317 | AK42: 2226 | AL42: 16 | AM42: <LOD | AN42: 22 | AO42: 21 | AP42: 2 | AQ42: 98 | AR42: 2 | AS42: 5 | AT42: 1 | AU42: <LOD | AV42: 3 | AW42: <LOD | AX42: 2 | AY42: 110 | AZ42: 1 | BA42: 77 | BB42: 1 | BC42: 10 | BD42: 1 | BE42: 47 | BF42: 1 | BG42: <LOD | BH42: 4 | BI42: <LOD | BJ42: 6 | BK42: <LOD | BL42: 54 | BM42: <LOD | BN42: 21 | BO42: <LOD | BP42: 30 | BQ42: <LOD | BR42: 42 | BS42: 484 | BT42: 12 | BU42: 59 | BV42: 19 | BW42: 79 | BX42: 24 | BY42: <LOD | BZ42: 2513 | CA42: <LOD | CB42: 3411 | CC42: <LOD | CD42: 10 | CE42: 5 | CF42: 1 | CG42: 10 | CH42: 1 | CI42: <LOD | CJ42: 40 | CK42: 29 | CL42: 2 | CM42: 7 | CN42: 1 | CO42: 558678 | CP42: 617 | CQ42: 40 | CR42: 40 | CS42: 40
A43: 842781 | B43: 27 | D43: 2022-06-23 | E43: 10:22:41 | F43: Geochem(3-Beam) | H43: 27 | I43: No | L43: PPM | M43: <LOD | N43: 0 | O43: 12751 | P43: 726 | Q43: 69698 | R43: 319 | S43: 314987 | T43: 523 | U43: 490 | V43: 19 | W43: 1429 | X43: 27 | Y43: 50199 | Z43: 114 | AA43: 3133 | AB43: 25 | AC43: 3261 | AD43: 82 | AE43: <LOD | AF43: 83 | AG43: <LOD | AH43: 42 | AI43: 29 | AJ43: 8 | AK43: 6783 | AL43: 30 | AM43: <LOD | AN43: 37 | AO43: 20 | AP43: 2 | AQ43: <LOD | AR43: 9 | AS43: 4 | AT43: 1 | AU43: <LOD | AV43: 4 | AW43: <LOD | AX43: 2 | AY43: 180 | AZ43: 1 | BA43: 105 | BB43: 1 | BC43: 31 | BD43: 1 | BE43: 614 | BF43: 2 | BG43: 10 | BH43: 1 | BI43: 9 | BJ43: 1 | BK43: <LOD | BL43: 55 | BM43: <LOD | BN43: 22 | BO43: <LOD | BP43: 31 | BQ43: <LOD | BR43: 42 | BS43: 740 | BT43: 13 | BU43: <LOD | BV43: 1347 | BW43: <LOD | BX43: 1749 | BY43: <LOD | BZ43: 2587 | CA43: <LOD | CB43: 3499 | CC43: <LOD | CD43: 11 | CE43: 6 | CF43: 1 | CG43: 14 | CH43: 1 | CI43: <LOD | CJ43: 43 | CK43: 36 | CL43: 2 | CM43: 8 | CN43: 1 | CO43: 535460 | CP43: 645 | CQ43: 40 | CR43: 40 | CS43: 40
A44: 842781 | B44: 28 | D44: 2022-06-23 | E44: 10:25:07 | F44: Geochem(3-Beam) | H44: 28 | I44: No | L44: PPM | M44: <LOD | N44: 0 | O44: 6480 | P44: 641 | Q44: 41388 | R44: 250 | S44: 366072 | T44: 528 | U44: 413 | V44: 18 | W44: 1736 | X44: 27 | Y44: 36099 | Z44: 83 | AA44: 3207 | AB44: 22 | AC44: 906 | AD44: 68 | AE44: <LOD | AF44: 67 | AG44: <LOD | AH44: 38 | AI44: 28 | AJ44: 8 | AK44: 3365 | AL44: 19 | AM44: <LOD | AN44: 26 | AO44: 25 | AP44: 2 | AQ44: 66 | AR44: 2 | AS44: 6 | AT44: 1 | AU44: <LOD | AV44: 3 | AW44: <LOD | AX44: 2 | AY44: 120 | AZ44: 1 | BA44: 66 | BB44: 1 | BC44: 18 | BD44: 1 | BE44: 143 | BF44: 1 | BG44: <LOD | BH44: 4 | BI44: 5 | BJ44: 1 | BK44: <LOD | BL44: 53 | BM44: <LOD | BN44: 21 | BO44: 18 | BP44: 5 | BQ44: <LOD | BR44: 41 | BS44: 569 | BT44: 13 | BU44: <LOD | BV44: 1297 | BW44: <LOD | BX44: 1677 | BY44: 147 | BZ44: 40 | CA44: <LOD | CB44: 3360 | CC44: <LOD | CD44: 10 | CE44: 4 | CF44: 1 | CG44: 12 | CH44: 1 | CI44: <LOD | CJ44: 40 | CK44: 27 | CL44: 2 | CM44: 7 | CN44: 1 | CO44: 539074 | CP44: 600 | CQ44: 40 | CR44: 40 | CS44: 40
A45: 842781 | B45: 29 | D45: 2022-06-23 | E45: 10:27:56 | F45: Geochem(3-Beam) | H45: 29 | I45: No | L45: PPM | M45: <LOD | N45: 0 | O45: 5892 | P45: 644 | Q45: 45204 | R45: 256 | S45: 350817 | T45: 516 | U45: 183 | V45: 17 | W45: <LOD | X45: 129 | Y45: 27554 | Z45: 67 | AA45: 3011 | AB45: 20 | AC45: 937 | AD45: 66 | AE45: <LOD | AF45: 65 | AG45: <LOD | AH45: 36 | AI45: <LOD | AJ45: 310 | AK45: 3285 | AL45: 19 | AM45: <LOD | AN45: 25 | AO45: 22 | AP45: 2 | AQ45: 34 | AR45: 2 | AS45: <LOD | AT45: 6 | AU45: <LOD | AV45: 3 | AW45: <LOD | AX45: 2 | AY45: 78 | AZ45: 1 | BA45: 44 | BB45: 1 | BC45: 11 | BD45: 1 | BE45: 73 | BF45: 1 | BG45: <LOD | BH45: 4 | BI45: 3 | BJ45: 1 | BK45: <LOD | BL45: 53 | BM45: <LOD | BN45: 21 | BO45: 18 | BP45: 5 | BQ45: <LOD | BR45: 41 | BS45: 347 | BT45: 11 | BU45: <LOD | BV45: 1302 | BW45: <LOD | BX45: 1690 | BY45: <LOD | BZ45: 2490 | CA45: <LOD | CB45: 3368 | CC45: <LOD | CD45: 10 | CE45: 3 | CF45: 1 | CG45: 8 | CH45: 1 | CI45: <LOD | CJ45: 39 | CK45: 34 | CL45: 2 | CM45: 7 | CN45: 1 | CO45: 562437 | CP45: 604 | CQ45: 40 | CR45: 40 | CS45: 40
A46: 842781 | B46: 30 | D46: 2022-06-23 | E46: 10:30:39 | F46: Geochem(3-Beam) | H46: 30 | I46: No | L46: PPM | M46: <LOD | N46: 0 | O46: 7977 | P46: 658 | Q46: 59531 | R46: 289 | S46: 349654 | T46: 526 | U46: 488 | V46: 19 | W46: 168 | X46: 23 | Y46: 48553 | Z46: 106 | AA46: 718 | AB46: 20 | AC46: 2598 | AD46: 78 | AE46: <LOD | AF46: 80 | AG46: <LOD | AH46: 40 | AI46: 25 | AJ46: 8 | AK46: 8013 | AL46: 32 | AM46: <LOD | AN46: 38 | AO46: 11 | AP46: 2 | AQ46: <LOD | AR46: 9 | AS46: 8 | AT46: 1 | AU46: <LOD | AV46: 3 | AW46: <LOD | AX46: 2 | AY46: 158 | AZ46: 1 | BA46: 71 | BB46: 1 | BC46: 24 | BD46: 1 | BE46: 382 | BF46: 2 | BG46: 8 | BH46: 1 | BI46: 8 | BJ46: 1 | BK46: <LOD | BL46: 52 | BM46: <LOD | BN46: 21 | BO46: 18 | BP46: 5 | BQ46: <LOD | BR46: 42 | BS46: 753 | BT46: 13 | BU46: <LOD | BV46: 1334 | BW46: <LOD | BX46: 1741 | BY46: <LOD | BZ46: 2564 | CA46: <LOD | CB46: 3495 | CC46: <LOD | CD46: 11 | CE46: 4 | CF46: 1 | CG46: 13 | CH46: 1 | CI46: <LOD | CJ46: 41 | CK46: 31 | CL46: 2 | CM46: 6 | CN46: 1 | CO46: 520781 | CP46: 608 | CQ46: 40 | CR46: 40 | CS46: 40
A47: 842781 | B47: 31 | D47: 2022-06-23 | E47: 10:33:21 | F47: Geochem(3-Beam) | H47: 31 | I47: No | L47: PPM | M47: <LOD | N47: 0 | O47: 6325 | P47: 763 | Q47: 44328 | R47: 280 | S47: 303570 | T47: 538 | U47: 106 | V47: 18 | W47: 148 | X47: 23 | Y47: 29504 | Z47: 79 | AA47: 3074 | AB47: 22 | AC47: 645 | AD47: 68 | AE47: <LOD | AF47: 69 | AG47: <LOD | AH47: 40 | AI47: <LOD | AJ47: 387 | AK47: 4325 | AL47: 23 | AM47: <LOD | AN47: 30 | AO47: 13 | AP47: 2 | AQ47: 31 | AR47: 2 | AS47: <LOD | AT47: 7 | AU47: <LOD | AV47: 3 | AW47: <LOD | AX47: 2 | AY47: 91 | AZ47: 1 | BA47: 53 | BB47: 1 | BC47: 13 | BD47: 1 | BE47: 59 | BF47: 1 | BG47: <LOD | BH47: 4 | BI47: 8 | BJ47: 1 | BK47: <LOD | BL47: 57 | BM47: <LOD | BN47: 22 | BO47: <LOD | BP47: 31 | BQ47: <LOD | BR47: 43 | BS47: 324 | BT47: 11 | BU47: <LOD | BV47: 1378 | BW47: <LOD | BX47: 1792 | BY47: <LOD | BZ47: 2643 | CA47: <LOD | CB47: 3562 | CC47: <LOD | CD47: 11 | CE47: 4 | CF47: 1 | CG47: 10 | CH47: 1 | CI47: <LOD | CJ47: 41 | CK47: 32 | CL47: 2 | CM47: 7 | CN47: 1 | CO47: 607330 | CP47: 693 | CQ47: 40 | CR47: 40 | CS47: 40
A48: 842781 | B48: 32 | D48: 2022-06-23 | E48: 10:36:54 | F48: Geochem(3-Beam) | H48: 32 | I48: No | L48: PPM | M48: <LOD | N48: 0 | O48: 2847 | P48: 606 | Q48: 24733 | R48: 205 | S48: 400938 | T48: 536 | U48: 335 | V48: 18 | W48: 85 | X48: 22 | Y48: 24150 | Z48: 61 | AA48: 2317 | AB48: 19 | AC48: 200 | AD48: 64 | AE48: <LOD | AF48: 63 | AG48: <LOD | AH48: 37 | AI48: 23 | AJ48: 8 | AK48: 3257 | AL48: 19 | AM48: <LOD | AN48: 25 | AO48: 17 | AP48: 2 | AQ48: 62 | AR48: 2 | AS48: <LOD | AT48: 6 | AU48: <LOD | AV48: 3 | AW48: <LOD | AX48: 2 | AY48: 70 | AZ48: 1 | BA48: 53 | BB48: 1 | BC48: 12 | BD48: 1 | BE48: 44 | BF48: 1 | BG48: <LOD | BH48: 4 | BI48: 6 | BJ48: 1 | BK48: <LOD | BL48: 52 | BM48: <LOD | BN48: 21 | BO48: 15 | BP48: 5 | BQ48: <LOD | BR48: 41 | BS48: 343 | BT48: 11 | BU48: <LOD | BV48: 1293 | BW48: <LOD | BX48: 1677 | BY48: <LOD | BZ48: 2482 | CA48: <LOD | CB48: 3353 | CC48: <LOD | CD48: 10 | CE48: 4 | CF48: 1 | CG48: 9 | CH48: 1 | CI48: <LOD | CJ48: 39 | CK48: 30 | CL48: 2 | CM48: 7 | CN48: 1 | CO48: 540444 | CP48: 586 | CQ48: 40 | CR48: 40 | CS48: 40
A49: 842781 | B49: 33 | D49: 2022-06-23 | E49: 10:40:03 | F49: Geochem(3-Beam) | H49: 33 | I49: No | L49: PPM | M49: <LOD | N49: 0 | O49: 5401 | P49: 611 | Q49: 43657 | R49: 248 | S49: 374645 | T49: 518 | U49: 254 | V49: 17 | W49: 1019 | X49: 24 | Y49: 35030 | Z49: 79 | AA49: 3261 | AB49: 22 | AC49: 234 | AD49: 63 | AE49: <LOD | AF49: 64 | AG49: <LOD | AH49: 37 | AI49: 23 | AJ49: 8 | AK49: 3193 | AL49: 19 | AM49: <LOD | AN49: 25 | AO49: 25 | AP49: 2 | AQ49: 103 | AR49: 3 | AS49: <LOD | AT49: 6 | AU49: <LOD | AV49: 3 | AW49: <LOD | AX49: 2 | AY49: 104 | AZ49: 1 | BA49: 60 | BB49: 1 | BC49: 14 | BD49: 1 | BE49: 56 | BF49: 1 | BG49: <LOD | BH49: 4 | BI49: 6 | BJ49: 1 | BK49: <LOD | BL49: 51 | BM49: <LOD | BN49: 21 | BO49: <LOD | BP49: 30 | BQ49: <LOD | BR49: 41 | BS49: 469 | BT49: 12 | BU49: <LOD | BV49: 1300 | BW49: <LOD | BX49: 1693 | BY49: <LOD | BZ49: 2501 | CA49: <LOD | CB49: 3377 | CC49: <LOD | CD49: 10 | CE49: 4 | CF49: 1 | CG49: 9 | CH49: 1 | CI49: <LOD | CJ49: 39 | CK49: 28 | CL49: 2 | CM49: 6 | CN49: 1 | CO49: 532399 | CP49: 580 | CQ49: 40 | CR49: 40 | CS49: 40
A50: 842781 | B50: 34 | D50: 2022-06-23 | E50: 10:42:46 | F50: Geochem(3-Beam) | H50: 34 | I50: No | L50: PPM | M50: <LOD | N50: 0 | O50: 8016 | P50: 649 | Q50: 52276 | R50: 272 | S50: 354728 | T50: 520 | U50: 285 | V50: 18 | W50: 1622 | X50: 26 | Y50: 40747 | Z50: 91 | AA50: 2537 | AB50: 22 | AC50: 1158 | AD50: 69 | AE50: <LOD | AF50: 69 | AG50: 48 | AH50: 10 | AI50: <LOD | AJ50: 304 | AK50: 3870 | AL50: 21 | AM50: <LOD | AN50: 28 | AO50: 20 | AP50: 2 | AQ50: 10 | AR50: 2 | AS50: <LOD | AT50: 6 | AU50: <LOD | AV50: 3 | AW50: <LOD | AX50: 2 | AY50: 133 | AZ50: 1 | BA50: 76 | BB50: 1 | BC50: 21 | BD50: 1 | BE50: 86 | BF50: 1 | BG50: <LOD | BH50: 4 | BI50: 5 | BJ50: 1 | BK50: <LOD | BL50: 52 | BM50: <LOD | BN50: 21 | BO50: 16 | BP50: 5 | BQ50: <LOD | BR50: 42 | BS50: 623 | BT50: 12 | BU50: <LOD | BV50: 1290 | BW50: <LOD | BX50: 1670 | BY50: <LOD | BZ50: 2470 | CA50: <LOD | CB50: 3351 | CC50: <LOD | CD50: 10 | CE50: 3 | CF50: 1 | CG50: 12 | CH50: 1 | CI50: <LOD | CJ50: 40 | CK50: 25 | CL50: 2 | CM50: 7 | CN50: 1 | CO50: 533674 | CP50: 600 | CQ50: 40 | CR50: 40 | CS50: 40
A51: 842781 | B51: 35 | D51: 2022-06-23 | E51: 10:45:17 | F51: Geochem(3-Beam) | H51: 35 | I51: No | L51: PPM | M51: <LOD | N51: 0 | O51: 10784 | P51: 660 | Q51: 44890 | R51: 256 | S51: 357103 | T51: 523 | U51: 510 | V51: 19 | W51: 2505 | X51: 29 | Y51: 33187 | Z51: 78 | AA51: 2610 | AB51: 21 | AC51: 1303 | AD51: 68 | AE51: <LOD | AF51: 70 | AG51: <LOD | AH51: 38 | AI51: <LOD | AJ51: 312 | AK51: 4254 | AL51: 22 | AM51: <LOD | AN51: 29 | AO51: 15 | AP51: 2 | AQ51: 14 | AR51: 2 | AS51: 4 | AT51: 1 | AU51: <LOD | AV51: 3 | AW51: <LOD | AX51: 2 | AY51: 112 | AZ51: 1 | BA51: 73 | BB51: 1 | BC51: 18 | BD51: 1 | BE51: 164 | BF51: 1 | BG51: 2 | BH51: 1 | BI51: 6 | BJ51: 1 | BK51: <LOD | BL51: 54 | BM51: <LOD | BN51: 21 | BO51: <LOD | BP51: 29 | BQ51: <LOD | BR51: 41 | BS51: 558 | BT51: 12 | BU51: <LOD | BV51: 1323 | BW51: 78 | BX51: 26 | BY51: <LOD | BZ51: 2545 | CA51: <LOD | CB51: 3442 | CC51: <LOD | CD51: 10 | CE51: 3 | CF51: 1 | CG51: 10 | CH51: 1 | CI51: <LOD | CJ51: 39 | CK51: 25 | CL51: 2 | CM51: 8 | CN51: 1 | CO51: 541762 | CP51: 605 | CQ51: 40 | CR51: 40 | CS51: 40
A52: 842781 | B52: 36 | D52: 2022-06-23 | E52: 10:49:05 | F52: Geochem(3-Beam) | H52: 36 | I52: No | L52: PPM | M52: <LOD | N52: 0 | O52: <LOD | P52: 1523 | Q52: <LOD | R52: 452 | S52: 531340 | T52: 402 | U52: <LOD | V52: 45 | W52: <LOD | X52: 77 | Y52: <LOD | Z52: 107 | AA52: <LOD | AB52: 89 | AC52: <LOD | AD52: 109 | AE52: <LOD | AF52: 52 | AG52: <LOD | AH52: 31 | AI52: <LOD | AJ52: 224 | AK52: <LOD | AL52: 19 | AM52: <LOD | AN52: 11 | AO52: <LOD | AP52: 6 | AQ52: <LOD | AR52: 7 | AS52: <LOD | AT52: 5 | AU52: <LOD | AV52: 2 | AW52: <LOD | AX52: 2 | AY52: <LOD | AZ52: 2 | BA52: <LOD | BB52: 2 | BC52: <LOD | BD52: 3 | BE52: <LOD | BF52: 4 | BG52: <LOD | BH52: 4 | BI52: 5 | BJ52: 1 | BK52: <LOD | BL52: 49 | BM52: <LOD | BN52: 20 | BO52: <LOD | BP52: 27 | BQ52: <LOD | BR52: 38 | BS52: <LOD | BT52: 692 | BU52: <LOD | BV52: 1233 | BW52: <LOD | BX52: 1602 | BY52: <LOD | BZ52: 2366 | CA52: <LOD | CB52: 3179 | CC52: <LOD | CD52: 9 | CE52: <LOD | CF52: 7 | CG52: 2 | CH52: 1 | CI52: <LOD | CJ52: 35 | CK52: 22 | CL52: 2 | CM52: 4 | CN52: 1 | CO52: 468627 | CP52: 402 | CQ52: 40 | CR52: 40 | CS52: 40
A53: 842781 | B53: 37 | D53: 2022-06-23 | E53: 10:53:35 | F53: Geochem(3-Beam) | H53: 37 | I53: No | L53: PPM | M53: <LOD | N53: 0 | O53: 3455 | P53: 605 | Q53: 27519 | R53: 209 | S53: 388855 | T53: 525 | U53: 150 | V53: 16 | W53: <LOD | X53: 126 | Y53: 16997 | Z53: 48 | AA53: 1696 | AB53: 17 | AC53: 313 | AD53: 61 | AE53: <LOD | AF53: 59 | AG53: <LOD | AH53: 35 | AI53: <LOD | AJ53: 285 | AK53: 1680 | AL53: 14 | AM53: <LOD | AN53: 20 | AO53: 8 | AP53: 2 | AQ53: 16 | AR53: 2 | AS53: <LOD | AT53: 6 | AU53: <LOD | AV53: 3 | AW53: <LOD | AX53: 2 | AY53: 45 | AZ53: 1 | BA53: 29 | BB53: 1 | BC53: 11 | BD53: 1 | BE53: 47 | BF53: 1 | BG53: <LOD | BH53: 4 | BI53: 6 | BJ53: 1 | BK53: 4 | BL53: 1 | BM53: <LOD | BN53: 21 | BO53: <LOD | BP53: 29 | BQ53: <LOD | BR53: 40 | BS53: 219 | BT53: 11 | BU53: <LOD | BV53: 1300 | BW53: <LOD | BX53: 1682 | BY53: <LOD | BZ53: 2490 | CA53: <LOD | CB53: 3354 | CC53: <LOD | CD53: 10 | CE53: 4 | CF53: 1 | CG53: 6 | CH53: 1 | CI53: <LOD | CJ53: 38 | CK53: 26 | CL53: 2 | CM53: 6 | CN53: 1 | CO53: 558910 | CP53: 586 | CQ53: 40 | CR53: 40 | CS53: 40
A54: 842781 | B54: 38 | D54: 2022-06-23 | E54: 10:56:20 | F54: Geochem(3-Beam) | H54: 38 | I54: No | L54: PPM | M54: <LOD | N54: 0 | O54: 4841 | P54: 591 | Q54: 36165 | R54: 228 | S54: 397571 | T54: 522 | U54: 344 | V54: 18 | W54: 618 | X54: 23 | Y54: 28633 | Z54: 67 | AA54: 2207 | AB54: 19 | AC54: 1998 | AD54: 70 | AE54: <LOD | AF54: 69 | AG54: <LOD | AH54: 37 | AI54: <LOD | AJ54: 276 | AK54: 2628 | AL54: 17 | AM54: <LOD | AN54: 23 | AO54: 12 | AP54: 2 | AQ54: 8 | AR54: 2 | AS54: <LOD | AT54: 6 | AU54: <LOD | AV54: 3 | AW54: <LOD | AX54: 2 | AY54: 91 | AZ54: 1 | BA54: 58 | BB54: 1 | BC54: 18 | BD54: 1 | BE54: 208 | BF54: 1 | BG54: 3 | BH54: 1 | BI54: 6 | BJ54: 1 | BK54: <LOD | BL54: 53 | BM54: <LOD | BN54: 21 | BO54: <LOD | BP54: 29 | BQ54: <LOD | BR54: 40 | BS54: 460 | BT54: 12 | BU54: <LOD | BV54: 1299 | BW54: <LOD | BX54: 1685 | BY54: <LOD | BZ54: 2480 | CA54: <LOD | CB54: 3361 | CC54: <LOD | CD54: 10 | CE54: 5 | CF54: 1 | CG54: 9 | CH54: 1 | CI54: <LOD | CJ54: 39 | CK54: 25 | CL54: 2 | CM54: 7 | CN54: 1 | CO54: 524084 | CP54: 569 | CQ54: 40 | CR54: 40 | CS54: 40
A55: 842781 | B55: 39 | D55: 2022-06-23 | E55: 10:59:04 | F55: Geochem(3-Beam) | H55: 39 | I55: No | L55: PPM | M55: <LOD | N55: 0 | O55: <LOD | P55: 2524 | Q55: 17353 | R55: 185 | S55: 404930 | T55: 442 | U55: 153 | V55: 17 | W55: <LOD | X55: 131 | Y55: 11307 | Z55: 37 | AA55: 1240 | AB55: 15 | AC55: 317 | AD55: 62 | AE55: <LOD | AF55: 60 | AG55: <LOD | AH55: 36 | AI55: <LOD | AJ55: 301 | AK55: 1033 | AL55: 11 | AM55: <LOD | AN55: 18 | AO55: 9 | AP55: 2 | AQ55: 11 | AR55: 2 | AS55: <LOD | AT55: 6 | AU55: <LOD | AV55: 3 | AW55: <LOD | AX55: 2 | AY55: 34 | AZ55: 1 | BA55: 18 | BB55: 0 | BC55: 9 | BD55: 1 | BE55: 46 | BF55: 1 | BG55: <LOD | BH55: 4 | BI55: 3 | BJ55: 1 | BK55: <LOD | BL55: 54 | BM55: <LOD | BN55: 21 | BO55: <LOD | BP55: 30 | BQ55: <LOD | BR55: 41 | BS55: 159 | BT55: 10 | BU55: <LOD | BV55: 1303 | BW55: <LOD | BX55: 1699 | BY55: <LOD | BZ55: 2502 | CA55: <LOD | CB55: 3387 | CC55: <LOD | CD55: 10 | CE55: <LOD | CF55: 8 | CG55: 7 | CH55: 1 | CI55: <LOD | CJ55: 39 | CK55: 28 | CL55: 2 | CM55: 8 | CN55: 1 | CO55: 563336 | CP55: 446 | CQ55: 40 | CR55: 40 | CS55: 40
A56: 842781 | B56: 40 | D56: 2022-06-23 | E56: 11:01:41 | F56: Geochem(3-Beam) | H56: 40 | I56: No | L56: PPM | M56: <LOD | N56: 0 | O56: 1803 | P56: 556 | Q56: 16890 | R56: 173 | S56: 432090 | T56: 525 | U56: 178 | V56: 16 | W56: <LOD | X56: 110 | Y56: 12537 | Z56: 39 | AA56: 527 | AB56: 14 | AC56: 218 | AD56: 60 | AE56: <LOD | AF56: 58 | AG56: <LOD | AH56: 34 | AI56: <LOD | AJ56: 259 | AK56: 937 | AL56: 10 | AM56: <LOD | AN56: 17 | AO56: 12 | AP56: 2 | AQ56: 20 | AR56: 2 | AS56: <LOD | AT56: 6 | AU56: <LOD | AV56: 3 | AW56: <LOD | AX56: 2 | AY56: 39 | AZ56: 1 | BA56: 16 | BB56: 0 | BC56: 9 | BD56: 1 | BE56: 39 | BF56: 1 | BG56: <LOD | BH56: 4 | BI56: 4 | BJ56: 1 | BK56: <LOD | BL56: 52 | BM56: <LOD | BN56: 21 | BO56: 15 | BP56: 4 | BQ56: <LOD | BR56: 40 | BS56: 165 | BT56: 11 | BU56: <LOD | BV56: 1250 | BW56: <LOD | BX56: 1626 | BY56: <LOD | BZ56: 2398 | CA56: <LOD | CB56: 3234 | CC56: <LOD | CD56: 10 | CE56: <LOD | CF56: 8 | CG56: 5 | CH56: 1 | CI56: <LOD | CJ56: 38 | CK56: 28 | CL56: 2 | CM56: 6 | CN56: 1 | CO56: 534462 | CP56: 556 | CQ56: 40 | CR56: 40 | CS56: 40
A57: 842781 | B57: 41 | D57: 2022-06-23 | E57: 11:04:32 | F57: Geochem(3-Beam) | H57: 41 | I57: No | L57: PPM | M57: <LOD | N57: 0 | O57: <LOD | P57: 2614 | Q57: 27939 | R57: 223 | S57: 386134 | T57: 450 | U57: 239 | V57: 18 | W57: <LOD | X57: 131 | Y57: 23261 | Z57: 58 | AA57: 711 | AB57: 17 | AC57: 413 | AD57: 67 | AE57: <LOD | AF57: 66 | AG57: <LOD | AH57: 40 | AI57: <LOD | AJ57: 312 | AK57: 1389 | AL57: 13 | AM57: <LOD | AN57: 20 | AO57: 26 | AP57: 2 | AQ57: 20 | AR57: 2 | AS57: <LOD | AT57: 6 | AU57: <LOD | AV57: 3 | AW57: <LOD | AX57: 2 | AY57: 78 | AZ57: 1 | BA57: 30 | BB57: 1 | BC57: 11 | BD57: 1 | BE57: 52 | BF57: 1 | BG57: <LOD | BH57: 4 | BI57: 5 | BJ57: 1 | BK57: <LOD | BL57: 55 | BM57: <LOD | BN57: 22 | BO57: <LOD | BP57: 31 | BQ57: <LOD | BR57: 43 | BS57: 286 | BT57: 11 | BU57: <LOD | BV57: 1351 | BW57: <LOD | BX57: 1760 | BY57: <LOD | BZ57: 2597 | CA57: <LOD | CB57: 3489 | CC57: <LOD | CD57: 11 | CE57: 4 | CF57: 1 | CG57: 10 | CH57: 1 | CI57: <LOD | CJ57: 41 | CK57: 29 | CL57: 2 | CM57: 6 | CN57: 1 | CO57: 559356 | CP57: 458 | CQ57: 40 | CR57: 40 | CS57: 40
A58: 842781 | B58: 42 | D58: 2022-06-23 | E58: 11:07:45 | F58: Geochem(3-Beam) | H58: 42 | I58: No | L58: PPM | M58: <LOD | N58: 0 | O58: 2098 | P58: 609 | Q58: 21415 | R58: 195 | S58: 402002 | T58: 537 | U58: 322 | V58: 18 | W58: <LOD | X58: 122 | Y58: 17138 | Z58: 48 | AA58: 983 | AB58: 15 | AC58: 226 | AD58: 62 | AE58: <LOD | AF58: 61 | AG58: <LOD | AH58: 35 | AI58: <LOD | AJ58: 296 | AK58: 1106 | AL58: 11 | AM58: <LOD | AN58: 18 | AO58: 12 | AP58: 2 | AQ58: 20 | AR58: 2 | AS58: <LOD | AT58: 6 | AU58: <LOD | AV58: 3 | AW58: <LOD | AX58: 2 | AY58: 48 | AZ58: 1 | BA58: 22 | BB58: 0 | BC58: 8 | BD58: 1 | BE58: 42 | BF58: 1 | BG58: <LOD | BH58: 4 | BI58: 6 | BJ58: 1 | BK58: <LOD | BL58: 53 | BM58: <LOD | BN58: 21 | BO58: 20 | BP58: 5 | BQ58: 30 | BR58: 7 | BS58: 218 | BT58: 11 | BU58: <LOD | BV58: 1294 | BW58: <LOD | BX58: 1678 | BY58: <LOD | BZ58: 2488 | CA58: <LOD | CB58: 3348 | CC58: <LOD | CD58: 10 | CE58: 3 | CF58: 1 | CG58: 7 | CH58: 1 | CI58: <LOD | CJ58: 39 | CK58: 29 | CL58: 2 | CM58: 8 | CN58: 1 | CO58: 554238 | CP58: 591 | CQ58: 40 | CR58: 40 | CS58: 40
A59: 842781 | B59: 43 | D59: 2022-06-23 | E59: 11:10:27 | F59: Geochem(3-Beam) | H59: 43 | I59: No | L59: PPM | M59: <LOD | N59: 0 | O59: 2428 | P59: 590 | Q59: 29925 | R59: 215 | S59: 403017 | T59: 529 | U59: 355 | V59: 18 | W59: 204 | X59: 23 | Y59: 25914 | Z59: 63 | AA59: 1870 | AB59: 19 | AC59: 1431 | AD59: 69 | AE59: <LOD | AF59: 67 | AG59: <LOD | AH59: 37 | AI59: <LOD | AJ59: 278 | AK59: 1924 | AL59: 15 | AM59: <LOD | AN59: 21 | AO59: 16 | AP59: 2 | AQ59: 17 | AR59: 2 | AS59: <LOD | AT59: 6 | AU59: <LOD | AV59: 3 | AW59: <LOD | AX59: 2 | AY59: 85 | AZ59: 1 | BA59: 46 | BB59: 1 | BC59: 11 | BD59: 1 | BE59: 202 | BF59: 1 | BG59: <LOD | BH59: 4 | BI59: 6 | BJ59: 1 | BK59: <LOD | BL59: 51 | BM59: <LOD | BN59: 21 | BO59: <LOD | BP59: 30 | BQ59: <LOD | BR59: 41 | BS59: 384 | BT59: 12 | BU59: <LOD | BV59: 1302 | BW59: <LOD | BX59: 1686 | BY59: <LOD | BZ59: 2499 | CA59: <LOD | CB59: 3382 | CC59: <LOD | CD59: 10 | CE59: 3 | CF59: 1 | CG59: 9 | CH59: 1 | CI59: <LOD | CJ59: 40 | CK59: 31 | CL59: 2 | CM59: 6 | CN59: 1 | CO59: 532118 | CP59: 575 | CQ59: 40 | CR59: 40 | CS59: 40
A60: 842781 | B60: 44 | D60: 2022-06-23 | E60: 11:12:47 | F60: Geochem(3-Beam) | H60: 44 | I60: No | L60: PPM | M60: <LOD | N60: 0 | O60: 4382 | P60: 547 | Q60: 29012 | R60: 202 | S60: 422592 | T60: 511 | U60: 185 | V60: 16 | W60: <LOD | X60: 105 | Y60: 22160 | Z60: 54 | AA60: 679 | AB60: 15 | AC60: 359 | AD60: 60 | AE60: <LOD | AF60: 59 | AG60: <LOD | AH60: 34 | AI60: <LOD | AJ60: 257 | AK60: 1790 | AL60: 14 | AM60: <LOD | AN60: 20 | AO60: 9 | AP60: 1 | AQ60: 9 | AR60: 2 | AS60: 4 | AT60: 1 | AU60: <LOD | AV60: 3 | AW60: <LOD | AX60: 2 | AY60: 67 | AZ60: 1 | BA60: 31 | BB60: 1 | BC60: 11 | BD60: 1 | BE60: 66 | BF60: 1 | BG60: <LOD | BH60: 4 | BI60: 4 | BJ60: 1 | BK60: <LOD | BL60: 51 | BM60: <LOD | BN60: 20 | BO60: <LOD | BP60: 28 | BQ60: <LOD | BR60: 39 | BS60: 339 | BT60: 12 | BU60: <LOD | BV60: 1249 | BW60: <LOD | BX60: 1624 | BY60: <LOD | BZ60: 2398 | CA60: <LOD | CB60: 3254 | CC60: <LOD | CD60: 10 | CE60: 4 | CF60: 1 | CG60: 8 | CH60: 1 | CI60: <LOD | CJ60: 37 | CK60: 23 | CL60: 2 | CM60: 6 | CN60: 1 | CO60: 518260 | CP60: 542 | CQ60: 40 | CR60: 40 | CS60: 40
A61: 842781 | B61: 45 | D61: 2022-06-23 | E61: 11:15:27 | F61: Geochem(3-Beam) | H61: 45 | I61: No | L61: PPM | M61: <LOD | N61: 0 | O61: 2801 | P61: 589 | Q61: 26002 | R61: 204 | S61: 404185 | T61: 528 | U61: 166 | V61: 16 | W61: 78 | X61: 22 | Y61: 20156 | Z61: 53 | AA61: 947 | AB61: 15 | AC61: 526 | AD61: 64 | AE61: <LOD | AF61: 62 | AG61: <LOD | AH61: 35 | AI61: <LOD | AJ61: 280 | AK61: 1295 | AL61: 12 | AM61: <LOD | AN61: 18 | AO61: 13 | AP61: 2 | AQ61: 27 | AR61: 2 | AS61: <LOD | AT61: 6 | AU61: <LOD | AV61: 3 | AW61: <LOD | AX61: 2 | AY61: 63 | AZ61: 1 | BA61: 27 | BB61: 1 | BC61: 11 | BD61: 1 | BE61: 77 | BF61: 1 | BG61: <LOD | BH61: 4 | BI61: 5 | BJ61: 1 | BK61: <LOD | BL61: 52 | BM61: <LOD | BN61: 21 | BO61: <LOD | BP61: 29 | BQ61: <LOD | BR61: 41 | BS61: 257 | BT61: 11 | BU61: <LOD | BV61: 1293 | BW61: <LOD | BX61: 1678 | BY61: <LOD | BZ61: 2482 | CA61: <LOD | CB61: 3349 | CC61: <LOD | CD61: 10 | CE61: 3 | CF61: 1 | CG61: 8 | CH61: 1 | CI61: <LOD | CJ61: 38 | CK61: 27 | CL61: 2 | CM61: 6 | CN61: 1 | CO61: 543319 | CP61: 575 | CQ61: 40 | CR61: 40 | CS61: 40
A62: 842781 | B62: 46 | D62: 2022-06-23 | E62: 11:19:10 | F62: Geochem(3-Beam) | H62: 46 | I62: No | L62: PPM | M62: <LOD | N62: 0 | O62: 2979 | P62: 641 | Q62: 24386 | R62: 207 | S62: 354855 | T62: 520 | U62: 137 | V62: 16 | W62: <LOD | X62: 136 | Y62: 16460 | Z62: 48 | AA62: 729 | AB62: 15 | AC62: 363 | AD62: 63 | AE62: <LOD | AF62: 61 | AG62: <LOD | AH62: 36 | AI62: 23 | AJ62: 7 | AK62: 1174 | AL62: 11 | AM62: <LOD | AN62: 18 | AO62: 7 | AP62: 2 | AQ62: <LOD | AR62: 8 | AS62: <LOD | AT62: 6 | AU62: <LOD | AV62: 3 | AW62: <LOD | AX62: 2 | AY62: 55 | AZ62: 1 | BA62: 23 | BB62: 0 | BC62: 7 | BD62: 1 | BE62: 51 | BF62: 1 | BG62: <LOD | BH62: 4 | BI62: 4 | BJ62: 1 | BK62: <LOD | BL62: 55 | BM62: <LOD | BN62: 21 | BO62: <LOD | BP62: 29 | BQ62: <LOD | BR62: 40 | BS62: 225 | BT62: 10 | BU62: <LOD | BV62: 1348 | BW62: <LOD | BX62: 1749 | BY62: <LOD | BZ62: 2583 | CA62: <LOD | CB62: 3483 | CC62: <LOD | CD62: 10 | CE62: <LOD | CF62: 8 | CG62: 8 | CH62: 1 | CI62: <LOD | CJ62: 38 | CK62: 27 | CL62: 2 | CM62: 7 | CN62: 1 | CO62: 598482 | CP62: 614 | CQ62: 40 | CR62: 40 | CS62: 40
A63: 842781 | B63: 47 | D63: 2022-06-23 | E63: 11:24:32 | F63: Geochem(3-Beam) | H63: 47 | I63: No | L63: PPM | M63: <LOD | N63: 0 | O63: <LOD | P63: 1497 | Q63: <LOD | R63: 450 | S63: 529567 | T63: 402 | U63: <LOD | V63: 42 | W63: <LOD | X63: 78 | Y63: <LOD | Z63: 108 | AA63: <LOD | AB63: 89 | AC63: <LOD | AD63: 109 | AE63: <LOD | AF63: 51 | AG63: <LOD | AH63: 32 | AI63: <LOD | AJ63: 225 | AK63: 39 | AL63: 4 | AM63: <LOD | AN63: 12 | AO63: <LOD | AP63: 7 | AQ63: <LOD | AR63: 7 | AS63: <LOD | AT63: 5 | AU63: <LOD | AV63: 2 | AW63: <LOD | AX63: 2 | AY63: <LOD | AZ63: 2 | BA63: <LOD | BB63: 2 | BC63: <LOD | BD63: 3 | BE63: <LOD | BF63: 4 | BG63: <LOD | BH63: 4 | BI63: 4 | BJ63: 1 | BK63: <LOD | BL63: 50 | BM63: <LOD | BN63: 20 | BO63: <LOD | BP63: 27 | BQ63: <LOD | BR63: 38 | BS63: <LOD | BT63: 695 | BU63: <LOD | BV63: 1232 | BW63: <LOD | BX63: 1598 | BY63: <LOD | BZ63: 2372 | CA63: <LOD | CB63: 3205 | CC63: <LOD | CD63: 9 | CE63: <LOD | CF63: 7 | CG63: 3 | CH63: 1 | CI63: <LOD | CJ63: 35 | CK63: 17 | CL63: 2 | CM63: 6 | CN63: 1 | CO63: 470364 | CP63: 402 | CQ63: 40 | CR63: 40 | CS63: 40
A64: 842781 | B64: 48 | D64: 2022-06-23 | E64: 11:29:34 | F64: Geochem(3-Beam) | H64: 48 | I64: No | L64: PPM | M64: <LOD | N64: 0 | O64: 8952 | P64: 841 | Q64: 54457 | R64: 318 | S64: 268657 | T64: 538 | U64: 354 | V64: 21 | W64: 847 | X64: 27 | Y64: 31787 | Z64: 89 | AA64: 10052 | AB64: 38 | AC64: 930 | AD64: 73 | AE64: <LOD | AF64: 79 | AG64: 39 | AH64: 11 | AI64: 174 | AJ64: 10 | AK64: 10995 | AL64: 43 | AM64: <LOD | AN64: 46 | AO64: 14 | AP64: 2 | AQ64: 10 | AR64: 2 | AS64: 12 | AT64: 2 | AU64: 6 | AV64: 1 | AW64: <LOD | AX64: 2 | AY64: 178 | AZ64: 1 | BA64: 104 | BB64: 1 | BC64: 17 | BD64: 1 | BE64: 92 | BF64: 1 | BG64: <LOD | BH64: 5 | BI64: 7 | BJ64: 1 | BK64: <LOD | BL64: 59 | BM64: <LOD | BN64: 23 | BO64: <LOD | BP64: 33 | BQ64: <LOD | BR64: 45 | BS64: 608 | BT64: 11 | BU64: <LOD | BV64: 1421 | BW64: <LOD | BX64: 1836 | BY64: <LOD | BZ64: 2700 | CA64: <LOD | CB64: 3653 | CC64: <LOD | CD64: 12 | CE64: 6 | CF64: 1 | CG64: 41 | CH64: 1 | CI64: <LOD | CJ64: 44 | CK64: 37 | CL64: 2 | CM64: 7 | CN64: 1 | CO64: 611616 | CP64: 744 | CQ64: 40 | CR64: 40 | CS64: 40
A65: 842781 | B65: 49 | D65: 2022-06-23 | E65: 11:34:06 | F65: Geochem(3-Beam) | H65: 49 | I65: No | L65: PPM | M65: <LOD | N65: 0 | O65: <LOD | P65: 1720 | Q65: 13559 | R65: 155 | S65: 475977 | T65: 415 | U65: 184 | V65: 15 | W65: <LOD | X65: 91 | Y65: 13700 | Z65: 37 | AA65: 444 | AB65: 14 | AC65: 290 | AD65: 58 | AE65: <LOD | AF65: 58 | AG65: <LOD | AH65: 33 | AI65: <LOD | AJ65: 236 | AK65: 641 | AL65: 9 | AM65: <LOD | AN65: 15 | AO65: 5 | AP65: 1 | AQ65: <LOD | AR65: 8 | AS65: <LOD | AT65: 5 | AU65: <LOD | AV65: 3 | AW65: <LOD | AX65: 2 | AY65: 43 | AZ65: 1 | BA65: 18 | BB65: 0 | BC65: 6 | BD65: 1 | BE65: 39 | BF65: 1 | BG65: <LOD | BH65: 4 | BI65: 5 | BJ65: 1 | BK65: <LOD | BL65: 48 | BM65: <LOD | BN65: 20 | BO65: <LOD | BP65: 28 | BQ65: <LOD | BR65: 39 | BS65: 253 | BT65: 12 | BU65: <LOD | BV65: 1225 | BW65: <LOD | BX65: 1594 | BY65: <LOD | BZ65: 2351 | CA65: <LOD | CB65: 3187 | CC65: <LOD | CD65: 10 | CE65: <LOD | CF65: 7 | CG65: 5 | CH65: 1 | CI65: <LOD | CJ65: 36 | CK65: 21 | CL65: 2 | CM65: 6 | CN65: 1 | CO65: 494804 | CP65: 417 | CQ65: 40 | CR65: 40 | CS65: 40
A66: 842781 | B66: 52 | D66: 2022-06-23 | E66: 11:50:44 | F66: Geochem(3-Beam) | H66: 52 | I66: No | L66: PPM | M66: <LOD | N66: 0 | O66: <LOD | P66: 1550 | Q66: <LOD | R66: 455 | S66: 528843 | T66: 403 | U66: <LOD | V66: 42 | W66: 63 | X66: 21 | Y66: <LOD | Z66: 108 | AA66: <LOD | AB66: 89 | AC66: <LOD | AD66: 109 | AE66: <LOD | AF66: 51 | AG66: <LOD | AH66: 32 | AI66: <LOD | AJ66: 225 | AK66: 48 | AL66: 5 | AM66: <LOD | AN66: 12 | AO66: 7 | AP66: 1 | AQ66: <LOD | AR66: 7 | AS66: <LOD | AT66: 5 | AU66: <LOD | AV66: 2 | AW66: <LOD | AX66: 2 | AY66: <LOD | AZ66: 2 | BA66: <LOD | BB66: 2 | BC66: <LOD | BD66: 3 | BE66: <LOD | BF66: 4 | BG66: <LOD | BH66: 4 | BI66: 4 | BJ66: 1 | BK66: <LOD | BL66: 50 | BM66: <LOD | BN66: 20 | BO66: <LOD | BP66: 27 | BQ66: <LOD | BR66: 38 | BS66: <LOD | BT66: 694 | BU66: <LOD | BV66: 1228 | BW66: <LOD | BX66: 1589 | BY66: <LOD | BZ66: 2359 | CA66: <LOD | CB66: 3177 | CC66: <LOD | CD66: 9 | CE66: 3 | CF66: 1 | CG66: <LOD | CH66: 3 | CI66: <LOD | CJ66: 35 | CK66: 20 | CL66: 2 | CM66: 5 | CN66: 1 | CO66: 471005 | CP66: 403 | CQ66: 40 | CR66: 40 | CS66: 40
A67: 842781 | B67: 53 | D67: 2022-06-23 | E67: 11:53:54 | F67: Geochem(3-Beam) | H67: 53 | I67: No | L67: PPM | M67: <LOD | N67: 0 | O67: 3604 | P67: 630 | Q67: 81014 | R67: 325 | S67: 302065 | T67: 482 | U67: 296 | V67: 17 | W67: <LOD | X67: 130 | Y67: 76789 | Z67: 155 | AA67: 804 | AB67: 24 | AC67: 1128 | AD67: 75 | AE67: <LOD | AF67: 80 | AG67: 72 | AH67: 11 | AI67: 36 | AJ67: 9 | AK67: 9834 | AL67: 36 | AM67: <LOD | AN67: 43 | AO67: 31 | AP67: 2 | AQ67: <LOD | AR67: 9 | AS67: 9 | AT67: 1 | AU67: <LOD | AV67: 4 | AW67: <LOD | AX67: 2 | AY67: 299 | AZ67: 1 | BA67: 122 | BB67: 1 | BC67: 33 | BD67: 1 | BE67: 213 | BF67: 1 | BG67: 6 | BH67: 1 | BI67: 6 | BJ67: 1 | BK67: <LOD | BL67: 55 | BM67: 20 | BN67: 4 | BO67: <LOD | BP67: 30 | BQ67: <LOD | BR67: 42 | BS67: 1207 | BT67: 15 | BU67: 77 | BV67: 21 | BW67: 147 | BX67: 27 | BY67: <LOD | BZ67: 2646 | CA67: <LOD | CB67: 3619 | CC67: <LOD | CD67: 11 | CE67: 7 | CF67: 1 | CG67: 21 | CH67: 1 | CI67: <LOD | CJ67: 42 | CK67: 31 | CL67: 2 | CM67: 9 | CN67: 1 | CO67: 522122 | CP67: 596 | CQ67: 40 | CR67: 40 | CS67: 40
A68: 842781 | B68: 55 | D68: 2022-06-23 | E68: 11:58:30 | F68: Geochem(3-Beam) | H68: 55 | I68: No | L68: PPM | M68: <LOD | N68: 0 | O68: 4516 | P68: 648 | Q68: 33262 | R68: 232 | S68: 374812 | T68: 540 | U68: 269 | V68: 18 | W68: 85 | X68: 23 | Y68: 26126 | Z68: 66 | AA68: 3373 | AB68: 21 | AC68: 992 | AD68: 67 | AE68: <LOD | AF68: 67 | AG68: <LOD | AH68: 37 | AI68: <LOD | AJ68: 304 | AK68: 1794 | AL68: 14 | AM68: <LOD | AN68: 21 | AO68: 33 | AP68: 2 | AQ68: 80 | AR68: 2 | AS68: <LOD | AT68: 6 | AU68: <LOD | AV68: 3 | AW68: <LOD | AX68: 2 | AY68: 79 | AZ68: 1 | BA68: 50 | BB68: 1 | BC68: 12 | BD68: 1 | BE68: 104 | BF68: 1 | BG68: <LOD | BH68: 4 | BI68: 7 | BJ68: 1 | BK68: <LOD | BL68: 53 | BM68: <LOD | BN68: 22 | BO68: 19 | BP68: 5 | BQ68: <LOD | BR68: 42 | BS68: 350 | BT68: 11 | BU68: <LOD | BV68: 1326 | BW68: <LOD | BX68: 1719 | BY68: <LOD | BZ68: 2538 | CA68: <LOD | CB68: 3423 | CC68: <LOD | CD68: 11 | CE68: 4 | CF68: 1 | CG68: 9 | CH68: 1 | CI68: <LOD | CJ68: 40 | CK68: 30 | CL68: 2 | CM68: 8 | CN68: 1 | CO68: 553987 | CP68: 611 | CQ68: 40 | CR68: 40 | CS68: 40
A69: 842781 | B69: 56 | D69: 2022-06-23 | E69: 12:01:49 | F69: Geochem(3-Beam) | H69: 56 | I69: No | L69: PPM | M69: <LOD | N69: 0 | O69: 9747 | P69: 1060 | Q69: 35476 | R69: 304 | S69: 239895 | T69: 581 | U69: 480 | V69: 24 | W69: 464 | X69: 31 | Y69: 18747 | Z69: 68 | AA69: 14417 | AB69: 52 | AC69: 893 | AD69: 77 | AE69: <LOD | AF69: 80 | AG69: <LOD | AH69: 47 | AI69: 117 | AJ69: 10 | AK69: 6499 | AL69: 34 | AM69: <LOD | AN69: 38 | AO69: 19 | AP69: 2 | AQ69: 16 | AR69: 2 | AS69: 7 | AT69: 2 | AU69: 2 | AV69: 1 | AW69: <LOD | AX69: 3 | AY69: 73 | AZ69: 1 | BA69: 87 | BB69: 1 | BC69: 8 | BD69: 1 | BE69: 101 | BF69: 1 | BG69: <LOD | BH69: 5 | BI69: 9 | BJ69: 1 | BK69: <LOD | BL69: 63 | BM69: <LOD | BN69: 25 | BO69: <LOD | BP69: 35 | BQ69: <LOD | BR69: 49 | BS69: 184 | BT69: 9 | BU69: <LOD | BV69: 1499 | BW69: <LOD | BX69: 1927 | BY69: <LOD | BZ69: 2821 | CA69: <LOD | CB69: 3808 | CC69: <LOD | CD69: 13 | CE69: 6 | CF69: 1 | CG69: 17 | CH69: 1 | CI69: <LOD | CJ69: 47 | CK69: 40 | CL69: 2 | CM69: 9 | CN69: 1 | CO69: 672689 | CP69: 916 | CQ69: 40 | CR69: 40 | CS69: 40
A70: 842781 | B70: 57 | D70: 2022-06-23 | E70: 12:04:29 | F70: Geochem(3-Beam) | H70: 57 | I70: No | L70: PPM | M70: <LOD | N70: 0 | O70: 5627 | P70: 633 | Q70: 60802 | R70: 288 | S70: 342901 | T70: 511 | U70: 742 | V70: 20 | W70: 3307 | X70: 30 | Y70: 53233 | Z70: 113 | AA70: 4695 | AB70: 27 | AC70: 1417 | AD70: 73 | AE70: <LOD | AF70: 76 | AG70: 29 | AH70: 10 | AI70: <LOD | AJ70: 295 | AK70: 3833 | AL70: 21 | AM70: <LOD | AN70: 28 | AO70: 14 | AP70: 2 | AQ70: 10 | AR70: 2 | AS70: <LOD | AT70: 7 | AU70: <LOD | AV70: 4 | AW70: <LOD | AX70: 2 | AY70: 171 | AZ70: 1 | BA70: 108 | BB70: 1 | BC70: 23 | BD70: 1 | BE70: 270 | BF70: 1 | BG70: 4 | BH70: 1 | BI70: 8 | BJ70: 1 | BK70: <LOD | BL70: 53 | BM70: <LOD | BN70: 22 | BO70: <LOD | BP70: 31 | BQ70: <LOD | BR70: 42 | BS70: 773 | BT70: 13 | BU70: <LOD | BV70: 1334 | BW70: 94 | BX70: 27 | BY70: <LOD | BZ70: 2552 | CA70: <LOD | CB70: 3476 | CC70: <LOD | CD70: 11 | CE70: 4 | CF70: 1 | CG70: 14 | CH70: 1 | CI70: <LOD | CJ70: 42 | CK70: 33 | CL70: 2 | CM70: 8 | CN70: 1 | CO70: 521880 | CP70: 594 | CQ70: 40 | CR70: 40 | CS70: 40
A71: 842781 | B71: 59 | D71: 2022-06-23 | E71: 12:12:33 | F71: Geochem(3-Beam) | H71: 59 | I71: No | L71: PPM | M71: <LOD | N71: 0 | O71: <LOD | P71: 1742 | Q71: <LOD | R71: 488 | S71: 506320 | T71: 418 | U71: <LOD | V71: 48 | W71: 95 | X71: 22 | Y71: <LOD | Z71: 124 | AA71: <LOD | AB71: 101 | AC71: <LOD | AD71: 123 | AE71: <LOD | AF71: 53 | AG71: <LOD | AH71: 34 | AI71: <LOD | AJ71: 250 | AK71: 45 | AL71: 5 | AM71: <LOD | AN71: 12 | AO71: 7 | AP71: 1 | AQ71: <LOD | AR71: 7 | AS71: <LOD | AT71: 5 | AU71: <LOD | AV71: 2 | AW71: <LOD | AX71: 2 | AY71: <LOD | AZ71: 2 | BA71: <LOD | BB71: 2 | BC71: <LOD | BD71: 3 | BE71: <LOD | BF71: 4 | BG71: <LOD | BH71: 4 | BI71: 4 | BJ71: 1 | BK71: <LOD | BL71: 53 | BM71: <LOD | BN71: 20 | BO71: <LOD | BP71: 28 | BQ71: <LOD | BR71: 39 | BS71: <LOD | BT71: 720 | BU71: <LOD | BV71: 1278 | BW71: <LOD | BX71: 1657 | BY71: <LOD | BZ71: 2443 | CA71: <LOD | CB71: 3291 | CC71: <LOD | CD71: 9 | CE71: 3 | CF71: 1 | CG71: 3 | CH71: 1 | CI71: <LOD | CJ71: 36 | CK71: 25 | CL71: 2 | CM71: 5 | CN71: 1 | CO71: 493493 | CP71: 418 | CQ71: 40 | CR71: 40 | CS71: 40
A72: 842781 | B72: 60 | D72: 2022-06-23 | E72: 12:15:33 | F72: Geochem(3-Beam) | H72: 60 | I72: No | L72: PPM | M72: <LOD | N72: 0 | O72: 6280 | P72: 637 | Q72: 65872 | R72: 297 | S72: 340122 | T72: 512 | U72: 464 | V72: 19 | W72: 2496 | X72: 28 | Y72: 57669 | Z72: 121 | AA72: 4526 | AB72: 27 | AC72: 3216 | AD72: 82 | AE72: <LOD | AF72: 82 | AG72: 33 | AH72: 10 | AI72: <LOD | AJ72: 291 | AK72: 4499 | AL72: 23 | AM72: <LOD | AN72: 30 | AO72: 20 | AP72: 2 | AQ72: 10 | AR72: 2 | AS72: <LOD | AT72: 7 | AU72: <LOD | AV72: 4 | AW72: <LOD | AX72: 2 | AY72: 192 | AZ72: 1 | BA72: 112 | BB72: 1 | BC72: 23 | BD72: 1 | BE72: 460 | BF72: 2 | BG72: 9 | BH72: 1 | BI72: 9 | BJ72: 1 | BK72: <LOD | BL72: 55 | BM72: <LOD | BN72: 22 | BO72: 22 | BP72: 5 | BQ72: <LOD | BR72: 42 | BS72: 916 | BT72: 14 | BU72: <LOD | BV72: 1357 | BW72: 113 | BX72: 28 | BY72: <LOD | BZ72: 2598 | CA72: 225 | CB72: 60 | CC72: <LOD | CD72: 11 | CE72: 7 | CF72: 1 | CG72: 15 | CH72: 1 | CI72: <LOD | CJ72: 42 | CK72: 30 | CL72: 2 | CM72: 7 | CN72: 1 | CO72: 512649 | CP72: 597 | CQ72: 40 | CR72: 40 | CS72: 40
A73: 842781 | B73: 61 | D73: 2022-06-23 | E73: 12:18:12 | F73: Geochem(3-Beam) | H73: 61 | I73: No | L73: PPM | M73: <LOD | N73: 0 | O73: 5174 | P73: 626 | Q73: 55367 | R73: 278 | S73: 352806 | T73: 515 | U73: 293 | V73: 18 | W73: 2405 | X73: 27 | Y73: 54887 | Z73: 115 | AA73: 5080 | AB73: 27 | AC73: 1034 | AD73: 72 | AE73: <LOD | AF73: 73 | AG73: 43 | AH73: 10 | AI73: <LOD | AJ73: 286 | AK73: 3162 | AL73: 19 | AM73: <LOD | AN73: 26 | AO73: 13 | AP73: 2 | AQ73: 10 | AR73: 2 | AS73: 6 | AT73: 1 | AU73: <LOD | AV73: 3 | AW73: <LOD | AX73: 2 | AY73: 182 | AZ73: 1 | BA73: 110 | BB73: 1 | BC73: 21 | BD73: 1 | BE73: 121 | BF73: 1 | BG73: 2 | BH73: 1 | BI73: 6 | BJ73: 1 | BK73: <LOD | BL73: 54 | BM73: <LOD | BN73: 22 | BO73: 16 | BP73: 5 | BQ73: <LOD | BR73: 42 | BS73: 838 | BT73: 14 | BU73: <LOD | BV73: 1340 | BW73: <LOD | BX73: 1734 | BY73: <LOD | BZ73: 2564 | CA73: <LOD | CB73: 3479 | CC73: <LOD | CD73: 11 | CE73: 5 | CF73: 1 | CG73: 15 | CH73: 1 | CI73: <LOD | CJ73: 41 | CK73: 29 | CL73: 2 | CM73: 7 | CN73: 1 | CO73: 518365 | CP73: 590 | CQ73: 40 | CR73: 40 | CS73: 40
A74: 842781 | B74: 63 | D74: 2022-06-23 | E74: 12:21:32 | F74: Geochem(3-Beam) | H74: 63 | I74: No | L74: PPM | M74: <LOD | N74: 0 | O74: 4870 | P74: 595 | Q74: 28539 | R74: 212 | S74: 419634 | T74: 538 | U74: 306 | V74: 18 | W74: 1086 | X74: 25 | Y74: 28724 | Z74: 68 | AA74: 2437 | AB74: 20 | AC74: 536 | AD74: 66 | AE74: <LOD | AF74: 65 | AG74: <LOD | AH74: 37 | AI74: <LOD | AJ74: 275 | AK74: 1768 | AL74: 14 | AM74: <LOD | AN74: 21 | AO74: 7 | AP74: 2 | AQ74: 7 | AR74: 2 | AS74: <LOD | AT74: 6 | AU74: <LOD | AV74: 3 | AW74: <LOD | AX74: 2 | AY74: 87 | AZ74: 1 | BA74: 53 | BB74: 1 | BC74: 13 | BD74: 1 | BE74: 89 | BF74: 1 | BG74: <LOD | BH74: 4 | BI74: 7 | BJ74: 1 | BK74: <LOD | BL74: 51 | BM74: <LOD | BN74: 21 | BO74: <LOD | BP74: 30 | BQ74: <LOD | BR74: 41 | BS74: 391 | BT74: 12 | BU74: <LOD | BV74: 1291 | BW74: <LOD | BX74: 1671 | BY74: <LOD | BZ74: 2453 | CA74: 175 | CB74: 56 | CC74: <LOD | CD74: 10 | CE74: 5 | CF74: 1 | CG74: 9 | CH74: 1 | CI74: <LOD | CJ74: 40 | CK74: 28 | CL74: 2 | CM74: 6 | CN74: 1 | CO74: 511223 | CP74: 573 | CQ74: 40 | CR74: 40 | CS74: 40
A75: 842781 | B75: 64 | D75: 2022-06-23 | E75: 12:23:49 | F75: Geochem(3-Beam) | H75: 64 | I75: No | L75: PPM | M75: <LOD | N75: 0 | O75: 4739 | P75: 612 | Q75: 45452 | R75: 255 | S75: 368122 | T75: 519 | U75: 330 | V75: 18 | W75: 1023 | X75: 25 | Y75: 42297 | Z75: 93 | AA75: 2674 | AB75: 22 | AC75: 1141 | AD75: 69 | AE75: <LOD | AF75: 69 | AG75: <LOD | AH75: 38 | AI75: <LOD | AJ75: 287 | AK75: 2537 | AL75: 17 | AM75: <LOD | AN75: 24 | AO75: 10 | AP75: 2 | AQ75: 16 | AR75: 2 | AS75: <LOD | AT75: 6 | AU75: <LOD | AV75: 3 | AW75: <LOD | AX75: 2 | AY75: 132 | AZ75: 1 | BA75: 72 | BB75: 1 | BC75: 17 | BD75: 1 | BE75: 121 | BF75: 1 | BG75: <LOD | BH75: 4 | BI75: 7 | BJ75: 1 | BK75: <LOD | BL75: 54 | BM75: <LOD | BN75: 21 | BO75: <LOD | BP75: 30 | BQ75: <LOD | BR75: 41 | BS75: 670 | BT75: 13 | BU75: <LOD | BV75: 1311 | BW75: <LOD | BX75: 1722 | BY75: <LOD | BZ75: 2537 | CA75: <LOD | CB75: 3436 | CC75: <LOD | CD75: 10 | CE75: 4 | CF75: 1 | CG75: 14 | CH75: 1 | CI75: <LOD | CJ75: 40 | CK75: 29 | CL75: 2 | CM75: 8 | CN75: 1 | CO75: 530585 | CP75: 585 | CQ75: 40 | CR75: 40 | CS75: 40
A76: 842781 | B76: 65 | D76: 2022-06-23 | E76: 12:26:50 | F76: Geochem(3-Beam) | H76: 65 | I76: No | L76: PPM | M76: <LOD | N76: 0 | O76: 7195 | P76: 672 | Q76: 55070 | R76: 286 | S76: 337571 | T76: 526 | U76: 388 | V76: 19 | W76: 1678 | X76: 27 | Y76: 46296 | Z76: 105 | AA76: 3166 | AB76: 24 | AC76: 1430 | AD76: 74 | AE76: <LOD | AF76: 75 | AG76: <LOD | AH76: 41 | AI76: <LOD | AJ76: 324 | AK76: 4631 | AL76: 24 | AM76: <LOD | AN76: 31 | AO76: 13 | AP76: 2 | AQ76: <LOD | AR76: 9 | AS76: 7 | AT76: 1 | AU76: <LOD | AV76: 3 | AW76: <LOD | AX76: 2 | AY76: 170 | AZ76: 1 | BA76: 88 | BB76: 1 | BC76: 19 | BD76: 1 | BE76: 141 | BF76: 1 | BG76: <LOD | BH76: 4 | BI76: 4 | BJ76: 1 | BK76: <LOD | BL76: 54 | BM76: <LOD | BN76: 22 | BO76: <LOD | BP76: 31 | BQ76: <LOD | BR76: 43 | BS76: 783 | BT76: 13 | BU76: <LOD | BV76: 1324 | BW76: <LOD | BX76: 1726 | BY76: <LOD | BZ76: 2546 | CA76: <LOD | CB76: 3461 | CC76: <LOD | CD76: 11 | CE76: 4 | CF76: 1 | CG76: 14 | CH76: 1 | CI76: <LOD | CJ76: 42 | CK76: 30 | CL76: 2 | CM76: 6 | CN76: 1 | CO76: 541296 | CP76: 621 | CQ76: 40 | CR76: 40 | CS76: 40
A77: 842781 | B77: 66 | D77: 2022-06-23 | E77: 12:37:42 | F77: Geochem(3-Beam) | H77: 66 | I77: No | L77: PPM | M77: <LOD | N77: 0 | O77: <LOD | P77: 2257 | Q77: <LOD | R77: 504 | S77: 499933 | T77: 425 | U77: <LOD | V77: 51 | W77: 138 | X77: 22 | Y77: <LOD | Z77: 127 | AA77: <LOD | AB77: 106 | AC77: <LOD | AD77: 129 | AE77: <LOD | AF77: 56 | AG77: <LOD | AH77: 34 | AI77: <LOD | AJ77: 261 | AK77: 50 | AL77: 5 | AM77: <LOD | AN77: 12 | AO77: 6 | AP77: 1 | AQ77: <LOD | AR77: 8 | AS77: <LOD | AT77: 6 | AU77: <LOD | AV77: 3 | AW77: <LOD | AX77: 2 | AY77: <LOD | AZ77: 2 | BA77: <LOD | BB77: 2 | BC77: <LOD | BD77: 3 | BE77: <LOD | BF77: 4 | BG77: <LOD | BH77: 4 | BI77: 5 | BJ77: 1 | BK77: 5 | BL77: 1 | BM77: <LOD | BN77: 21 | BO77: <LOD | BP77: 29 | BQ77: <LOD | BR77: 40 | BS77: <LOD | BT77: 725 | BU77: <LOD | BV77: 1279 | BW77: <LOD | BX77: 1654 | BY77: <LOD | BZ77: 2429 | CA77: <LOD | CB77: 3280 | CC77: <LOD | CD77: 10 | CE77: <LOD | CF77: 8 | CG77: 3 | CH77: 1 | CI77: <LOD | CJ77: 37 | CK77: 25 | CL77: 2 | CM77: 7 | CN77: 1 | CO77: 499829 | CP77: 425 | CQ77: 40 | CR77: 40 | CS77: 40
A78: 842781 | B78: 67 | D78: 2022-06-23 | E78: 12:44:10 | F78: Geochem(3-Beam) | H78: 67 | I78: No | L78: PPM | M78: <LOD | N78: 0 | O78: 4155 | P78: 602 | Q78: 62937 | R78: 286 | S78: 359030 | T78: 508 | U78: 291 | V78: 18 | W78: 1839 | X78: 26 | Y78: 59876 | Z78: 121 | AA78: 3528 | AB78: 25 | AC78: 993 | AD78: 71 | AE78: <LOD | AF78: 73 | AG78: <LOD | AH78: 39 | AI78: <LOD | AJ78: 274 | AK78: 5794 | AL78: 26 | AM78: <LOD | AN78: 33 | AO78: 12 | AP78: 2 | AQ78: 11 | AR78: 2 | AS78: <LOD | AT78: 7 | AU78: <LOD | AV78: 3 | AW78: <LOD | AX78: 2 | AY78: 191 | AZ78: 1 | BA78: 93 | BB78: 1 | BC78: 20 | BD78: 1 | BE78: 159 | BF78: 1 | BG78: 3 | BH78: 1 | BI78: 5 | BJ78: 1 | BK78: <LOD | BL78: 53 | BM78: <LOD | BN78: 22 | BO78: <LOD | BP78: 30 | BQ78: <LOD | BR78: 42 | BS78: 916 | BT78: 14 | BU78: <LOD | BV78: 1318 | BW78: <LOD | BX78: 1713 | BY78: <LOD | BZ78: 2534 | CA78: <LOD | CB78: 3435 | CC78: <LOD | CD78: 11 | CE78: 5 | CF78: 1 | CG78: 13 | CH78: 1 | CI78: <LOD | CJ78: 41 | CK78: 28 | CL78: 2 | CM78: 6 | CN78: 1 | CO78: 500094 | CP78: 574 | CQ78: 40 | CR78: 40 | CS78: 40
A79: 842781 | B79: 68 | D79: 2022-06-23 | E79: 12:46:47 | F79: Geochem(3-Beam) | H79: 68 | I79: No | L79: PPM | M79: <LOD | N79: 0 | O79: 3567 | P79: 618 | Q79: 52744 | R79: 272 | S79: 350768 | T79: 512 | U79: 258 | V79: 17 | W79: 1780 | X79: 26 | Y79: 50396 | Z79: 108 | AA79: 3397 | AB79: 24 | AC79: 678 | AD79: 69 | AE79: <LOD | AF79: 70 | AG79: <LOD | AH79: 39 | AI79: <LOD | AJ79: 291 | AK79: 4137 | AL79: 22 | AM79: <LOD | AN79: 29 | AO79: 11 | AP79: 2 | AQ79: 8 | AR79: 2 | AS79: 5 | AT79: 1 | AU79: <LOD | AV79: 3 | AW79: <LOD | AX79: 2 | AY79: 155 | AZ79: 1 | BA79: 87 | BB79: 1 | BC79: 17 | BD79: 1 | BE79: 83 | BF79: 1 | BG79: <LOD | BH79: 4 | BI79: 6 | BJ79: 1 | BK79: <LOD | BL79: 53 | BM79: <LOD | BN79: 22 | BO79: <LOD | BP79: 30 | BQ79: <LOD | BR79: 42 | BS79: 647 | BT79: 13 | BU79: <LOD | BV79: 1333 | BW79: <LOD | BX79: 1724 | BY79: <LOD | BZ79: 2532 | CA79: <LOD | CB79: 3439 | CC79: <LOD | CD79: 11 | CE79: 5 | CF79: 1 | CG79: 15 | CH79: 1 | CI79: <LOD | CJ79: 41 | CK79: 27 | CL79: 2 | CM79: 6 | CN79: 1 | CO79: 531204 | CP79: 589 | CQ79: 40 | CR79: 40 | CS79: 40
A80: 842781 | B80: 69 | D80: 2022-06-23 | E80: 12:49:10 | F80: Geochem(3-Beam) | H80: 69 | I80: No | L80: PPM | M80: <LOD | N80: 0 | O80: <LOD | P80: 2434 | Q80: 37970 | R80: 240 | S80: 355515 | T80: 428 | U80: 263 | V80: 17 | W80: 522 | X80: 23 | Y80: 37206 | Z80: 77 | AA80: 3625 | AB80: 22 | AC80: 435 | AD80: 66 | AE80: <LOD | AF80: 65 | AG80: <LOD | AH80: 38 | AI80: <LOD | AJ80: 303 | AK80: 3344 | AL80: 19 | AM80: <LOD | AN80: 26 | AO80: 9 | AP80: 2 | AQ80: 10 | AR80: 2 | AS80: 4 | AT80: 1 | AU80: <LOD | AV80: 3 | AW80: <LOD | AX80: 2 | AY80: 116 | AZ80: 1 | BA80: 63 | BB80: 1 | BC80: 10 | BD80: 1 | BE80: 59 | BF80: 1 | BG80: <LOD | BH80: 4 | BI80: 4 | BJ80: 1 | BK80: <LOD | BL80: 54 | BM80: <LOD | BN80: 21 | BO80: <LOD | BP80: 30 | BQ80: <LOD | BR80: 41 | BS80: 525 | BT80: 12 | BU80: 81 | BV80: 19 | BW80: 116 | BX80: 25 | BY80: 124 | BZ80: 38 | CA80: <LOD | CB80: 3428 | CC80: <LOD | CD80: 10 | CE80: 5 | CF80: 1 | CG80: 12 | CH80: 1 | CI80: <LOD | CJ80: 40 | CK80: 27 | CL80: 2 | CM80: 6 | CN80: 1 | CO80: 559948 | CP80: 443 | CQ80: 40 | CR80: 40 | CS80: 40
A81: 842781 | B81: 70 | D81: 2022-06-23 | E81: 12:52:04 | F81: Geochem(3-Beam) | H81: 70 | I81: No | L81: PPM | M81: <LOD | N81: 0 | O81: <LOD | P81: 2061 | Q81: 20550 | R81: 184 | S81: 428153 | T81: 427 | U81: 206 | V81: 16 | W81: <LOD | X81: 104 | Y81: 18872 | Z81: 47 | AA81: 921 | AB81: 15 | AC81: 583 | AD81: 62 | AE81: <LOD | AF81: 61 | AG81: <LOD | AH81: 35 | AI81: <LOD | AJ81: 257 | AK81: 1579 | AL81: 13 | AM81: <LOD | AN81: 19 | AO81: 9 | AP81: 2 | AQ81: 14 | AR81: 2 | AS81: <LOD | AT81: 6 | AU81: <LOD | AV81: 3 | AW81: <LOD | AX81: 2 | AY81: 57 | AZ81: 1 | BA81: 25 | BB81: 0 | BC81: 10 | BD81: 1 | BE81: 45 | BF81: 1 | BG81: <LOD | BH81: 4 | BI81: 5 | BJ81: 1 | BK81: <LOD | BL81: 51 | BM81: <LOD | BN81: 21 | BO81: <LOD | BP81: 29 | BQ81: <LOD | BR81: 40 | BS81: 299 | BT81: 11 | BU81: 84 | BV81: 19 | BW81: 96 | BX81: 25 | BY81: <LOD | BZ81: 2435 | CA81: <LOD | CB81: 3277 | CC81: <LOD | CD81: 10 | CE81: <LOD | CF81: 8 | CG81: 8 | CH81: 1 | CI81: <LOD | CJ81: 38 | CK81: 25 | CL81: 2 | CM81: 7 | CN81: 1 | CO81: 528452 | CP81: 431 | CQ81: 40 | CR81: 40 | CS81: 40
A82: 842781 | B82: 71 | D82: 2022-06-23 | E82: 12:54:26 | F82: Geochem(3-Beam) | H82: 71 | I82: No | L82: PPM | M82: <LOD | N82: 0 | O82: 3914 | P82: 659 | Q82: 36533 | R82: 241 | S82: 357665 | T82: 534 | U82: 179 | V82: 17 | W82: 1351 | X82: 26 | Y82: 22651 | Z82: 60 | AA82: 2534 | AB82: 20 | AC82: 373 | AD82: 65 | AE82: <LOD | AF82: 65 | AG82: <LOD | AH82: 37 | AI82: <LOD | AJ82: 317 | AK82: 2709 | AL82: 18 | AM82: <LOD | AN82: 24 | AO82: 11 | AP82: 2 | AQ82: 18 | AR82: 2 | AS82: <LOD | AT82: 6 | AU82: 3 | AV82: 1 | AW82: <LOD | AX82: 2 | AY82: 58 | AZ82: 1 | BA82: 37 | BB82: 1 | BC82: 9 | BD82: 1 | BE82: 67 | BF82: 1 | BG82: <LOD | BH82: 4 | BI82: 5 | BJ82: 1 | BK82: <LOD | BL82: 54 | BM82: <LOD | BN82: 22 | BO82: 21 | BP82: 5 | BQ82: <LOD | BR82: 42 | BS82: 278 | BT82: 11 | BU82: <LOD | BV82: 1331 | BW82: <LOD | BX82: 1722 | BY82: <LOD | BZ82: 2560 | CA82: <LOD | CB82: 3447 | CC82: <LOD | CD82: 10 | CE82: 3 | CF82: 1 | CG82: 8 | CH82: 1 | CI82: <LOD | CJ82: 40 | CK82: 29 | CL82: 2 | CM82: 8 | CN82: 1 | CO82: 571536 | CP82: 621 | CQ82: 40 | CR82: 40 | CS82: 40
A83: 842781 | B83: 72 | D83: 2022-06-23 | E83: 13:12:11 | F83: Geochem(3-Beam) | H83: 72 | I83: No | L83: PPM | M83: <LOD | N83: 0 | O83: 3885 | P83: 723 | Q83: 34463 | R83: 249 | S83: 353905 | T83: 563 | U83: 195 | V83: 19 | W83: 326 | X83: 25 | Y83: 24289 | Z83: 66 | AA83: 2779 | AB83: 21 | AC83: 1470 | AD83: 72 | AE83: <LOD | AF83: 71 | AG83: <LOD | AH83: 38 | AI83: <LOD | AJ83: 349 | AK83: 2492 | AL83: 17 | AM83: <LOD | AN83: 24 | AO83: 16 | AP83: 2 | AQ83: 25 | AR83: 2 | AS83: <LOD | AT83: 6 | AU83: <LOD | AV83: 3 | AW83: <LOD | AX83: 2 | AY83: 63 | AZ83: 1 | BA83: 47 | BB83: 1 | BC83: 11 | BD83: 1 | BE83: 148 | BF83: 1 | BG83: <LOD | BH83: 4 | BI83: 9 | BJ83: 1 | BK83: <LOD | BL83: 56 | BM83: <LOD | BN83: 22 | BO83: <LOD | BP83: 32 | BQ83: <LOD | BR83: 44 | BS83: 248 | BT83: 10 | BU83: <LOD | BV83: 1366 | BW83: <LOD | BX83: 1773 | BY83: <LOD | BZ83: 2612 | CA83: <LOD | CB83: 3525 | CC83: <LOD | CD83: 11 | CE83: 4 | CF83: 1 | CG83: 8 | CH83: 1 | CI83: <LOD | CJ83: 41 | CK83: 30 | CL83: 2 | CM83: 9 | CN83: 1 | CO83: 575582 | CP83: 664 | CQ83: 40 | CR83: 40 | CS83: 40
A84: 842781 | B84: 73 | D84: 2022-06-23 | E84: 13:15:05 | F84: Geochem(3-Beam) | H84: 73 | I84: No | L84: PPM | M84: <LOD | N84: 0 | O84: 2552 | P84: 559 | Q84: 44850 | R84: 242 | S84: 401075 | T84: 508 | U84: 179 | V84: 16 | W84: <LOD | X84: 106 | Y84: 35653 | Z84: 77 | AA84: 844 | AB84: 18 | AC84: 1202 | AD84: 67 | AE84: <LOD | AF84: 66 | AG84: <LOD | AH84: 36 | AI84: <LOD | AJ84: 265 | AK84: 3262 | AL84: 18 | AM84: <LOD | AN84: 25 | AO84: 6 | AP84: 1 | AQ84: <LOD | AR84: 8 | AS84: <LOD | AT84: 6 | AU84: <LOD | AV84: 3 | AW84: <LOD | AX84: 2 | AY84: 96 | AZ84: 1 | BA84: 52 | BB84: 1 | BC84: 12 | BD84: 1 | BE84: 108 | BF84: 1 | BG84: <LOD | BH84: 4 | BI84: 5 | BJ84: 1 | BK84: <LOD | BL84: 51 | BM84: <LOD | BN84: 21 | BO84: <LOD | BP84: 29 | BQ84: <LOD | BR84: 40 | BS84: 512 | BT84: 13 | BU84: <LOD | BV84: 1268 | BW84: <LOD | BX84: 1648 | BY84: <LOD | BZ84: 2436 | CA84: <LOD | CB84: 3299 | CC84: <LOD | CD84: 10 | CE84: 3 | CF84: 1 | CG84: 10 | CH84: 1 | CI84: <LOD | CJ84: 38 | CK84: 26 | CL84: 2 | CM84: 5 | CN84: 1 | CO84: 509548 | CP84: 549 | CQ84: 40 | CR84: 40 | CS84: 40
A85: 842781 | B85: 74 | D85: 2022-06-23 | E85: 13:18:15 | F85: Geochem(3-Beam) | H85: 74 | I85: No | L85: PPM | M85: <LOD | N85: 0 | O85: 3421 | P85: 597 | Q85: 36116 | R85: 231 | S85: 393924 | T85: 527 | U85: 557 | V85: 19 | W85: 1929 | X85: 27 | Y85: 31692 | Z85: 73 | AA85: 2956 | AB85: 21 | AC85: 4410 | AD85: 83 | AE85: <LOD | AF85: 80 | AG85: <LOD | AH85: 38 | AI85: <LOD | AJ85: 268 | AK85: 5100 | AL85: 24 | AM85: <LOD | AN85: 31 | AO85: 13 | AP85: 2 | AQ85: 7 | AR85: 2 | AS85: <LOD | AT85: 6 | AU85: <LOD | AV85: 3 | AW85: <LOD | AX85: 2 | AY85: 105 | AZ85: 1 | BA85: 62 | BB85: 1 | BC85: 26 | BD85: 1 | BE85: 594 | BF85: 2 | BG85: 11 | BH85: 1 | BI85: 9 | BJ85: 1 | BK85: <LOD | BL85: 52 | BM85: <LOD | BN85: 21 | BO85: <LOD | BP85: 29 | BQ85: <LOD | BR85: 40 | BS85: 507 | BT85: 12 | BU85: 70 | BV85: 20 | BW85: 84 | BX85: 26 | BY85: <LOD | BZ85: 2553 | CA85: <LOD | CB85: 3451 | CC85: <LOD | CD85: 10 | CE85: 4 | CF85: 1 | CG85: 9 | CH85: 1 | CI85: <LOD | CJ85: 41 | CK85: 32 | CL85: 2 | CM85: 9 | CN85: 1 | CO85: 518353 | CP85: 575 | CQ85: 40 | CR85: 40 | CS85: 40
A86: 842781 | B86: 76 | D86: 2022-06-23 | E86: 14:02:44 | F86: Geochem(3-Beam) | H86: 76 | I86: No | L86: PPM | M86: <LOD | N86: 0 | O86: <LOD | P86: 1679 | Q86: <LOD | R86: 469 | S86: 522414 | T86: 403 | U86: <LOD | V86: 45 | W86: <LOD | X86: 79 | Y86: <LOD | Z86: 108 | AA86: <LOD | AB86: 91 | AC86: <LOD | AD86: 111 | AE86: <LOD | AF86: 51 | AG86: <LOD | AH86: 32 | AI86: 19 | AJ86: 6 | AK86: 57 | AL86: 4 | AM86: <LOD | AN86: 11 | AO86: 5 | AP86: 1 | AQ86: <LOD | AR86: 7 | AS86: 3 | AT86: 1 | AU86: <LOD | AV86: 2 | AW86: <LOD | AX86: 2 | AY86: <LOD | AZ86: 2 | BA86: <LOD | BB86: 2 | BC86: <LOD | BD86: 3 | BE86: <LOD | BF86: 4 | BG86: <LOD | BH86: 4 | BI86: 4 | BJ86: 1 | BK86: <LOD | BL86: 50 | BM86: <LOD | BN86: 20 | BO86: <LOD | BP86: 27 | BQ86: <LOD | BR86: 38 | BS86: <LOD | BT86: 700 | BU86: <LOD | BV86: 1231 | BW86: <LOD | BX86: 1609 | BY86: <LOD | BZ86: 2375 | CA86: <LOD | CB86: 3185 | CC86: <LOD | CD86: 9 | CE86: <LOD | CF86: 7 | CG86: <LOD | CH86: 3 | CI86: <LOD | CJ86: 35 | CK86: 21 | CL86: 2 | CM86: 5 | CN86: 1 | CO86: 477472 | CP86: 403 | CQ86: 40 | CR86: 40 | CS86: 40
A87: 842781 | B87: 77 | D87: 2022-06-23 | E87: 14:05:23 | F87: Geochem(3-Beam) | H87: 77 | I87: No | L87: PPM | M87: <LOD | N87: 0 | O87: <LOD | P87: 2771 | Q87: 45954 | R87: 284 | S87: 380053 | T87: 476 | U87: 255 | V87: 21 | W87: 255 | X87: 27 | Y87: 50250 | Z87: 105 | AA87: 1338 | AB87: 24 | AC87: 761 | AD87: 76 | AE87: <LOD | AF87: 78 | AG87: 98 | AH87: 12 | AI87: <LOD | AJ87: 314 | AK87: 4474 | AL87: 25 | AM87: <LOD | AN87: 33 | AO87: 52 | AP87: 2 | AQ87: 52 | AR87: 3 | AS87: <LOD | AT87: 7 | AU87: <LOD | AV87: 4 | AW87: <LOD | AX87: 2 | AY87: 158 | AZ87: 1 | BA87: 63 | BB87: 1 | BC87: 18 | BD87: 1 | BE87: 82 | BF87: 1 | BG87: <LOD | BH87: 5 | BI87: 8 | BJ87: 1 | BK87: <LOD | BL87: 56 | BM87: <LOD | BN87: 24 | BO87: <LOD | BP87: 34 | BQ87: <LOD | BR87: 47 | BS87: 633 | BT87: 12 | BU87: 75 | BV87: 20 | BW87: <LOD | BX87: 1769 | BY87: <LOD | BZ87: 2603 | CA87: <LOD | CB87: 3507 | CC87: <LOD | CD87: 12 | CE87: 6 | CF87: 1 | CG87: 13 | CH87: 1 | CI87: <LOD | CJ87: 45 | CK87: 40 | CL87: 2 | CM87: 7 | CN87: 1 | CO87: 515356 | CP87: 494 | CQ87: 40 | CR87: 40 | CS87: 40
A88: 842781 | B88: 78 | D88: 2022-06-23 | E88: 14:07:59 | F88: Geochem(3-Beam) | H88: 78 | I88: No | L88: PPM | M88: <LOD | N88: 0 | O88: 2306 | P88: 660 | Q88: 30449 | R88: 231 | S88: 391068 | T88: 558 | U88: 222 | V88: 18 | W88: 121 | X88: 24 | Y88: 26276 | Z88: 67 | AA88: 2594 | AB88: 20 | AC88: 430 | AD88: 67 | AE88: <LOD | AF88: 66 | AG88: <LOD | AH88: 38 | AI88: 31 | AJ88: 8 | AK88: 3282 | AL88: 20 | AM88: <LOD | AN88: 26 | AO88: 6 | AP88: 2 | AQ88: <LOD | AR88: 9 | AS88: 7 | AT88: 1 | AU88: <LOD | AV88: 3 | AW88: <LOD | AX88: 2 | AY88: 90 | AZ88: 1 | BA88: 58 | BB88: 1 | BC88: 15 | BD88: 1 | BE88: 60 | BF88: 1 | BG88: <LOD | BH88: 4 | BI88: 5 | BJ88: 1 | BK88: <LOD | BL88: 53 | BM88: <LOD | BN88: 22 | BO88: 18 | BP88: 5 | BQ88: <LOD | BR88: 43 | BS88: 382 | BT88: 11 | BU88: <LOD | BV88: 1351 | BW88: <LOD | BX88: 1753 | BY88: <LOD | BZ88: 2583 | CA88: <LOD | CB88: 3504 | CC88: <LOD | CD88: 11 | CE88: <LOD | CF88: 8 | CG88: 9 | CH88: 1 | CI88: <LOD | CJ88: 40 | CK88: 26 | CL88: 2 | CM88: 7 | CN88: 1 | CO88: 542538 | CP88: 619 | CQ88: 40 | CR88: 40 | CS88: 40
A89: 842781 | B89: 79 | D89: 2022-06-23 | E89: 14:10:52 | F89: Geochem(3-Beam) | H89: 79 | I89: No | L89: PPM | M89: <LOD | N89: 0 | O89: 20725 | P89: 1031 | Q89: 34974 | R89: 286 | S89: 213781 | T89: 513 | U89: 559 | V89: 22 | W89: 1738 | X89: 30 | Y89: 11369 | Z89: 45 | AA89: 10723 | AB89: 39 | AC89: 681 | AD89: 66 | AE89: <LOD | AF89: 69 | AG89: <LOD | AH89: 42 | AI89: 240 | AJ89: 10 | AK89: 10626 | AL89: 42 | AM89: <LOD | AN89: 44 | AO89: 13 | AP89: 2 | AQ89: 15 | AR89: 2 | AS89: 11 | AT89: 1 | AU89: 8 | AV89: 1 | AW89: <LOD | AX89: 2 | AY89: 58 | AZ89: 1 | BA89: 86 | BB89: 1 | BC89: 9 | BD89: 1 | BE89: 86 | BF89: 1 | BG89: <LOD | BH89: 4 | BI89: 7 | BJ89: 1 | BK89: <LOD | BL89: 59 | BM89: <LOD | BN89: 22 | BO89: 17 | BP89: 5 | BQ89: <LOD | BR89: 43 | BS89: 164 | BT89: 9 | BU89: 58 | BV89: 16 | BW89: <LOD | BX89: 1786 | BY89: <LOD | BZ89: 2629 | CA89: 147 | CB89: 45 | CC89: <LOD | CD89: 11 | CE89: <LOD | CF89: 9 | CG89: 46 | CH89: 1 | CI89: <LOD | CJ89: 42 | CK89: 36 | CL89: 2 | CM89: 8 | CN89: 1 | CO89: 693815 | CP89: 893 | CQ89: 40 | CR89: 40 | CS89: 40
A90: 842781 | B90: 80 | D90: 2022-06-23 | E90: 14:15:44 | F90: Geochem(3-Beam) | H90: 80 | I90: No | L90: PPM | M90: <LOD | N90: 0 | O90: <LOD | P90: 1604 | Q90: <LOD | R90: 465 | S90: 526228 | T90: 403 | U90: <LOD | V90: 45 | W90: <LOD | X90: 79 | Y90: <LOD | Z90: 109 | AA90: <LOD | AB90: 90 | AC90: <LOD | AD90: 110 | AE90: <LOD | AF90: 52 | AG90: <LOD | AH90: 33 | AI90: <LOD | AJ90: 227 | AK90: 64 | AL90: 5 | AM90: <LOD | AN90: 11 | AO90: <LOD | AP90: 7 | AQ90: <LOD | AR90: 7 | AS90: <LOD | AT90: 5 | AU90: <LOD | AV90: 2 | AW90: <LOD | AX90: 2 | AY90: <LOD | AZ90: 2 | BA90: <LOD | BB90: 2 | BC90: <LOD | BD90: 3 | BE90: <LOD | BF90: 4 | BG90: <LOD | BH90: 4 | BI90: 5 | BJ90: 1 | BK90: <LOD | BL90: 49 | BM90: <LOD | BN90: 20 | BO90: 17 | BP90: 4 | BQ90: 23 | BR90: 6 | BS90: <LOD | BT90: 700 | BU90: <LOD | BV90: 1240 | BW90: <LOD | BX90: 1600 | BY90: <LOD | BZ90: 2370 | CA90: <LOD | CB90: 3180 | CC90: <LOD | CD90: 9 | CE90: <LOD | CF90: 7 | CG90: 2 | CH90: 1 | CI90: <LOD | CJ90: 35 | CK90: 21 | CL90: 2 | CM90: 6 | CN90: 1 | CO90: 473634 | CP90: 403 | CQ90: 40 | CR90: 40 | CS90: 40
A91: 842781 | B91: 81 | D91: 2022-06-23 | E91: 14:18:55 | F91: Geochem(3-Beam) | H91: 81 | I91: No | L91: PPM | M91: <LOD | N91: 0 | O91: 2968 | P91: 661 | Q91: 30613 | R91: 232 | S91: 390766 | T91: 557 | U91: 433 | V91: 19 | W91: 820 | X91: 26 | Y91: 30060 | Z91: 74 | AA91: 1997 | AB91: 20 | AC91: 1554 | AD91: 74 | AE91: <LOD | AF91: 72 | AG91: 31 | AH91: 10 | AI91: 31 | AJ91: 8 | AK91: 2723 | AL91: 18 | AM91: <LOD | AN91: 25 | AO91: 38 | AP91: 2 | AQ91: 60 | AR91: 2 | AS91: <LOD | AT91: 6 | AU91: <LOD | AV91: 3 | AW91: <LOD | AX91: 2 | AY91: 99 | AZ91: 1 | BA91: 56 | BB91: 1 | BC91: 15 | BD91: 1 | BE91: 171 | BF91: 1 | BG91: <LOD | BH91: 4 | BI91: 5 | BJ91: 1 | BK91: <LOD | BL91: 54 | BM91: <LOD | BN91: 22 | BO91: 21 | BP91: 5 | BQ91: <LOD | BR91: 42 | BS91: 409 | BT91: 12 | BU91: <LOD | BV91: 1326 | BW91: 83 | BX91: 25 | BY91: <LOD | BZ91: 2532 | CA91: <LOD | CB91: 3410 | CC91: <LOD | CD91: 11 | CE91: <LOD | CF91: 8 | CG91: 10 | CH91: 1 | CI91: <LOD | CJ91: 41 | CK91: 32 | CL91: 2 | CM91: 8 | CN91: 1 | CO91: 536998 | CP91: 617 | CQ91: 40 | CR91: 40 | CS91: 40
A92: 842781 | B92: 82 | D92: 2022-06-23 | E92: 14:23:12 | F92: Geochem(3-Beam) | H92: 82 | I92: No | L92: PPM | M92: <LOD | N92: 0 | O92: 3507 | P92: 566 | Q92: 22334 | R92: 190 | S92: 429428 | T92: 520 | U92: 373 | V92: 17 | W92: 365 | X92: 22 | Y92: 20208 | Z92: 51 | AA92: 1185 | AB92: 16 | AC92: 458 | AD92: 60 | AE92: <LOD | AF92: 59 | AG92: <LOD | AH92: 35 | AI92: <LOD | AJ92: 254 | AK92: 1568 | AL92: 13 | AM92: <LOD | AN92: 19 | AO92: 17 | AP92: 2 | AQ92: 24 | AR92: 2 | AS92: <LOD | AT92: 6 | AU92: <LOD | AV92: 3 | AW92: <LOD | AX92: 2 | AY92: 65 | AZ92: 1 | BA92: 36 | BB92: 1 | BC92: 10 | BD92: 1 | BE92: 94 | BF92: 1 | BG92: <LOD | BH92: 4 | BI92: <LOD | BJ92: 5 | BK92: <LOD | BL92: 50 | BM92: <LOD | BN92: 20 | BO92: <LOD | BP92: 28 | BQ92: <LOD | BR92: 39 | BS92: 326 | BT92: 12 | BU92: <LOD | BV92: 1255 | BW92: <LOD | BX92: 1638 | BY92: <LOD | BZ92: 2410 | CA92: <LOD | CB92: 3255 | CC92: <LOD | CD92: 10 | CE92: 3 | CF92: 1 | CG92: 6 | CH92: 1 | CI92: <LOD | CJ92: 37 | CK92: 27 | CL92: 2 | CM92: 6 | CN92: 1 | CO92: 519958 | CP92: 550 | CQ92: 40 | CR92: 40 | CS92: 40
A93: 842781 | B93: 83 | D93: 2022-06-23 | E93: 14:26:12 | F93: Geochem(3-Beam) | H93: 83 | I93: No | L93: PPM | M93: <LOD | N93: 0 | O93: 3951 | P93: 617 | Q93: 34069 | R93: 230 | S93: 391061 | T93: 530 | U93: 299 | V93: 18 | W93: 946 | X93: 25 | Y93: 31864 | Z93: 74 | AA93: 2627 | AB93: 20 | AC93: 785 | AD93: 66 | AE93: <LOD | AF93: 67 | AG93: <LOD | AH93: 38 | AI93: <LOD | AJ93: 282 | AK93: 4702 | AL93: 23 | AM93: <LOD | AN93: 29 | AO93: 15 | AP93: 2 | AQ93: 22 | AR93: 2 | AS93: <LOD | AT93: 6 | AU93: <LOD | AV93: 3 | AW93: <LOD | AX93: 2 | AY93: 103 | AZ93: 1 | BA93: 56 | BB93: 1 | BC93: 13 | BD93: 1 | BE93: 88 | BF93: 1 | BG93: <LOD | BH93: 4 | BI93: 7 | BJ93: 1 | BK93: <LOD | BL93: 52 | BM93: <LOD | BN93: 21 | BO93: 18 | BP93: 5 | BQ93: <LOD | BR93: 41 | BS93: 453 | BT93: 12 | BU93: <LOD | BV93: 1305 | BW93: <LOD | BX93: 1686 | BY93: <LOD | BZ93: 2500 | CA93: <LOD | CB93: 3388 | CC93: <LOD | CD93: 10 | CE93: 5 | CF93: 1 | CG93: 10 | CH93: 1 | CI93: <LOD | CJ93: 39 | CK93: 26 | CL93: 2 | CM93: 7 | CN93: 1 | CO93: 528873 | CP93: 584 | CQ93: 40 | CR93: 40 | CS93: 40
A94: 842781 | B94: 84 | D94: 2022-06-23 | E94: 14:28:59 | F94: Geochem(3-Beam) | H94: 84 | I94: No | L94: PPM | M94: <LOD | N94: 0 | O94: 2938 | P94: 770 | Q94: 31652 | R94: 253 | S94: 338072 | T94: 573 | U94: 126 | V94: 18 | W94: 441 | X94: 26 | Y94: 29721 | Z94: 80 | AA94: 1364 | AB94: 20 | AC94: 1196 | AD94: 75 | AE94: <LOD | AF94: 73 | AG94: <LOD | AH94: 41 | AI94: <LOD | AJ94: 365 | AK94: 4025 | AL94: 23 | AM94: <LOD | AN94: 29 | AO94: 8 | AP94: 2 | AQ94: 106 | AR94: 3 | AS94: <LOD | AT94: 7 | AU94: <LOD | AV94: 3 | AW94: <LOD | AX94: 2 | AY94: 84 | AZ94: 1 | BA94: 43 | BB94: 1 | BC94: 12 | BD94: 1 | BE94: 95 | BF94: 1 | BG94: <LOD | BH94: 4 | BI94: 6 | BJ94: 1 | BK94: <LOD | BL94: 56 | BM94: <LOD | BN94: 23 | BO94: 21 | BP94: 5 | BQ94: <LOD | BR94: 44 | BS94: 291 | BT94: 10 | BU94: <LOD | BV94: 1384 | BW94: <LOD | BX94: 1793 | BY94: <LOD | BZ94: 2636 | CA94: <LOD | CB94: 3575 | CC94: <LOD | CD94: 11 | CE94: 4 | CF94: 1 | CG94: 9 | CH94: 1 | CI94: <LOD | CJ94: 42 | CK94: 35 | CL94: 2 | CM94: 7 | CN94: 1 | CO94: 589744 | CP94: 697 | CQ94: 40 | CR94: 40 | CS94: 40
A95: 842781 | B95: 85 | D95: 2022-06-23 | E95: 14:31:36 | F95: Geochem(3-Beam) | H95: 85 | I95: No | L95: PPM | M95: <LOD | N95: 0 | O95: 2615 | P95: 819 | Q95: 27109 | R95: 246 | S95: 332899 | T95: 592 | U95: 151 | V95: 20 | W95: 147 | X95: 27 | Y95: 22315 | Z95: 67 | AA95: 3257 | AB95: 23 | AC95: 319 | AD95: 70 | AE95: <LOD | AF95: 71 | AG95: <LOD | AH95: 42 | AI95: 58 | AJ95: 9 | AK95: 3798 | AL95: 23 | AM95: <LOD | AN95: 29 | AO95: 20 | AP95: 2 | AQ95: 48 | AR95: 2 | AS95: 4 | AT95: 1 | AU95: 2 | AV95: 1 | AW95: <LOD | AX95: 2 | AY95: 72 | AZ95: 1 | BA95: 37 | BB95: 1 | BC95: 9 | BD95: 1 | BE95: 56 | BF95: 1 | BG95: <LOD | BH95: 5 | BI95: 7 | BJ95: 1 | BK95: <LOD | BL95: 58 | BM95: <LOD | BN95: 24 | BO95: <LOD | BP95: 33 | BQ95: <LOD | BR95: 46 | BS95: 253 | BT95: 10 | BU95: <LOD | BV95: 1408 | BW95: <LOD | BX95: 1826 | BY95: <LOD | BZ95: 2684 | CA95: <LOD | CB95: 3623 | CC95: <LOD | CD95: 12 | CE95: <LOD | CF95: 9 | CG95: 17 | CH95: 1 | CI95: <LOD | CJ95: 44 | CK95: 40 | CL95: 2 | CM95: 6 | CN95: 1 | CO95: 606761 | CP95: 736 | CQ95: 40 | CR95: 40 | CS95: 40
A96: 842781 | B96: 86 | D96: 2022-06-23 | E96: 14:34:33 | F96: Geochem(3-Beam) | H96: 86 | I96: No | L96: PPM | M96: <LOD | N96: 0 | O96: <LOD | P96: 1916 | Q96: 20849 | R96: 184 | S96: 446155 | T96: 424 | U96: 229 | V96: 16 | W96: <LOD | X96: 97 | Y96: 22922 | Z96: 52 | AA96: 406 | AB96: 15 | AC96: 504 | AD96: 61 | AE96: <LOD | AF96: 60 | AG96: <LOD | AH96: 36 | AI96: <LOD | AJ96: 244 | AK96: 1143 | AL96: 11 | AM96: <LOD | AN96: 18 | AO96: 11 | AP96: 2 | AQ96: 31 | AR96: 2 | AS96: <LOD | AT96: 6 | AU96: <LOD | AV96: 3 | AW96: <LOD | AX96: 2 | AY96: 76 | AZ96: 1 | BA96: 26 | BB96: 1 | BC96: 12 | BD96: 1 | BE96: 80 | BF96: 1 | BG96: <LOD | BH96: 4 | BI96: 5 | BJ96: 1 | BK96: <LOD | BL96: 49 | BM96: <LOD | BN96: 21 | BO96: <LOD | BP96: 29 | BQ96: <LOD | BR96: 40 | BS96: 377 | BT96: 12 | BU96: <LOD | BV96: 1252 | BW96: <LOD | BX96: 1629 | BY96: <LOD | BZ96: 2414 | CA96: <LOD | CB96: 3246 | CC96: <LOD | CD96: 10 | CE96: <LOD | CF96: 8 | CG96: 9 | CH96: 1 | CI96: <LOD | CJ96: 38 | CK96: 25 | CL96: 2 | CM96: 7 | CN96: 1 | CO96: 507132 | CP96: 427 | CQ96: 40 | CR96: 40 | CS96: 40
A97: 842781 | B97: 87 | D97: 2022-06-23 | E97: 14:37:48 | F97: Geochem(3-Beam) | H97: 87 | I97: No | L97: PPM | M97: <LOD | N97: 0 | O97: <LOD | P97: 2822 | Q97: 26075 | R97: 229 | S97: 383389 | T97: 468 | U97: 224 | V97: 19 | W97: 268 | X97: 26 | Y97: 28239 | Z97: 68 | AA97: 843 | AB97: 19 | AC97: 474 | AD97: 70 | AE97: <LOD | AF97: 69 | AG97: <LOD | AH97: 39 | AI97: <LOD | AJ97: 320 | AK97: 1507 | AL97: 14 | AM97: <LOD | AN97: 21 | AO97: 18 | AP97: 2 | AQ97: 28 | AR97: 2 | AS97: <LOD | AT97: 7 | AU97: <LOD | AV97: 3 | AW97: <LOD | AX97: 2 | AY97: 89 | AZ97: 1 | BA97: 34 | BB97: 1 | BC97: 11 | BD97: 1 | BE97: 68 | BF97: 1 | BG97: <LOD | BH97: 4 | BI97: 6 | BJ97: 1 | BK97: <LOD | BL97: 59 | BM97: <LOD | BN97: 23 | BO97: <LOD | BP97: 32 | BQ97: <LOD | BR97: 45 | BS97: 324 | BT97: 11 | BU97: 57 | BV97: 18 | BW97: <LOD | BX97: 1827 | BY97: 105 | BZ97: 35 | CA97: 198 | CB97: 49 | CC97: <LOD | CD97: 11 | CE97: <LOD | CF97: 9 | CG97: 10 | CH97: 1 | CI97: <LOD | CJ97: 43 | CK97: 34 | CL97: 2 | CM97: 6 | CN97: 1 | CO97: 557991 | CP97: 477 | CQ97: 40 | CR97: 40 | CS97: 40
A98: 842781 | B98: 88 | D98: 2022-06-23 | E98: 14:40:48 | F98: Geochem(3-Beam) | H98: 88 | I98: No | L98: PPM | M98: <LOD | N98: 0 | O98: 3076 | P98: 562 | Q98: 36603 | R98: 226 | S98: 409403 | T98: 515 | U98: 395 | V98: 17 | W98: 77 | X98: 21 | Y98: 35989 | Z98: 78 | AA98: 720 | AB98: 18 | AC98: 2126 | AD98: 72 | AE98: <LOD | AF98: 71 | AG98: <LOD | AH98: 37 | AI98: <LOD | AJ98: 261 | AK98: 3666 | AL98: 20 | AM98: <LOD | AN98: 26 | AO98: 13 | AP98: 2 | AQ98: 9 | AR98: 2 | AS98: 4 | AT98: 1 | AU98: <LOD | AV98: 3 | AW98: <LOD | AX98: 2 | AY98: 118 | AZ98: 1 | BA98: 45 | BB98: 1 | BC98: 20 | BD98: 1 | BE98: 223 | BF98: 1 | BG98: 5 | BH98: 1 | BI98: 4 | BJ98: 1 | BK98: <LOD | BL98: 52 | BM98: <LOD | BN98: 21 | BO98: <LOD | BP98: 29 | BQ98: <LOD | BR98: 40 | BS98: 585 | BT98: 13 | BU98: <LOD | BV98: 1281 | BW98: <LOD | BX98: 1660 | BY98: <LOD | BZ98: 2441 | CA98: <LOD | CB98: 3318 | CC98: <LOD | CD98: 10 | CE98: 5 | CF98: 1 | CG98: 11 | CH98: 1 | CI98: <LOD | CJ98: 39 | CK98: 28 | CL98: 2 | CM98: 7 | CN98: 1 | CO98: 506868 | CP98: 551 | CQ98: 40 | CR98: 40 | CS98: 40
A99: 842781 | B99: 89 | D99: 2022-06-23 | E99: 14:43:17 | F99: Geochem(3-Beam) | H99: 89 | I99: No | L99: PPM | M99: <LOD | N99: 0 | O99: 3655 | P99: 603 | Q99: 48507 | R99: 260 | S99: 379570 | T99: 523 | U99: 261 | V99: 17 | W99: 91 | X99: 22 | Y99: 45628 | Z99: 97 | AA99: 1551 | AB99: 21 | AC99: 968 | AD99: 68 | AE99: <LOD | AF99: 70 | AG99: <LOD | AH99: 39 | AI99: <LOD | AJ99: 277 | AK99: 7780 | AL99: 31 | AM99: <LOD | AN99: 37 | AO99: 12 | AP99: 2 | AQ99: 8 | AR99: 2 | AS99: <LOD | AT99: 6 | AU99: <LOD | AV99: 3 | AW99: <LOD | AX99: 2 | AY99: 147 | AZ99: 1 | BA99: 63 | BB99: 1 | BC99: 17 | BD99: 1 | BE99: 155 | BF99: 1 | BG99: <LOD | BH99: 4 | BI99: 5 | BJ99: 1 | BK99: 4 | BL99: 1 | BM99: <LOD | BN99: 21 | BO99: <LOD | BP99: 30 | BQ99: <LOD | BR99: 41 | BS99: 676 | BT99: 13 | BU99: <LOD | BV99: 1305 | BW99: <LOD | BX99: 1697 | BY99: <LOD | BZ99: 2507 | CA99: <LOD | CB99: 3398 | CC99: <LOD | CD99: 11 | CE99: 4 | CF99: 1 | CG99: 13 | CH99: 1 | CI99: <LOD | CJ99: 40 | CK99: 29 | CL99: 2 | CM99: 7 | CN99: 1 | CO99: 510851 | CP99: 578 | CQ99: 40 | CR99: 40 | CS99: 40
A100: 842781 | B100: 90 | D100: 2022-06-23 | E100: 14:45:56 | F100: Geochem(3-Beam) | H100: 90 | I100: No | L100: PPM | M100: <LOD | N100: 0 | O100: <LOD | P100: 2168 | Q100: 29944 | R100: 216 | S100: 411795 | T100: 434 | U100: 292 | V100: 18 | W100: 168 | X100: 23 | Y100: 33239 | Z100: 69 | AA100: 2273 | AB100: 20 | AC100: 792 | AD100: 66 | AE100: <LOD | AF100: 65 | AG100: <LOD | AH100: 38 | AI100: <LOD | AJ100: 265 | AK100: 3454 | AL100: 19 | AM100: <LOD | AN100: 26 | AO100: 9 | AP100: 2 | AQ100: 5 | AR100: 2 | AS100: 5 | AT100: 1 | AU100: <LOD | AV100: 3 | AW100: <LOD | AX100: 2 | AY100: 107 | AZ100: 1 | BA100: 58 | BB100: 1 | BC100: 14 | BD100: 1 | BE100: 110 | BF100: 1 | BG100: <LOD | BH100: 4 | BI100: 4 | BJ100: 1 | BK100: <LOD | BL100: 53 | BM100: <LOD | BN100: 21 | BO100: <LOD | BP100: 30 | BQ100: <LOD | BR100: 41 | BS100: 471 | BT100: 12 | BU100: <LOD | BV100: 1307 | BW100: <LOD | BX100: 1692 | BY100: <LOD | BZ100: 2514 | CA100: <LOD | CB100: 3389 | CC100: <LOD | CD100: 10 | CE100: 4 | CF100: 1 | CG100: 11 | CH100: 1 | CI100: <LOD | CJ100: 39 | CK100: 26 | CL100: 2 | CM100: 7 | CN100: 1 | CO100: 517212 | CP100: 442 | CQ100: 40 | CR100: 40 | CS100: 40
A101: 842781 | B101: 91 | D101: 2022-06-23 | E101: 14:48:33 | F101: Geochem(3-Beam) | H101: 91 | I101: No | L101: PPM | M101: <LOD | N101: 0 | O101: 1556 | P101: 471 | Q101: <LOD | R101: 458 | S101: 523091 | T101: 501 | U101: <LOD | V101: 42 | W101: <LOD | X101: 78 | Y101: <LOD | Z101: 107 | AA101: <LOD | AB101: 91 | AC101: <LOD | AD101: 110 | AE101: <LOD | AF101: 52 | AG101: <LOD | AH101: 32 | AI101: <LOD | AJ101: 227 | AK101: 49 | AL101: 5 | AM101: <LOD | AN101: 12 | AO101: 6 | AP101: 1 | AQ101: <LOD | AR101: 7 | AS101: <LOD | AT101: 5 | AU101: <LOD | AV101: 2 | AW101: <LOD | AX101: 2 | AY101: <LOD | AZ101: 2 | BA101: <LOD | BB101: 2 | BC101: <LOD | BD101: 3 | BE101: <LOD | BF101: 4 | BG101: <LOD | BH101: 4 | BI101: 6 | BJ101: 1 | BK101: <LOD | BL101: 50 | BM101: <LOD | BN101: 20 | BO101: <LOD | BP101: 27 | BQ101: <LOD | BR101: 38 | BS101: <LOD | BT101: 696 | BU101: <LOD | BV101: 1234 | BW101: <LOD | BX101: 1600 | BY101: <LOD | BZ101: 2366 | CA101: <LOD | CB101: 3191 | CC101: <LOD | CD101: 9 | CE101: <LOD | CF101: 7 | CG101: <LOD | CH101: 3 | CI101: <LOD | CJ101: 35 | CK101: 20 | CL101: 2 | CM101: 6 | CN101: 1 | CO101: 475266 | CP101: 490 | CQ101: 40 | CR101: 40 | CS101: 40
A102: 842781 | B102: 92 | D102: 2022-06-23 | E102: 14:53:41 | F102: Geochem(3-Beam) | H102: 92 | I102: No | L102: PPM | M102: <LOD | N102: 0 | O102: 3678 | P102: 624 | Q102: 29322 | R102: 218 | S102: 366160 | T102: 521 | U102: 176 | V102: 17 | W102: 282 | X102: 22 | Y102: 23310 | Z102: 60 | AA102: 3274 | AB102: 20 | AC102: 635 | AD102: 64 | AE102: <LOD | AF102: 64 | AG102: <LOD | AH102: 37 | AI102: 71 | AJ102: 8 | AK102: 4953 | AL102: 23 | AM102: <LOD | AN102: 29 | AO102: 17 | AP102: 2 | AQ102: 34 | AR102: 2 | AS102: 4 | AT102: 1 | AU102: 2 | AV102: 1 | AW102: <LOD | AX102: 2 | AY102: 73 | AZ102: 1 | BA102: 33 | BB102: 1 | BC102: 11 | BD102: 1 | BE102: 82 | BF102: 1 | BG102: <LOD | BH102: 4 | BI102: 3 | BJ102: 1 | BK102: <LOD | BL102: 51 | BM102: <LOD | BN102: 21 | BO102: <LOD | BP102: 29 | BQ102: <LOD | BR102: 41 | BS102: 353 | BT102: 11 | BU102: <LOD | BV102: 1271 | BW102: <LOD | BX102: 1658 | BY102: <LOD | BZ102: 2448 | CA102: <LOD | CB102: 3304 | CC102: <LOD | CD102: 10 | CE102: 4 | CF102: 1 | CG102: 18 | CH102: 1 | CI102: <LOD | CJ102: 39 | CK102: 28 | CL102: 2 | CM102: 6 | CN102: 1 | CO102: 567469 | CP102: 596 | CQ102: 40 | CR102: 40 | CS102: 40
A103: 842781 | B103: 93 | D103: 2022-06-23 | E103: 14:58:32 | F103: Geochem(3-Beam) | H103: 93 | I103: No | L103: PPM | M103: <LOD | N103: 0 | O103: 3818 | P103: 638 | Q103: 63617 | R103: 299 | S103: 348696 | T103: 524 | U103: 301 | V103: 18 | W103: 151 | X103: 23 | Y103: 65902 | Z103: 137 | AA103: 1386 | AB103: 24 | AC103: 1246 | AD103: 75 | AE103: <LOD | AF103: 79 | AG103: 56 | AH103: 10 | AI103: <LOD | AJ103: 294 | AK103: 12810 | AL103: 43 | AM103: 50 | AN103: 10 | AO103: 18 | AP103: 2 | AQ103: <LOD | AR103: 9 | AS103: 5 | AT103: 1 | AU103: <LOD | AV103: 4 | AW103: <LOD | AX103: 2 | AY103: 231 | AZ103: 1 | BA103: 115 | BB103: 1 | BC103: 25 | BD103: 1 | BE103: 291 | BF103: 1 | BG103: 5 | BH103: 1 | BI103: 6 | BJ103: 1 | BK103: <LOD | BL103: 55 | BM103: <LOD | BN103: 22 | BO103: <LOD | BP103: 31 | BQ103: <LOD | BR103: 42 | BS103: 1047 | BT103: 15 | BU103: <LOD | BV103: 1372 | BW103: <LOD | BX103: 1786 | BY103: <LOD | BZ103: 2658 | CA103: <LOD | CB103: 3587 | CC103: <LOD | CD103: 11 | CE103: 7 | CF103: 1 | CG103: 16 | CH103: 1 | CI103: <LOD | CJ103: 42 | CK103: 31 | CL103: 2 | CM103: 7 | CN103: 1 | CO103: 500161 | CP103: 601 | CQ103: 40 | CR103: 40 | CS103: 40
A104: 842781 | B104: 94 | D104: 2022-06-23 | E104: 15:01:04 | F104: Geochem(3-Beam) | H104: 94 | I104: No | L104: PPM | M104: <LOD | N104: 0 | O104: 8726 | P104: 666 | Q104: 71502 | R104: 312 | S104: 334219 | T104: 515 | U104: 341 | V104: 18 | W104: 2400 | X104: 29 | Y104: 64304 | Z104: 134 | AA104: 3424 | AB104: 27 | AC104: 987 | AD104: 74 | AE104: <LOD | AF104: 76 | AG104: 37 | AH104: 10 | AI104: 26 | AJ104: 8 | AK104: 6166 | AL104: 28 | AM104: <LOD | AN104: 35 | AO104: 16 | AP104: 2 | AQ104: <LOD | AR104: 9 | AS104: 7 | AT104: 1 | AU104: <LOD | AV104: 4 | AW104: <LOD | AX104: 2 | AY104: 243 | AZ104: 1 | BA104: 110 | BB104: 1 | BC104: 26 | BD104: 1 | BE104: 180 | BF104: 1 | BG104: 4 | BH104: 1 | BI104: 6 | BJ104: 1 | BK104: <LOD | BL104: 53 | BM104: <LOD | BN104: 22 | BO104: 16 | BP104: 5 | BQ104: 23 | BR104: 7 | BS104: 1144 | BT104: 15 | BU104: 67 | BV104: 22 | BW104: 88 | BX104: 28 | BY104: <LOD | BZ104: 2519 | CA104: <LOD | CB104: 3425 | CC104: <LOD | CD104: 11 | CE104: 4 | CF104: 1 | CG104: 18 | CH104: 1 | CI104: <LOD | CJ104: 42 | CK104: 31 | CL104: 2 | CM104: 7 | CN104: 1 | CO104: 505877 | CP104: 608 | CQ104: 40 | CR104: 40 | CS104: 40
A105: 842781 | B105: 95 | D105: 2022-06-23 | E105: 15:03:49 | F105: Geochem(3-Beam) | H105: 95 | I105: No | L105: PPM | M105: <LOD | N105: 0 | O105: <LOD | P105: 2061 | Q105: 35962 | R105: 226 | S105: 407283 | T105: 427 | U105: 247 | V105: 17 | W105: 290 | X105: 22 | Y105: 39964 | Z105: 78 | AA105: 2015 | AB105: 20 | AC105: 536 | AD105: 65 | AE105: <LOD | AF105: 67 | AG105: <LOD | AH105: 38 | AI105: 35 | AJ105: 8 | AK105: 2072 | AL105: 15 | AM105: <LOD | AN105: 22 | AO105: 9 | AP105: 2 | AQ105: <LOD | AR105: 8 | AS105: <LOD | AT105: 6 | AU105: <LOD | AV105: 3 | AW105: <LOD | AX105: 2 | AY105: 124 | AZ105: 1 | BA105: 59 | BB105: 1 | BC105: 15 | BD105: 1 | BE105: 77 | BF105: 1 | BG105: <LOD | BH105: 4 | BI105: 6 | BJ105: 1 | BK105: <LOD | BL105: 50 | BM105: <LOD | BN105: 21 | BO105: <LOD | BP105: 30 | BQ105: <LOD | BR105: 41 | BS105: 603 | BT105: 13 | BU105: <LOD | BV105: 1282 | BW105: <LOD | BX105: 1668 | BY105: <LOD | BZ105: 2460 | CA105: 175 | CB105: 57 | CC105: <LOD | CD105: 10 | CE105: 4 | CF105: 1 | CG105: 12 | CH105: 1 | CI105: <LOD | CJ105: 39 | CK105: 26 | CL105: 2 | CM105: 7 | CN105: 1 | CO105: 510479 | CP105: 437 | CQ105: 40 | CR105: 40 | CS105: 40
A106: 842781 | B106: 96 | D106: 2022-06-23 | E106: 15:06:17 | F106: Geochem(3-Beam) | H106: 96 | I106: No | L106: PPM | M106: <LOD | N106: 0 | O106: 6314 | P106: 635 | Q106: 59811 | R106: 286 | S106: 350940 | T106: 515 | U106: 349 | V106: 18 | W106: 2285 | X106: 28 | Y106: 55980 | Z106: 117 | AA106: 4473 | AB106: 27 | AC106: 1762 | AD106: 74 | AE106: <LOD | AF106: 75 | AG106: <LOD | AH106: 41 | AI106: <LOD | AJ106: 288 | AK106: 5490 | AL106: 26 | AM106: <LOD | AN106: 32 | AO106: 15 | AP106: 2 | AQ106: 9 | AR106: 2 | AS106: 8 | AT106: 1 | AU106: <LOD | AV106: 4 | AW106: <LOD | AX106: 2 | AY106: 188 | AZ106: 1 | BA106: 104 | BB106: 1 | BC106: 25 | BD106: 1 | BE106: 232 | BF106: 1 | BG106: 4 | BH106: 1 | BI106: 8 | BJ106: 1 | BK106: <LOD | BL106: 53 | BM106: 12 | BN106: 4 | BO106: 23 | BP106: 5 | BQ106: <LOD | BR106: 42 | BS106: 906 | BT106: 14 | BU106: <LOD | BV106: 1325 | BW106: <LOD | BX106: 1721 | BY106: <LOD | BZ106: 2539 | CA106: <LOD | CB106: 3439 | CC106: <LOD | CD106: 11 | CE106: 4 | CF106: 1 | CG106: 17 | CH106: 1 | CI106: <LOD | CJ106: 41 | CK106: 28 | CL106: 2 | CM106: 6 | CN106: 1 | CO106: 511006 | CP106: 592 | CQ106: 40 | CR106: 40 | CS106: 40
A107: 842781 | B107: 97 | D107: 2022-06-23 | E107: 15:09:05 | F107: Geochem(3-Beam) | H107: 97 | I107: No | L107: PPM | M107: <LOD | N107: 0 | O107: 10572 | P107: 664 | Q107: 54083 | R107: 280 | S107: 341559 | T107: 517 | U107: 480 | V107: 19 | W107: 3381 | X107: 31 | Y107: 51003 | Z107: 110 | AA107: 5144 | AB107: 27 | AC107: 1843 | AD107: 74 | AE107: <LOD | AF107: 75 | AG107: 38 | AH107: 10 | AI107: 38 | AJ107: 8 | AK107: 8113 | AL107: 32 | AM107: <LOD | AN107: 38 | AO107: 14 | AP107: 2 | AQ107: <LOD | AR107: 9 | AS107: <LOD | AT107: 7 | AU107: <LOD | AV107: 3 | AW107: <LOD | AX107: 2 | AY107: 187 | AZ107: 1 | BA107: 114 | BB107: 1 | BC107: 19 | BD107: 1 | BE107: 260 | BF107: 1 | BG107: 4 | BH107: 1 | BI107: 9 | BJ107: 1 | BK107: <LOD | BL107: 54 | BM107: <LOD | BN107: 21 | BO107: 15 | BP107: 5 | BQ107: <LOD | BR107: 41 | BS107: 866 | BT107: 13 | BU107: 75 | BV107: 20 | BW107: 139 | BX107: 27 | BY107: 154 | BZ107: 41 | CA107: <LOD | CB107: 3490 | CC107: <LOD | CD107: 11 | CE107: 5 | CF107: 1 | CG107: 16 | CH107: 1 | CI107: <LOD | CJ107: 41 | CK107: 29 | CL107: 2 | CM107: 6 | CN107: 1 | CO107: 521836 | CP107: 606 | CQ107: 40 | CR107: 40 | CS107: 40
A108: 842781 | B108: 98 | D108: 2022-06-23 | E108: 15:11:42 | F108: Geochem(3-Beam) | H108: 98 | I108: No | L108: PPM | M108: <LOD | N108: 0 | O108: 9199 | P108: 645 | Q108: 82197 | R108: 322 | S108: 336924 | T108: 511 | U108: 644 | V108: 19 | W108: <LOD | X108: 117 | Y108: 70830 | Z108: 143 | AA108: 716 | AB108: 24 | AC108: 3519 | AD108: 83 | AE108: <LOD | AF108: 89 | AG108: 73 | AH108: 11 | AI108: 71 | AJ108: 9 | AK108: 22610 | AL108: 62 | AM108: 77 | AN108: 13 | AO108: 66 | AP108: 2 | AQ108: <LOD | AR108: 10 | AS108: 23 | AT108: 2 | AU108: <LOD | AV108: 3 | AW108: <LOD | AX108: 2 | AY108: 184 | AZ108: 1 | BA108: 163 | BB108: 1 | BC108: 35 | BD108: 1 | BE108: 285 | BF108: 1 | BG108: 10 | BH108: 1 | BI108: 6 | BJ108: 1 | BK108: <LOD | BL108: 55 | BM108: <LOD | BN108: 21 | BO108: 20 | BP108: 5 | BQ108: <LOD | BR108: 41 | BS108: 855 | BT108: 15 | BU108: 138 | BV108: 23 | BW108: 208 | BX108: 31 | BY108: <LOD | BZ108: 2675 | CA108: <LOD | CB108: 3652 | CC108: 7 | CD108: 2 | CE108: 5 | CF108: 1 | CG108: 13 | CH108: 1 | CI108: <LOD | CJ108: 41 | CK108: 36 | CL108: 2 | CM108: 6 | CN108: 1 | CO108: 471081 | CP108: 597 | CQ108: 40 | CR108: 40 | CS108: 40
A109: 842781 | B109: 99 | D109: 2022-06-23 | E109: 15:14:25 | F109: Geochem(3-Beam) | H109: 99 | I109: No | L109: PPM | M109: <LOD | N109: 0 | O109: 6899 | P109: 637 | Q109: 65642 | R109: 297 | S109: 347250 | T109: 517 | U109: 424 | V109: 18 | W109: 90 | X109: 22 | Y109: 57799 | Z109: 121 | AA109: 1123 | AB109: 22 | AC109: 1844 | AD109: 73 | AE109: <LOD | AF109: 78 | AG109: 41 | AH109: 10 | AI109: <LOD | AJ109: 297 | AK109: 15666 | AL109: 48 | AM109: 42 | AN109: 11 | AO109: 22 | AP109: 2 | AQ109: <LOD | AR109: 9 | AS109: 10 | AT109: 1 | AU109: <LOD | AV109: 3 | AW109: <LOD | AX109: 2 | AY109: 187 | AZ109: 1 | BA109: 81 | BB109: 1 | BC109: 27 | BD109: 1 | BE109: 261 | BF109: 1 | BG109: 6 | BH109: 1 | BI109: 7 | BJ109: 1 | BK109: <LOD | BL109: 56 | BM109: <LOD | BN109: 21 | BO109: 19 | BP109: 5 | BQ109: <LOD | BR109: 41 | BS109: 781 | BT109: 14 | BU109: 70 | BV109: 22 | BW109: <LOD | BX109: 1817 | BY109: <LOD | BZ109: 2688 | CA109: <LOD | CB109: 3638 | CC109: <LOD | CD109: 11 | CE109: 4 | CF109: 1 | CG109: 16 | CH109: 1 | CI109: <LOD | CJ109: 41 | CK109: 33 | CL109: 2 | CM109: 7 | CN109: 1 | CO109: 501652 | CP109: 596 | CQ109: 40 | CR109: 40 | CS109: 40
A110: 842781 | B110: 100 | D110: 2022-06-23 | E110: 15:16:58 | F110: Geochem(3-Beam) | H110: 100 | I110: No | L110: PPM | M110: <LOD | N110: 0 | O110: 12054 | P110: 716 | Q110: 68771 | R110: 320 | S110: 304164 | T110: 527 | U110: 1461 | V110: 24 | W110: 196 | X110: 25 | Y110: 53154 | Z110: 123 | AA110: 2347 | AB110: 24 | AC110: 16942 | AD110: 127 | AE110: <LOD | AF110: 125 | AG110: 88 | AH110: 11 | AI110: 62 | AJ110: 9 | AK110: 22330 | AL110: 65 | AM110: 117 | AN110: 13 | AO110: 22 | AP110: 2 | AQ110: 27 | AR110: 2 | AS110: 13 | AT110: 2 | AU110: 3 | AV110: 1 | AW110: <LOD | AX110: 2 | AY110: 195 | AZ110: 1 | BA110: 108 | BB110: 1 | BC110: 92 | BD110: 1 | BE110: 2315 | BF110: 6 | BG110: 53 | BH110: 1 | BI110: 22 | BJ110: 1 | BK110: <LOD | BL110: 60 | BM110: 14 | BN110: 4 | BO110: 22 | BP110: 5 | BQ110: <LOD | BR110: 39 | BS110: 857 | BT110: 15 | BU110: <LOD | BV110: 1468 | BW110: 106 | BX110: 30 | BY110: <LOD | BZ110: 2837 | CA110: <LOD | CB110: 3897 | CC110: <LOD | CD110: 11 | CE110: 6 | CF110: 1 | CG110: 18 | CH110: 1 | CI110: <LOD | CJ110: 45 | CK110: 37 | CL110: 2 | CM110: 10 | CN110: 1 | CO110: 514393 | CP110: 652 | CQ110: 40 | CR110: 40 | CS110: 40
A111: 842781 | B111: 101 | D111: 2022-06-23 | E111: 15:19:31 | F111: Geochem(3-Beam) | H111: 101 | I111: No | L111: PPM | M111: <LOD | N111: 0 | O111: 3159 | P111: 657 | Q111: 58253 | R111: 294 | S111: 345003 | T111: 529 | U111: 328 | V111: 19 | W111: 1386 | X111: 26 | Y111: 59963 | Z111: 129 | AA111: 2666 | AB111: 25 | AC111: 880 | AD111: 73 | AE111: <LOD | AF111: 75 | AG111: <LOD | AH111: 42 | AI111: 25 | AJ111: 8 | AK111: 6304 | AL111: 29 | AM111: <LOD | AN111: 35 | AO111: 15 | AP111: 2 | AQ111: <LOD | AR111: 9 | AS111: 5 | AT111: 1 | AU111: <LOD | AV111: 4 | AW111: <LOD | AX111: 2 | AY111: 195 | AZ111: 1 | BA111: 94 | BB111: 1 | BC111: 18 | BD111: 1 | BE111: 87 | BF111: 1 | BG111: <LOD | BH111: 4 | BI111: 6 | BJ111: 1 | BK111: <LOD | BL111: 56 | BM111: <LOD | BN111: 22 | BO111: <LOD | BP111: 31 | BQ111: <LOD | BR111: 44 | BS111: 903 | BT111: 14 | BU111: 70 | BV111: 20 | BW111: <LOD | BX111: 1776 | BY111: <LOD | BZ111: 2627 | CA111: <LOD | CB111: 3569 | CC111: <LOD | CD111: 11 | CE111: 6 | CF111: 1 | CG111: 14 | CH111: 1 | CI111: <LOD | CJ111: 43 | CK111: 34 | CL111: 2 | CM111: 7 | CN111: 1 | CO111: 520580 | CP111: 613 | CQ111: 40 | CR111: 40 | CS111: 40
A112: 842781 | B112: 103 | D112: 2022-06-23 | E112: 15:23:55 | F112: Geochem(3-Beam) | H112: 103 | I112: No | L112: PPM | M112: <LOD | N112: 0 | O112: 4367 | P112: 673 | Q112: 48797 | R112: 277 | S112: 340636 | T112: 530 | U112: 315 | V112: 19 | W112: 2287 | X112: 29 | Y112: 47694 | Z112: 108 | AA112: 4760 | AB112: 27 | AC112: 833 | AD112: 71 | AE112: <LOD | AF112: 74 | AG112: <LOD | AH112: 41 | AI112: <LOD | AJ112: 318 | AK112: 7243 | AL112: 31 | AM112: <LOD | AN112: 38 | AO112: 17 | AP112: 2 | AQ112: <LOD | AR112: 9 | AS112: <LOD | AT112: 7 | AU112: <LOD | AV112: 4 | AW112: <LOD | AX112: 2 | AY112: 161 | AZ112: 1 | BA112: 99 | BB112: 1 | BC112: 19 | BD112: 1 | BE112: 109 | BF112: 1 | BG112: <LOD | BH112: 4 | BI112: 6 | BJ112: 1 | BK112: <LOD | BL112: 55 | BM112: <LOD | BN112: 22 | BO112: <LOD | BP112: 31 | BQ112: <LOD | BR112: 43 | BS112: 712 | BT112: 13 | BU112: 61 | BV112: 19 | BW112: 97 | BX112: 25 | BY112: <LOD | BZ112: 2626 | CA112: <LOD | CB112: 3569 | CC112: <LOD | CD112: 11 | CE112: 5 | CF112: 1 | CG112: 17 | CH112: 1 | CI112: <LOD | CJ112: 42 | CK112: 31 | CL112: 2 | CM112: 6 | CN112: 1 | CO112: 541728 | CP112: 622 | CQ112: 40 | CR112: 40 | CS112: 40
A113: 842781 | B113: 104 | D113: 2022-06-23 | E113: 15:28:25 | F113: Geochem(3-Beam) | H113: 104 | I113: No | L113: PPM | M113: <LOD | N113: 0 | O113: 6681 | P113: 675 | Q113: 64945 | R113: 307 | S113: 316326 | T113: 511 | U113: 418 | V113: 19 | W113: 3000 | X113: 30 | Y113: 62326 | Z113: 134 | AA113: 5203 | AB113: 29 | AC113: 1955 | AD113: 76 | AE113: <LOD | AF113: 81 | AG113: 29 | AH113: 10 | AI113: 54 | AJ113: 8 | AK113: 10393 | AL113: 38 | AM113: <LOD | AN113: 44 | AO113: 20 | AP113: 2 | AQ113: <LOD | AR113: 9 | AS113: 6 | AT113: 1 | AU113: <LOD | AV113: 4 | AW113: <LOD | AX113: 2 | AY113: 205 | AZ113: 1 | BA113: 130 | BB113: 1 | BC113: 22 | BD113: 1 | BE113: 228 | BF113: 1 | BG113: 6 | BH113: 1 | BI113: 8 | BJ113: 1 | BK113: <LOD | BL113: 57 | BM113: <LOD | BN113: 22 | BO113: <LOD | BP113: 31 | BQ113: <LOD | BR113: 42 | BS113: 914 | BT113: 14 | BU113: 62 | BV113: 21 | BW113: 118 | BX113: 27 | BY113: <LOD | BZ113: 2665 | CA113: <LOD | CB113: 3622 | CC113: <LOD | CD113: 11 | CE113: 6 | CF113: 1 | CG113: 17 | CH113: 1 | CI113: <LOD | CJ113: 43 | CK113: 36 | CL113: 2 | CM113: 6 | CN113: 1 | CO113: 526887 | CP113: 620 | CQ113: 40 | CR113: 40 | CS113: 40
A114: 842781 | B114: 105 | D114: 2022-06-23 | E114: 15:31:36 | F114: Geochem(3-Beam) | H114: 105 | I114: No | L114: PPM | M114: <LOD | N114: 0 | O114: 5097 | P114: 689 | Q114: 51042 | R114: 286 | S114: 334477 | T114: 538 | U114: 416 | V114: 19 | W114: 1104 | X114: 27 | Y114: 51394 | Z114: 117 | AA114: 3927 | AB114: 26 | AC114: 1640 | AD114: 76 | AE114: <LOD | AF114: 79 | AG114: <LOD | AH114: 43 | AI114: <LOD | AJ114: 324 | AK114: 9392 | AL114: 36 | AM114: <LOD | AN114: 43 | AO114: 15 | AP114: 2 | AQ114: 9 | AR114: 2 | AS114: <LOD | AT114: 7 | AU114: <LOD | AV114: 4 | AW114: <LOD | AX114: 2 | AY114: 168 | AZ114: 1 | BA114: 100 | BB114: 1 | BC114: 25 | BD114: 1 | BE114: 300 | BF114: 1 | BG114: 4 | BH114: 1 | BI114: 7 | BJ114: 1 | BK114: <LOD | BL114: 55 | BM114: <LOD | BN114: 22 | BO114: <LOD | BP114: 31 | BQ114: <LOD | BR114: 43 | BS114: 746 | BT114: 13 | BU114: <LOD | BV114: 1366 | BW114: <LOD | BX114: 1791 | BY114: <LOD | BZ114: 2654 | CA114: <LOD | CB114: 3601 | CC114: <LOD | CD114: 12 | CE114: 4 | CF114: 1 | CG114: 14 | CH114: 1 | CI114: <LOD | CJ114: 43 | CK114: 37 | CL114: 2 | CM114: 7 | CN114: 1 | CO114: 540078 | CP114: 637 | CQ114: 40 | CR114: 40 | CS114: 40
A115: 842781 | B115: 106 | D115: 2022-06-23 | E115: 15:33:56 | F115: Geochem(3-Beam) | H115: 106 | I115: No | L115: PPM | M115: <LOD | N115: 0 | O115: 2806 | P115: 638 | Q115: 40005 | R115: 253 | S115: 367578 | T115: 536 | U115: 243 | V115: 18 | W115: 684 | X115: 24 | Y115: 44916 | Z115: 100 | AA115: 3783 | AB115: 25 | AC115: 460 | AD115: 67 | AE115: <LOD | AF115: 69 | AG115: <LOD | AH115: 40 | AI115: 25 | AJ115: 8 | AK115: 5921 | AL115: 27 | AM115: <LOD | AN115: 34 | AO115: 8 | AP115: 2 | AQ115: <LOD | AR115: 9 | AS115: 5 | AT115: 1 | AU115: <LOD | AV115: 3 | AW115: <LOD | AX115: 2 | AY115: 141 | AZ115: 1 | BA115: 86 | BB115: 1 | BC115: 15 | BD115: 1 | BE115: 71 | BF115: 1 | BG115: <LOD | BH115: 4 | BI115: 4 | BJ115: 1 | BK115: <LOD | BL115: 54 | BM115: <LOD | BN115: 22 | BO115: <LOD | BP115: 31 | BQ115: <LOD | BR115: 43 | BS115: 659 | BT115: 13 | BU115: <LOD | BV115: 1335 | BW115: <LOD | BX115: 1737 | BY115: <LOD | BZ115: 2573 | CA115: <LOD | CB115: 3496 | CC115: <LOD | CD115: 11 | CE115: 4 | CF115: 1 | CG115: 11 | CH115: 1 | CI115: <LOD | CJ115: 41 | CK115: 27 | CL115: 2 | CM115: 8 | CN115: 1 | CO115: 532540 | CP115: 605 | CQ115: 40 | CR115: 40 | CS115: 40
A116: 842781 | B116: 107 | D116: 2022-06-23 | E116: 15:36:47 | F116: Geochem(3-Beam) | H116: 107 | I116: No | L116: PPM | M116: <LOD | N116: 0 | O116: 3486 | P116: 695 | Q116: 25562 | R116: 225 | S116: 383756 | T116: 575 | U116: 340 | V116: 20 | W116: 668 | X116: 27 | Y116: 30241 | Z116: 77 | AA116: 2473 | AB116: 22 | AC116: 670 | AD116: 71 | AE116: <LOD | AF116: 69 | AG116: <LOD | AH116: 41 | AI116: 37 | AJ116: 8 | AK116: 4525 | AL116: 24 | AM116: <LOD | AN116: 31 | AO116: 6 | AP116: 2 | AQ116: <LOD | AR116: 9 | AS116: <LOD | AT116: 7 | AU116: <LOD | AV116: 3 | AW116: <LOD | AX116: 2 | AY116: 102 | AZ116: 1 | BA116: 58 | BB116: 1 | BC116: 15 | BD116: 1 | BE116: 76 | BF116: 1 | BG116: <LOD | BH116: 4 | BI116: 6 | BJ116: 1 | BK116: <LOD | BL116: 56 | BM116: <LOD | BN116: 23 | BO116: <LOD | BP116: 32 | BQ116: <LOD | BR116: 44 | BS116: 456 | BT116: 11 | BU116: 56 | BV116: 18 | BW116: <LOD | BX116: 1783 | BY116: <LOD | BZ116: 2640 | CA116: <LOD | CB116: 3576 | CC116: <LOD | CD116: 11 | CE116: <LOD | CF116: 9 | CG116: 11 | CH116: 1 | CI116: <LOD | CJ116: 42 | CK116: 34 | CL116: 2 | CM116: 7 | CN116: 1 | CO116: 547413 | CP116: 645 | CQ116: 40 | CR116: 40 | CS116: 40
A117: 842781 | B117: 108 | D117: 2022-06-23 | E117: 15:39:09 | F117: Geochem(3-Beam) | H117: 108 | I117: No | L117: PPM | M117: <LOD | N117: 0 | O117: 3953 | P117: 682 | Q117: 63773 | R117: 311 | S117: 326033 | T117: 528 | U117: 220 | V117: 18 | W117: 1157 | X117: 26 | Y117: 68128 | Z117: 147 | AA117: 3544 | AB117: 28 | AC117: 839 | AD117: 74 | AE117: <LOD | AF117: 78 | AG117: 30 | AH117: 10 | AI117: <LOD | AJ117: 313 | AK117: 9600 | AL117: 37 | AM117: <LOD | AN117: 44 | AO117: 13 | AP117: 2 | AQ117: <LOD | AR117: 10 | AS117: 6 | AT117: 1 | AU117: <LOD | AV117: 4 | AW117: <LOD | AX117: 2 | AY117: 221 | AZ117: 1 | BA117: 122 | BB117: 1 | BC117: 19 | BD117: 1 | BE117: 102 | BF117: 1 | BG117: <LOD | BH117: 5 | BI117: 5 | BJ117: 1 | BK117: <LOD | BL117: 55 | BM117: <LOD | BN117: 23 | BO117: 17 | BP117: 5 | BQ117: <LOD | BR117: 44 | BS117: 873 | BT117: 14 | BU117: <LOD | BV117: 1383 | BW117: <LOD | BX117: 1804 | BY117: <LOD | BZ117: 2664 | CA117: <LOD | CB117: 3633 | CC117: <LOD | CD117: 11 | CE117: 6 | CF117: 1 | CG117: 19 | CH117: 1 | CI117: <LOD | CJ117: 43 | CK117: 31 | CL117: 2 | CM117: 6 | CN117: 1 | CO117: 521283 | CP117: 630 | CQ117: 40 | CR117: 40 | CS117: 40
A118: 842781 | B118: 109 | D118: 2022-06-23 | E118: 15:41:33 | F118: Geochem(3-Beam) | H118: 109 | I118: No | L118: PPM | M118: <LOD | N118: 0 | O118: 9802 | P118: 686 | Q118: 71785 | R118: 318 | S118: 316890 | T118: 513 | U118: 391 | V118: 18 | W118: 1599 | X118: 27 | Y118: 60918 | Z118: 132 | AA118: 2301 | AB118: 25 | AC118: 1421 | AD118: 76 | AE118: <LOD | AF118: 80 | AG118: <LOD | AH118: 42 | AI118: <LOD | AJ118: 325 | AK118: 10030 | AL118: 37 | AM118: 33 | AN118: 9 | AO118: 16 | AP118: 2 | AQ118: <LOD | AR118: 9 | AS118: 9 | AT118: 1 | AU118: <LOD | AV118: 4 | AW118: <LOD | AX118: 2 | AY118: 221 | AZ118: 1 | BA118: 107 | BB118: 1 | BC118: 30 | BD118: 1 | BE118: 250 | BF118: 1 | BG118: 5 | BH118: 1 | BI118: 6 | BJ118: 1 | BK118: <LOD | BL118: 55 | BM118: <LOD | BN118: 22 | BO118: 20 | BP118: 5 | BQ118: <LOD | BR118: 42 | BS118: 987 | BT118: 14 | BU118: 65 | BV118: 21 | BW118: 96 | BX118: 27 | BY118: <LOD | BZ118: 2625 | CA118: <LOD | CB118: 3587 | CC118: <LOD | CD118: 11 | CE118: 5 | CF118: 1 | CG118: 15 | CH118: 1 | CI118: <LOD | CJ118: 42 | CK118: 31 | CL118: 2 | CM118: 7 | CN118: 1 | CO118: 522960 | CP118: 624 | CQ118: 40 | CR118: 40 | CS118: 40
A119: 842781 | B119: 110 | D119: 2022-06-23 | E119: 15:44:13 | F119: Geochem(3-Beam) | H119: 110 | I119: No | L119: PPM | M119: <LOD | N119: 0 | O119: 2140 | P119: 688 | Q119: 46135 | R119: 279 | S119: 345869 | T119: 548 | U119: 308 | V119: 19 | W119: 1273 | X119: 27 | Y119: 51055 | Z119: 117 | AA119: 3574 | AB119: 26 | AC119: 1587 | AD119: 78 | AE119: <LOD | AF119: 79 | AG119: <LOD | AH119: 42 | AI119: <LOD | AJ119: 319 | AK119: 5492 | AL119: 27 | AM119: <LOD | AN119: 34 | AO119: 15 | AP119: 2 | AQ119: <LOD | AR119: 10 | AS119: <LOD | AT119: 7 | AU119: <LOD | AV119: 4 | AW119: <LOD | AX119: 2 | AY119: 156 | AZ119: 1 | BA119: 88 | BB119: 1 | BC119: 18 | BD119: 1 | BE119: 111 | BF119: 1 | BG119: <LOD | BH119: 5 | BI119: 4 | BJ119: 1 | BK119: <LOD | BL119: 55 | BM119: <LOD | BN119: 23 | BO119: <LOD | BP119: 32 | BQ119: <LOD | BR119: 45 | BS119: 610 | BT119: 12 | BU119: <LOD | BV119: 1407 | BW119: <LOD | BX119: 1817 | BY119: <LOD | BZ119: 2683 | CA119: <LOD | CB119: 3648 | CC119: <LOD | CD119: 12 | CE119: 5 | CF119: 1 | CG119: 13 | CH119: 1 | CI119: <LOD | CJ119: 44 | CK119: 38 | CL119: 2 | CM119: 7 | CN119: 1 | CO119: 541502 | CP119: 639 | CQ119: 40 | CR119: 40 | CS119: 40
A120: 842781 | B120: 111 | D120: 2022-06-23 | E120: 15:46:41 | F120: Geochem(3-Beam) | H120: 111 | I120: No | L120: PPM | M120: <LOD | N120: 0 | O120: 2119 | P120: 597 | Q120: 35908 | R120: 235 | S120: 388426 | T120: 532 | U120: 292 | V120: 17 | W120: <LOD | X120: 120 | Y120: 39759 | Z120: 88 | AA120: 1113 | AB120: 20 | AC120: 579 | AD120: 67 | AE120: <LOD | AF120: 68 | AG120: <LOD | AH120: 39 | AI120: <LOD | AJ120: 279 | AK120: 9034 | AL120: 34 | AM120: <LOD | AN120: 40 | AO120: 10 | AP120: 2 | AQ120: <LOD | AR120: 9 | AS120: <LOD | AT120: 6 | AU120: <LOD | AV120: 3 | AW120: <LOD | AX120: 2 | AY120: 121 | AZ120: 1 | BA120: 50 | BB120: 1 | BC120: 12 | BD120: 1 | BE120: 102 | BF120: 1 | BG120: <LOD | BH120: 4 | BI120: 6 | BJ120: 1 | BK120: 5 | BL120: 1 | BM120: <LOD | BN120: 21 | BO120: <LOD | BP120: 30 | BQ120: <LOD | BR120: 41 | BS120: 595 | BT120: 13 | BU120: 78 | BV120: 20 | BW120: <LOD | BX120: 1749 | BY120: <LOD | BZ120: 2586 | CA120: <LOD | CB120: 3505 | CC120: <LOD | CD120: 11 | CE120: 4 | CF120: 1 | CG120: 9 | CH120: 1 | CI120: <LOD | CJ120: 40 | CK120: 31 | CL120: 2 | CM120: 8 | CN120: 1 | CO120: 521739 | CP120: 583 | CQ120: 40 | CR120: 40 | CS120: 40
A121: 842781 | B121: 112 | D121: 2022-06-23 | E121: 15:49:24 | F121: Geochem(3-Beam) | H121: 112 | I121: No | L121: PPM | M121: <LOD | N121: 0 | O121: <LOD | P121: 2169 | Q121: 12229 | R121: 164 | S121: 438780 | T121: 441 | U121: 256 | V121: 17 | W121: <LOD | X121: 115 | Y121: 12635 | Z121: 39 | AA121: 348 | AB121: 14 | AC121: 223 | AD121: 62 | AE121: <LOD | AF121: 61 | AG121: <LOD | AH121: 36 | AI121: <LOD | AJ121: 273 | AK121: 3182 | AL121: 18 | AM121: <LOD | AN121: 25 | AO121: 11 | AP121: 2 | AQ121: <LOD | AR121: 8 | AS121: 4 | AT121: 1 | AU121: <LOD | AV121: 3 | AW121: <LOD | AX121: 2 | AY121: 38 | AZ121: 1 | BA121: 12 | BB121: 0 | BC121: 39 | BD121: 1 | BE121: 46 | BF121: 1 | BG121: <LOD | BH121: 4 | BI121: 5 | BJ121: 1 | BK121: <LOD | BL121: 52 | BM121: <LOD | BN121: 21 | BO121: 17 | BP121: 5 | BQ121: <LOD | BR121: 41 | BS121: 178 | BT121: 11 | BU121: 59 | BV121: 19 | BW121: <LOD | BX121: 1692 | BY121: <LOD | BZ121: 2494 | CA121: <LOD | CB121: 3369 | CC121: <LOD | CD121: 10 | CE121: <LOD | CF121: 8 | CG121: 7 | CH121: 1 | CI121: <LOD | CJ121: 39 | CK121: 30 | CL121: 2 | CM121: 5 | CN121: 1 | CO121: 531895 | CP121: 444 | CQ121: 40 | CR121: 40 | CS121: 40
